Workbook

Sheet Option 1 (hidden)
E2: Annual rates based on 21-23 CSM - $ per sqft per year - State Agency tenants only | K2: "Add-on" CSM charges | O2: Biennial Revenue For Building
C3: By Building | E3: Rent | F3: Debt | G3: Campus Contracts | H3: Total "Rent and Related" | I3: Current Lease Rates | K3: Security on Campus | L3: Parking - Goes to 045 | N3: RSF | O3: Rent | P3: Debt | Q3: Security | R3: Campus Contracts | S3: Total | U3: Parking - Goes to 045
C4: F6121 | D4: Cherberg | E4: =HLOOKUP(C4,'rent dollars FY22'!$E$2:$AK$112,111,FALSE) -> 7.085590469 | F4: =HLOOKUP(C4,'Debt Dollars FY22'!$G$4:$AN$114,111,FALSE) -> 0 | G4: =HLOOKUP(C4,'CC dollars FY22'!$K$5:$AR$115,111,FALSE) -> 0.1712957173 | H4: =SUM(E4:G4) -> 7.256886186 | I4: N/A | K4: =HLOOKUP(C4,'Security dollars'!$E$2:$AK$112,111,FALSE) -> 2.878143714 | L4: =HLOOKUP(C4,'Park Dollars FY22'!$E$3:$AL$113,111,FALSE) -> 0.192057329 | N4: =HLOOKUP(C4,'rent dollars FY22'!$E$2:$AK$110,109,FALSE) -> 77281 | O4: =$N4*E4*2 -> 1095163.034 | P4: =$N4*F4*2 -> 0 | Q4: =$N4*K4*2 -> 444851.6487 | R4: =$N4*G4*2 -> 26475.80866 | S4: =SUM(O4:R4) -> 1566490.491 | U4: =$N4*L4*2 -> 29684.76488
C5: F6122 | D5: O'Brien | E5: =HLOOKUP(C5,'rent dollars FY22'!$E$2:$AK$112,111,FALSE) -> 4.466575444 | F5: =HLOOKUP(C5,'Debt Dollars FY22'!$G$4:$AN$114,111,FALSE) -> 0 | G5: =HLOOKUP(C5,'CC dollars FY22'!$K$5:$AR$115,111,FALSE) -> 0.1484354038 | H5: =SUM(E5:G5) -> 4.615010848 | I5: N/A | K5: =HLOOKUP(C5,'Security dollars'!$E$2:$AK$112,111,FALSE) -> 1.814308362 | L5: =HLOOKUP(C5,'Park Dollars FY22'!$E$3:$AL$113,111,FALSE) -> 0.192057329 | N5: =HLOOKUP(C5,'rent dollars FY22'!$E$2:$AK$110,109,FALSE) -> 78594 | O5: 702092.0609 | P5: 0 | Q5: 285187.5028 | R5: 23332.26426 | S5: =SUM(O5:R5) -> 1010611.828 | U5: =$N5*L5*2 -> 30189.10742
C6: F6123 | D6: Legislative | E6: =HLOOKUP(C6,'rent dollars FY22'!$E$2:$AK$112,111,FALSE) -> 9.242639718 | F6: =HLOOKUP(C6,'Debt Dollars FY22'!$G$4:$AN$114,111,FALSE) -> 0 | G6: =HLOOKUP(C6,'CC dollars FY22'!$K$5:$AR$115,111,FALSE) -> 0.218299902 | H6: 9.46093962 | I6: N/A | K6: =HLOOKUP(C6,'Security dollars'!$E$2:$AK$112,111,FALSE) -> 3.754330076 | L6: =HLOOKUP(C6,'Park Dollars FY22'!$E$3:$AL$113,111,FALSE) -> 0.192057329 | N6: =HLOOKUP(C6,'rent dollars FY22'!$E$2:$AK$110,109,FALSE) -> 142254 | O6: 2629604.941 | P6: 0 | Q6: 1068136.941 | R6: 62108.06852 | S6: 3759849.951 | U6: 54641.84655
C7: F6124 | D7: Pritchard | E7: =HLOOKUP(C7,'rent dollars FY22'!$E$2:$AK$112,111,FALSE) -> 12.01335167 | F7: =HLOOKUP(C7,'Debt Dollars FY22'!$G$4:$AN$114,111,FALSE) -> 0 | G7: =HLOOKUP(C7,'CC dollars FY22'!$K$5:$AR$115,111,FALSE) -> 0.2195607623 | H7: 12.23291244 | I7: N/A | K7: =HLOOKUP(C7,'Security dollars'!$E$2:$AK$112,111,FALSE) -> 4.879784226 | L7: =HLOOKUP(C7,'Park Dollars FY22'!$E$3:$AL$113,111,FALSE) -> 0.192057329 | N7: =HLOOKUP(C7,'rent dollars FY22'!$E$2:$AK$110,109,FALSE) -> 23890 | O7: 573997.943 | P7: 0 | Q7: 233156.0903 | R7: 10490.61322 | S7: 817644.6465 | U7: 9176.499178
C8: F6125 | D8: HLB | E8: =HLOOKUP(C8,'rent dollars FY22'!$E$2:$AK$112,111,FALSE) -> 5.316790155 | F8: =HLOOKUP(C8,'Debt Dollars FY22'!$G$4:$AN$114,111,FALSE) -> 0.7179296378 | G8: =HLOOKUP(C8,'CC dollars FY22'!$K$5:$AR$115,111,FALSE) -> 0.2023789911 | H8: 6.237098784 | I8: N/A | K8: =HLOOKUP(C8,'Security dollars'!$E$2:$AK$112,111,FALSE) -> 2.159662801 | L8: =HLOOKUP(C8,'Park Dollars FY22'!$E$3:$AL$113,111,FALSE) -> 0.192057329 | N8: =HLOOKUP(C8,'rent dollars FY22'!$E$2:$AK$110,109,FALSE) -> 177668 | O8: 1889246.946 | P8: 255106.2458 | Q8: 767405.9412 | R8: 71912.54117 | S8: 2983671.675 | U8: 68244.88304
C9: F6126 | D9: OB2 | E9: =HLOOKUP(C9,'rent dollars FY22'!$E$2:$AK$112,111,FALSE) -> 5.296539486 | F9: =HLOOKUP(C9,'Debt Dollars FY22'!$G$4:$AN$114,111,FALSE) -> 0.7428215191 | G9: =HLOOKUP(C9,'CC dollars FY22'!$K$5:$AR$115,111,FALSE) -> 0.2427445727 | H9: 6.282105578 | I9: N/A | K9: =HLOOKUP(C9,'Security dollars'!$E$2:$AK$112,111,FALSE) -> 2.151437046 | L9: =HLOOKUP(C9,'Park Dollars FY22'!$E$3:$AL$113,111,FALSE) -> 0.192057329 | N9: =HLOOKUP(C9,'rent dollars FY22'!$E$2:$AK$110,109,FALSE) -> 250481 | O9: 2653365.014 | P9: 372125.3538 | Q9: 1077788.205 | R9: 121605.8066 | S9: 4224884.38 | U9: 96213.42363
C10: F6127 | D10: Archives | E10: =HLOOKUP(C10,'rent dollars FY22'!$E$2:$AK$112,111,FALSE) -> 4.668591275 | F10: =HLOOKUP(C10,'Debt Dollars FY22'!$G$4:$AN$114,111,FALSE) -> 0.3751197224 | G10: =HLOOKUP(C10,'CC dollars FY22'!$K$5:$AR$115,111,FALSE) -> 0.1701191442 | H10: 5.213830142 | I10: N/A | K10: =HLOOKUP(C10,'Security dollars'!$E$2:$AK$112,111,FALSE) -> 1.896366533 | L10: =HLOOKUP(C10,'Park Dollars FY22'!$E$3:$AL$113,111,FALSE) -> 0.192057329 | N10: =HLOOKUP(C10,'rent dollars FY22'!$E$2:$AK$110,109,FALSE) -> 47900 | O10: 447251.0442 | P10: 35936.46941 | Q10: 181671.9139 | R10: 16297.41401 | S10: 681156.8415 | U10: 18399.09211
C11: F6129 | D11: NRB | E11: =HLOOKUP(C11,'rent dollars FY22'!$E$2:$AK$112,111,FALSE) -> 3.985127381 | F11: =HLOOKUP(C11,'Debt Dollars FY22'!$G$4:$AN$114,111,FALSE) -> 0.8449825626 | G11: =HLOOKUP(C11,'CC dollars FY22'!$K$5:$AR$115,111,FALSE) -> 0.1899794047 | H11: 5.020089348 | I11: N/A | K11: =HLOOKUP(C11,'Security dollars'!$E$2:$AK$112,111,FALSE) -> 1.618745731 | L11: =HLOOKUP(C11,'Park Dollars FY22'!$E$3:$AL$113,111,FALSE) -> 0.192057329 | N11: =HLOOKUP(C11,'rent dollars FY22'!$E$2:$AK$110,109,FALSE) -> 354696 | O11: 2827017.483 | P11: 599423.8701 | Q11: 1148325.271 | R11: 134769.8698 | S11: 4709536.494 | U11: 136243.9327
C12: F612A | D12: Emp Sec | E12: =HLOOKUP(C12,'rent dollars FY22'!$E$2:$AK$112,111,FALSE) -> 5.449835216 | F12: =HLOOKUP(C12,'Debt Dollars FY22'!$G$4:$AN$114,111,FALSE) -> 0 | G12: =HLOOKUP(C12,'CC dollars FY22'!$K$5:$AR$115,111,FALSE) -> 0.2316654088 | H12: 5.681500625 | I12: N/A | K12: =HLOOKUP(C12,'Security dollars'!$E$2:$AK$112,111,FALSE) -> 2.213705271 | L12: =HLOOKUP(C12,'Park Dollars FY22'!$E$3:$AL$113,111,FALSE) -> 0.192057329 | N12: =HLOOKUP(C12,'rent dollars FY22'!$E$2:$AK$110,109,FALSE) -> 92619 | O12: 1009516.576 | P12: 0 | Q12: 410062.3369 | R12: 42913.23699 | S12: 1462492.15 | U12: 35576.3155
C13: F612C | D13: Transportation | E13: =HLOOKUP(C13,'rent dollars FY22'!$E$2:$AK$112,111,FALSE) -> 4.586099702 | F13: =HLOOKUP(C13,'Debt Dollars FY22'!$G$4:$AN$114,111,FALSE) -> 0 | G13: =HLOOKUP(C13,'CC dollars FY22'!$K$5:$AR$115,111,FALSE) -> 0.1890130245 | H13: 4.775112726 | I13: N/A | K13: =HLOOKUP(C13,'Security dollars'!$E$2:$AK$112,111,FALSE) -> 1.862858725 | L13: =HLOOKUP(C13,'Park Dollars FY22'!$E$3:$AL$113,111,FALSE) -> 0.192057329 | N13: =HLOOKUP(C13,'rent dollars FY22'!$E$2:$AK$110,109,FALSE) -> 184427 | O13: 1691601.219 | P13: 0 | Q13: 687122.8922 | R13: 69718.21016 | S13: 2448442.322 | U13: 70841.11402
C14: F612E | D14: Insurance | E14: =HLOOKUP(C14,'rent dollars FY22'!$E$2:$AK$112,111,FALSE) -> 6.92974488 | F14: =HLOOKUP(C14,'Debt Dollars FY22'!$G$4:$AN$114,111,FALSE) -> 0 | G14: =HLOOKUP(C14,'CC dollars FY22'!$K$5:$AR$115,111,FALSE) -> 0.1807749091 | H14: 7.110519789 | I14: N/A | K14: =HLOOKUP(C14,'Security dollars'!$E$2:$AK$112,111,FALSE) -> 2.814839744 | L14: =HLOOKUP(C14,'Park Dollars FY22'!$E$3:$AL$113,111,FALSE) -> 0.192057329 | N14: =HLOOKUP(C14,'rent dollars FY22'!$E$2:$AK$110,109,FALSE) -> 55108 | O14: 763768.7617 | P14: 0 | Q14: 310240.3773 | R14: 19924.28738 | S14: 1093933.426 | U14: 21167.79057
C15: F612H | D15: Old Cap | E15: =HLOOKUP(C15,'rent dollars FY22'!$E$2:$AK$112,111,FALSE) -> 5.254354183 | F15: =HLOOKUP(C15,'Debt Dollars FY22'!$G$4:$AN$114,111,FALSE) -> 0 | G15: =HLOOKUP(C15,'CC dollars FY22'!$K$5:$AR$115,111,FALSE) -> 0.1793618107 | H15: 5.433715994 | I15: N/A | K15: =HLOOKUP(C15,'Security dollars'!$E$2:$AK$112,111,FALSE) -> 2.134301514 | L15: =HLOOKUP(C15,'Park Dollars FY22'!$E$3:$AL$113,111,FALSE) -> 0.192057329 | N15: =HLOOKUP(C15,'rent dollars FY22'!$E$2:$AK$110,109,FALSE) -> 97800 | O15: 1027751.678 | P15: 0 | Q15: 417469.3761 | R15: 35083.17017 | S15: 1480304.224 | U15: 37566.41354
C16: F612J | D16: TOJ | E16: =HLOOKUP(C16,'rent dollars FY22'!$E$2:$AK$112,111,FALSE) -> 7.220347145 | F16: =HLOOKUP(C16,'Debt Dollars FY22'!$G$4:$AN$114,111,FALSE) -> 0 | G16: =HLOOKUP(C16,'CC dollars FY22'!$K$5:$AR$115,111,FALSE) -> 0.2170010503 | H16: 7.437348196 | I16: N/A | K16: =HLOOKUP(C16,'Security dollars'!$E$2:$AK$112,111,FALSE) -> 2.932881436 | L16: =HLOOKUP(C16,'Park Dollars FY22'!$E$3:$AL$113,111,FALSE) -> 0.192057329 | N16: =HLOOKUP(C16,'rent dollars FY22'!$E$2:$AK$110,109,FALSE) -> 53609 | O16: 774151.1802 | P16: 0 | Q16: 314457.6818 | R16: 23266.41861 | S16: 1111875.281 | U16: 20592.0027
C17: F612K | D17: Newhouse | E17: =HLOOKUP(C17,'rent dollars FY22'!$E$2:$AK$112,111,FALSE) -> 9.225980785 | F17: =HLOOKUP(C17,'Debt Dollars FY22'!$G$4:$AN$114,111,FALSE) -> 0 | G17: =HLOOKUP(C17,'CC dollars FY22'!$K$5:$AR$115,111,FALSE) -> 0.2294679595 | H17: 9.455448744 | I17: N/A | K17: =HLOOKUP(C17,'Security dollars'!$E$2:$AK$112,111,FALSE) -> 3.747563272 | L17: =HLOOKUP(C17,'Park Dollars FY22'!$E$3:$AL$113,111,FALSE) -> 0.192057329 | N17: =HLOOKUP(C17,'rent dollars FY22'!$E$2:$AK$110,109,FALSE) -> 22032 | O17: 406533.6173 | P17: 0 | Q17: 165132.628 | R17: 10111.27617 | S17: 581777.5215 | U17: 8462.814143
C18: F6131 | D18: Modular Bldg | E18: =HLOOKUP(C18,'rent dollars FY22'!$E$2:$AK$112,111,FALSE) -> 2.710122085 | F18: =HLOOKUP(C18,'Debt Dollars FY22'!$G$4:$AN$114,111,FALSE) -> 0 | G18: =HLOOKUP(C18,'CC dollars FY22'!$K$5:$AR$115,111,FALSE) -> 0 | H18: 2.710122085 | I18: =VLOOKUP(C18,'[2]Building Compare'!$C$20:$G$30,5,FALSE) -> 5.466588388 | K18: =HLOOKUP(C18,'Security dollars'!$E$2:$AK$112,111,FALSE) -> 1.100842742 | L18: =HLOOKUP(C18,'Park Dollars FY22'!$E$3:$AL$113,111,FALSE) -> 0 | N18: =HLOOKUP(C18,'rent dollars FY22'!$E$2:$AK$110,109,FALSE) -> 95386 | O18: 517015.4104 | P18: 0 | Q18: 210009.9716 | R18: 0 | S18: 727025.3821 | U18: 0
C19: F6132 | D19: Isabella Bush | E19: =HLOOKUP(C19,'rent dollars FY22'!$E$2:$AK$112,111,FALSE) -> 1.191139148 | F19: =HLOOKUP(C19,'Debt Dollars FY22'!$G$4:$AN$114,111,FALSE) -> 3.37769576 | G19: =HLOOKUP(C19,'CC dollars FY22'!$K$5:$AR$115,111,FALSE) -> 0.03864010991 | H19: 4.607475018 | I19: =VLOOKUP(C19,'[2]Building Compare'!$C$20:$G$30,5,FALSE) -> 9.317033898 | K19: =HLOOKUP(C19,'Security dollars'!$E$2:$AK$112,111,FALSE) -> 0.4838368328 | L19: =HLOOKUP(C19,'Park Dollars FY22'!$E$3:$AL$113,111,FALSE) -> 0 | N19: =HLOOKUP(C19,'rent dollars FY22'!$E$2:$AK$110,109,FALSE) -> 47200 | O19: 112443.5356 | P19: 318854.4797 | Q19: 45674.19701 | R19: 3647.626375 | S19: 480619.8387 | U19: 0
C20: F6133 | D20: 1007 Washington | E20: =HLOOKUP(C20,'rent dollars FY22'!$E$2:$AK$112,111,FALSE) -> 2.578776157 | F20: =HLOOKUP(C20,'Debt Dollars FY22'!$G$4:$AN$114,111,FALSE) -> 0 | G20: =HLOOKUP(C20,'CC dollars FY22'!$K$5:$AR$115,111,FALSE) -> 0.2021292018 | H20: 2.780905359 | I20: =VLOOKUP(C20,'[2]Building Compare'!$C$20:$G$30,5,FALSE) -> 6 | K20: =HLOOKUP(C20,'Security dollars'!$E$2:$AK$112,111,FALSE) -> 1.047490455 | L20: =HLOOKUP(C20,'Park Dollars FY22'!$E$3:$AL$113,111,FALSE) -> 0 | N20: =HLOOKUP(C20,'rent dollars FY22'!$E$2:$AK$110,109,FALSE) -> 14308 | O20: 73794.2585 | P20: 0 | Q20: 29974.98686 | R20: 5784.129239 | S20: 109553.3746 | U20: 0
C21: F6134 | D21: 120 E Union Avenue | E21: =HLOOKUP(C21,'rent dollars FY22'!$E$2:$AK$112,111,FALSE) -> 0 | F21: =HLOOKUP(C21,'Debt Dollars FY22'!$G$4:$AN$114,111,FALSE) -> 0 | G21: =HLOOKUP(C21,'CC dollars FY22'!$K$5:$AR$115,111,FALSE) -> 0 | H21: 0 | I21: N/A | K21: =HLOOKUP(C21,'Security dollars'!$E$2:$AK$112,111,FALSE) -> 0 | L21: =HLOOKUP(C21,'Park Dollars FY22'!$E$3:$AL$113,111,FALSE) -> 0 | N21: =HLOOKUP(C21,'rent dollars FY22'!$E$2:$AK$110,109,FALSE) -> 10125 | O21: 0 | P21: 0 | Q21: 0 | R21: 0 | S21: 0 | U21: 0
C22: F613D | D22: Capital Court | E22: =HLOOKUP(C22,'rent dollars FY22'!$E$2:$AK$112,111,FALSE) -> 10.97969652 | F22: =HLOOKUP(C22,'Debt Dollars FY22'!$G$4:$AN$114,111,FALSE) -> 2.77792443 | G22: =HLOOKUP(C22,'CC dollars FY22'!$K$5:$AR$115,111,FALSE) -> 0.1601937388 | H22: 13.91781469 | I22: =VLOOKUP(C22,'[2]Building Compare'!$C$20:$G$30,5,FALSE) -> 28.43784911 | K22: =HLOOKUP(C22,'Security dollars'!$E$2:$AK$112,111,FALSE) -> 4.459916877 | L22: =HLOOKUP(C22,'Park Dollars FY22'!$E$3:$AL$113,111,FALSE) -> 0 | N22: =HLOOKUP(C22,'rent dollars FY22'!$E$2:$AK$110,109,FALSE) -> 41341 | O22: 907823.2676 | P22: 229684.3477 | Q22: 368754.8472 | R22: 13245.13871 | S22: 1519507.601 | U22: 0
C23: F613E | D23: James Dolliver Building | E23: =HLOOKUP(C23,'rent dollars FY22'!$E$2:$AK$112,111,FALSE) -> 8.64381968 | F23: =HLOOKUP(C23,'Debt Dollars FY22'!$G$4:$AN$114,111,FALSE) -> 3.709655086 | G23: =HLOOKUP(C23,'CC dollars FY22'!$K$5:$AR$115,111,FALSE) -> 0.2080701041 | H23: 12.56154487 | I23: =VLOOKUP(C23,'[2]Building Compare'!$C$20:$G$30,5,FALSE) -> 25.66588235 | K23: =HLOOKUP(C23,'Security dollars'!$E$2:$AK$112,111,FALSE) -> 3.511091332 | L23: =HLOOKUP(C23,'Park Dollars FY22'!$E$3:$AL$113,111,FALSE) -> 0 | N23: =HLOOKUP(C23,'rent dollars FY22'!$E$2:$AK$110,109,FALSE) -> 17000 | O23: 293889.8691 | P23: 126128.2729 | Q23: 119377.1053 | R23: 7074.38354 | S23: 546469.6309 | U23: 0
C24: F613G | D24: 1068 WA Street SE (ST Farm) | E24: =HLOOKUP(C24,'rent dollars FY22'!$E$2:$AK$112,111,FALSE) -> 7.938108659 | F24: =HLOOKUP(C24,'Debt Dollars FY22'!$G$4:$AN$114,111,FALSE) -> 0 | G24: =HLOOKUP(C24,'CC dollars FY22'!$K$5:$AR$115,111,FALSE) -> 0.07326827377 | H24: 8.011376933 | I24: =VLOOKUP(C24,'[2]Building Compare'!$C$20:$G$30,5,FALSE) -> 16.28070175 | K24: =HLOOKUP(C24,'Security dollars'!$E$2:$AK$112,111,FALSE) -> 3.224433819 | L24: =HLOOKUP(C24,'Park Dollars FY22'!$E$3:$AL$113,111,FALSE) -> 0 | N24: =HLOOKUP(C24,'rent dollars FY22'!$E$2:$AK$110,109,FALSE) -> 1539 | O24: 24433.49845 | P24: 0 | Q24: 9924.807295 | R24: 225.5197467 | S24: 34583.82549 | U24: 0
C25: F613H | D25: 232 Perry Street | E25: =HLOOKUP(C25,'rent dollars FY22'!$E$2:$AK$112,111,FALSE) -> 0 | F25: =HLOOKUP(C25,'Debt Dollars FY22'!$G$4:$AN$114,111,FALSE) -> 0 | G25: =HLOOKUP(C25,'CC dollars FY22'!$K$5:$AR$115,111,FALSE) -> 0 | H25: 0 | I25: N/A | K25: =HLOOKUP(C25,'Security dollars'!$E$2:$AK$112,111,FALSE) -> 0 | L25: =HLOOKUP(C25,'Park Dollars FY22'!$E$3:$AL$113,111,FALSE) -> 0 | N25: =HLOOKUP(C25,'rent dollars FY22'!$E$2:$AK$110,109,FALSE) -> 7138 | O25: 0 | P25: 0 | Q25: 0 | R25: 0 | S25: 0 | U25: 0
C26: F613i | D26: 208 11th Avenue SE (Pro Arts) | E26: =HLOOKUP(C26,'rent dollars FY22'!$E$2:$AK$112,111,FALSE) -> 0 | F26: =HLOOKUP(C26,'Debt Dollars FY22'!$G$4:$AN$114,111,FALSE) -> 0 | G26: =HLOOKUP(C26,'CC dollars FY22'!$K$5:$AR$115,111,FALSE) -> 0 | H26: 0 | I26: N/A | K26: =HLOOKUP(C26,'Security dollars'!$E$2:$AK$112,111,FALSE) -> 0 | L26: =HLOOKUP(C26,'Park Dollars FY22'!$E$3:$AL$113,111,FALSE) -> 0 | N26: =HLOOKUP(C26,'rent dollars FY22'!$E$2:$AK$110,109,FALSE) -> 885 | O26: 0 | P26: 0 | Q26: 0 | R26: 0 | S26: 0 | U26: 0
C27: F613K | D27: Press Houses Ayer(White); Carlyon(Blue) | E27: =HLOOKUP(C27,'rent dollars FY22'!$E$2:$AK$112,111,FALSE) -> 0 | F27: =HLOOKUP(C27,'Debt Dollars FY22'!$G$4:$AN$114,111,FALSE) -> 0 | G27: =HLOOKUP(C27,'CC dollars FY22'!$K$5:$AR$115,111,FALSE) -> 0 | H27: 0 | I27: N/A | K27: =HLOOKUP(C27,'Security dollars'!$E$2:$AK$112,111,FALSE) -> 0 | L27: =HLOOKUP(C27,'Park Dollars FY22'!$E$3:$AL$113,111,FALSE) -> 0 | N27: =HLOOKUP(C27,'rent dollars FY22'!$E$2:$AK$110,109,FALSE) -> 2492 | O27: 0 | P27: 0 | Q27: 0 | R27: 0 | S27: 0 | U27: 0
C28: F613L | D28: Visitor Center | E28: =HLOOKUP(C28,'rent dollars FY22'!$E$2:$AK$112,111,FALSE) -> 0 | F28: =HLOOKUP(C28,'Debt Dollars FY22'!$G$4:$AN$114,111,FALSE) -> 0 | G28: =HLOOKUP(C28,'CC dollars FY22'!$K$5:$AR$115,111,FALSE) -> 0 | H28: 0 | I28: N/A | K28: =HLOOKUP(C28,'Security dollars'!$E$2:$AK$112,111,FALSE) -> 0 | L28: =HLOOKUP(C28,'Park Dollars FY22'!$E$3:$AL$113,111,FALSE) -> 0 | N28: =HLOOKUP(C28,'rent dollars FY22'!$E$2:$AK$110,109,FALSE) -> 872 | O28: 0 | P28: 0 | Q28: 0 | R28: 0 | S28: 0 | U28: 0
C29: F613M | D29: Helen Sommers | E29: =HLOOKUP(C29,'rent dollars FY22'!$E$2:$AK$112,111,FALSE) -> 4.082909972 | F29: =HLOOKUP(C29,'Debt Dollars FY22'!$G$4:$AN$114,111,FALSE) -> 11.90659503 | G29: =HLOOKUP(C29,'CC dollars FY22'!$K$5:$AR$115,111,FALSE) -> 0 | H29: 15.989505 | I29: =VLOOKUP(C29,'[2]Building Compare'!$C$20:$G$30,5,FALSE) -> 32.0368515 | K29: =HLOOKUP(C29,'Security dollars'!$E$2:$AK$112,111,FALSE) -> 1.6584647 | L29: =HLOOKUP(C29,'Park Dollars FY22'!$E$3:$AL$113,111,FALSE) -> 0 | N29: =HLOOKUP(C29,'rent dollars FY22'!$E$2:$AK$110,109,FALSE) -> 200592 | O29: 1637998.154 | P29: 4776735.421 | Q29: 665349.5021 | R29: 0 | S29: 7080083.077 | U29: 0
C30: F6141 | D30: Kelso Building | E30: =HLOOKUP(C30,'rent dollars FY22'!$E$2:$AK$112,111,FALSE) -> 9.170144629 | F30: =HLOOKUP(C30,'Debt Dollars FY22'!$G$4:$AN$114,111,FALSE) -> 0.6391200931 | G30: =HLOOKUP(C30,'CC dollars FY22'!$K$5:$AR$115,111,FALSE) -> 0 | H30: 9.809264723 | I30: =VLOOKUP(C30,'[2]Building Compare'!$C$20:$G$30,5,FALSE) -> 19.77534276 | K30: =HLOOKUP(C30,'Security dollars'!$E$2:$AK$112,111,FALSE) -> 3.724882808 | L30: =HLOOKUP(C30,'Park Dollars FY22'!$E$3:$AL$113,111,FALSE) -> 0 | N30: =HLOOKUP(C30,'rent dollars FY22'!$E$2:$AK$110,109,FALSE) -> 60581 | O30: 1111073.064 | P30: 77437.06872 | Q30: 451314.2507 | R30: 0 | S30: 1639824.383 | U30: 0
C31: F6142 | D31: Yakima Building | E31: =HLOOKUP(C31,'rent dollars FY22'!$E$2:$AK$112,111,FALSE) -> 8.748207304 | F31: =HLOOKUP(C31,'Debt Dollars FY22'!$G$4:$AN$114,111,FALSE) -> 0.6011900153 | G31: =HLOOKUP(C31,'CC dollars FY22'!$K$5:$AR$115,111,FALSE) -> 0.03684471086 | H31: 9.38624203 | I31: =VLOOKUP(C31,'[2]Building Compare'!$C$20:$G$30,5,FALSE) -> 19 | K31: =HLOOKUP(C31,'Security dollars'!$E$2:$AK$112,111,FALSE) -> 3.553493244 | L31: =HLOOKUP(C31,'Park Dollars FY22'!$E$3:$AL$113,111,FALSE) -> 0 | N31: =HLOOKUP(C31,'rent dollars FY22'!$E$2:$AK$110,109,FALSE) -> 99000 | O31: 1732145.046 | P31: 119035.623 | Q31: 703591.6622 | R31: 7295.252751 | S31: 2562067.584 | U31: 0
C32: F6143 | D32: Alaska Street | E32: =HLOOKUP(C32,'rent dollars FY22'!$E$2:$AK$112,111,FALSE) -> 2.349991021 | F32: =HLOOKUP(C32,'Debt Dollars FY22'!$G$4:$AN$114,111,FALSE) -> 0 | G32: =HLOOKUP(C32,'CC dollars FY22'!$K$5:$AR$115,111,FALSE) -> 0.08807287945 | H32: 2.438063901 | I32: =VLOOKUP(C32,'[2]Building Compare'!$C$20:$G$30,5,FALSE) -> 5.102567124 | K32: =HLOOKUP(C32,'Security dollars'!$E$2:$AK$112,111,FALSE) -> 0.9545586801 | L32: =HLOOKUP(C32,'Park Dollars FY22'!$E$3:$AL$113,111,FALSE) -> 0 | N32: =HLOOKUP(C32,'rent dollars FY22'!$E$2:$AK$110,109,FALSE) -> 20708 | O32: 97327.22814 | P32: 0 | Q32: 39534.00229 | R32: 3647.626375 | S32: 140508.8568 | U32: 0
C33: F6144 | D33: Tacoma Rhodes | E33: =HLOOKUP(C33,'rent dollars FY22'!$E$2:$AK$112,111,FALSE) -> 5.066658847 | F33: =HLOOKUP(C33,'Debt Dollars FY22'!$G$4:$AN$114,111,FALSE) -> 0.7174762311 | G33: =HLOOKUP(C33,'CC dollars FY22'!$K$5:$AR$115,111,FALSE) -> 0.06920402111 | H33: 5.853339099 | I33: =VLOOKUP(C33,'[2]Building Compare'!$C$20:$G$30,5,FALSE) -> 21.92814716 | K33: =HLOOKUP(C33,'Security dollars'!$E$2:$AK$112,111,FALSE) -> 2.058060281 | L33: =HLOOKUP(C33,'Park Dollars FY22'!$E$3:$AL$113,111,FALSE) -> 0 | N33: =HLOOKUP(C33,'rent dollars FY22'!$E$2:$AK$110,109,FALSE) -> 138355 | O33: 1401995.169 | P33: 198532.8479 | Q33: 569485.8603 | R33: 19149.44468 | S33: 2189163.322 | U33: 0
O34: =SUM(O4:O33) -> 26401000 | P34: =SUM(P4:P33) -> 7109000 | Q34: 10724000 | R34: 728078.1072 | S34: 44962078.11 | U34: 637000

Sheet Rent lookup by Agency
A1: VIEW
A2: VIEW | C2: Rent Related Costs in the Central Service Model | R2: Department of Enterprise Services
A3: VIEW | C3: Agency
A4: VIEW | C4: 082 - Public Disclosure Commission | F4: ç Select Agency Here
A5: VIEW | E5: Fiscal Year 22 | M5: Fiscal Year 23
A6: VIEW | C6: Building | D6: occupied RSF | F6: Rent CSM | G6: Fin Cost Recovery CSM | H6: Campus Contracts CSM (bldg) | I6: TOTAL RENT Annual Cost | J6: Monthly Charge | K6: Rent Rate/RSF | M6: Rent CSM | N6: Fin Cost Recovery CSM | O6: Campus Contracts CSM (bldg) | P6: TOTAL RENT Annual Cost | Q6: Monthly Charge | R6: Rent Rate/RSF
A7: =IF(D7=0,"HIDE","VIEW") -> HIDE | C7: Cherberg | D7: =VLOOKUP($C$4,'Building RSF'!$A$3:$AK$109,MATCH($C7,'Building RSF'!$A$3:$AK$3,0),FALSE) -> 0 | F7: =VLOOKUP($C$4,'rent dollars FY22'!$A$2:$AL$108,MATCH($C7,'rent dollars FY22'!$A$3:$AL$3,0),FALSE) -> 0 | G7: =VLOOKUP($C$4,'Debt Dollars FY22'!$A$4:$AN$110,MATCH($C7,'Debt Dollars FY22'!$A$5:$AN$5,0),FALSE) -> 0 | H7: =VLOOKUP($C$4,'CC dollars FY22'!$B$5:$AR$111,MATCH($C7,'CC dollars FY22'!$B$6:$AR$6,0),FALSE) -> 0 | I7: =SUM(F7:H7) -> 0 | J7: =I7/12 -> 0 | K7: =IFERROR(I7/D7,0) -> 0 | M7: =VLOOKUP($C$4,'rent dollars FY23'!$A$2:$AL$108,MATCH($C7,'rent dollars FY23'!$A$3:$AL$3,0),FALSE) -> 0 | N7: =VLOOKUP($C$4,'Debt Dollars FY23'!$A$4:$AN$110,MATCH($C7,'Debt Dollars FY23'!$A$5:$AN$5,0),FALSE) -> 0 | O7: =VLOOKUP($C$4,'CC dollars FY23'!$B$5:$AR$111,MATCH($C7,'CC dollars FY23'!$B$6:$AR$6,0),FALSE) -> 0 | P7: =SUM(M7:O7) -> 0 | Q7: =P7/12 -> 0 | R7: =IFERROR(P7/D7,0) -> 0
A8: =IF(D8=0,"HIDE","VIEW") -> HIDE | C8: O'Brien | D8: =VLOOKUP($C$4,'Building RSF'!$A$3:$AK$109,MATCH($C8,'Building RSF'!$A$3:$AK$3,0),FALSE) -> 0 | F8: =VLOOKUP($C$4,'rent dollars FY22'!$A$2:$AL$108,MATCH($C8,'rent dollars FY22'!$A$3:$AL$3,0),FALSE) -> 0 | G8: =VLOOKUP($C$4,'Debt Dollars FY22'!$A$4:$AN$110,MATCH($C8,'Debt Dollars FY22'!$A$5:$AN$5,0),FALSE) -> 0 | H8: =VLOOKUP($C$4,'CC dollars FY22'!$B$5:$AR$111,MATCH($C8,'CC dollars FY22'!$B$6:$AR$6,0),FALSE) -> 0 | I8: =SUM(F8:H8) -> 0 | J8: =I8/12 -> 0 | K8: 0 | M8: =VLOOKUP($C$4,'rent dollars FY23'!$A$2:$AL$108,MATCH($C8,'rent dollars FY23'!$A$3:$AL$3,0),FALSE) -> 0 | N8: =VLOOKUP($C$4,'Debt Dollars FY23'!$A$4:$AN$110,MATCH($C8,'Debt Dollars FY23'!$A$5:$AN$5,0),FALSE) -> 0 | O8: =VLOOKUP($C$4,'CC dollars FY23'!$B$5:$AR$111,MATCH($C8,'CC dollars FY23'!$B$6:$AR$6,0),FALSE) -> 0 | P8: =SUM(M8:O8) -> 0 | Q8: =P8/12 -> 0 | R8: 0
A9: HIDE | C9: Legislative | D9: =VLOOKUP($C$4,'Building RSF'!$A$3:$AK$109,MATCH($C9,'Building RSF'!$A$3:$AK$3,0),FALSE) -> 0 | F9: =VLOOKUP($C$4,'rent dollars FY22'!$A$2:$AL$108,MATCH($C9,'rent dollars FY22'!$A$3:$AL$3,0),FALSE) -> 0 | G9: =VLOOKUP($C$4,'Debt Dollars FY22'!$A$4:$AN$110,MATCH($C9,'Debt Dollars FY22'!$A$5:$AN$5,0),FALSE) -> 0 | H9: =VLOOKUP($C$4,'CC dollars FY22'!$B$5:$AR$111,MATCH($C9,'CC dollars FY22'!$B$6:$AR$6,0),FALSE) -> 0 | I9: 0 | J9: 0 | K9: 0 | M9: =VLOOKUP($C$4,'rent dollars FY23'!$A$2:$AL$108,MATCH($C9,'rent dollars FY23'!$A$3:$AL$3,0),FALSE) -> 0 | N9: =VLOOKUP($C$4,'Debt Dollars FY23'!$A$4:$AN$110,MATCH($C9,'Debt Dollars FY23'!$A$5:$AN$5,0),FALSE) -> 0 | O9: =VLOOKUP($C$4,'CC dollars FY23'!$B$5:$AR$111,MATCH($C9,'CC dollars FY23'!$B$6:$AR$6,0),FALSE) -> 0 | P9: 0 | Q9: 0 | R9: 0
A10: HIDE | C10: Pritchard | D10: =VLOOKUP($C$4,'Building RSF'!$A$3:$AK$109,MATCH($C10,'Building RSF'!$A$3:$AK$3,0),FALSE) -> 0 | F10: =VLOOKUP($C$4,'rent dollars FY22'!$A$2:$AL$108,MATCH($C10,'rent dollars FY22'!$A$3:$AL$3,0),FALSE) -> 0 | G10: =VLOOKUP($C$4,'Debt Dollars FY22'!$A$4:$AN$110,MATCH($C10,'Debt Dollars FY22'!$A$5:$AN$5,0),FALSE) -> 0 | H10: =VLOOKUP($C$4,'CC dollars FY22'!$B$5:$AR$111,MATCH($C10,'CC dollars FY22'!$B$6:$AR$6,0),FALSE) -> 0 | I10: 0 | J10: 0 | K10: 0 | M10: =VLOOKUP($C$4,'rent dollars FY23'!$A$2:$AL$108,MATCH($C10,'rent dollars FY23'!$A$3:$AL$3,0),FALSE) -> 0 | N10: =VLOOKUP($C$4,'Debt Dollars FY23'!$A$4:$AN$110,MATCH($C10,'Debt Dollars FY23'!$A$5:$AN$5,0),FALSE) -> 0 | O10: =VLOOKUP($C$4,'CC dollars FY23'!$B$5:$AR$111,MATCH($C10,'CC dollars FY23'!$B$6:$AR$6,0),FALSE) -> 0 | P10: 0 | Q10: 0 | R10: 0
A11: HIDE | C11: HLB | D11: =VLOOKUP($C$4,'Building RSF'!$A$3:$AK$109,MATCH($C11,'Building RSF'!$A$3:$AK$3,0),FALSE) -> 0 | F11: =VLOOKUP($C$4,'rent dollars FY22'!$A$2:$AL$108,MATCH($C11,'rent dollars FY22'!$A$3:$AL$3,0),FALSE) -> 0 | G11: =VLOOKUP($C$4,'Debt Dollars FY22'!$A$4:$AN$110,MATCH($C11,'Debt Dollars FY22'!$A$5:$AN$5,0),FALSE) -> 0 | H11: =VLOOKUP($C$4,'CC dollars FY22'!$B$5:$AR$111,MATCH($C11,'CC dollars FY22'!$B$6:$AR$6,0),FALSE) -> 0 | I11: 0 | J11: 0 | K11: 0 | M11: =VLOOKUP($C$4,'rent dollars FY23'!$A$2:$AL$108,MATCH($C11,'rent dollars FY23'!$A$3:$AL$3,0),FALSE) -> 0 | N11: =VLOOKUP($C$4,'Debt Dollars FY23'!$A$4:$AN$110,MATCH($C11,'Debt Dollars FY23'!$A$5:$AN$5,0),FALSE) -> 0 | O11: =VLOOKUP($C$4,'CC dollars FY23'!$B$5:$AR$111,MATCH($C11,'CC dollars FY23'!$B$6:$AR$6,0),FALSE) -> 0 | P11: 0 | Q11: 0 | R11: 0
A12: HIDE | C12: OB2 | D12: =VLOOKUP($C$4,'Building RSF'!$A$3:$AK$109,MATCH($C12,'Building RSF'!$A$3:$AK$3,0),FALSE) -> 0 | F12: =VLOOKUP($C$4,'rent dollars FY22'!$A$2:$AL$108,MATCH($C12,'rent dollars FY22'!$A$3:$AL$3,0),FALSE) -> 0 | G12: =VLOOKUP($C$4,'Debt Dollars FY22'!$A$4:$AN$110,MATCH($C12,'Debt Dollars FY22'!$A$5:$AN$5,0),FALSE) -> 0 | H12: =VLOOKUP($C$4,'CC dollars FY22'!$B$5:$AR$111,MATCH($C12,'CC dollars FY22'!$B$6:$AR$6,0),FALSE) -> 0 | I12: 0 | J12: 0 | K12: 0 | M12: =VLOOKUP($C$4,'rent dollars FY23'!$A$2:$AL$108,MATCH($C12,'rent dollars FY23'!$A$3:$AL$3,0),FALSE) -> 0 | N12: =VLOOKUP($C$4,'Debt Dollars FY23'!$A$4:$AN$110,MATCH($C12,'Debt Dollars FY23'!$A$5:$AN$5,0),FALSE) -> 0 | O12: =VLOOKUP($C$4,'CC dollars FY23'!$B$5:$AR$111,MATCH($C12,'CC dollars FY23'!$B$6:$AR$6,0),FALSE) -> 0 | P12: 0 | Q12: 0 | R12: 0
A13: HIDE | C13: Archives | D13: =VLOOKUP($C$4,'Building RSF'!$A$3:$AK$109,MATCH($C13,'Building RSF'!$A$3:$AK$3,0),FALSE) -> 0 | F13: =VLOOKUP($C$4,'rent dollars FY22'!$A$2:$AL$108,MATCH($C13,'rent dollars FY22'!$A$3:$AL$3,0),FALSE) -> 0 | G13: =VLOOKUP($C$4,'Debt Dollars FY22'!$A$4:$AN$110,MATCH($C13,'Debt Dollars FY22'!$A$5:$AN$5,0),FALSE) -> 0 | H13: =VLOOKUP($C$4,'CC dollars FY22'!$B$5:$AR$111,MATCH($C13,'CC dollars FY22'!$B$6:$AR$6,0),FALSE) -> 0 | I13: 0 | J13: 0 | K13: 0 | M13: =VLOOKUP($C$4,'rent dollars FY23'!$A$2:$AL$108,MATCH($C13,'rent dollars FY23'!$A$3:$AL$3,0),FALSE) -> 0 | N13: =VLOOKUP($C$4,'Debt Dollars FY23'!$A$4:$AN$110,MATCH($C13,'Debt Dollars FY23'!$A$5:$AN$5,0),FALSE) -> 0 | O13: =VLOOKUP($C$4,'CC dollars FY23'!$B$5:$AR$111,MATCH($C13,'CC dollars FY23'!$B$6:$AR$6,0),FALSE) -> 0 | P13: 0 | Q13: 0 | R13: 0
A14: HIDE | C14: NRB | D14: =VLOOKUP($C$4,'Building RSF'!$A$3:$AK$109,MATCH($C14,'Building RSF'!$A$3:$AK$3,0),FALSE) -> 0 | F14: =VLOOKUP($C$4,'rent dollars FY22'!$A$2:$AL$108,MATCH($C14,'rent dollars FY22'!$A$3:$AL$3,0),FALSE) -> 0 | G14: =VLOOKUP($C$4,'Debt Dollars FY22'!$A$4:$AN$110,MATCH($C14,'Debt Dollars FY22'!$A$5:$AN$5,0),FALSE) -> 0 | H14: =VLOOKUP($C$4,'CC dollars FY22'!$B$5:$AR$111,MATCH($C14,'CC dollars FY22'!$B$6:$AR$6,0),FALSE) -> 0 | I14: 0 | J14: 0 | K14: 0 | M14: =VLOOKUP($C$4,'rent dollars FY23'!$A$2:$AL$108,MATCH($C14,'rent dollars FY23'!$A$3:$AL$3,0),FALSE) -> 0 | N14: =VLOOKUP($C$4,'Debt Dollars FY23'!$A$4:$AN$110,MATCH($C14,'Debt Dollars FY23'!$A$5:$AN$5,0),FALSE) -> 0 | O14: =VLOOKUP($C$4,'CC dollars FY23'!$B$5:$AR$111,MATCH($C14,'CC dollars FY23'!$B$6:$AR$6,0),FALSE) -> 0 | P14: 0 | Q14: 0 | R14: 0
A15: HIDE | C15: Emp Sec | D15: =VLOOKUP($C$4,'Building RSF'!$A$3:$AK$109,MATCH($C15,'Building RSF'!$A$3:$AK$3,0),FALSE) -> 0 | F15: =VLOOKUP($C$4,'rent dollars FY22'!$A$2:$AL$108,MATCH($C15,'rent dollars FY22'!$A$3:$AL$3,0),FALSE) -> 0 | G15: =VLOOKUP($C$4,'Debt Dollars FY22'!$A$4:$AN$110,MATCH($C15,'Debt Dollars FY22'!$A$5:$AN$5,0),FALSE) -> 0 | H15: =VLOOKUP($C$4,'CC dollars FY22'!$B$5:$AR$111,MATCH($C15,'CC dollars FY22'!$B$6:$AR$6,0),FALSE) -> 0 | I15: 0 | J15: 0 | K15: 0 | M15: =VLOOKUP($C$4,'rent dollars FY23'!$A$2:$AL$108,MATCH($C15,'rent dollars FY23'!$A$3:$AL$3,0),FALSE) -> 0 | N15: =VLOOKUP($C$4,'Debt Dollars FY23'!$A$4:$AN$110,MATCH($C15,'Debt Dollars FY23'!$A$5:$AN$5,0),FALSE) -> 0 | O15: =VLOOKUP($C$4,'CC dollars FY23'!$B$5:$AR$111,MATCH($C15,'CC dollars FY23'!$B$6:$AR$6,0),FALSE) -> 0 | P15: 0 | Q15: 0 | R15: 0
A16: HIDE | C16: Transportation | D16: =VLOOKUP($C$4,'Building RSF'!$A$3:$AK$109,MATCH($C16,'Building RSF'!$A$3:$AK$3,0),FALSE) -> 0 | F16: =VLOOKUP($C$4,'rent dollars FY22'!$A$2:$AL$108,MATCH($C16,'rent dollars FY22'!$A$3:$AL$3,0),FALSE) -> 0 | G16: =VLOOKUP($C$4,'Debt Dollars FY22'!$A$4:$AN$110,MATCH($C16,'Debt Dollars FY22'!$A$5:$AN$5,0),FALSE) -> 0 | H16: =VLOOKUP($C$4,'CC dollars FY22'!$B$5:$AR$111,MATCH($C16,'CC dollars FY22'!$B$6:$AR$6,0),FALSE) -> 0 | I16: 0 | J16: 0 | K16: 0 | M16: =VLOOKUP($C$4,'rent dollars FY23'!$A$2:$AL$108,MATCH($C16,'rent dollars FY23'!$A$3:$AL$3,0),FALSE) -> 0 | N16: =VLOOKUP($C$4,'Debt Dollars FY23'!$A$4:$AN$110,MATCH($C16,'Debt Dollars FY23'!$A$5:$AN$5,0),FALSE) -> 0 | O16: =VLOOKUP($C$4,'CC dollars FY23'!$B$5:$AR$111,MATCH($C16,'CC dollars FY23'!$B$6:$AR$6,0),FALSE) -> 0 | P16: 0 | Q16: 0 | R16: 0
A17: HIDE | C17: Insurance | D17: =VLOOKUP($C$4,'Building RSF'!$A$3:$AK$109,MATCH($C17,'Building RSF'!$A$3:$AK$3,0),FALSE) -> 0 | F17: =VLOOKUP($C$4,'rent dollars FY22'!$A$2:$AL$108,MATCH($C17,'rent dollars FY22'!$A$3:$AL$3,0),FALSE) -> 0 | G17: =VLOOKUP($C$4,'Debt Dollars FY22'!$A$4:$AN$110,MATCH($C17,'Debt Dollars FY22'!$A$5:$AN$5,0),FALSE) -> 0 | H17: =VLOOKUP($C$4,'CC dollars FY22'!$B$5:$AR$111,MATCH($C17,'CC dollars FY22'!$B$6:$AR$6,0),FALSE) -> 0 | I17: 0 | J17: 0 | K17: 0 | M17: =VLOOKUP($C$4,'rent dollars FY23'!$A$2:$AL$108,MATCH($C17,'rent dollars FY23'!$A$3:$AL$3,0),FALSE) -> 0 | N17: =VLOOKUP($C$4,'Debt Dollars FY23'!$A$4:$AN$110,MATCH($C17,'Debt Dollars FY23'!$A$5:$AN$5,0),FALSE) -> 0 | O17: =VLOOKUP($C$4,'CC dollars FY23'!$B$5:$AR$111,MATCH($C17,'CC dollars FY23'!$B$6:$AR$6,0),FALSE) -> 0 | P17: 0 | Q17: 0 | R17: 0
A18: HIDE | C18: Old Cap | D18: =VLOOKUP($C$4,'Building RSF'!$A$3:$AK$109,MATCH($C18,'Building RSF'!$A$3:$AK$3,0),FALSE) -> 0 | F18: =VLOOKUP($C$4,'rent dollars FY22'!$A$2:$AL$108,MATCH($C18,'rent dollars FY22'!$A$3:$AL$3,0),FALSE) -> 0 | G18: =VLOOKUP($C$4,'Debt Dollars FY22'!$A$4:$AN$110,MATCH($C18,'Debt Dollars FY22'!$A$5:$AN$5,0),FALSE) -> 0 | H18: =VLOOKUP($C$4,'CC dollars FY22'!$B$5:$AR$111,MATCH($C18,'CC dollars FY22'!$B$6:$AR$6,0),FALSE) -> 0 | I18: 0 | J18: 0 | K18: 0 | M18: =VLOOKUP($C$4,'rent dollars FY23'!$A$2:$AL$108,MATCH($C18,'rent dollars FY23'!$A$3:$AL$3,0),FALSE) -> 0 | N18: =VLOOKUP($C$4,'Debt Dollars FY23'!$A$4:$AN$110,MATCH($C18,'Debt Dollars FY23'!$A$5:$AN$5,0),FALSE) -> 0 | O18: =VLOOKUP($C$4,'CC dollars FY23'!$B$5:$AR$111,MATCH($C18,'CC dollars FY23'!$B$6:$AR$6,0),FALSE) -> 0 | P18: 0 | Q18: 0 | R18: 0
A19: HIDE | C19: TOJ | D19: =VLOOKUP($C$4,'Building RSF'!$A$3:$AK$109,MATCH($C19,'Building RSF'!$A$3:$AK$3,0),FALSE) -> 0 | F19: =VLOOKUP($C$4,'rent dollars FY22'!$A$2:$AL$108,MATCH($C19,'rent dollars FY22'!$A$3:$AL$3,0),FALSE) -> 0 | G19: =VLOOKUP($C$4,'Debt Dollars FY22'!$A$4:$AN$110,MATCH($C19,'Debt Dollars FY22'!$A$5:$AN$5,0),FALSE) -> 0 | H19: =VLOOKUP($C$4,'CC dollars FY22'!$B$5:$AR$111,MATCH($C19,'CC dollars FY22'!$B$6:$AR$6,0),FALSE) -> 0 | I19: 0 | J19: 0 | K19: 0 | M19: =VLOOKUP($C$4,'rent dollars FY23'!$A$2:$AL$108,MATCH($C19,'rent dollars FY23'!$A$3:$AL$3,0),FALSE) -> 0 | N19: =VLOOKUP($C$4,'Debt Dollars FY23'!$A$4:$AN$110,MATCH($C19,'Debt Dollars FY23'!$A$5:$AN$5,0),FALSE) -> 0 | O19: =VLOOKUP($C$4,'CC dollars FY23'!$B$5:$AR$111,MATCH($C19,'CC dollars FY23'!$B$6:$AR$6,0),FALSE) -> 0 | P19: 0 | Q19: 0 | R19: 0
A20: HIDE | C20: Newhouse | D20: =VLOOKUP($C$4,'Building RSF'!$A$3:$AK$109,MATCH($C20,'Building RSF'!$A$3:$AK$3,0),FALSE) -> 0 | F20: =VLOOKUP($C$4,'rent dollars FY22'!$A$2:$AL$108,MATCH($C20,'rent dollars FY22'!$A$3:$AL$3,0),FALSE) -> 0 | G20: =VLOOKUP($C$4,'Debt Dollars FY22'!$A$4:$AN$110,MATCH($C20,'Debt Dollars FY22'!$A$5:$AN$5,0),FALSE) -> 0 | H20: =VLOOKUP($C$4,'CC dollars FY22'!$B$5:$AR$111,MATCH($C20,'CC dollars FY22'!$B$6:$AR$6,0),FALSE) -> 0 | I20: 0 | J20: 0 | K20: 0 | M20: =VLOOKUP($C$4,'rent dollars FY23'!$A$2:$AL$108,MATCH($C20,'rent dollars FY23'!$A$3:$AL$3,0),FALSE) -> 0 | N20: =VLOOKUP($C$4,'Debt Dollars FY23'!$A$4:$AN$110,MATCH($C20,'Debt Dollars FY23'!$A$5:$AN$5,0),FALSE) -> 0 | O20: =VLOOKUP($C$4,'CC dollars FY23'!$B$5:$AR$111,MATCH($C20,'CC dollars FY23'!$B$6:$AR$6,0),FALSE) -> 0 | P20: 0 | Q20: 0 | R20: 0
A21: HIDE | C21: Modular Bldg | D21: =VLOOKUP($C$4,'Building RSF'!$A$3:$AK$109,MATCH($C21,'Building RSF'!$A$3:$AK$3,0),FALSE) -> 0 | F21: =VLOOKUP($C$4,'rent dollars FY22'!$A$2:$AL$108,MATCH($C21,'rent dollars FY22'!$A$3:$AL$3,0),FALSE) -> 0 | G21: =VLOOKUP($C$4,'Debt Dollars FY22'!$A$4:$AN$110,MATCH($C21,'Debt Dollars FY22'!$A$5:$AN$5,0),FALSE) -> 0 | H21: =VLOOKUP($C$4,'CC dollars FY22'!$B$5:$AR$111,MATCH($C21,'CC dollars FY22'!$B$6:$AR$6,0),FALSE) -> 0 | I21: 0 | J21: 0 | K21: 0 | M21: =VLOOKUP($C$4,'rent dollars FY23'!$A$2:$AL$108,MATCH($C21,'rent dollars FY23'!$A$3:$AL$3,0),FALSE) -> 0 | N21: =VLOOKUP($C$4,'Debt Dollars FY23'!$A$4:$AN$110,MATCH($C21,'Debt Dollars FY23'!$A$5:$AN$5,0),FALSE) -> 0 | O21: =VLOOKUP($C$4,'CC dollars FY23'!$B$5:$AR$111,MATCH($C21,'CC dollars FY23'!$B$6:$AR$6,0),FALSE) -> 0 | P21: 0 | Q21: 0 | R21: 0
A22: HIDE | C22: Isabella Bush | D22: =VLOOKUP($C$4,'Building RSF'!$A$3:$AK$109,MATCH($C22,'Building RSF'!$A$3:$AK$3,0),FALSE) -> 0 | F22: =VLOOKUP($C$4,'rent dollars FY22'!$A$2:$AL$108,MATCH($C22,'rent dollars FY22'!$A$3:$AL$3,0),FALSE) -> 0 | G22: =VLOOKUP($C$4,'Debt Dollars FY22'!$A$4:$AN$110,MATCH($C22,'Debt Dollars FY22'!$A$5:$AN$5,0),FALSE) -> 0 | H22: =VLOOKUP($C$4,'CC dollars FY22'!$B$5:$AR$111,MATCH($C22,'CC dollars FY22'!$B$6:$AR$6,0),FALSE) -> 0 | I22: 0 | J22: 0 | K22: 0 | M22: =VLOOKUP($C$4,'rent dollars FY23'!$A$2:$AL$108,MATCH($C22,'rent dollars FY23'!$A$3:$AL$3,0),FALSE) -> 0 | N22: =VLOOKUP($C$4,'Debt Dollars FY23'!$A$4:$AN$110,MATCH($C22,'Debt Dollars FY23'!$A$5:$AN$5,0),FALSE) -> 0 | O22: =VLOOKUP($C$4,'CC dollars FY23'!$B$5:$AR$111,MATCH($C22,'CC dollars FY23'!$B$6:$AR$6,0),FALSE) -> 0 | P22: 0 | Q22: 0 | R22: 0
A23: HIDE | C23: 1007 Washington | D23: =VLOOKUP($C$4,'Building RSF'!$A$3:$AK$109,MATCH($C23,'Building RSF'!$A$3:$AK$3,0),FALSE) -> 0 | F23: =VLOOKUP($C$4,'rent dollars FY22'!$A$2:$AL$108,MATCH($C23,'rent dollars FY22'!$A$3:$AL$3,0),FALSE) -> 0 | G23: =VLOOKUP($C$4,'Debt Dollars FY22'!$A$4:$AN$110,MATCH($C23,'Debt Dollars FY22'!$A$5:$AN$5,0),FALSE) -> 0 | H23: =VLOOKUP($C$4,'CC dollars FY22'!$B$5:$AR$111,MATCH($C23,'CC dollars FY22'!$B$6:$AR$6,0),FALSE) -> 0 | I23: 0 | J23: 0 | K23: 0 | M23: =VLOOKUP($C$4,'rent dollars FY23'!$A$2:$AL$108,MATCH($C23,'rent dollars FY23'!$A$3:$AL$3,0),FALSE) -> 0 | N23: =VLOOKUP($C$4,'Debt Dollars FY23'!$A$4:$AN$110,MATCH($C23,'Debt Dollars FY23'!$A$5:$AN$5,0),FALSE) -> 0 | O23: =VLOOKUP($C$4,'CC dollars FY23'!$B$5:$AR$111,MATCH($C23,'CC dollars FY23'!$B$6:$AR$6,0),FALSE) -> 0 | P23: 0 | Q23: 0 | R23: 0
A24: HIDE | C24: 120 E Union Avenue | D24: =VLOOKUP($C$4,'Building RSF'!$A$3:$AK$109,MATCH($C24,'Building RSF'!$A$3:$AK$3,0),FALSE) -> 0 | F24: =VLOOKUP($C$4,'rent dollars FY22'!$A$2:$AL$108,MATCH($C24,'rent dollars FY22'!$A$3:$AL$3,0),FALSE) -> 0 | G24: =VLOOKUP($C$4,'Debt Dollars FY22'!$A$4:$AN$110,MATCH($C24,'Debt Dollars FY22'!$A$5:$AN$5,0),FALSE) -> 0 | H24: =VLOOKUP($C$4,'CC dollars FY22'!$B$5:$AR$111,MATCH($C24,'CC dollars FY22'!$B$6:$AR$6,0),FALSE) -> 0 | I24: 0 | J24: 0 | K24: 0 | M24: =VLOOKUP($C$4,'rent dollars FY23'!$A$2:$AL$108,MATCH($C24,'rent dollars FY23'!$A$3:$AL$3,0),FALSE) -> 0 | N24: =VLOOKUP($C$4,'Debt Dollars FY23'!$A$4:$AN$110,MATCH($C24,'Debt Dollars FY23'!$A$5:$AN$5,0),FALSE) -> 0 | O24: =VLOOKUP($C$4,'CC dollars FY23'!$B$5:$AR$111,MATCH($C24,'CC dollars FY23'!$B$6:$AR$6,0),FALSE) -> 0 | P24: 0 | Q24: 0 | R24: 0
A25: HIDE | C25: Capital Court | D25: =VLOOKUP($C$4,'Building RSF'!$A$3:$AK$109,MATCH($C25,'Building RSF'!$A$3:$AK$3,0),FALSE) -> 0 | F25: =VLOOKUP($C$4,'rent dollars FY22'!$A$2:$AL$108,MATCH($C25,'rent dollars FY22'!$A$3:$AL$3,0),FALSE) -> 0 | G25: =VLOOKUP($C$4,'Debt Dollars FY22'!$A$4:$AN$110,MATCH($C25,'Debt Dollars FY22'!$A$5:$AN$5,0),FALSE) -> 0 | H25: =VLOOKUP($C$4,'CC dollars FY22'!$B$5:$AR$111,MATCH($C25,'CC dollars FY22'!$B$6:$AR$6,0),FALSE) -> 0 | I25: 0 | J25: 0 | K25: 0 | M25: =VLOOKUP($C$4,'rent dollars FY23'!$A$2:$AL$108,MATCH($C25,'rent dollars FY23'!$A$3:$AL$3,0),FALSE) -> 0 | N25: =VLOOKUP($C$4,'Debt Dollars FY23'!$A$4:$AN$110,MATCH($C25,'Debt Dollars FY23'!$A$5:$AN$5,0),FALSE) -> 0 | O25: =VLOOKUP($C$4,'CC dollars FY23'!$B$5:$AR$111,MATCH($C25,'CC dollars FY23'!$B$6:$AR$6,0),FALSE) -> 0 | P25: 0 | Q25: 0 | R25: 0
A26: HIDE | C26: James Dolliver Building | D26: =VLOOKUP($C$4,'Building RSF'!$A$3:$AK$109,MATCH($C26,'Building RSF'!$A$3:$AK$3,0),FALSE) -> 0 | F26: =VLOOKUP($C$4,'rent dollars FY22'!$A$2:$AL$108,MATCH($C26,'rent dollars FY22'!$A$3:$AL$3,0),FALSE) -> 0 | G26: =VLOOKUP($C$4,'Debt Dollars FY22'!$A$4:$AN$110,MATCH($C26,'Debt Dollars FY22'!$A$5:$AN$5,0),FALSE) -> 0 | H26: =VLOOKUP($C$4,'CC dollars FY22'!$B$5:$AR$111,MATCH($C26,'CC dollars FY22'!$B$6:$AR$6,0),FALSE) -> 0 | I26: 0 | J26: 0 | K26: 0 | M26: =VLOOKUP($C$4,'rent dollars FY23'!$A$2:$AL$108,MATCH($C26,'rent dollars FY23'!$A$3:$AL$3,0),FALSE) -> 0 | N26: =VLOOKUP($C$4,'Debt Dollars FY23'!$A$4:$AN$110,MATCH($C26,'Debt Dollars FY23'!$A$5:$AN$5,0),FALSE) -> 0 | O26: =VLOOKUP($C$4,'CC dollars FY23'!$B$5:$AR$111,MATCH($C26,'CC dollars FY23'!$B$6:$AR$6,0),FALSE) -> 0 | P26: 0 | Q26: 0 | R26: 0
A27: HIDE | C27: Undeveloped Properties | D27: =VLOOKUP($C$4,'Building RSF'!$A$3:$AK$109,MATCH($C27,'Building RSF'!$A$3:$AK$3,0),FALSE) -> 0 | F27: =VLOOKUP($C$4,'rent dollars FY22'!$A$2:$AL$108,MATCH($C27,'rent dollars FY22'!$A$3:$AL$3,0),FALSE) -> 0 | G27: =VLOOKUP($C$4,'Debt Dollars FY22'!$A$4:$AN$110,MATCH($C27,'Debt Dollars FY22'!$A$5:$AN$5,0),FALSE) -> 0 | H27: =VLOOKUP($C$4,'CC dollars FY22'!$B$5:$AR$111,MATCH($C27,'CC dollars FY22'!$B$6:$AR$6,0),FALSE) -> 0 | I27: 0 | J27: 0 | K27: 0 | M27: =VLOOKUP($C$4,'rent dollars FY23'!$A$2:$AL$108,MATCH($C27,'rent dollars FY23'!$A$3:$AL$3,0),FALSE) -> 0 | N27: =VLOOKUP($C$4,'Debt Dollars FY23'!$A$4:$AN$110,MATCH($C27,'Debt Dollars FY23'!$A$5:$AN$5,0),FALSE) -> 0 | O27: =VLOOKUP($C$4,'CC dollars FY23'!$B$5:$AR$111,MATCH($C27,'CC dollars FY23'!$B$6:$AR$6,0),FALSE) -> 0 | P27: 0 | Q27: 0 | R27: 0
A28: HIDE | C28: 1068 WA Street SE (ST Farm) | D28: =VLOOKUP($C$4,'Building RSF'!$A$3:$AK$109,MATCH($C28,'Building RSF'!$A$3:$AK$3,0),FALSE) -> 0 | F28: =VLOOKUP($C$4,'rent dollars FY22'!$A$2:$AL$108,MATCH($C28,'rent dollars FY22'!$A$3:$AL$3,0),FALSE) -> 0 | G28: =VLOOKUP($C$4,'Debt Dollars FY22'!$A$4:$AN$110,MATCH($C28,'Debt Dollars FY22'!$A$5:$AN$5,0),FALSE) -> 0 | H28: =VLOOKUP($C$4,'CC dollars FY22'!$B$5:$AR$111,MATCH($C28,'CC dollars FY22'!$B$6:$AR$6,0),FALSE) -> 0 | I28: 0 | J28: 0 | K28: 0 | M28: =VLOOKUP($C$4,'rent dollars FY23'!$A$2:$AL$108,MATCH($C28,'rent dollars FY23'!$A$3:$AL$3,0),FALSE) -> 0 | N28: =VLOOKUP($C$4,'Debt Dollars FY23'!$A$4:$AN$110,MATCH($C28,'Debt Dollars FY23'!$A$5:$AN$5,0),FALSE) -> 0 | O28: =VLOOKUP($C$4,'CC dollars FY23'!$B$5:$AR$111,MATCH($C28,'CC dollars FY23'!$B$6:$AR$6,0),FALSE) -> 0 | P28: 0 | Q28: 0 | R28: 0
A29: HIDE | C29: 232 Perry Street | D29: =VLOOKUP($C$4,'Building RSF'!$A$3:$AK$109,MATCH($C29,'Building RSF'!$A$3:$AK$3,0),FALSE) -> 0 | F29: =VLOOKUP($C$4,'rent dollars FY22'!$A$2:$AL$108,MATCH($C29,'rent dollars FY22'!$A$3:$AL$3,0),FALSE) -> 0 | G29: =VLOOKUP($C$4,'Debt Dollars FY22'!$A$4:$AN$110,MATCH($C29,'Debt Dollars FY22'!$A$5:$AN$5,0),FALSE) -> 0 | H29: =VLOOKUP($C$4,'CC dollars FY22'!$B$5:$AR$111,MATCH($C29,'CC dollars FY22'!$B$6:$AR$6,0),FALSE) -> 0 | I29: 0 | J29: 0 | K29: 0 | M29: =VLOOKUP($C$4,'rent dollars FY23'!$A$2:$AL$108,MATCH($C29,'rent dollars FY23'!$A$3:$AL$3,0),FALSE) -> 0 | N29: =VLOOKUP($C$4,'Debt Dollars FY23'!$A$4:$AN$110,MATCH($C29,'Debt Dollars FY23'!$A$5:$AN$5,0),FALSE) -> 0 | O29: =VLOOKUP($C$4,'CC dollars FY23'!$B$5:$AR$111,MATCH($C29,'CC dollars FY23'!$B$6:$AR$6,0),FALSE) -> 0 | P29: 0 | Q29: 0 | R29: 0
A30: HIDE | C30: 208 11th Avenue SE (Pro Arts) | D30: =VLOOKUP($C$4,'Building RSF'!$A$3:$AK$109,MATCH($C30,'Building RSF'!$A$3:$AK$3,0),FALSE) -> 0 | F30: =VLOOKUP($C$4,'rent dollars FY22'!$A$2:$AL$108,MATCH($C30,'rent dollars FY22'!$A$3:$AL$3,0),FALSE) -> 0 | G30: =VLOOKUP($C$4,'Debt Dollars FY22'!$A$4:$AN$110,MATCH($C30,'Debt Dollars FY22'!$A$5:$AN$5,0),FALSE) -> 0 | H30: =VLOOKUP($C$4,'CC dollars FY22'!$B$5:$AR$111,MATCH($C30,'CC dollars FY22'!$B$6:$AR$6,0),FALSE) -> 0 | I30: 0 | J30: 0 | K30: 0 | M30: =VLOOKUP($C$4,'rent dollars FY23'!$A$2:$AL$108,MATCH($C30,'rent dollars FY23'!$A$3:$AL$3,0),FALSE) -> 0 | N30: =VLOOKUP($C$4,'Debt Dollars FY23'!$A$4:$AN$110,MATCH($C30,'Debt Dollars FY23'!$A$5:$AN$5,0),FALSE) -> 0 | O30: =VLOOKUP($C$4,'CC dollars FY23'!$B$5:$AR$111,MATCH($C30,'CC dollars FY23'!$B$6:$AR$6,0),FALSE) -> 0 | P30: 0 | Q30: 0 | R30: 0
A31: HIDE | C31: Press Houses Ayer(White); Carlyon(Blue) | D31: =VLOOKUP($C$4,'Building RSF'!$A$3:$AK$109,MATCH($C31,'Building RSF'!$A$3:$AK$3,0),FALSE) -> 0 | F31: =VLOOKUP($C$4,'rent dollars FY22'!$A$2:$AL$108,MATCH($C31,'rent dollars FY22'!$A$3:$AL$3,0),FALSE) -> 0 | G31: =VLOOKUP($C$4,'Debt Dollars FY22'!$A$4:$AN$110,MATCH($C31,'Debt Dollars FY22'!$A$5:$AN$5,0),FALSE) -> 0 | H31: =VLOOKUP($C$4,'CC dollars FY22'!$B$5:$AR$111,MATCH($C31,'CC dollars FY22'!$B$6:$AR$6,0),FALSE) -> 0 | I31: 0 | J31: 0 | K31: 0 | M31: =VLOOKUP($C$4,'rent dollars FY23'!$A$2:$AL$108,MATCH($C31,'rent dollars FY23'!$A$3:$AL$3,0),FALSE) -> 0 | N31: =VLOOKUP($C$4,'Debt Dollars FY23'!$A$4:$AN$110,MATCH($C31,'Debt Dollars FY23'!$A$5:$AN$5,0),FALSE) -> 0 | O31: =VLOOKUP($C$4,'CC dollars FY23'!$B$5:$AR$111,MATCH($C31,'CC dollars FY23'!$B$6:$AR$6,0),FALSE) -> 0 | P31: 0 | Q31: 0 | R31: 0
A32: HIDE | C32: Visitor Center | D32: =VLOOKUP($C$4,'Building RSF'!$A$3:$AK$109,MATCH($C32,'Building RSF'!$A$3:$AK$3,0),FALSE) -> 0 | F32: =VLOOKUP($C$4,'rent dollars FY22'!$A$2:$AL$108,MATCH($C32,'rent dollars FY22'!$A$3:$AL$3,0),FALSE) -> 0 | G32: =VLOOKUP($C$4,'Debt Dollars FY22'!$A$4:$AN$110,MATCH($C32,'Debt Dollars FY22'!$A$5:$AN$5,0),FALSE) -> 0 | H32: =VLOOKUP($C$4,'CC dollars FY22'!$B$5:$AR$111,MATCH($C32,'CC dollars FY22'!$B$6:$AR$6,0),FALSE) -> 0 | I32: 0 | J32: 0 | K32: 0 | M32: =VLOOKUP($C$4,'rent dollars FY23'!$A$2:$AL$108,MATCH($C32,'rent dollars FY23'!$A$3:$AL$3,0),FALSE) -> 0 | N32: =VLOOKUP($C$4,'Debt Dollars FY23'!$A$4:$AN$110,MATCH($C32,'Debt Dollars FY23'!$A$5:$AN$5,0),FALSE) -> 0 | O32: =VLOOKUP($C$4,'CC dollars FY23'!$B$5:$AR$111,MATCH($C32,'CC dollars FY23'!$B$6:$AR$6,0),FALSE) -> 0 | P32: 0 | Q32: 0 | R32: 0
A33: HIDE | C33: Helen Sommers | D33: =VLOOKUP($C$4,'Building RSF'!$A$3:$AK$109,MATCH($C33,'Building RSF'!$A$3:$AK$3,0),FALSE) -> 0 | F33: =VLOOKUP($C$4,'rent dollars FY22'!$A$2:$AL$108,MATCH($C33,'rent dollars FY22'!$A$3:$AL$3,0),FALSE) -> 0 | G33: =VLOOKUP($C$4,'Debt Dollars FY22'!$A$4:$AN$110,MATCH($C33,'Debt Dollars FY22'!$A$5:$AN$5,0),FALSE) -> 0 | H33: =VLOOKUP($C$4,'CC dollars FY22'!$B$5:$AR$111,MATCH($C33,'CC dollars FY22'!$B$6:$AR$6,0),FALSE) -> 0 | I33: 0 | J33: 0 | K33: 0 | M33: =VLOOKUP($C$4,'rent dollars FY23'!$A$2:$AL$108,MATCH($C33,'rent dollars FY23'!$A$3:$AL$3,0),FALSE) -> 0 | N33: =VLOOKUP($C$4,'Debt Dollars FY23'!$A$4:$AN$110,MATCH($C33,'Debt Dollars FY23'!$A$5:$AN$5,0),FALSE) -> 0 | O33: =VLOOKUP($C$4,'CC dollars FY23'!$B$5:$AR$111,MATCH($C33,'CC dollars FY23'!$B$6:$AR$6,0),FALSE) -> 0 | P33: 0 | Q33: 0 | R33: 0
A34: HIDE | C34: Kelso Building | D34: =VLOOKUP($C$4,'Building RSF'!$A$3:$AK$109,MATCH($C34,'Building RSF'!$A$3:$AK$3,0),FALSE) -> 0 | F34: =VLOOKUP($C$4,'rent dollars FY22'!$A$2:$AL$108,MATCH($C34,'rent dollars FY22'!$A$3:$AL$3,0),FALSE) -> 0 | G34: =VLOOKUP($C$4,'Debt Dollars FY22'!$A$4:$AN$110,MATCH($C34,'Debt Dollars FY22'!$A$5:$AN$5,0),FALSE) -> 0 | H34: =VLOOKUP($C$4,'CC dollars FY22'!$B$5:$AR$111,MATCH($C34,'CC dollars FY22'!$B$6:$AR$6,0),FALSE) -> 0 | I34: 0 | J34: 0 | K34: 0 | M34: =VLOOKUP($C$4,'rent dollars FY23'!$A$2:$AL$108,MATCH($C34,'rent dollars FY23'!$A$3:$AL$3,0),FALSE) -> 0 | N34: =VLOOKUP($C$4,'Debt Dollars FY23'!$A$4:$AN$110,MATCH($C34,'Debt Dollars FY23'!$A$5:$AN$5,0),FALSE) -> 0 | O34: =VLOOKUP($C$4,'CC dollars FY23'!$B$5:$AR$111,MATCH($C34,'CC dollars FY23'!$B$6:$AR$6,0),FALSE) -> 0 | P34: 0 | Q34: 0 | R34: 0
A35: HIDE | C35: Yakima Building | D35: =VLOOKUP($C$4,'Building RSF'!$A$3:$AK$109,MATCH($C35,'Building RSF'!$A$3:$AK$3,0),FALSE) -> 0 | F35: =VLOOKUP($C$4,'rent dollars FY22'!$A$2:$AL$108,MATCH($C35,'rent dollars FY22'!$A$3:$AL$3,0),FALSE) -> 0 | G35: =VLOOKUP($C$4,'Debt Dollars FY22'!$A$4:$AN$110,MATCH($C35,'Debt Dollars FY22'!$A$5:$AN$5,0),FALSE) -> 0 | H35: =VLOOKUP($C$4,'CC dollars FY22'!$B$5:$AR$111,MATCH($C35,'CC dollars FY22'!$B$6:$AR$6,0),FALSE) -> 0 | I35: 0 | J35: 0 | K35: 0 | M35: =VLOOKUP($C$4,'rent dollars FY23'!$A$2:$AL$108,MATCH($C35,'rent dollars FY23'!$A$3:$AL$3,0),FALSE) -> 0 | N35: =VLOOKUP($C$4,'Debt Dollars FY23'!$A$4:$AN$110,MATCH($C35,'Debt Dollars FY23'!$A$5:$AN$5,0),FALSE) -> 0 | O35: =VLOOKUP($C$4,'CC dollars FY23'!$B$5:$AR$111,MATCH($C35,'CC dollars FY23'!$B$6:$AR$6,0),FALSE) -> 0 | P35: 0 | Q35: 0 | R35: 0
A36: HIDE | C36: Alaska Street | D36: =VLOOKUP($C$4,'Building RSF'!$A$3:$AK$109,MATCH($C36,'Building RSF'!$A$3:$AK$3,0),FALSE) -> 0 | F36: =VLOOKUP($C$4,'rent dollars FY22'!$A$2:$AL$108,MATCH($C36,'rent dollars FY22'!$A$3:$AL$3,0),FALSE) -> 0 | G36: =VLOOKUP($C$4,'Debt Dollars FY22'!$A$4:$AN$110,MATCH($C36,'Debt Dollars FY22'!$A$5:$AN$5,0),FALSE) -> 0 | H36: =VLOOKUP($C$4,'CC dollars FY22'!$B$5:$AR$111,MATCH($C36,'CC dollars FY22'!$B$6:$AR$6,0),FALSE) -> 0 | I36: 0 | J36: 0 | K36: 0 | M36: =VLOOKUP($C$4,'rent dollars FY23'!$A$2:$AL$108,MATCH($C36,'rent dollars FY23'!$A$3:$AL$3,0),FALSE) -> 0 | N36: =VLOOKUP($C$4,'Debt Dollars FY23'!$A$4:$AN$110,MATCH($C36,'Debt Dollars FY23'!$A$5:$AN$5,0),FALSE) -> 0 | O36: =VLOOKUP($C$4,'CC dollars FY23'!$B$5:$AR$111,MATCH($C36,'CC dollars FY23'!$B$6:$AR$6,0),FALSE) -> 0 | P36: 0 | Q36: 0 | R36: 0
A37: HIDE | C37: Tacoma Rhodes | D37: =VLOOKUP($C$4,'Building RSF'!$A$3:$AK$109,MATCH($C37,'Building RSF'!$A$3:$AK$3,0),FALSE) -> 0 | F37: =VLOOKUP($C$4,'rent dollars FY22'!$A$2:$AL$108,MATCH($C37,'rent dollars FY22'!$A$3:$AL$3,0),FALSE) -> 0 | G37: =VLOOKUP($C$4,'Debt Dollars FY22'!$A$4:$AN$110,MATCH($C37,'Debt Dollars FY22'!$A$5:$AN$5,0),FALSE) -> 0 | H37: =VLOOKUP($C$4,'CC dollars FY22'!$B$5:$AR$111,MATCH($C37,'CC dollars FY22'!$B$6:$AR$6,0),FALSE) -> 0 | I37: 0 | J37: 0 | K37: 0 | M37: =VLOOKUP($C$4,'rent dollars FY23'!$A$2:$AL$108,MATCH($C37,'rent dollars FY23'!$A$3:$AL$3,0),FALSE) -> 0 | N37: =VLOOKUP($C$4,'Debt Dollars FY23'!$A$4:$AN$110,MATCH($C37,'Debt Dollars FY23'!$A$5:$AN$5,0),FALSE) -> 0 | O37: =VLOOKUP($C$4,'CC dollars FY23'!$B$5:$AR$111,MATCH($C37,'CC dollars FY23'!$B$6:$AR$6,0),FALSE) -> 0 | P37: 0 | Q37: 0 | R37: 0
A38: VIEW | C38: TOTAL | D38: =SUM(D7:D37) -> 0 | E38: =SUM(E7:E37) -> 0 | F38: 0 | G38: 0 | H38: 0 | I38: 0 | J38: 0 | K38: =I38/D38 ->  | M38: =SUM(M7:M37) -> 0 | N38: =SUM(N7:N37) -> 0 | O38: =SUM(O7:O37) -> 0 | P38: =SUM(P7:P37) -> 0 | Q38: =SUM(Q7:Q37) -> 0 | R38: =P38/D38 -> 
A39: VIEW
A40: VIEW | C40: Notes:
A41: =IF(D37=0,"HIDE","VIEW") -> HIDE | C41: o Tacoma Rhodes: This building was recently sold to private ownership. DES will work with OFM to have this building removed from the CSM in the Supplemental 22 Budget.
A42: VIEW | C42: o Campus Contracts (CC) is invoiced in three parts:
A43: VIEW | C43: 1) CC Bldg pays for CC services within the buildings (see rent tab)
A44: VIEW | C44: 2) CC Parking pays for CC services within parking garages and lots (see Other Facility Related Costs tab)
A45: VIEW | C45: 3) CC PHF pays for CC services in public & historic spaces (see Other Facility Related Costs tab) Note* Public and Historic Facilities may not be eligible for Federal Funding or Reimbursement
A46: VIEW | C46: o Facilities and Services charges for the House (011), Sentate (012), LSS (037), LSC (038) and Statute Law (040) for traditionally "on-campus" buildings are funded by an appropriation to DES and will not be invoiced.
A47: VIEW
A48: VIEW
A49: VIEW | I49: Prepared by DES Budget, Finance Division. For question relating to CSM charges from DES, please contact DES Budget, desbudget@des.wa.gov
A50: VIEW
A51: VIEW
A52: VIEW
A53: VIEW
A54: VIEW
A55: VIEW
A56: VIEW
A57: VIEW
A58: VIEW
A59: VIEW
A60: VIEW
A61: VIEW
A62: VIEW
A63: VIEW
A64: VIEW
A65: VIEW
A66: VIEW
A67: VIEW
A68: VIEW
A69: VIEW
A70: VIEW
A71: VIEW
A72: VIEW
A73: VIEW
A74: VIEW
A75: VIEW
A76: VIEW
A77: VIEW
A78: VIEW
A79: VIEW
A80: VIEW
A81: VIEW
A82: VIEW
A83: VIEW
A84: VIEW
A85: VIEW
A86: VIEW
A87: VIEW
A88: VIEW
A89: VIEW
A90: VIEW
A91: VIEW
A92: VIEW
A93: VIEW
A94: VIEW
A95: VIEW
A96: VIEW
A97: VIEW
A98: VIEW
A99: VIEW
A100: VIEW
A101: VIEW
A102: VIEW
A103: VIEW
A104: VIEW
A105: VIEW
A106: VIEW
A107: VIEW
A108: VIEW
A109: VIEW
A110: VIEW
A111: VIEW
A112: VIEW
A113: VIEW
A114: VIEW
A115: VIEW
A116: VIEW
A117: VIEW
A118: VIEW
A119: VIEW
A120: VIEW
A121: VIEW
A122: VIEW
A123: VIEW
A124: VIEW
A125: VIEW
A126: VIEW
A127: VIEW
A128: VIEW
A129: VIEW
A130: VIEW
A131: VIEW
A132: VIEW
A133: VIEW
A134: VIEW
A135: VIEW
A136: VIEW
A137: VIEW
A138: VIEW
A139: VIEW
A140: VIEW
A141: VIEW
A142: VIEW
A143: VIEW
A144: VIEW
A145: VIEW
A146: VIEW
A147: VIEW
A148: VIEW
A149: VIEW
A150: VIEW
A151: VIEW
A152: VIEW
A153: VIEW
A154: VIEW
A155: VIEW
A156: VIEW
A157: VIEW
A158: VIEW
A159: VIEW
A160: VIEW
A161: VIEW
A162: VIEW
A163: VIEW
A164: VIEW
A165: VIEW
A166: VIEW
A167: VIEW
A168: VIEW
A169: VIEW
A170: VIEW
A171: VIEW
A172: VIEW
A173: VIEW
A174: VIEW
A175: VIEW
A176: VIEW
A177: VIEW
A178: VIEW
A179: VIEW
A180: VIEW
A181: VIEW
A182: VIEW
A183: VIEW
A184: VIEW
A185: VIEW
A186: VIEW
A187: VIEW
A188: VIEW
A189: VIEW
A190: VIEW
A191: VIEW
A192: VIEW
A193: VIEW
A194: VIEW
A195: VIEW
A196: VIEW
A197: VIEW
A198: VIEW
A199: VIEW
A200: VIEW
... 84 more rows

Sheet Rent lookup by Building
A1: VIEW
A2: VIEW | C2: Occupancy by Building in the Central Service Model | R2: Department of Enterprise Services
A3: VIEW | C3: Agency
A4: VIEW | C4: Alaska Street | F4: ç Select Building Here
A5: VIEW | E5: Fiscal Year 22 | M5: Fiscal Year 23
A6: VIEW | C6: Agency | D6: occupied RSF | F6: Rent CSM | G6: Fin Cost Recovery CSM | H6: Campus Contracts CSM | I6: TOTAL RENT Annual Cost | J6: Monthly Charge | K6: Rent Rate/RSF | M6: Rent CSM | N6: Fin Cost Recovery CSM | O6: Campus Contracts CSM | P6: TOTAL RENT Annual Cost | Q6: Monthly Charge | R6: Rent Rate/RSF
A7: =IF(D7=0,"HIDE","VIEW") -> HIDE | C7: 011 - House of Representatives | D7: =HLOOKUP($C$4,'Building RSF'!$A$3:$AK$109,MATCH($C7,'Building RSF'!$A$3:$A$109,0),FALSE) -> 0 | F7: =HLOOKUP($C$4,'rent dollars FY22'!$A$3:$AL$108,MATCH($C7,'rent dollars FY22'!$A$3:$A$108,0),FALSE) -> 0 | G7: =HLOOKUP($C$4,'Debt Dollars FY22'!$C$5:$AN$110,MATCH($C7,'Debt Dollars FY22'!$A$5:$A$110,0),FALSE) -> 0 | H7: =HLOOKUP($C$4,'CC dollars FY22'!$B$6:$AR$111,MATCH($C7,'CC dollars FY22'!$B$6:$B$111,0),FALSE) -> 0 | I7: =SUM(F7:H7) -> 0 | J7: =I7/12 -> 0 | K7: =IFERROR(I7/D7,0) -> 0 | M7: =HLOOKUP($C$4,'rent dollars FY23'!$A$3:$AL$108,MATCH($C7,'rent dollars FY23'!$A$3:$A$108,0),FALSE) -> 0 | N7: =HLOOKUP($C$4,'Debt Dollars FY23'!$C$5:$AN$110,MATCH($C7,'Debt Dollars FY23'!$A$5:$A$110,0),FALSE) -> 0 | O7: =HLOOKUP($C$4,'CC dollars FY23'!$B$6:$AR$111,MATCH($C7,'CC dollars FY23'!$B$6:$B$111,0),FALSE) -> 0 | P7: =SUM(M7:O7) -> 0 | Q7: =P7/12 -> 0 | R7: =IFERROR(P7/D7,0) -> 0
A8: =IF(D8=0,"HIDE","VIEW") -> HIDE | C8: 012 - Senate | D8: =HLOOKUP($C$4,'Building RSF'!$A$3:$AK$109,MATCH($C8,'Building RSF'!$A$3:$A$109,0),FALSE) -> 0 | F8: =HLOOKUP($C$4,'rent dollars FY22'!$A$3:$AL$108,MATCH($C8,'rent dollars FY22'!$A$3:$A$108,0),FALSE) -> 0 | G8: =HLOOKUP($C$4,'Debt Dollars FY22'!$C$5:$AN$110,MATCH($C8,'Debt Dollars FY22'!$A$5:$A$110,0),FALSE) -> 0 | H8: =HLOOKUP($C$4,'CC dollars FY22'!$B$6:$AR$111,MATCH($C8,'CC dollars FY22'!$B$6:$B$111,0),FALSE) -> 0 | I8: =SUM(F8:H8) -> 0 | J8: =I8/12 -> 0 | K8: =IFERROR(I8/D8,0) -> 0 | M8: =HLOOKUP($C$4,'rent dollars FY23'!$A$3:$AL$108,MATCH($C8,'rent dollars FY23'!$A$3:$A$108,0),FALSE) -> 0 | N8: =HLOOKUP($C$4,'Debt Dollars FY23'!$C$5:$AN$110,MATCH($C8,'Debt Dollars FY23'!$A$5:$A$110,0),FALSE) -> 0 | O8: =HLOOKUP($C$4,'CC dollars FY23'!$B$6:$AR$111,MATCH($C8,'CC dollars FY23'!$B$6:$B$111,0),FALSE) -> 0 | P8: =SUM(M8:O8) -> 0 | Q8: =P8/12 -> 0 | R8: =IFERROR(P8/D8,0) -> 0
A9: HIDE | C9: 013 - Joint Transportation Committee | D9: =HLOOKUP($C$4,'Building RSF'!$A$3:$AK$109,MATCH($C9,'Building RSF'!$A$3:$A$109,0),FALSE) -> 0 | F9: =HLOOKUP($C$4,'rent dollars FY22'!$A$3:$AL$108,MATCH($C9,'rent dollars FY22'!$A$3:$A$108,0),FALSE) -> 0 | G9: =HLOOKUP($C$4,'Debt Dollars FY22'!$C$5:$AN$110,MATCH($C9,'Debt Dollars FY22'!$A$5:$A$110,0),FALSE) -> 0 | H9: =HLOOKUP($C$4,'CC dollars FY22'!$B$6:$AR$111,MATCH($C9,'CC dollars FY22'!$B$6:$B$111,0),FALSE) -> 0 | I9: 0 | J9: 0 | K9: 0 | M9: =HLOOKUP($C$4,'rent dollars FY23'!$A$3:$AL$108,MATCH($C9,'rent dollars FY23'!$A$3:$A$108,0),FALSE) -> 0 | N9: =HLOOKUP($C$4,'Debt Dollars FY23'!$C$5:$AN$110,MATCH($C9,'Debt Dollars FY23'!$A$5:$A$110,0),FALSE) -> 0 | O9: =HLOOKUP($C$4,'CC dollars FY23'!$B$6:$AR$111,MATCH($C9,'CC dollars FY23'!$B$6:$B$111,0),FALSE) -> 0 | P9: 0 | Q9: 0 | R9: 0
A10: HIDE | C10: 014 - Joint Legislative Audit and Review Committee | D10: =HLOOKUP($C$4,'Building RSF'!$A$3:$AK$109,MATCH($C10,'Building RSF'!$A$3:$A$109,0),FALSE) -> 0 | F10: =HLOOKUP($C$4,'rent dollars FY22'!$A$3:$AL$108,MATCH($C10,'rent dollars FY22'!$A$3:$A$108,0),FALSE) -> 0 | G10: =HLOOKUP($C$4,'Debt Dollars FY22'!$C$5:$AN$110,MATCH($C10,'Debt Dollars FY22'!$A$5:$A$110,0),FALSE) -> 0 | H10: =HLOOKUP($C$4,'CC dollars FY22'!$B$6:$AR$111,MATCH($C10,'CC dollars FY22'!$B$6:$B$111,0),FALSE) -> 0 | I10: 0 | J10: 0 | K10: 0 | M10: =HLOOKUP($C$4,'rent dollars FY23'!$A$3:$AL$108,MATCH($C10,'rent dollars FY23'!$A$3:$A$108,0),FALSE) -> 0 | N10: =HLOOKUP($C$4,'Debt Dollars FY23'!$C$5:$AN$110,MATCH($C10,'Debt Dollars FY23'!$A$5:$A$110,0),FALSE) -> 0 | O10: =HLOOKUP($C$4,'CC dollars FY23'!$B$6:$AR$111,MATCH($C10,'CC dollars FY23'!$B$6:$B$111,0),FALSE) -> 0 | P10: 0 | Q10: 0 | R10: 0
A11: HIDE | C11: 020 - Legislative Evaluation and Accountability Program Committee | D11: =HLOOKUP($C$4,'Building RSF'!$A$3:$AK$109,MATCH($C11,'Building RSF'!$A$3:$A$109,0),FALSE) -> 0 | F11: =HLOOKUP($C$4,'rent dollars FY22'!$A$3:$AL$108,MATCH($C11,'rent dollars FY22'!$A$3:$A$108,0),FALSE) -> 0 | G11: =HLOOKUP($C$4,'Debt Dollars FY22'!$C$5:$AN$110,MATCH($C11,'Debt Dollars FY22'!$A$5:$A$110,0),FALSE) -> 0 | H11: =HLOOKUP($C$4,'CC dollars FY22'!$B$6:$AR$111,MATCH($C11,'CC dollars FY22'!$B$6:$B$111,0),FALSE) -> 0 | I11: 0 | J11: 0 | K11: 0 | M11: =HLOOKUP($C$4,'rent dollars FY23'!$A$3:$AL$108,MATCH($C11,'rent dollars FY23'!$A$3:$A$108,0),FALSE) -> 0 | N11: =HLOOKUP($C$4,'Debt Dollars FY23'!$C$5:$AN$110,MATCH($C11,'Debt Dollars FY23'!$A$5:$A$110,0),FALSE) -> 0 | O11: =HLOOKUP($C$4,'CC dollars FY23'!$B$6:$AR$111,MATCH($C11,'CC dollars FY23'!$B$6:$B$111,0),FALSE) -> 0 | P11: 0 | Q11: 0 | R11: 0
A12: HIDE | C12: 035 - Office of the State Actuary | D12: =HLOOKUP($C$4,'Building RSF'!$A$3:$AK$109,MATCH($C12,'Building RSF'!$A$3:$A$109,0),FALSE) -> 0 | F12: =HLOOKUP($C$4,'rent dollars FY22'!$A$3:$AL$108,MATCH($C12,'rent dollars FY22'!$A$3:$A$108,0),FALSE) -> 0 | G12: =HLOOKUP($C$4,'Debt Dollars FY22'!$C$5:$AN$110,MATCH($C12,'Debt Dollars FY22'!$A$5:$A$110,0),FALSE) -> 0 | H12: =HLOOKUP($C$4,'CC dollars FY22'!$B$6:$AR$111,MATCH($C12,'CC dollars FY22'!$B$6:$B$111,0),FALSE) -> 0 | I12: 0 | J12: 0 | K12: 0 | M12: =HLOOKUP($C$4,'rent dollars FY23'!$A$3:$AL$108,MATCH($C12,'rent dollars FY23'!$A$3:$A$108,0),FALSE) -> 0 | N12: =HLOOKUP($C$4,'Debt Dollars FY23'!$C$5:$AN$110,MATCH($C12,'Debt Dollars FY23'!$A$5:$A$110,0),FALSE) -> 0 | O12: =HLOOKUP($C$4,'CC dollars FY23'!$B$6:$AR$111,MATCH($C12,'CC dollars FY23'!$B$6:$B$111,0),FALSE) -> 0 | P12: 0 | Q12: 0 | R12: 0
A13: HIDE | C13: 037 - Office of Legislative Support Services | D13: =HLOOKUP($C$4,'Building RSF'!$A$3:$AK$109,MATCH($C13,'Building RSF'!$A$3:$A$109,0),FALSE) -> 0 | F13: =HLOOKUP($C$4,'rent dollars FY22'!$A$3:$AL$108,MATCH($C13,'rent dollars FY22'!$A$3:$A$108,0),FALSE) -> 0 | G13: =HLOOKUP($C$4,'Debt Dollars FY22'!$C$5:$AN$110,MATCH($C13,'Debt Dollars FY22'!$A$5:$A$110,0),FALSE) -> 0 | H13: =HLOOKUP($C$4,'CC dollars FY22'!$B$6:$AR$111,MATCH($C13,'CC dollars FY22'!$B$6:$B$111,0),FALSE) -> 0 | I13: 0 | J13: 0 | K13: 0 | M13: =HLOOKUP($C$4,'rent dollars FY23'!$A$3:$AL$108,MATCH($C13,'rent dollars FY23'!$A$3:$A$108,0),FALSE) -> 0 | N13: =HLOOKUP($C$4,'Debt Dollars FY23'!$C$5:$AN$110,MATCH($C13,'Debt Dollars FY23'!$A$5:$A$110,0),FALSE) -> 0 | O13: =HLOOKUP($C$4,'CC dollars FY23'!$B$6:$AR$111,MATCH($C13,'CC dollars FY23'!$B$6:$B$111,0),FALSE) -> 0 | P13: 0 | Q13: 0 | R13: 0
A14: HIDE | C14: 038 - Joint Legislative Systems Committee | D14: =HLOOKUP($C$4,'Building RSF'!$A$3:$AK$109,MATCH($C14,'Building RSF'!$A$3:$A$109,0),FALSE) -> 0 | F14: =HLOOKUP($C$4,'rent dollars FY22'!$A$3:$AL$108,MATCH($C14,'rent dollars FY22'!$A$3:$A$108,0),FALSE) -> 0 | G14: =HLOOKUP($C$4,'Debt Dollars FY22'!$C$5:$AN$110,MATCH($C14,'Debt Dollars FY22'!$A$5:$A$110,0),FALSE) -> 0 | H14: =HLOOKUP($C$4,'CC dollars FY22'!$B$6:$AR$111,MATCH($C14,'CC dollars FY22'!$B$6:$B$111,0),FALSE) -> 0 | I14: 0 | J14: 0 | K14: 0 | M14: =HLOOKUP($C$4,'rent dollars FY23'!$A$3:$AL$108,MATCH($C14,'rent dollars FY23'!$A$3:$A$108,0),FALSE) -> 0 | N14: =HLOOKUP($C$4,'Debt Dollars FY23'!$C$5:$AN$110,MATCH($C14,'Debt Dollars FY23'!$A$5:$A$110,0),FALSE) -> 0 | O14: =HLOOKUP($C$4,'CC dollars FY23'!$B$6:$AR$111,MATCH($C14,'CC dollars FY23'!$B$6:$B$111,0),FALSE) -> 0 | P14: 0 | Q14: 0 | R14: 0
A15: HIDE | C15: 040 - Statute Law Committee (Code Revisor) | D15: =HLOOKUP($C$4,'Building RSF'!$A$3:$AK$109,MATCH($C15,'Building RSF'!$A$3:$A$109,0),FALSE) -> 0 | F15: =HLOOKUP($C$4,'rent dollars FY22'!$A$3:$AL$108,MATCH($C15,'rent dollars FY22'!$A$3:$A$108,0),FALSE) -> 0 | G15: =HLOOKUP($C$4,'Debt Dollars FY22'!$C$5:$AN$110,MATCH($C15,'Debt Dollars FY22'!$A$5:$A$110,0),FALSE) -> 0 | H15: =HLOOKUP($C$4,'CC dollars FY22'!$B$6:$AR$111,MATCH($C15,'CC dollars FY22'!$B$6:$B$111,0),FALSE) -> 0 | I15: 0 | J15: 0 | K15: 0 | M15: =HLOOKUP($C$4,'rent dollars FY23'!$A$3:$AL$108,MATCH($C15,'rent dollars FY23'!$A$3:$A$108,0),FALSE) -> 0 | N15: =HLOOKUP($C$4,'Debt Dollars FY23'!$C$5:$AN$110,MATCH($C15,'Debt Dollars FY23'!$A$5:$A$110,0),FALSE) -> 0 | O15: =HLOOKUP($C$4,'CC dollars FY23'!$B$6:$AR$111,MATCH($C15,'CC dollars FY23'!$B$6:$B$111,0),FALSE) -> 0 | P15: 0 | Q15: 0 | R15: 0
A16: HIDE | C16: 045 - Supreme Court | D16: =HLOOKUP($C$4,'Building RSF'!$A$3:$AK$109,MATCH($C16,'Building RSF'!$A$3:$A$109,0),FALSE) -> 0 | F16: =HLOOKUP($C$4,'rent dollars FY22'!$A$3:$AL$108,MATCH($C16,'rent dollars FY22'!$A$3:$A$108,0),FALSE) -> 0 | G16: =HLOOKUP($C$4,'Debt Dollars FY22'!$C$5:$AN$110,MATCH($C16,'Debt Dollars FY22'!$A$5:$A$110,0),FALSE) -> 0 | H16: =HLOOKUP($C$4,'CC dollars FY22'!$B$6:$AR$111,MATCH($C16,'CC dollars FY22'!$B$6:$B$111,0),FALSE) -> 0 | I16: 0 | J16: 0 | K16: 0 | M16: =HLOOKUP($C$4,'rent dollars FY23'!$A$3:$AL$108,MATCH($C16,'rent dollars FY23'!$A$3:$A$108,0),FALSE) -> 0 | N16: =HLOOKUP($C$4,'Debt Dollars FY23'!$C$5:$AN$110,MATCH($C16,'Debt Dollars FY23'!$A$5:$A$110,0),FALSE) -> 0 | O16: =HLOOKUP($C$4,'CC dollars FY23'!$B$6:$AR$111,MATCH($C16,'CC dollars FY23'!$B$6:$B$111,0),FALSE) -> 0 | P16: 0 | Q16: 0 | R16: 0
A17: HIDE | C17: 046 - Law Library | D17: =HLOOKUP($C$4,'Building RSF'!$A$3:$AK$109,MATCH($C17,'Building RSF'!$A$3:$A$109,0),FALSE) -> 0 | F17: =HLOOKUP($C$4,'rent dollars FY22'!$A$3:$AL$108,MATCH($C17,'rent dollars FY22'!$A$3:$A$108,0),FALSE) -> 0 | G17: =HLOOKUP($C$4,'Debt Dollars FY22'!$C$5:$AN$110,MATCH($C17,'Debt Dollars FY22'!$A$5:$A$110,0),FALSE) -> 0 | H17: =HLOOKUP($C$4,'CC dollars FY22'!$B$6:$AR$111,MATCH($C17,'CC dollars FY22'!$B$6:$B$111,0),FALSE) -> 0 | I17: 0 | J17: 0 | K17: 0 | M17: =HLOOKUP($C$4,'rent dollars FY23'!$A$3:$AL$108,MATCH($C17,'rent dollars FY23'!$A$3:$A$108,0),FALSE) -> 0 | N17: =HLOOKUP($C$4,'Debt Dollars FY23'!$C$5:$AN$110,MATCH($C17,'Debt Dollars FY23'!$A$5:$A$110,0),FALSE) -> 0 | O17: =HLOOKUP($C$4,'CC dollars FY23'!$B$6:$AR$111,MATCH($C17,'CC dollars FY23'!$B$6:$B$111,0),FALSE) -> 0 | P17: 0 | Q17: 0 | R17: 0
A18: HIDE | C18: 048 - Court of Appeals | D18: =HLOOKUP($C$4,'Building RSF'!$A$3:$AK$109,MATCH($C18,'Building RSF'!$A$3:$A$109,0),FALSE) -> 0 | F18: =HLOOKUP($C$4,'rent dollars FY22'!$A$3:$AL$108,MATCH($C18,'rent dollars FY22'!$A$3:$A$108,0),FALSE) -> 0 | G18: =HLOOKUP($C$4,'Debt Dollars FY22'!$C$5:$AN$110,MATCH($C18,'Debt Dollars FY22'!$A$5:$A$110,0),FALSE) -> 0 | H18: =HLOOKUP($C$4,'CC dollars FY22'!$B$6:$AR$111,MATCH($C18,'CC dollars FY22'!$B$6:$B$111,0),FALSE) -> 0 | I18: 0 | J18: 0 | K18: 0 | M18: =HLOOKUP($C$4,'rent dollars FY23'!$A$3:$AL$108,MATCH($C18,'rent dollars FY23'!$A$3:$A$108,0),FALSE) -> 0 | N18: =HLOOKUP($C$4,'Debt Dollars FY23'!$C$5:$AN$110,MATCH($C18,'Debt Dollars FY23'!$A$5:$A$110,0),FALSE) -> 0 | O18: =HLOOKUP($C$4,'CC dollars FY23'!$B$6:$AR$111,MATCH($C18,'CC dollars FY23'!$B$6:$B$111,0),FALSE) -> 0 | P18: 0 | Q18: 0 | R18: 0
A19: HIDE | C19: 050 - Commission on Judicial Conduct | D19: =HLOOKUP($C$4,'Building RSF'!$A$3:$AK$109,MATCH($C19,'Building RSF'!$A$3:$A$109,0),FALSE) -> 0 | F19: =HLOOKUP($C$4,'rent dollars FY22'!$A$3:$AL$108,MATCH($C19,'rent dollars FY22'!$A$3:$A$108,0),FALSE) -> 0 | G19: =HLOOKUP($C$4,'Debt Dollars FY22'!$C$5:$AN$110,MATCH($C19,'Debt Dollars FY22'!$A$5:$A$110,0),FALSE) -> 0 | H19: =HLOOKUP($C$4,'CC dollars FY22'!$B$6:$AR$111,MATCH($C19,'CC dollars FY22'!$B$6:$B$111,0),FALSE) -> 0 | I19: 0 | J19: 0 | K19: 0 | M19: =HLOOKUP($C$4,'rent dollars FY23'!$A$3:$AL$108,MATCH($C19,'rent dollars FY23'!$A$3:$A$108,0),FALSE) -> 0 | N19: =HLOOKUP($C$4,'Debt Dollars FY23'!$C$5:$AN$110,MATCH($C19,'Debt Dollars FY23'!$A$5:$A$110,0),FALSE) -> 0 | O19: =HLOOKUP($C$4,'CC dollars FY23'!$B$6:$AR$111,MATCH($C19,'CC dollars FY23'!$B$6:$B$111,0),FALSE) -> 0 | P19: 0 | Q19: 0 | R19: 0
A20: HIDE | C20: 055 - Administrative Office of the Courts | D20: =HLOOKUP($C$4,'Building RSF'!$A$3:$AK$109,MATCH($C20,'Building RSF'!$A$3:$A$109,0),FALSE) -> 0 | F20: =HLOOKUP($C$4,'rent dollars FY22'!$A$3:$AL$108,MATCH($C20,'rent dollars FY22'!$A$3:$A$108,0),FALSE) -> 0 | G20: =HLOOKUP($C$4,'Debt Dollars FY22'!$C$5:$AN$110,MATCH($C20,'Debt Dollars FY22'!$A$5:$A$110,0),FALSE) -> 0 | H20: =HLOOKUP($C$4,'CC dollars FY22'!$B$6:$AR$111,MATCH($C20,'CC dollars FY22'!$B$6:$B$111,0),FALSE) -> 0 | I20: 0 | J20: 0 | K20: 0 | M20: =HLOOKUP($C$4,'rent dollars FY23'!$A$3:$AL$108,MATCH($C20,'rent dollars FY23'!$A$3:$A$108,0),FALSE) -> 0 | N20: =HLOOKUP($C$4,'Debt Dollars FY23'!$C$5:$AN$110,MATCH($C20,'Debt Dollars FY23'!$A$5:$A$110,0),FALSE) -> 0 | O20: =HLOOKUP($C$4,'CC dollars FY23'!$B$6:$AR$111,MATCH($C20,'CC dollars FY23'!$B$6:$B$111,0),FALSE) -> 0 | P20: 0 | Q20: 0 | R20: 0
A21: HIDE | C21: 056 - Office of Public Defense | D21: =HLOOKUP($C$4,'Building RSF'!$A$3:$AK$109,MATCH($C21,'Building RSF'!$A$3:$A$109,0),FALSE) -> 0 | F21: =HLOOKUP($C$4,'rent dollars FY22'!$A$3:$AL$108,MATCH($C21,'rent dollars FY22'!$A$3:$A$108,0),FALSE) -> 0 | G21: =HLOOKUP($C$4,'Debt Dollars FY22'!$C$5:$AN$110,MATCH($C21,'Debt Dollars FY22'!$A$5:$A$110,0),FALSE) -> 0 | H21: =HLOOKUP($C$4,'CC dollars FY22'!$B$6:$AR$111,MATCH($C21,'CC dollars FY22'!$B$6:$B$111,0),FALSE) -> 0 | I21: 0 | J21: 0 | K21: 0 | M21: =HLOOKUP($C$4,'rent dollars FY23'!$A$3:$AL$108,MATCH($C21,'rent dollars FY23'!$A$3:$A$108,0),FALSE) -> 0 | N21: =HLOOKUP($C$4,'Debt Dollars FY23'!$C$5:$AN$110,MATCH($C21,'Debt Dollars FY23'!$A$5:$A$110,0),FALSE) -> 0 | O21: =HLOOKUP($C$4,'CC dollars FY23'!$B$6:$AR$111,MATCH($C21,'CC dollars FY23'!$B$6:$B$111,0),FALSE) -> 0 | P21: 0 | Q21: 0 | R21: 0
A22: HIDE | C22: 057 - Office of Civil Legal Aid | D22: =HLOOKUP($C$4,'Building RSF'!$A$3:$AK$109,MATCH($C22,'Building RSF'!$A$3:$A$109,0),FALSE) -> 0 | F22: =HLOOKUP($C$4,'rent dollars FY22'!$A$3:$AL$108,MATCH($C22,'rent dollars FY22'!$A$3:$A$108,0),FALSE) -> 0 | G22: =HLOOKUP($C$4,'Debt Dollars FY22'!$C$5:$AN$110,MATCH($C22,'Debt Dollars FY22'!$A$5:$A$110,0),FALSE) -> 0 | H22: =HLOOKUP($C$4,'CC dollars FY22'!$B$6:$AR$111,MATCH($C22,'CC dollars FY22'!$B$6:$B$111,0),FALSE) -> 0 | I22: 0 | J22: 0 | K22: 0 | M22: =HLOOKUP($C$4,'rent dollars FY23'!$A$3:$AL$108,MATCH($C22,'rent dollars FY23'!$A$3:$A$108,0),FALSE) -> 0 | N22: =HLOOKUP($C$4,'Debt Dollars FY23'!$C$5:$AN$110,MATCH($C22,'Debt Dollars FY23'!$A$5:$A$110,0),FALSE) -> 0 | O22: =HLOOKUP($C$4,'CC dollars FY23'!$B$6:$AR$111,MATCH($C22,'CC dollars FY23'!$B$6:$B$111,0),FALSE) -> 0 | P22: 0 | Q22: 0 | R22: 0
A23: HIDE | C23: 075 - Office of the Governor | D23: =HLOOKUP($C$4,'Building RSF'!$A$3:$AK$109,MATCH($C23,'Building RSF'!$A$3:$A$109,0),FALSE) -> 0 | F23: =HLOOKUP($C$4,'rent dollars FY22'!$A$3:$AL$108,MATCH($C23,'rent dollars FY22'!$A$3:$A$108,0),FALSE) -> 0 | G23: =HLOOKUP($C$4,'Debt Dollars FY22'!$C$5:$AN$110,MATCH($C23,'Debt Dollars FY22'!$A$5:$A$110,0),FALSE) -> 0 | H23: =HLOOKUP($C$4,'CC dollars FY22'!$B$6:$AR$111,MATCH($C23,'CC dollars FY22'!$B$6:$B$111,0),FALSE) -> 0 | I23: 0 | J23: 0 | K23: 0 | M23: =HLOOKUP($C$4,'rent dollars FY23'!$A$3:$AL$108,MATCH($C23,'rent dollars FY23'!$A$3:$A$108,0),FALSE) -> 0 | N23: =HLOOKUP($C$4,'Debt Dollars FY23'!$C$5:$AN$110,MATCH($C23,'Debt Dollars FY23'!$A$5:$A$110,0),FALSE) -> 0 | O23: =HLOOKUP($C$4,'CC dollars FY23'!$B$6:$AR$111,MATCH($C23,'CC dollars FY23'!$B$6:$B$111,0),FALSE) -> 0 | P23: 0 | Q23: 0 | R23: 0
A24: HIDE | C24: 080 - Office of Lieutenant Governor | D24: =HLOOKUP($C$4,'Building RSF'!$A$3:$AK$109,MATCH($C24,'Building RSF'!$A$3:$A$109,0),FALSE) -> 0 | F24: =HLOOKUP($C$4,'rent dollars FY22'!$A$3:$AL$108,MATCH($C24,'rent dollars FY22'!$A$3:$A$108,0),FALSE) -> 0 | G24: =HLOOKUP($C$4,'Debt Dollars FY22'!$C$5:$AN$110,MATCH($C24,'Debt Dollars FY22'!$A$5:$A$110,0),FALSE) -> 0 | H24: =HLOOKUP($C$4,'CC dollars FY22'!$B$6:$AR$111,MATCH($C24,'CC dollars FY22'!$B$6:$B$111,0),FALSE) -> 0 | I24: 0 | J24: 0 | K24: 0 | M24: =HLOOKUP($C$4,'rent dollars FY23'!$A$3:$AL$108,MATCH($C24,'rent dollars FY23'!$A$3:$A$108,0),FALSE) -> 0 | N24: =HLOOKUP($C$4,'Debt Dollars FY23'!$C$5:$AN$110,MATCH($C24,'Debt Dollars FY23'!$A$5:$A$110,0),FALSE) -> 0 | O24: =HLOOKUP($C$4,'CC dollars FY23'!$B$6:$AR$111,MATCH($C24,'CC dollars FY23'!$B$6:$B$111,0),FALSE) -> 0 | P24: 0 | Q24: 0 | R24: 0
A25: HIDE | C25: 082 - Public Disclosure Commission | D25: =HLOOKUP($C$4,'Building RSF'!$A$3:$AK$109,MATCH($C25,'Building RSF'!$A$3:$A$109,0),FALSE) -> 0 | F25: =HLOOKUP($C$4,'rent dollars FY22'!$A$3:$AL$108,MATCH($C25,'rent dollars FY22'!$A$3:$A$108,0),FALSE) -> 0 | G25: =HLOOKUP($C$4,'Debt Dollars FY22'!$C$5:$AN$110,MATCH($C25,'Debt Dollars FY22'!$A$5:$A$110,0),FALSE) -> 0 | H25: =HLOOKUP($C$4,'CC dollars FY22'!$B$6:$AR$111,MATCH($C25,'CC dollars FY22'!$B$6:$B$111,0),FALSE) -> 0 | I25: 0 | J25: 0 | K25: 0 | M25: =HLOOKUP($C$4,'rent dollars FY23'!$A$3:$AL$108,MATCH($C25,'rent dollars FY23'!$A$3:$A$108,0),FALSE) -> 0 | N25: =HLOOKUP($C$4,'Debt Dollars FY23'!$C$5:$AN$110,MATCH($C25,'Debt Dollars FY23'!$A$5:$A$110,0),FALSE) -> 0 | O25: =HLOOKUP($C$4,'CC dollars FY23'!$B$6:$AR$111,MATCH($C25,'CC dollars FY23'!$B$6:$B$111,0),FALSE) -> 0 | P25: 0 | Q25: 0 | R25: 0
A26: HIDE | C26: 085 - Office of the Secretary of State | D26: =HLOOKUP($C$4,'Building RSF'!$A$3:$AK$109,MATCH($C26,'Building RSF'!$A$3:$A$109,0),FALSE) -> 0 | F26: =HLOOKUP($C$4,'rent dollars FY22'!$A$3:$AL$108,MATCH($C26,'rent dollars FY22'!$A$3:$A$108,0),FALSE) -> 0 | G26: =HLOOKUP($C$4,'Debt Dollars FY22'!$C$5:$AN$110,MATCH($C26,'Debt Dollars FY22'!$A$5:$A$110,0),FALSE) -> 0 | H26: =HLOOKUP($C$4,'CC dollars FY22'!$B$6:$AR$111,MATCH($C26,'CC dollars FY22'!$B$6:$B$111,0),FALSE) -> 0 | I26: 0 | J26: 0 | K26: 0 | M26: =HLOOKUP($C$4,'rent dollars FY23'!$A$3:$AL$108,MATCH($C26,'rent dollars FY23'!$A$3:$A$108,0),FALSE) -> 0 | N26: =HLOOKUP($C$4,'Debt Dollars FY23'!$C$5:$AN$110,MATCH($C26,'Debt Dollars FY23'!$A$5:$A$110,0),FALSE) -> 0 | O26: =HLOOKUP($C$4,'CC dollars FY23'!$B$6:$AR$111,MATCH($C26,'CC dollars FY23'!$B$6:$B$111,0),FALSE) -> 0 | P26: 0 | Q26: 0 | R26: 0
A27: HIDE | C27: 086 - Governor's Office of Indian Affairs | D27: =HLOOKUP($C$4,'Building RSF'!$A$3:$AK$109,MATCH($C27,'Building RSF'!$A$3:$A$109,0),FALSE) -> 0 | F27: =HLOOKUP($C$4,'rent dollars FY22'!$A$3:$AL$108,MATCH($C27,'rent dollars FY22'!$A$3:$A$108,0),FALSE) -> 0 | G27: =HLOOKUP($C$4,'Debt Dollars FY22'!$C$5:$AN$110,MATCH($C27,'Debt Dollars FY22'!$A$5:$A$110,0),FALSE) -> 0 | H27: =HLOOKUP($C$4,'CC dollars FY22'!$B$6:$AR$111,MATCH($C27,'CC dollars FY22'!$B$6:$B$111,0),FALSE) -> 0 | I27: 0 | J27: 0 | K27: 0 | M27: =HLOOKUP($C$4,'rent dollars FY23'!$A$3:$AL$108,MATCH($C27,'rent dollars FY23'!$A$3:$A$108,0),FALSE) -> 0 | N27: =HLOOKUP($C$4,'Debt Dollars FY23'!$C$5:$AN$110,MATCH($C27,'Debt Dollars FY23'!$A$5:$A$110,0),FALSE) -> 0 | O27: =HLOOKUP($C$4,'CC dollars FY23'!$B$6:$AR$111,MATCH($C27,'CC dollars FY23'!$B$6:$B$111,0),FALSE) -> 0 | P27: =SUM(M27:O27) -> 0 | Q27: 0 | R27: =IFERROR(P27/D27,0) -> 0
A28: HIDE | C28: 087 - Commission on Asian Pacific American Affairs | D28: =HLOOKUP($C$4,'Building RSF'!$A$3:$AK$109,MATCH($C28,'Building RSF'!$A$3:$A$109,0),FALSE) -> 0 | F28: =HLOOKUP($C$4,'rent dollars FY22'!$A$3:$AL$108,MATCH($C28,'rent dollars FY22'!$A$3:$A$108,0),FALSE) -> 0 | G28: =HLOOKUP($C$4,'Debt Dollars FY22'!$C$5:$AN$110,MATCH($C28,'Debt Dollars FY22'!$A$5:$A$110,0),FALSE) -> 0 | H28: =HLOOKUP($C$4,'CC dollars FY22'!$B$6:$AR$111,MATCH($C28,'CC dollars FY22'!$B$6:$B$111,0),FALSE) -> 0 | I28: 0 | J28: 0 | K28: 0 | M28: =HLOOKUP($C$4,'rent dollars FY23'!$A$3:$AL$108,MATCH($C28,'rent dollars FY23'!$A$3:$A$108,0),FALSE) -> 0 | N28: =HLOOKUP($C$4,'Debt Dollars FY23'!$C$5:$AN$110,MATCH($C28,'Debt Dollars FY23'!$A$5:$A$110,0),FALSE) -> 0 | O28: =HLOOKUP($C$4,'CC dollars FY23'!$B$6:$AR$111,MATCH($C28,'CC dollars FY23'!$B$6:$B$111,0),FALSE) -> 0 | P28: 0 | Q28: 0 | R28: 0
A29: HIDE | C29: 090 - Office of State Treasurer | D29: =HLOOKUP($C$4,'Building RSF'!$A$3:$AK$109,MATCH($C29,'Building RSF'!$A$3:$A$109,0),FALSE) -> 0 | F29: =HLOOKUP($C$4,'rent dollars FY22'!$A$3:$AL$108,MATCH($C29,'rent dollars FY22'!$A$3:$A$108,0),FALSE) -> 0 | G29: =HLOOKUP($C$4,'Debt Dollars FY22'!$C$5:$AN$110,MATCH($C29,'Debt Dollars FY22'!$A$5:$A$110,0),FALSE) -> 0 | H29: =HLOOKUP($C$4,'CC dollars FY22'!$B$6:$AR$111,MATCH($C29,'CC dollars FY22'!$B$6:$B$111,0),FALSE) -> 0 | I29: 0 | J29: 0 | K29: 0 | M29: =HLOOKUP($C$4,'rent dollars FY23'!$A$3:$AL$108,MATCH($C29,'rent dollars FY23'!$A$3:$A$108,0),FALSE) -> 0 | N29: =HLOOKUP($C$4,'Debt Dollars FY23'!$C$5:$AN$110,MATCH($C29,'Debt Dollars FY23'!$A$5:$A$110,0),FALSE) -> 0 | O29: =HLOOKUP($C$4,'CC dollars FY23'!$B$6:$AR$111,MATCH($C29,'CC dollars FY23'!$B$6:$B$111,0),FALSE) -> 0 | P29: 0 | Q29: 0 | R29: 0
A30: HIDE | C30: 095 - Office of State Auditor | D30: =HLOOKUP($C$4,'Building RSF'!$A$3:$AK$109,MATCH($C30,'Building RSF'!$A$3:$A$109,0),FALSE) -> 0 | F30: =HLOOKUP($C$4,'rent dollars FY22'!$A$3:$AL$108,MATCH($C30,'rent dollars FY22'!$A$3:$A$108,0),FALSE) -> 0 | G30: =HLOOKUP($C$4,'Debt Dollars FY22'!$C$5:$AN$110,MATCH($C30,'Debt Dollars FY22'!$A$5:$A$110,0),FALSE) -> 0 | H30: =HLOOKUP($C$4,'CC dollars FY22'!$B$6:$AR$111,MATCH($C30,'CC dollars FY22'!$B$6:$B$111,0),FALSE) -> 0 | I30: 0 | J30: 0 | K30: 0 | M30: =HLOOKUP($C$4,'rent dollars FY23'!$A$3:$AL$108,MATCH($C30,'rent dollars FY23'!$A$3:$A$108,0),FALSE) -> 0 | N30: =HLOOKUP($C$4,'Debt Dollars FY23'!$C$5:$AN$110,MATCH($C30,'Debt Dollars FY23'!$A$5:$A$110,0),FALSE) -> 0 | O30: =HLOOKUP($C$4,'CC dollars FY23'!$B$6:$AR$111,MATCH($C30,'CC dollars FY23'!$B$6:$B$111,0),FALSE) -> 0 | P30: 0 | Q30: 0 | R30: 0
A31: HIDE | C31: 099 - Citizens' Commission on Salaries for Elected Officials | D31: =HLOOKUP($C$4,'Building RSF'!$A$3:$AK$109,MATCH($C31,'Building RSF'!$A$3:$A$109,0),FALSE) -> 0 | F31: =HLOOKUP($C$4,'rent dollars FY22'!$A$3:$AL$108,MATCH($C31,'rent dollars FY22'!$A$3:$A$108,0),FALSE) -> 0 | G31: =HLOOKUP($C$4,'Debt Dollars FY22'!$C$5:$AN$110,MATCH($C31,'Debt Dollars FY22'!$A$5:$A$110,0),FALSE) -> 0 | H31: =HLOOKUP($C$4,'CC dollars FY22'!$B$6:$AR$111,MATCH($C31,'CC dollars FY22'!$B$6:$B$111,0),FALSE) -> 0 | I31: 0 | J31: 0 | K31: 0 | M31: =HLOOKUP($C$4,'rent dollars FY23'!$A$3:$AL$108,MATCH($C31,'rent dollars FY23'!$A$3:$A$108,0),FALSE) -> 0 | N31: =HLOOKUP($C$4,'Debt Dollars FY23'!$C$5:$AN$110,MATCH($C31,'Debt Dollars FY23'!$A$5:$A$110,0),FALSE) -> 0 | O31: =HLOOKUP($C$4,'CC dollars FY23'!$B$6:$AR$111,MATCH($C31,'CC dollars FY23'!$B$6:$B$111,0),FALSE) -> 0 | P31: 0 | Q31: 0 | R31: 0
A32: HIDE | C32: 100 - Office of Attorney General | D32: =HLOOKUP($C$4,'Building RSF'!$A$3:$AK$109,MATCH($C32,'Building RSF'!$A$3:$A$109,0),FALSE) -> 0 | F32: =HLOOKUP($C$4,'rent dollars FY22'!$A$3:$AL$108,MATCH($C32,'rent dollars FY22'!$A$3:$A$108,0),FALSE) -> 0 | G32: =HLOOKUP($C$4,'Debt Dollars FY22'!$C$5:$AN$110,MATCH($C32,'Debt Dollars FY22'!$A$5:$A$110,0),FALSE) -> 0 | H32: =HLOOKUP($C$4,'CC dollars FY22'!$B$6:$AR$111,MATCH($C32,'CC dollars FY22'!$B$6:$B$111,0),FALSE) -> 0 | I32: 0 | J32: 0 | K32: 0 | M32: =HLOOKUP($C$4,'rent dollars FY23'!$A$3:$AL$108,MATCH($C32,'rent dollars FY23'!$A$3:$A$108,0),FALSE) -> 0 | N32: =HLOOKUP($C$4,'Debt Dollars FY23'!$C$5:$AN$110,MATCH($C32,'Debt Dollars FY23'!$A$5:$A$110,0),FALSE) -> 0 | O32: =HLOOKUP($C$4,'CC dollars FY23'!$B$6:$AR$111,MATCH($C32,'CC dollars FY23'!$B$6:$B$111,0),FALSE) -> 0 | P32: 0 | Q32: 0 | R32: 0
A33: HIDE | C33: 101 - Caseload Forecast Council | D33: =HLOOKUP($C$4,'Building RSF'!$A$3:$AK$109,MATCH($C33,'Building RSF'!$A$3:$A$109,0),FALSE) -> 0 | F33: =HLOOKUP($C$4,'rent dollars FY22'!$A$3:$AL$108,MATCH($C33,'rent dollars FY22'!$A$3:$A$108,0),FALSE) -> 0 | G33: =HLOOKUP($C$4,'Debt Dollars FY22'!$C$5:$AN$110,MATCH($C33,'Debt Dollars FY22'!$A$5:$A$110,0),FALSE) -> 0 | H33: =HLOOKUP($C$4,'CC dollars FY22'!$B$6:$AR$111,MATCH($C33,'CC dollars FY22'!$B$6:$B$111,0),FALSE) -> 0 | I33: 0 | J33: 0 | K33: 0 | M33: =HLOOKUP($C$4,'rent dollars FY23'!$A$3:$AL$108,MATCH($C33,'rent dollars FY23'!$A$3:$A$108,0),FALSE) -> 0 | N33: =HLOOKUP($C$4,'Debt Dollars FY23'!$C$5:$AN$110,MATCH($C33,'Debt Dollars FY23'!$A$5:$A$110,0),FALSE) -> 0 | O33: =HLOOKUP($C$4,'CC dollars FY23'!$B$6:$AR$111,MATCH($C33,'CC dollars FY23'!$B$6:$B$111,0),FALSE) -> 0 | P33: 0 | Q33: 0 | R33: 0
A34: HIDE | C34: 102 - Department of Financial Institutions | D34: =HLOOKUP($C$4,'Building RSF'!$A$3:$AK$109,MATCH($C34,'Building RSF'!$A$3:$A$109,0),FALSE) -> 0 | F34: =HLOOKUP($C$4,'rent dollars FY22'!$A$3:$AL$108,MATCH($C34,'rent dollars FY22'!$A$3:$A$108,0),FALSE) -> 0 | G34: =HLOOKUP($C$4,'Debt Dollars FY22'!$C$5:$AN$110,MATCH($C34,'Debt Dollars FY22'!$A$5:$A$110,0),FALSE) -> 0 | H34: =HLOOKUP($C$4,'CC dollars FY22'!$B$6:$AR$111,MATCH($C34,'CC dollars FY22'!$B$6:$B$111,0),FALSE) -> 0 | I34: 0 | J34: 0 | K34: 0 | M34: =HLOOKUP($C$4,'rent dollars FY23'!$A$3:$AL$108,MATCH($C34,'rent dollars FY23'!$A$3:$A$108,0),FALSE) -> 0 | N34: =HLOOKUP($C$4,'Debt Dollars FY23'!$C$5:$AN$110,MATCH($C34,'Debt Dollars FY23'!$A$5:$A$110,0),FALSE) -> 0 | O34: =HLOOKUP($C$4,'CC dollars FY23'!$B$6:$AR$111,MATCH($C34,'CC dollars FY23'!$B$6:$B$111,0),FALSE) -> 0 | P34: 0 | Q34: 0 | R34: 0
A35: HIDE | C35: 103 - Department of Commerce | D35: =HLOOKUP($C$4,'Building RSF'!$A$3:$AK$109,MATCH($C35,'Building RSF'!$A$3:$A$109,0),FALSE) -> 0 | F35: =HLOOKUP($C$4,'rent dollars FY22'!$A$3:$AL$108,MATCH($C35,'rent dollars FY22'!$A$3:$A$108,0),FALSE) -> 0 | G35: =HLOOKUP($C$4,'Debt Dollars FY22'!$C$5:$AN$110,MATCH($C35,'Debt Dollars FY22'!$A$5:$A$110,0),FALSE) -> 0 | H35: =HLOOKUP($C$4,'CC dollars FY22'!$B$6:$AR$111,MATCH($C35,'CC dollars FY22'!$B$6:$B$111,0),FALSE) -> 0 | I35: 0 | J35: 0 | K35: 0 | M35: =HLOOKUP($C$4,'rent dollars FY23'!$A$3:$AL$108,MATCH($C35,'rent dollars FY23'!$A$3:$A$108,0),FALSE) -> 0 | N35: =HLOOKUP($C$4,'Debt Dollars FY23'!$C$5:$AN$110,MATCH($C35,'Debt Dollars FY23'!$A$5:$A$110,0),FALSE) -> 0 | O35: =HLOOKUP($C$4,'CC dollars FY23'!$B$6:$AR$111,MATCH($C35,'CC dollars FY23'!$B$6:$B$111,0),FALSE) -> 0 | P35: 0 | Q35: 0 | R35: 0
A36: HIDE | C36: 104 - Economic and Revenue Forecast Council | D36: =HLOOKUP($C$4,'Building RSF'!$A$3:$AK$109,MATCH($C36,'Building RSF'!$A$3:$A$109,0),FALSE) -> 0 | F36: =HLOOKUP($C$4,'rent dollars FY22'!$A$3:$AL$108,MATCH($C36,'rent dollars FY22'!$A$3:$A$108,0),FALSE) -> 0 | G36: =HLOOKUP($C$4,'Debt Dollars FY22'!$C$5:$AN$110,MATCH($C36,'Debt Dollars FY22'!$A$5:$A$110,0),FALSE) -> 0 | H36: =HLOOKUP($C$4,'CC dollars FY22'!$B$6:$AR$111,MATCH($C36,'CC dollars FY22'!$B$6:$B$111,0),FALSE) -> 0 | I36: 0 | J36: 0 | K36: 0 | M36: =HLOOKUP($C$4,'rent dollars FY23'!$A$3:$AL$108,MATCH($C36,'rent dollars FY23'!$A$3:$A$108,0),FALSE) -> 0 | N36: =HLOOKUP($C$4,'Debt Dollars FY23'!$C$5:$AN$110,MATCH($C36,'Debt Dollars FY23'!$A$5:$A$110,0),FALSE) -> 0 | O36: =HLOOKUP($C$4,'CC dollars FY23'!$B$6:$AR$111,MATCH($C36,'CC dollars FY23'!$B$6:$B$111,0),FALSE) -> 0 | P36: 0 | Q36: 0 | R36: 0
A37: HIDE | C37: 105 - Office of Financial Management | D37: =HLOOKUP($C$4,'Building RSF'!$A$3:$AK$109,MATCH($C37,'Building RSF'!$A$3:$A$109,0),FALSE) -> 0 | F37: =HLOOKUP($C$4,'rent dollars FY22'!$A$3:$AL$108,MATCH($C37,'rent dollars FY22'!$A$3:$A$108,0),FALSE) -> 0 | G37: =HLOOKUP($C$4,'Debt Dollars FY22'!$C$5:$AN$110,MATCH($C37,'Debt Dollars FY22'!$A$5:$A$110,0),FALSE) -> 0 | H37: =HLOOKUP($C$4,'CC dollars FY22'!$B$6:$AR$111,MATCH($C37,'CC dollars FY22'!$B$6:$B$111,0),FALSE) -> 0 | I37: 0 | J37: 0 | K37: 0 | M37: =HLOOKUP($C$4,'rent dollars FY23'!$A$3:$AL$108,MATCH($C37,'rent dollars FY23'!$A$3:$A$108,0),FALSE) -> 0 | N37: =HLOOKUP($C$4,'Debt Dollars FY23'!$C$5:$AN$110,MATCH($C37,'Debt Dollars FY23'!$A$5:$A$110,0),FALSE) -> 0 | O37: =HLOOKUP($C$4,'CC dollars FY23'!$B$6:$AR$111,MATCH($C37,'CC dollars FY23'!$B$6:$B$111,0),FALSE) -> 0 | P37: 0 | Q37: 0 | R37: 0
A38: HIDE | C38: 107 - Washington State Health Care Authority | D38: =HLOOKUP($C$4,'Building RSF'!$A$3:$AK$109,MATCH($C38,'Building RSF'!$A$3:$A$109,0),FALSE) -> 0 | E38: =SUM(E7:E37) -> 0 | F38: =HLOOKUP($C$4,'rent dollars FY22'!$A$3:$AL$108,MATCH($C38,'rent dollars FY22'!$A$3:$A$108,0),FALSE) -> 0 | G38: =HLOOKUP($C$4,'Debt Dollars FY22'!$C$5:$AN$110,MATCH($C38,'Debt Dollars FY22'!$A$5:$A$110,0),FALSE) -> 0 | H38: =HLOOKUP($C$4,'CC dollars FY22'!$B$6:$AR$111,MATCH($C38,'CC dollars FY22'!$B$6:$B$111,0),FALSE) -> 0 | I38: =SUM(F38:H38) -> 0 | J38: 0 | K38: =IFERROR(I38/D38,0) -> 0 | M38: =HLOOKUP($C$4,'rent dollars FY23'!$A$3:$AL$108,MATCH($C38,'rent dollars FY23'!$A$3:$A$108,0),FALSE) -> 0 | N38: =HLOOKUP($C$4,'Debt Dollars FY23'!$C$5:$AN$110,MATCH($C38,'Debt Dollars FY23'!$A$5:$A$110,0),FALSE) -> 0 | O38: =HLOOKUP($C$4,'CC dollars FY23'!$B$6:$AR$111,MATCH($C38,'CC dollars FY23'!$B$6:$B$111,0),FALSE) -> 0 | P38: 0 | Q38: 0 | R38: 0
A39: HIDE | C39: 110 - Office of Administrative Hearings | D39: =HLOOKUP($C$4,'Building RSF'!$A$3:$AK$109,MATCH($C39,'Building RSF'!$A$3:$A$109,0),FALSE) -> 0 | F39: =HLOOKUP($C$4,'rent dollars FY22'!$A$3:$AL$108,MATCH($C39,'rent dollars FY22'!$A$3:$A$108,0),FALSE) -> 0 | G39: =HLOOKUP($C$4,'Debt Dollars FY22'!$C$5:$AN$110,MATCH($C39,'Debt Dollars FY22'!$A$5:$A$110,0),FALSE) -> 0 | H39: =HLOOKUP($C$4,'CC dollars FY22'!$B$6:$AR$111,MATCH($C39,'CC dollars FY22'!$B$6:$B$111,0),FALSE) -> 0 | I39: =SUM(F39:H39) -> 0 | J39: 0 | K39: =IFERROR(I39/D39,0) -> 0 | M39: =HLOOKUP($C$4,'rent dollars FY23'!$A$3:$AL$108,MATCH($C39,'rent dollars FY23'!$A$3:$A$108,0),FALSE) -> 0 | N39: =HLOOKUP($C$4,'Debt Dollars FY23'!$C$5:$AN$110,MATCH($C39,'Debt Dollars FY23'!$A$5:$A$110,0),FALSE) -> 0 | O39: =HLOOKUP($C$4,'CC dollars FY23'!$B$6:$AR$111,MATCH($C39,'CC dollars FY23'!$B$6:$B$111,0),FALSE) -> 0 | P39: =SUM(M39:O39) -> 0 | Q39: 0 | R39: =IFERROR(P39/D39,0) -> 0
A40: HIDE | C40: 116 - State Lottery | D40: =HLOOKUP($C$4,'Building RSF'!$A$3:$AK$109,MATCH($C40,'Building RSF'!$A$3:$A$109,0),FALSE) -> 0 | F40: =HLOOKUP($C$4,'rent dollars FY22'!$A$3:$AL$108,MATCH($C40,'rent dollars FY22'!$A$3:$A$108,0),FALSE) -> 0 | G40: =HLOOKUP($C$4,'Debt Dollars FY22'!$C$5:$AN$110,MATCH($C40,'Debt Dollars FY22'!$A$5:$A$110,0),FALSE) -> 0 | H40: =HLOOKUP($C$4,'CC dollars FY22'!$B$6:$AR$111,MATCH($C40,'CC dollars FY22'!$B$6:$B$111,0),FALSE) -> 0 | I40: 0 | J40: 0 | K40: 0 | M40: =HLOOKUP($C$4,'rent dollars FY23'!$A$3:$AL$108,MATCH($C40,'rent dollars FY23'!$A$3:$A$108,0),FALSE) -> 0 | N40: =HLOOKUP($C$4,'Debt Dollars FY23'!$C$5:$AN$110,MATCH($C40,'Debt Dollars FY23'!$A$5:$A$110,0),FALSE) -> 0 | O40: =HLOOKUP($C$4,'CC dollars FY23'!$B$6:$AR$111,MATCH($C40,'CC dollars FY23'!$B$6:$B$111,0),FALSE) -> 0 | P40: 0 | Q40: 0 | R40: 0
A41: HIDE | C41: 117 - Washington State Gambling Commission | D41: =HLOOKUP($C$4,'Building RSF'!$A$3:$AK$109,MATCH($C41,'Building RSF'!$A$3:$A$109,0),FALSE) -> 0 | F41: =HLOOKUP($C$4,'rent dollars FY22'!$A$3:$AL$108,MATCH($C41,'rent dollars FY22'!$A$3:$A$108,0),FALSE) -> 0 | G41: =HLOOKUP($C$4,'Debt Dollars FY22'!$C$5:$AN$110,MATCH($C41,'Debt Dollars FY22'!$A$5:$A$110,0),FALSE) -> 0 | H41: =HLOOKUP($C$4,'CC dollars FY22'!$B$6:$AR$111,MATCH($C41,'CC dollars FY22'!$B$6:$B$111,0),FALSE) -> 0 | I41: 0 | J41: 0 | K41: 0 | M41: =HLOOKUP($C$4,'rent dollars FY23'!$A$3:$AL$108,MATCH($C41,'rent dollars FY23'!$A$3:$A$108,0),FALSE) -> 0 | N41: =HLOOKUP($C$4,'Debt Dollars FY23'!$C$5:$AN$110,MATCH($C41,'Debt Dollars FY23'!$A$5:$A$110,0),FALSE) -> 0 | O41: =HLOOKUP($C$4,'CC dollars FY23'!$B$6:$AR$111,MATCH($C41,'CC dollars FY23'!$B$6:$B$111,0),FALSE) -> 0 | P41: 0 | Q41: 0 | R41: 0
A42: HIDE | C42: 118 - Commission on Hispanic Affairs | D42: =HLOOKUP($C$4,'Building RSF'!$A$3:$AK$109,MATCH($C42,'Building RSF'!$A$3:$A$109,0),FALSE) -> 0 | F42: =HLOOKUP($C$4,'rent dollars FY22'!$A$3:$AL$108,MATCH($C42,'rent dollars FY22'!$A$3:$A$108,0),FALSE) -> 0 | G42: =HLOOKUP($C$4,'Debt Dollars FY22'!$C$5:$AN$110,MATCH($C42,'Debt Dollars FY22'!$A$5:$A$110,0),FALSE) -> 0 | H42: =HLOOKUP($C$4,'CC dollars FY22'!$B$6:$AR$111,MATCH($C42,'CC dollars FY22'!$B$6:$B$111,0),FALSE) -> 0 | I42: 0 | J42: 0 | K42: 0 | M42: =HLOOKUP($C$4,'rent dollars FY23'!$A$3:$AL$108,MATCH($C42,'rent dollars FY23'!$A$3:$A$108,0),FALSE) -> 0 | N42: =HLOOKUP($C$4,'Debt Dollars FY23'!$C$5:$AN$110,MATCH($C42,'Debt Dollars FY23'!$A$5:$A$110,0),FALSE) -> 0 | O42: =HLOOKUP($C$4,'CC dollars FY23'!$B$6:$AR$111,MATCH($C42,'CC dollars FY23'!$B$6:$B$111,0),FALSE) -> 0 | P42: 0 | Q42: 0 | R42: 0
A43: HIDE | C43: 119 - Commission on African-American Affairs | D43: =HLOOKUP($C$4,'Building RSF'!$A$3:$AK$109,MATCH($C43,'Building RSF'!$A$3:$A$109,0),FALSE) -> 0 | F43: =HLOOKUP($C$4,'rent dollars FY22'!$A$3:$AL$108,MATCH($C43,'rent dollars FY22'!$A$3:$A$108,0),FALSE) -> 0 | G43: =HLOOKUP($C$4,'Debt Dollars FY22'!$C$5:$AN$110,MATCH($C43,'Debt Dollars FY22'!$A$5:$A$110,0),FALSE) -> 0 | H43: =HLOOKUP($C$4,'CC dollars FY22'!$B$6:$AR$111,MATCH($C43,'CC dollars FY22'!$B$6:$B$111,0),FALSE) -> 0 | I43: 0 | J43: 0 | K43: 0 | M43: =HLOOKUP($C$4,'rent dollars FY23'!$A$3:$AL$108,MATCH($C43,'rent dollars FY23'!$A$3:$A$108,0),FALSE) -> 0 | N43: =HLOOKUP($C$4,'Debt Dollars FY23'!$C$5:$AN$110,MATCH($C43,'Debt Dollars FY23'!$A$5:$A$110,0),FALSE) -> 0 | O43: =HLOOKUP($C$4,'CC dollars FY23'!$B$6:$AR$111,MATCH($C43,'CC dollars FY23'!$B$6:$B$111,0),FALSE) -> 0 | P43: 0 | Q43: 0 | R43: 0
A44: HIDE | C44: 120 - Human Rights Commission | D44: =HLOOKUP($C$4,'Building RSF'!$A$3:$AK$109,MATCH($C44,'Building RSF'!$A$3:$A$109,0),FALSE) -> 0 | F44: =HLOOKUP($C$4,'rent dollars FY22'!$A$3:$AL$108,MATCH($C44,'rent dollars FY22'!$A$3:$A$108,0),FALSE) -> 0 | G44: =HLOOKUP($C$4,'Debt Dollars FY22'!$C$5:$AN$110,MATCH($C44,'Debt Dollars FY22'!$A$5:$A$110,0),FALSE) -> 0 | H44: =HLOOKUP($C$4,'CC dollars FY22'!$B$6:$AR$111,MATCH($C44,'CC dollars FY22'!$B$6:$B$111,0),FALSE) -> 0 | I44: 0 | J44: 0 | K44: 0 | M44: =HLOOKUP($C$4,'rent dollars FY23'!$A$3:$AL$108,MATCH($C44,'rent dollars FY23'!$A$3:$A$108,0),FALSE) -> 0 | N44: =HLOOKUP($C$4,'Debt Dollars FY23'!$C$5:$AN$110,MATCH($C44,'Debt Dollars FY23'!$A$5:$A$110,0),FALSE) -> 0 | O44: =HLOOKUP($C$4,'CC dollars FY23'!$B$6:$AR$111,MATCH($C44,'CC dollars FY23'!$B$6:$B$111,0),FALSE) -> 0 | P44: 0 | Q44: 0 | R44: 0
A45: HIDE | C45: 124 - Department of Retirement Systems | D45: =HLOOKUP($C$4,'Building RSF'!$A$3:$AK$109,MATCH($C45,'Building RSF'!$A$3:$A$109,0),FALSE) -> 0 | F45: =HLOOKUP($C$4,'rent dollars FY22'!$A$3:$AL$108,MATCH($C45,'rent dollars FY22'!$A$3:$A$108,0),FALSE) -> 0 | G45: =HLOOKUP($C$4,'Debt Dollars FY22'!$C$5:$AN$110,MATCH($C45,'Debt Dollars FY22'!$A$5:$A$110,0),FALSE) -> 0 | H45: =HLOOKUP($C$4,'CC dollars FY22'!$B$6:$AR$111,MATCH($C45,'CC dollars FY22'!$B$6:$B$111,0),FALSE) -> 0 | I45: 0 | J45: 0 | K45: 0 | M45: =HLOOKUP($C$4,'rent dollars FY23'!$A$3:$AL$108,MATCH($C45,'rent dollars FY23'!$A$3:$A$108,0),FALSE) -> 0 | N45: =HLOOKUP($C$4,'Debt Dollars FY23'!$C$5:$AN$110,MATCH($C45,'Debt Dollars FY23'!$A$5:$A$110,0),FALSE) -> 0 | O45: =HLOOKUP($C$4,'CC dollars FY23'!$B$6:$AR$111,MATCH($C45,'CC dollars FY23'!$B$6:$B$111,0),FALSE) -> 0 | P45: 0 | Q45: 0 | R45: 0
A46: HIDE | C46: 126 - State Investment Board | D46: =HLOOKUP($C$4,'Building RSF'!$A$3:$AK$109,MATCH($C46,'Building RSF'!$A$3:$A$109,0),FALSE) -> 0 | F46: =HLOOKUP($C$4,'rent dollars FY22'!$A$3:$AL$108,MATCH($C46,'rent dollars FY22'!$A$3:$A$108,0),FALSE) -> 0 | G46: =HLOOKUP($C$4,'Debt Dollars FY22'!$C$5:$AN$110,MATCH($C46,'Debt Dollars FY22'!$A$5:$A$110,0),FALSE) -> 0 | H46: =HLOOKUP($C$4,'CC dollars FY22'!$B$6:$AR$111,MATCH($C46,'CC dollars FY22'!$B$6:$B$111,0),FALSE) -> 0 | I46: 0 | J46: 0 | K46: 0 | M46: =HLOOKUP($C$4,'rent dollars FY23'!$A$3:$AL$108,MATCH($C46,'rent dollars FY23'!$A$3:$A$108,0),FALSE) -> 0 | N46: =HLOOKUP($C$4,'Debt Dollars FY23'!$C$5:$AN$110,MATCH($C46,'Debt Dollars FY23'!$A$5:$A$110,0),FALSE) -> 0 | O46: =HLOOKUP($C$4,'CC dollars FY23'!$B$6:$AR$111,MATCH($C46,'CC dollars FY23'!$B$6:$B$111,0),FALSE) -> 0 | P46: 0 | Q46: 0 | R46: 0
A47: HIDE | C47: 140 - Department of Revenue | D47: =HLOOKUP($C$4,'Building RSF'!$A$3:$AK$109,MATCH($C47,'Building RSF'!$A$3:$A$109,0),FALSE) -> 0 | F47: =HLOOKUP($C$4,'rent dollars FY22'!$A$3:$AL$108,MATCH($C47,'rent dollars FY22'!$A$3:$A$108,0),FALSE) -> 0 | G47: =HLOOKUP($C$4,'Debt Dollars FY22'!$C$5:$AN$110,MATCH($C47,'Debt Dollars FY22'!$A$5:$A$110,0),FALSE) -> 0 | H47: =HLOOKUP($C$4,'CC dollars FY22'!$B$6:$AR$111,MATCH($C47,'CC dollars FY22'!$B$6:$B$111,0),FALSE) -> 0 | I47: 0 | J47: 0 | K47: 0 | M47: =HLOOKUP($C$4,'rent dollars FY23'!$A$3:$AL$108,MATCH($C47,'rent dollars FY23'!$A$3:$A$108,0),FALSE) -> 0 | N47: =HLOOKUP($C$4,'Debt Dollars FY23'!$C$5:$AN$110,MATCH($C47,'Debt Dollars FY23'!$A$5:$A$110,0),FALSE) -> 0 | O47: =HLOOKUP($C$4,'CC dollars FY23'!$B$6:$AR$111,MATCH($C47,'CC dollars FY23'!$B$6:$B$111,0),FALSE) -> 0 | P47: 0 | Q47: 0 | R47: 0
A48: HIDE | C48: 142 - Board of Tax Appeals | D48: =HLOOKUP($C$4,'Building RSF'!$A$3:$AK$109,MATCH($C48,'Building RSF'!$A$3:$A$109,0),FALSE) -> 0 | F48: =HLOOKUP($C$4,'rent dollars FY22'!$A$3:$AL$108,MATCH($C48,'rent dollars FY22'!$A$3:$A$108,0),FALSE) -> 0 | G48: =HLOOKUP($C$4,'Debt Dollars FY22'!$C$5:$AN$110,MATCH($C48,'Debt Dollars FY22'!$A$5:$A$110,0),FALSE) -> 0 | H48: =HLOOKUP($C$4,'CC dollars FY22'!$B$6:$AR$111,MATCH($C48,'CC dollars FY22'!$B$6:$B$111,0),FALSE) -> 0 | I48: 0 | J48: 0 | K48: 0 | M48: =HLOOKUP($C$4,'rent dollars FY23'!$A$3:$AL$108,MATCH($C48,'rent dollars FY23'!$A$3:$A$108,0),FALSE) -> 0 | N48: =HLOOKUP($C$4,'Debt Dollars FY23'!$C$5:$AN$110,MATCH($C48,'Debt Dollars FY23'!$A$5:$A$110,0),FALSE) -> 0 | O48: =HLOOKUP($C$4,'CC dollars FY23'!$B$6:$AR$111,MATCH($C48,'CC dollars FY23'!$B$6:$B$111,0),FALSE) -> 0 | P48: 0 | Q48: 0 | R48: 0
A49: HIDE | C49: 147 - Office of Minority and Women's Business Enterprises | D49: =HLOOKUP($C$4,'Building RSF'!$A$3:$AK$109,MATCH($C49,'Building RSF'!$A$3:$A$109,0),FALSE) -> 0 | F49: =HLOOKUP($C$4,'rent dollars FY22'!$A$3:$AL$108,MATCH($C49,'rent dollars FY22'!$A$3:$A$108,0),FALSE) -> 0 | G49: =HLOOKUP($C$4,'Debt Dollars FY22'!$C$5:$AN$110,MATCH($C49,'Debt Dollars FY22'!$A$5:$A$110,0),FALSE) -> 0 | H49: =HLOOKUP($C$4,'CC dollars FY22'!$B$6:$AR$111,MATCH($C49,'CC dollars FY22'!$B$6:$B$111,0),FALSE) -> 0 | I49: 0 | J49: 0 | K49: 0 | M49: =HLOOKUP($C$4,'rent dollars FY23'!$A$3:$AL$108,MATCH($C49,'rent dollars FY23'!$A$3:$A$108,0),FALSE) -> 0 | N49: =HLOOKUP($C$4,'Debt Dollars FY23'!$C$5:$AN$110,MATCH($C49,'Debt Dollars FY23'!$A$5:$A$110,0),FALSE) -> 0 | O49: =HLOOKUP($C$4,'CC dollars FY23'!$B$6:$AR$111,MATCH($C49,'CC dollars FY23'!$B$6:$B$111,0),FALSE) -> 0 | P49: 0 | Q49: 0 | R49: 0
A50: HIDE | C50: 160 - Office of Insurance Commissioner | D50: =HLOOKUP($C$4,'Building RSF'!$A$3:$AK$109,MATCH($C50,'Building RSF'!$A$3:$A$109,0),FALSE) -> 0 | F50: =HLOOKUP($C$4,'rent dollars FY22'!$A$3:$AL$108,MATCH($C50,'rent dollars FY22'!$A$3:$A$108,0),FALSE) -> 0 | G50: =HLOOKUP($C$4,'Debt Dollars FY22'!$C$5:$AN$110,MATCH($C50,'Debt Dollars FY22'!$A$5:$A$110,0),FALSE) -> 0 | H50: =HLOOKUP($C$4,'CC dollars FY22'!$B$6:$AR$111,MATCH($C50,'CC dollars FY22'!$B$6:$B$111,0),FALSE) -> 0 | I50: 0 | J50: 0 | K50: 0 | M50: =HLOOKUP($C$4,'rent dollars FY23'!$A$3:$AL$108,MATCH($C50,'rent dollars FY23'!$A$3:$A$108,0),FALSE) -> 0 | N50: =HLOOKUP($C$4,'Debt Dollars FY23'!$C$5:$AN$110,MATCH($C50,'Debt Dollars FY23'!$A$5:$A$110,0),FALSE) -> 0 | O50: =HLOOKUP($C$4,'CC dollars FY23'!$B$6:$AR$111,MATCH($C50,'CC dollars FY23'!$B$6:$B$111,0),FALSE) -> 0 | P50: 0 | Q50: 0 | R50: 0
A51: HIDE | C51: 163 - Consolidated Technology Services | D51: =HLOOKUP($C$4,'Building RSF'!$A$3:$AK$109,MATCH($C51,'Building RSF'!$A$3:$A$109,0),FALSE) -> 0 | F51: =HLOOKUP($C$4,'rent dollars FY22'!$A$3:$AL$108,MATCH($C51,'rent dollars FY22'!$A$3:$A$108,0),FALSE) -> 0 | G51: =HLOOKUP($C$4,'Debt Dollars FY22'!$C$5:$AN$110,MATCH($C51,'Debt Dollars FY22'!$A$5:$A$110,0),FALSE) -> 0 | H51: =HLOOKUP($C$4,'CC dollars FY22'!$B$6:$AR$111,MATCH($C51,'CC dollars FY22'!$B$6:$B$111,0),FALSE) -> 0 | I51: 0 | J51: 0 | K51: 0 | M51: =HLOOKUP($C$4,'rent dollars FY23'!$A$3:$AL$108,MATCH($C51,'rent dollars FY23'!$A$3:$A$108,0),FALSE) -> 0 | N51: =HLOOKUP($C$4,'Debt Dollars FY23'!$C$5:$AN$110,MATCH($C51,'Debt Dollars FY23'!$A$5:$A$110,0),FALSE) -> 0 | O51: =HLOOKUP($C$4,'CC dollars FY23'!$B$6:$AR$111,MATCH($C51,'CC dollars FY23'!$B$6:$B$111,0),FALSE) -> 0 | P51: 0 | Q51: 0 | R51: 0
A52: HIDE | C52: 165 - Board of Accountancy | D52: =HLOOKUP($C$4,'Building RSF'!$A$3:$AK$109,MATCH($C52,'Building RSF'!$A$3:$A$109,0),FALSE) -> 0 | F52: =HLOOKUP($C$4,'rent dollars FY22'!$A$3:$AL$108,MATCH($C52,'rent dollars FY22'!$A$3:$A$108,0),FALSE) -> 0 | G52: =HLOOKUP($C$4,'Debt Dollars FY22'!$C$5:$AN$110,MATCH($C52,'Debt Dollars FY22'!$A$5:$A$110,0),FALSE) -> 0 | H52: =HLOOKUP($C$4,'CC dollars FY22'!$B$6:$AR$111,MATCH($C52,'CC dollars FY22'!$B$6:$B$111,0),FALSE) -> 0 | I52: 0 | J52: 0 | K52: 0 | M52: =HLOOKUP($C$4,'rent dollars FY23'!$A$3:$AL$108,MATCH($C52,'rent dollars FY23'!$A$3:$A$108,0),FALSE) -> 0 | N52: =HLOOKUP($C$4,'Debt Dollars FY23'!$C$5:$AN$110,MATCH($C52,'Debt Dollars FY23'!$A$5:$A$110,0),FALSE) -> 0 | O52: =HLOOKUP($C$4,'CC dollars FY23'!$B$6:$AR$111,MATCH($C52,'CC dollars FY23'!$B$6:$B$111,0),FALSE) -> 0 | P52: 0 | Q52: 0 | R52: 0
A53: HIDE | C53: 166 - Brd Prof Eng Land Surveyors | D53: =HLOOKUP($C$4,'Building RSF'!$A$3:$AK$109,MATCH($C53,'Building RSF'!$A$3:$A$109,0),FALSE) -> 0 | F53: =HLOOKUP($C$4,'rent dollars FY22'!$A$3:$AL$108,MATCH($C53,'rent dollars FY22'!$A$3:$A$108,0),FALSE) -> 0 | G53: =HLOOKUP($C$4,'Debt Dollars FY22'!$C$5:$AN$110,MATCH($C53,'Debt Dollars FY22'!$A$5:$A$110,0),FALSE) -> 0 | H53: =HLOOKUP($C$4,'CC dollars FY22'!$B$6:$AR$111,MATCH($C53,'CC dollars FY22'!$B$6:$B$111,0),FALSE) -> 0 | I53: 0 | J53: 0 | K53: 0 | M53: =HLOOKUP($C$4,'rent dollars FY23'!$A$3:$AL$108,MATCH($C53,'rent dollars FY23'!$A$3:$A$108,0),FALSE) -> 0 | N53: =HLOOKUP($C$4,'Debt Dollars FY23'!$C$5:$AN$110,MATCH($C53,'Debt Dollars FY23'!$A$5:$A$110,0),FALSE) -> 0 | O53: =HLOOKUP($C$4,'CC dollars FY23'!$B$6:$AR$111,MATCH($C53,'CC dollars FY23'!$B$6:$B$111,0),FALSE) -> 0 | P53: 0 | Q53: 0 | R53: 0
A54: HIDE | C54: 167 - Forensic Investigations Council | D54: =HLOOKUP($C$4,'Building RSF'!$A$3:$AK$109,MATCH($C54,'Building RSF'!$A$3:$A$109,0),FALSE) -> 0 | F54: =HLOOKUP($C$4,'rent dollars FY22'!$A$3:$AL$108,MATCH($C54,'rent dollars FY22'!$A$3:$A$108,0),FALSE) -> 0 | G54: =HLOOKUP($C$4,'Debt Dollars FY22'!$C$5:$AN$110,MATCH($C54,'Debt Dollars FY22'!$A$5:$A$110,0),FALSE) -> 0 | H54: =HLOOKUP($C$4,'CC dollars FY22'!$B$6:$AR$111,MATCH($C54,'CC dollars FY22'!$B$6:$B$111,0),FALSE) -> 0 | I54: 0 | J54: 0 | K54: 0 | M54: =HLOOKUP($C$4,'rent dollars FY23'!$A$3:$AL$108,MATCH($C54,'rent dollars FY23'!$A$3:$A$108,0),FALSE) -> 0 | N54: =HLOOKUP($C$4,'Debt Dollars FY23'!$C$5:$AN$110,MATCH($C54,'Debt Dollars FY23'!$A$5:$A$110,0),FALSE) -> 0 | O54: =HLOOKUP($C$4,'CC dollars FY23'!$B$6:$AR$111,MATCH($C54,'CC dollars FY23'!$B$6:$B$111,0),FALSE) -> 0 | P54: 0 | Q54: 0 | R54: 0
A55: HIDE | C55: 179 - Department of Enterprise Services | D55: =HLOOKUP($C$4,'Building RSF'!$A$3:$AK$109,MATCH($C55,'Building RSF'!$A$3:$A$109,0),FALSE) -> 0 | F55: =HLOOKUP($C$4,'rent dollars FY22'!$A$3:$AL$108,MATCH($C55,'rent dollars FY22'!$A$3:$A$108,0),FALSE) -> 0 | G55: =HLOOKUP($C$4,'Debt Dollars FY22'!$C$5:$AN$110,MATCH($C55,'Debt Dollars FY22'!$A$5:$A$110,0),FALSE) -> 0 | H55: =HLOOKUP($C$4,'CC dollars FY22'!$B$6:$AR$111,MATCH($C55,'CC dollars FY22'!$B$6:$B$111,0),FALSE) -> 0 | I55: 0 | J55: 0 | K55: 0 | M55: =HLOOKUP($C$4,'rent dollars FY23'!$A$3:$AL$108,MATCH($C55,'rent dollars FY23'!$A$3:$A$108,0),FALSE) -> 0 | N55: =HLOOKUP($C$4,'Debt Dollars FY23'!$C$5:$AN$110,MATCH($C55,'Debt Dollars FY23'!$A$5:$A$110,0),FALSE) -> 0 | O55: =HLOOKUP($C$4,'CC dollars FY23'!$B$6:$AR$111,MATCH($C55,'CC dollars FY23'!$B$6:$B$111,0),FALSE) -> 0 | P55: 0 | Q55: 0 | R55: 0
A56: HIDE | C56: 185 - Horse Racing Commission | D56: =HLOOKUP($C$4,'Building RSF'!$A$3:$AK$109,MATCH($C56,'Building RSF'!$A$3:$A$109,0),FALSE) -> 0 | F56: =HLOOKUP($C$4,'rent dollars FY22'!$A$3:$AL$108,MATCH($C56,'rent dollars FY22'!$A$3:$A$108,0),FALSE) -> 0 | G56: =HLOOKUP($C$4,'Debt Dollars FY22'!$C$5:$AN$110,MATCH($C56,'Debt Dollars FY22'!$A$5:$A$110,0),FALSE) -> 0 | H56: =HLOOKUP($C$4,'CC dollars FY22'!$B$6:$AR$111,MATCH($C56,'CC dollars FY22'!$B$6:$B$111,0),FALSE) -> 0 | I56: 0 | J56: 0 | K56: 0 | M56: =HLOOKUP($C$4,'rent dollars FY23'!$A$3:$AL$108,MATCH($C56,'rent dollars FY23'!$A$3:$A$108,0),FALSE) -> 0 | N56: =HLOOKUP($C$4,'Debt Dollars FY23'!$C$5:$AN$110,MATCH($C56,'Debt Dollars FY23'!$A$5:$A$110,0),FALSE) -> 0 | O56: =HLOOKUP($C$4,'CC dollars FY23'!$B$6:$AR$111,MATCH($C56,'CC dollars FY23'!$B$6:$B$111,0),FALSE) -> 0 | P56: 0 | Q56: 0 | R56: 0
A57: HIDE | C57: 190 - Board of Industrial Insurance Appeals | D57: =HLOOKUP($C$4,'Building RSF'!$A$3:$AK$109,MATCH($C57,'Building RSF'!$A$3:$A$109,0),FALSE) -> 0 | F57: =HLOOKUP($C$4,'rent dollars FY22'!$A$3:$AL$108,MATCH($C57,'rent dollars FY22'!$A$3:$A$108,0),FALSE) -> 0 | G57: =HLOOKUP($C$4,'Debt Dollars FY22'!$C$5:$AN$110,MATCH($C57,'Debt Dollars FY22'!$A$5:$A$110,0),FALSE) -> 0 | H57: =HLOOKUP($C$4,'CC dollars FY22'!$B$6:$AR$111,MATCH($C57,'CC dollars FY22'!$B$6:$B$111,0),FALSE) -> 0 | I57: 0 | J57: 0 | K57: 0 | M57: =HLOOKUP($C$4,'rent dollars FY23'!$A$3:$AL$108,MATCH($C57,'rent dollars FY23'!$A$3:$A$108,0),FALSE) -> 0 | N57: =HLOOKUP($C$4,'Debt Dollars FY23'!$C$5:$AN$110,MATCH($C57,'Debt Dollars FY23'!$A$5:$A$110,0),FALSE) -> 0 | O57: =HLOOKUP($C$4,'CC dollars FY23'!$B$6:$AR$111,MATCH($C57,'CC dollars FY23'!$B$6:$B$111,0),FALSE) -> 0 | P57: 0 | Q57: 0 | R57: 0
A58: HIDE | C58: 195 - Liquor Control Board | D58: =HLOOKUP($C$4,'Building RSF'!$A$3:$AK$109,MATCH($C58,'Building RSF'!$A$3:$A$109,0),FALSE) -> 0 | F58: =HLOOKUP($C$4,'rent dollars FY22'!$A$3:$AL$108,MATCH($C58,'rent dollars FY22'!$A$3:$A$108,0),FALSE) -> 0 | G58: =HLOOKUP($C$4,'Debt Dollars FY22'!$C$5:$AN$110,MATCH($C58,'Debt Dollars FY22'!$A$5:$A$110,0),FALSE) -> 0 | H58: =HLOOKUP($C$4,'CC dollars FY22'!$B$6:$AR$111,MATCH($C58,'CC dollars FY22'!$B$6:$B$111,0),FALSE) -> 0 | I58: 0 | J58: 0 | K58: 0 | M58: =HLOOKUP($C$4,'rent dollars FY23'!$A$3:$AL$108,MATCH($C58,'rent dollars FY23'!$A$3:$A$108,0),FALSE) -> 0 | N58: =HLOOKUP($C$4,'Debt Dollars FY23'!$C$5:$AN$110,MATCH($C58,'Debt Dollars FY23'!$A$5:$A$110,0),FALSE) -> 0 | O58: =HLOOKUP($C$4,'CC dollars FY23'!$B$6:$AR$111,MATCH($C58,'CC dollars FY23'!$B$6:$B$111,0),FALSE) -> 0 | P58: 0 | Q58: 0 | R58: 0
A59: HIDE | C59: 205 - Board of Pilotage Commissioners | D59: =HLOOKUP($C$4,'Building RSF'!$A$3:$AK$109,MATCH($C59,'Building RSF'!$A$3:$A$109,0),FALSE) -> 0 | F59: =HLOOKUP($C$4,'rent dollars FY22'!$A$3:$AL$108,MATCH($C59,'rent dollars FY22'!$A$3:$A$108,0),FALSE) -> 0 | G59: =HLOOKUP($C$4,'Debt Dollars FY22'!$C$5:$AN$110,MATCH($C59,'Debt Dollars FY22'!$A$5:$A$110,0),FALSE) -> 0 | H59: =HLOOKUP($C$4,'CC dollars FY22'!$B$6:$AR$111,MATCH($C59,'CC dollars FY22'!$B$6:$B$111,0),FALSE) -> 0 | I59: 0 | J59: 0 | K59: 0 | M59: =HLOOKUP($C$4,'rent dollars FY23'!$A$3:$AL$108,MATCH($C59,'rent dollars FY23'!$A$3:$A$108,0),FALSE) -> 0 | N59: =HLOOKUP($C$4,'Debt Dollars FY23'!$C$5:$AN$110,MATCH($C59,'Debt Dollars FY23'!$A$5:$A$110,0),FALSE) -> 0 | O59: =HLOOKUP($C$4,'CC dollars FY23'!$B$6:$AR$111,MATCH($C59,'CC dollars FY23'!$B$6:$B$111,0),FALSE) -> 0 | P59: 0 | Q59: 0 | R59: 0
A60: HIDE | C60: 215 - Utilities and Transportation Commission | D60: =HLOOKUP($C$4,'Building RSF'!$A$3:$AK$109,MATCH($C60,'Building RSF'!$A$3:$A$109,0),FALSE) -> 0 | F60: =HLOOKUP($C$4,'rent dollars FY22'!$A$3:$AL$108,MATCH($C60,'rent dollars FY22'!$A$3:$A$108,0),FALSE) -> 0 | G60: =HLOOKUP($C$4,'Debt Dollars FY22'!$C$5:$AN$110,MATCH($C60,'Debt Dollars FY22'!$A$5:$A$110,0),FALSE) -> 0 | H60: =HLOOKUP($C$4,'CC dollars FY22'!$B$6:$AR$111,MATCH($C60,'CC dollars FY22'!$B$6:$B$111,0),FALSE) -> 0 | I60: 0 | J60: 0 | K60: 0 | M60: =HLOOKUP($C$4,'rent dollars FY23'!$A$3:$AL$108,MATCH($C60,'rent dollars FY23'!$A$3:$A$108,0),FALSE) -> 0 | N60: =HLOOKUP($C$4,'Debt Dollars FY23'!$C$5:$AN$110,MATCH($C60,'Debt Dollars FY23'!$A$5:$A$110,0),FALSE) -> 0 | O60: =HLOOKUP($C$4,'CC dollars FY23'!$B$6:$AR$111,MATCH($C60,'CC dollars FY23'!$B$6:$B$111,0),FALSE) -> 0 | P60: 0 | Q60: 0 | R60: 0
A61: HIDE | C61: 220 - Board for Volunteer Firefighters and Reserve Officers | D61: =HLOOKUP($C$4,'Building RSF'!$A$3:$AK$109,MATCH($C61,'Building RSF'!$A$3:$A$109,0),FALSE) -> 0 | F61: =HLOOKUP($C$4,'rent dollars FY22'!$A$3:$AL$108,MATCH($C61,'rent dollars FY22'!$A$3:$A$108,0),FALSE) -> 0 | G61: =HLOOKUP($C$4,'Debt Dollars FY22'!$C$5:$AN$110,MATCH($C61,'Debt Dollars FY22'!$A$5:$A$110,0),FALSE) -> 0 | H61: =HLOOKUP($C$4,'CC dollars FY22'!$B$6:$AR$111,MATCH($C61,'CC dollars FY22'!$B$6:$B$111,0),FALSE) -> 0 | I61: 0 | J61: 0 | K61: 0 | M61: =HLOOKUP($C$4,'rent dollars FY23'!$A$3:$AL$108,MATCH($C61,'rent dollars FY23'!$A$3:$A$108,0),FALSE) -> 0 | N61: =HLOOKUP($C$4,'Debt Dollars FY23'!$C$5:$AN$110,MATCH($C61,'Debt Dollars FY23'!$A$5:$A$110,0),FALSE) -> 0 | O61: =HLOOKUP($C$4,'CC dollars FY23'!$B$6:$AR$111,MATCH($C61,'CC dollars FY23'!$B$6:$B$111,0),FALSE) -> 0 | P61: 0 | Q61: 0 | R61: 0
A62: HIDE | C62: 225 - Washington State Patrol | D62: =HLOOKUP($C$4,'Building RSF'!$A$3:$AK$109,MATCH($C62,'Building RSF'!$A$3:$A$109,0),FALSE) -> 0 | F62: =HLOOKUP($C$4,'rent dollars FY22'!$A$3:$AL$108,MATCH($C62,'rent dollars FY22'!$A$3:$A$108,0),FALSE) -> 0 | G62: =HLOOKUP($C$4,'Debt Dollars FY22'!$C$5:$AN$110,MATCH($C62,'Debt Dollars FY22'!$A$5:$A$110,0),FALSE) -> 0 | H62: =HLOOKUP($C$4,'CC dollars FY22'!$B$6:$AR$111,MATCH($C62,'CC dollars FY22'!$B$6:$B$111,0),FALSE) -> 0 | I62: 0 | J62: 0 | K62: 0 | M62: =HLOOKUP($C$4,'rent dollars FY23'!$A$3:$AL$108,MATCH($C62,'rent dollars FY23'!$A$3:$A$108,0),FALSE) -> 0 | N62: =HLOOKUP($C$4,'Debt Dollars FY23'!$C$5:$AN$110,MATCH($C62,'Debt Dollars FY23'!$A$5:$A$110,0),FALSE) -> 0 | O62: =HLOOKUP($C$4,'CC dollars FY23'!$B$6:$AR$111,MATCH($C62,'CC dollars FY23'!$B$6:$B$111,0),FALSE) -> 0 | P62: 0 | Q62: 0 | R62: 0
A63: HIDE | C63: 227 - Criminal Justice Training Commission | D63: =HLOOKUP($C$4,'Building RSF'!$A$3:$AK$109,MATCH($C63,'Building RSF'!$A$3:$A$109,0),FALSE) -> 0 | F63: =HLOOKUP($C$4,'rent dollars FY22'!$A$3:$AL$108,MATCH($C63,'rent dollars FY22'!$A$3:$A$108,0),FALSE) -> 0 | G63: =HLOOKUP($C$4,'Debt Dollars FY22'!$C$5:$AN$110,MATCH($C63,'Debt Dollars FY22'!$A$5:$A$110,0),FALSE) -> 0 | H63: =HLOOKUP($C$4,'CC dollars FY22'!$B$6:$AR$111,MATCH($C63,'CC dollars FY22'!$B$6:$B$111,0),FALSE) -> 0 | I63: 0 | J63: 0 | K63: 0 | M63: =HLOOKUP($C$4,'rent dollars FY23'!$A$3:$AL$108,MATCH($C63,'rent dollars FY23'!$A$3:$A$108,0),FALSE) -> 0 | N63: =HLOOKUP($C$4,'Debt Dollars FY23'!$C$5:$AN$110,MATCH($C63,'Debt Dollars FY23'!$A$5:$A$110,0),FALSE) -> 0 | O63: =HLOOKUP($C$4,'CC dollars FY23'!$B$6:$AR$111,MATCH($C63,'CC dollars FY23'!$B$6:$B$111,0),FALSE) -> 0 | P63: 0 | Q63: 0 | R63: 0
A64: HIDE | C64: 228 - Traffic Safety Commission | D64: =HLOOKUP($C$4,'Building RSF'!$A$3:$AK$109,MATCH($C64,'Building RSF'!$A$3:$A$109,0),FALSE) -> 0 | F64: =HLOOKUP($C$4,'rent dollars FY22'!$A$3:$AL$108,MATCH($C64,'rent dollars FY22'!$A$3:$A$108,0),FALSE) -> 0 | G64: =HLOOKUP($C$4,'Debt Dollars FY22'!$C$5:$AN$110,MATCH($C64,'Debt Dollars FY22'!$A$5:$A$110,0),FALSE) -> 0 | H64: =HLOOKUP($C$4,'CC dollars FY22'!$B$6:$AR$111,MATCH($C64,'CC dollars FY22'!$B$6:$B$111,0),FALSE) -> 0 | I64: 0 | J64: 0 | K64: 0 | M64: =HLOOKUP($C$4,'rent dollars FY23'!$A$3:$AL$108,MATCH($C64,'rent dollars FY23'!$A$3:$A$108,0),FALSE) -> 0 | N64: =HLOOKUP($C$4,'Debt Dollars FY23'!$C$5:$AN$110,MATCH($C64,'Debt Dollars FY23'!$A$5:$A$110,0),FALSE) -> 0 | O64: =HLOOKUP($C$4,'CC dollars FY23'!$B$6:$AR$111,MATCH($C64,'CC dollars FY23'!$B$6:$B$111,0),FALSE) -> 0 | P64: 0 | Q64: 0 | R64: 0
A65: HIDE | C65: 235 - Department of Labor and Industries | D65: =HLOOKUP($C$4,'Building RSF'!$A$3:$AK$109,MATCH($C65,'Building RSF'!$A$3:$A$109,0),FALSE) -> 0 | F65: =HLOOKUP($C$4,'rent dollars FY22'!$A$3:$AL$108,MATCH($C65,'rent dollars FY22'!$A$3:$A$108,0),FALSE) -> 0 | G65: =HLOOKUP($C$4,'Debt Dollars FY22'!$C$5:$AN$110,MATCH($C65,'Debt Dollars FY22'!$A$5:$A$110,0),FALSE) -> 0 | H65: =HLOOKUP($C$4,'CC dollars FY22'!$B$6:$AR$111,MATCH($C65,'CC dollars FY22'!$B$6:$B$111,0),FALSE) -> 0 | I65: 0 | J65: 0 | K65: 0 | M65: =HLOOKUP($C$4,'rent dollars FY23'!$A$3:$AL$108,MATCH($C65,'rent dollars FY23'!$A$3:$A$108,0),FALSE) -> 0 | N65: =HLOOKUP($C$4,'Debt Dollars FY23'!$C$5:$AN$110,MATCH($C65,'Debt Dollars FY23'!$A$5:$A$110,0),FALSE) -> 0 | O65: =HLOOKUP($C$4,'CC dollars FY23'!$B$6:$AR$111,MATCH($C65,'CC dollars FY23'!$B$6:$B$111,0),FALSE) -> 0 | P65: 0 | Q65: 0 | R65: 0
A66: HIDE | C66: 240 - Department of Licensing | D66: =HLOOKUP($C$4,'Building RSF'!$A$3:$AK$109,MATCH($C66,'Building RSF'!$A$3:$A$109,0),FALSE) -> 0 | F66: =HLOOKUP($C$4,'rent dollars FY22'!$A$3:$AL$108,MATCH($C66,'rent dollars FY22'!$A$3:$A$108,0),FALSE) -> 0 | G66: =HLOOKUP($C$4,'Debt Dollars FY22'!$C$5:$AN$110,MATCH($C66,'Debt Dollars FY22'!$A$5:$A$110,0),FALSE) -> 0 | H66: =HLOOKUP($C$4,'CC dollars FY22'!$B$6:$AR$111,MATCH($C66,'CC dollars FY22'!$B$6:$B$111,0),FALSE) -> 0 | I66: 0 | J66: 0 | K66: 0 | M66: =HLOOKUP($C$4,'rent dollars FY23'!$A$3:$AL$108,MATCH($C66,'rent dollars FY23'!$A$3:$A$108,0),FALSE) -> 0 | N66: =HLOOKUP($C$4,'Debt Dollars FY23'!$C$5:$AN$110,MATCH($C66,'Debt Dollars FY23'!$A$5:$A$110,0),FALSE) -> 0 | O66: =HLOOKUP($C$4,'CC dollars FY23'!$B$6:$AR$111,MATCH($C66,'CC dollars FY23'!$B$6:$B$111,0),FALSE) -> 0 | P66: 0 | Q66: 0 | R66: 0
A67: HIDE | C67: 245 - Military Department | D67: =HLOOKUP($C$4,'Building RSF'!$A$3:$AK$109,MATCH($C67,'Building RSF'!$A$3:$A$109,0),FALSE) -> 0 | F67: =HLOOKUP($C$4,'rent dollars FY22'!$A$3:$AL$108,MATCH($C67,'rent dollars FY22'!$A$3:$A$108,0),FALSE) -> 0 | G67: =HLOOKUP($C$4,'Debt Dollars FY22'!$C$5:$AN$110,MATCH($C67,'Debt Dollars FY22'!$A$5:$A$110,0),FALSE) -> 0 | H67: =HLOOKUP($C$4,'CC dollars FY22'!$B$6:$AR$111,MATCH($C67,'CC dollars FY22'!$B$6:$B$111,0),FALSE) -> 0 | I67: 0 | J67: 0 | K67: 0 | M67: =HLOOKUP($C$4,'rent dollars FY23'!$A$3:$AL$108,MATCH($C67,'rent dollars FY23'!$A$3:$A$108,0),FALSE) -> 0 | N67: =HLOOKUP($C$4,'Debt Dollars FY23'!$C$5:$AN$110,MATCH($C67,'Debt Dollars FY23'!$A$5:$A$110,0),FALSE) -> 0 | O67: =HLOOKUP($C$4,'CC dollars FY23'!$B$6:$AR$111,MATCH($C67,'CC dollars FY23'!$B$6:$B$111,0),FALSE) -> 0 | P67: 0 | Q67: 0 | R67: 0
A68: HIDE | C68: 275 - Public Employment Relations Commission | D68: =HLOOKUP($C$4,'Building RSF'!$A$3:$AK$109,MATCH($C68,'Building RSF'!$A$3:$A$109,0),FALSE) -> 0 | F68: =HLOOKUP($C$4,'rent dollars FY22'!$A$3:$AL$108,MATCH($C68,'rent dollars FY22'!$A$3:$A$108,0),FALSE) -> 0 | G68: =HLOOKUP($C$4,'Debt Dollars FY22'!$C$5:$AN$110,MATCH($C68,'Debt Dollars FY22'!$A$5:$A$110,0),FALSE) -> 0 | H68: =HLOOKUP($C$4,'CC dollars FY22'!$B$6:$AR$111,MATCH($C68,'CC dollars FY22'!$B$6:$B$111,0),FALSE) -> 0 | I68: 0 | J68: 0 | K68: 0 | M68: =HLOOKUP($C$4,'rent dollars FY23'!$A$3:$AL$108,MATCH($C68,'rent dollars FY23'!$A$3:$A$108,0),FALSE) -> 0 | N68: =HLOOKUP($C$4,'Debt Dollars FY23'!$C$5:$AN$110,MATCH($C68,'Debt Dollars FY23'!$A$5:$A$110,0),FALSE) -> 0 | O68: =HLOOKUP($C$4,'CC dollars FY23'!$B$6:$AR$111,MATCH($C68,'CC dollars FY23'!$B$6:$B$111,0),FALSE) -> 0 | P68: 0 | Q68: 0 | R68: 0
A69: HIDE | C69: 300 - Department of Social and Health Services | D69: =HLOOKUP($C$4,'Building RSF'!$A$3:$AK$109,MATCH($C69,'Building RSF'!$A$3:$A$109,0),FALSE) -> 0 | F69: =HLOOKUP($C$4,'rent dollars FY22'!$A$3:$AL$108,MATCH($C69,'rent dollars FY22'!$A$3:$A$108,0),FALSE) -> 0 | G69: =HLOOKUP($C$4,'Debt Dollars FY22'!$C$5:$AN$110,MATCH($C69,'Debt Dollars FY22'!$A$5:$A$110,0),FALSE) -> 0 | H69: =HLOOKUP($C$4,'CC dollars FY22'!$B$6:$AR$111,MATCH($C69,'CC dollars FY22'!$B$6:$B$111,0),FALSE) -> 0 | I69: 0 | J69: 0 | K69: 0 | M69: =HLOOKUP($C$4,'rent dollars FY23'!$A$3:$AL$108,MATCH($C69,'rent dollars FY23'!$A$3:$A$108,0),FALSE) -> 0 | N69: =HLOOKUP($C$4,'Debt Dollars FY23'!$C$5:$AN$110,MATCH($C69,'Debt Dollars FY23'!$A$5:$A$110,0),FALSE) -> 0 | O69: =HLOOKUP($C$4,'CC dollars FY23'!$B$6:$AR$111,MATCH($C69,'CC dollars FY23'!$B$6:$B$111,0),FALSE) -> 0 | P69: 0 | Q69: 0 | R69: 0
A70: HIDE | C70: 303 - Department of Health | D70: =HLOOKUP($C$4,'Building RSF'!$A$3:$AK$109,MATCH($C70,'Building RSF'!$A$3:$A$109,0),FALSE) -> 0 | F70: =HLOOKUP($C$4,'rent dollars FY22'!$A$3:$AL$108,MATCH($C70,'rent dollars FY22'!$A$3:$A$108,0),FALSE) -> 0 | G70: =HLOOKUP($C$4,'Debt Dollars FY22'!$C$5:$AN$110,MATCH($C70,'Debt Dollars FY22'!$A$5:$A$110,0),FALSE) -> 0 | H70: =HLOOKUP($C$4,'CC dollars FY22'!$B$6:$AR$111,MATCH($C70,'CC dollars FY22'!$B$6:$B$111,0),FALSE) -> 0 | I70: 0 | J70: 0 | K70: 0 | M70: =HLOOKUP($C$4,'rent dollars FY23'!$A$3:$AL$108,MATCH($C70,'rent dollars FY23'!$A$3:$A$108,0),FALSE) -> 0 | N70: =HLOOKUP($C$4,'Debt Dollars FY23'!$C$5:$AN$110,MATCH($C70,'Debt Dollars FY23'!$A$5:$A$110,0),FALSE) -> 0 | O70: =HLOOKUP($C$4,'CC dollars FY23'!$B$6:$AR$111,MATCH($C70,'CC dollars FY23'!$B$6:$B$111,0),FALSE) -> 0 | P70: 0 | Q70: 0 | R70: 0
A71: HIDE | C71: 305 - Department of Veterans Affairs | D71: =HLOOKUP($C$4,'Building RSF'!$A$3:$AK$109,MATCH($C71,'Building RSF'!$A$3:$A$109,0),FALSE) -> 0 | F71: =HLOOKUP($C$4,'rent dollars FY22'!$A$3:$AL$108,MATCH($C71,'rent dollars FY22'!$A$3:$A$108,0),FALSE) -> 0 | G71: =HLOOKUP($C$4,'Debt Dollars FY22'!$C$5:$AN$110,MATCH($C71,'Debt Dollars FY22'!$A$5:$A$110,0),FALSE) -> 0 | H71: =HLOOKUP($C$4,'CC dollars FY22'!$B$6:$AR$111,MATCH($C71,'CC dollars FY22'!$B$6:$B$111,0),FALSE) -> 0 | I71: 0 | J71: 0 | K71: 0 | M71: =HLOOKUP($C$4,'rent dollars FY23'!$A$3:$AL$108,MATCH($C71,'rent dollars FY23'!$A$3:$A$108,0),FALSE) -> 0 | N71: =HLOOKUP($C$4,'Debt Dollars FY23'!$C$5:$AN$110,MATCH($C71,'Debt Dollars FY23'!$A$5:$A$110,0),FALSE) -> 0 | O71: =HLOOKUP($C$4,'CC dollars FY23'!$B$6:$AR$111,MATCH($C71,'CC dollars FY23'!$B$6:$B$111,0),FALSE) -> 0 | P71: 0 | Q71: 0 | R71: 0
A72: =IF(D72=0,"HIDE","VIEW") -> HIDE | C72: 307 - DCYF | D72: =HLOOKUP($C$4,'Building RSF'!$A$3:$AK$109,MATCH($C72,'Building RSF'!$A$3:$A$109,0),FALSE) -> 0 | F72: =HLOOKUP($C$4,'rent dollars FY22'!$A$3:$AL$108,MATCH($C72,'rent dollars FY22'!$A$3:$A$108,0),FALSE) -> 0 | G72: =HLOOKUP($C$4,'Debt Dollars FY22'!$C$5:$AN$110,MATCH($C72,'Debt Dollars FY22'!$A$5:$A$110,0),FALSE) -> 0 | H72: =HLOOKUP($C$4,'CC dollars FY22'!$B$6:$AR$111,MATCH($C72,'CC dollars FY22'!$B$6:$B$111,0),FALSE) -> 0 | I72: 0 | J72: =I72/12 -> 0 | K72: 0 | M72: =HLOOKUP($C$4,'rent dollars FY23'!$A$3:$AL$108,MATCH($C72,'rent dollars FY23'!$A$3:$A$108,0),FALSE) -> 0 | N72: =HLOOKUP($C$4,'Debt Dollars FY23'!$C$5:$AN$110,MATCH($C72,'Debt Dollars FY23'!$A$5:$A$110,0),FALSE) -> 0 | O72: =HLOOKUP($C$4,'CC dollars FY23'!$B$6:$AR$111,MATCH($C72,'CC dollars FY23'!$B$6:$B$111,0),FALSE) -> 0 | P72: 0 | Q72: =P72/12 -> 0 | R72: 0
A73: HIDE | C73: 310 - Department of Corrections | D73: =HLOOKUP($C$4,'Building RSF'!$A$3:$AK$109,MATCH($C73,'Building RSF'!$A$3:$A$109,0),FALSE) -> 0 | F73: =HLOOKUP($C$4,'rent dollars FY22'!$A$3:$AL$108,MATCH($C73,'rent dollars FY22'!$A$3:$A$108,0),FALSE) -> 0 | G73: =HLOOKUP($C$4,'Debt Dollars FY22'!$C$5:$AN$110,MATCH($C73,'Debt Dollars FY22'!$A$5:$A$110,0),FALSE) -> 0 | H73: =HLOOKUP($C$4,'CC dollars FY22'!$B$6:$AR$111,MATCH($C73,'CC dollars FY22'!$B$6:$B$111,0),FALSE) -> 0 | I73: 0 | J73: 0 | K73: 0 | M73: =HLOOKUP($C$4,'rent dollars FY23'!$A$3:$AL$108,MATCH($C73,'rent dollars FY23'!$A$3:$A$108,0),FALSE) -> 0 | N73: =HLOOKUP($C$4,'Debt Dollars FY23'!$C$5:$AN$110,MATCH($C73,'Debt Dollars FY23'!$A$5:$A$110,0),FALSE) -> 0 | O73: =HLOOKUP($C$4,'CC dollars FY23'!$B$6:$AR$111,MATCH($C73,'CC dollars FY23'!$B$6:$B$111,0),FALSE) -> 0 | P73: 0 | Q73: 0 | R73: 0
A74: VIEW | C74: 315 - Department of Services for the Blind | D74: =HLOOKUP($C$4,'Building RSF'!$A$3:$AK$109,MATCH($C74,'Building RSF'!$A$3:$A$109,0),FALSE) -> 20708 | F74: =HLOOKUP($C$4,'rent dollars FY22'!$A$3:$AL$108,MATCH($C74,'rent dollars FY22'!$A$3:$A$108,0),FALSE) -> 97327.22814 | G74: =HLOOKUP($C$4,'Debt Dollars FY22'!$C$5:$AN$110,MATCH($C74,'Debt Dollars FY22'!$A$5:$A$110,0),FALSE) -> 0 | H74: =HLOOKUP($C$4,'CC dollars FY22'!$B$6:$AR$111,MATCH($C74,'CC dollars FY22'!$B$6:$B$111,0),FALSE) -> 3647.626375 | I74: 100974.8545 | J74: 8414.571209 | K74: 4.876127801 | M74: =HLOOKUP($C$4,'rent dollars FY23'!$A$3:$AL$108,MATCH($C74,'rent dollars FY23'!$A$3:$A$108,0),FALSE) -> 101334.4512 | N74: =HLOOKUP($C$4,'Debt Dollars FY23'!$C$5:$AN$110,MATCH($C74,'Debt Dollars FY23'!$A$5:$A$110,0),FALSE) -> 0 | O74: =HLOOKUP($C$4,'CC dollars FY23'!$B$6:$AR$111,MATCH($C74,'CC dollars FY23'!$B$6:$B$111,0),FALSE) -> 3697.959785 | P74: 105032.411 | Q74: 8752.700918 | R74: 5.072069298
A75: HIDE | C75: 340 - Student Achievement Council | D75: =HLOOKUP($C$4,'Building RSF'!$A$3:$AK$109,MATCH($C75,'Building RSF'!$A$3:$A$109,0),FALSE) -> 0 | F75: =HLOOKUP($C$4,'rent dollars FY22'!$A$3:$AL$108,MATCH($C75,'rent dollars FY22'!$A$3:$A$108,0),FALSE) -> 0 | G75: =HLOOKUP($C$4,'Debt Dollars FY22'!$C$5:$AN$110,MATCH($C75,'Debt Dollars FY22'!$A$5:$A$110,0),FALSE) -> 0 | H75: =HLOOKUP($C$4,'CC dollars FY22'!$B$6:$AR$111,MATCH($C75,'CC dollars FY22'!$B$6:$B$111,0),FALSE) -> 0 | I75: 0 | J75: 0 | K75: 0 | M75: =HLOOKUP($C$4,'rent dollars FY23'!$A$3:$AL$108,MATCH($C75,'rent dollars FY23'!$A$3:$A$108,0),FALSE) -> 0 | N75: =HLOOKUP($C$4,'Debt Dollars FY23'!$C$5:$AN$110,MATCH($C75,'Debt Dollars FY23'!$A$5:$A$110,0),FALSE) -> 0 | O75: =HLOOKUP($C$4,'CC dollars FY23'!$B$6:$AR$111,MATCH($C75,'CC dollars FY23'!$B$6:$B$111,0),FALSE) -> 0 | P75: 0 | Q75: 0 | R75: 0
A76: HIDE | C76: 341 - Law Enforcement Officers' & Fire Fighters' Plan 2 Retirement Board | D76: =HLOOKUP($C$4,'Building RSF'!$A$3:$AK$109,MATCH($C76,'Building RSF'!$A$3:$A$109,0),FALSE) -> 0 | F76: =HLOOKUP($C$4,'rent dollars FY22'!$A$3:$AL$108,MATCH($C76,'rent dollars FY22'!$A$3:$A$108,0),FALSE) -> 0 | G76: =HLOOKUP($C$4,'Debt Dollars FY22'!$C$5:$AN$110,MATCH($C76,'Debt Dollars FY22'!$A$5:$A$110,0),FALSE) -> 0 | H76: =HLOOKUP($C$4,'CC dollars FY22'!$B$6:$AR$111,MATCH($C76,'CC dollars FY22'!$B$6:$B$111,0),FALSE) -> 0 | I76: 0 | J76: 0 | K76: 0 | M76: =HLOOKUP($C$4,'rent dollars FY23'!$A$3:$AL$108,MATCH($C76,'rent dollars FY23'!$A$3:$A$108,0),FALSE) -> 0 | N76: =HLOOKUP($C$4,'Debt Dollars FY23'!$C$5:$AN$110,MATCH($C76,'Debt Dollars FY23'!$A$5:$A$110,0),FALSE) -> 0 | O76: =HLOOKUP($C$4,'CC dollars FY23'!$B$6:$AR$111,MATCH($C76,'CC dollars FY23'!$B$6:$B$111,0),FALSE) -> 0 | P76: 0 | Q76: 0 | R76: 0
A77: HIDE | C77: 350 - Superintendent of Public Instruction | D77: =HLOOKUP($C$4,'Building RSF'!$A$3:$AK$109,MATCH($C77,'Building RSF'!$A$3:$A$109,0),FALSE) -> 0 | F77: =HLOOKUP($C$4,'rent dollars FY22'!$A$3:$AL$108,MATCH($C77,'rent dollars FY22'!$A$3:$A$108,0),FALSE) -> 0 | G77: =HLOOKUP($C$4,'Debt Dollars FY22'!$C$5:$AN$110,MATCH($C77,'Debt Dollars FY22'!$A$5:$A$110,0),FALSE) -> 0 | H77: =HLOOKUP($C$4,'CC dollars FY22'!$B$6:$AR$111,MATCH($C77,'CC dollars FY22'!$B$6:$B$111,0),FALSE) -> 0 | I77: 0 | J77: 0 | K77: 0 | M77: =HLOOKUP($C$4,'rent dollars FY23'!$A$3:$AL$108,MATCH($C77,'rent dollars FY23'!$A$3:$A$108,0),FALSE) -> 0 | N77: =HLOOKUP($C$4,'Debt Dollars FY23'!$C$5:$AN$110,MATCH($C77,'Debt Dollars FY23'!$A$5:$A$110,0),FALSE) -> 0 | O77: =HLOOKUP($C$4,'CC dollars FY23'!$B$6:$AR$111,MATCH($C77,'CC dollars FY23'!$B$6:$B$111,0),FALSE) -> 0 | P77: 0 | Q77: 0 | R77: 0
A78: HIDE | C78: 351 - State School For The Blind | D78: =HLOOKUP($C$4,'Building RSF'!$A$3:$AK$109,MATCH($C78,'Building RSF'!$A$3:$A$109,0),FALSE) -> 0 | F78: =HLOOKUP($C$4,'rent dollars FY22'!$A$3:$AL$108,MATCH($C78,'rent dollars FY22'!$A$3:$A$108,0),FALSE) -> 0 | G78: =HLOOKUP($C$4,'Debt Dollars FY22'!$C$5:$AN$110,MATCH($C78,'Debt Dollars FY22'!$A$5:$A$110,0),FALSE) -> 0 | H78: =HLOOKUP($C$4,'CC dollars FY22'!$B$6:$AR$111,MATCH($C78,'CC dollars FY22'!$B$6:$B$111,0),FALSE) -> 0 | I78: 0 | J78: 0 | K78: 0 | M78: =HLOOKUP($C$4,'rent dollars FY23'!$A$3:$AL$108,MATCH($C78,'rent dollars FY23'!$A$3:$A$108,0),FALSE) -> 0 | N78: =HLOOKUP($C$4,'Debt Dollars FY23'!$C$5:$AN$110,MATCH($C78,'Debt Dollars FY23'!$A$5:$A$110,0),FALSE) -> 0 | O78: =HLOOKUP($C$4,'CC dollars FY23'!$B$6:$AR$111,MATCH($C78,'CC dollars FY23'!$B$6:$B$111,0),FALSE) -> 0 | P78: 0 | Q78: 0 | R78: 0
A79: HIDE | C79: 353 - State Center for Childhood Deafness and Hearing Loss | D79: =HLOOKUP($C$4,'Building RSF'!$A$3:$AK$109,MATCH($C79,'Building RSF'!$A$3:$A$109,0),FALSE) -> 0 | F79: =HLOOKUP($C$4,'rent dollars FY22'!$A$3:$AL$108,MATCH($C79,'rent dollars FY22'!$A$3:$A$108,0),FALSE) -> 0 | G79: =HLOOKUP($C$4,'Debt Dollars FY22'!$C$5:$AN$110,MATCH($C79,'Debt Dollars FY22'!$A$5:$A$110,0),FALSE) -> 0 | H79: =HLOOKUP($C$4,'CC dollars FY22'!$B$6:$AR$111,MATCH($C79,'CC dollars FY22'!$B$6:$B$111,0),FALSE) -> 0 | I79: 0 | J79: 0 | K79: 0 | M79: =HLOOKUP($C$4,'rent dollars FY23'!$A$3:$AL$108,MATCH($C79,'rent dollars FY23'!$A$3:$A$108,0),FALSE) -> 0 | N79: =HLOOKUP($C$4,'Debt Dollars FY23'!$C$5:$AN$110,MATCH($C79,'Debt Dollars FY23'!$A$5:$A$110,0),FALSE) -> 0 | O79: =HLOOKUP($C$4,'CC dollars FY23'!$B$6:$AR$111,MATCH($C79,'CC dollars FY23'!$B$6:$B$111,0),FALSE) -> 0 | P79: 0 | Q79: 0 | R79: 0
A80: HIDE | C80: 354 - Workforce Training and Education Coordinating Board | D80: =HLOOKUP($C$4,'Building RSF'!$A$3:$AK$109,MATCH($C80,'Building RSF'!$A$3:$A$109,0),FALSE) -> 0 | F80: =HLOOKUP($C$4,'rent dollars FY22'!$A$3:$AL$108,MATCH($C80,'rent dollars FY22'!$A$3:$A$108,0),FALSE) -> 0 | G80: =HLOOKUP($C$4,'Debt Dollars FY22'!$C$5:$AN$110,MATCH($C80,'Debt Dollars FY22'!$A$5:$A$110,0),FALSE) -> 0 | H80: =HLOOKUP($C$4,'CC dollars FY22'!$B$6:$AR$111,MATCH($C80,'CC dollars FY22'!$B$6:$B$111,0),FALSE) -> 0 | I80: 0 | J80: 0 | K80: 0 | M80: =HLOOKUP($C$4,'rent dollars FY23'!$A$3:$AL$108,MATCH($C80,'rent dollars FY23'!$A$3:$A$108,0),FALSE) -> 0 | N80: =HLOOKUP($C$4,'Debt Dollars FY23'!$C$5:$AN$110,MATCH($C80,'Debt Dollars FY23'!$A$5:$A$110,0),FALSE) -> 0 | O80: =HLOOKUP($C$4,'CC dollars FY23'!$B$6:$AR$111,MATCH($C80,'CC dollars FY23'!$B$6:$B$111,0),FALSE) -> 0 | P80: 0 | Q80: 0 | R80: 0
A81: HIDE | C81: 355 - Department of Archaeology and Historic Preservation | D81: =HLOOKUP($C$4,'Building RSF'!$A$3:$AK$109,MATCH($C81,'Building RSF'!$A$3:$A$109,0),FALSE) -> 0 | F81: =HLOOKUP($C$4,'rent dollars FY22'!$A$3:$AL$108,MATCH($C81,'rent dollars FY22'!$A$3:$A$108,0),FALSE) -> 0 | G81: =HLOOKUP($C$4,'Debt Dollars FY22'!$C$5:$AN$110,MATCH($C81,'Debt Dollars FY22'!$A$5:$A$110,0),FALSE) -> 0 | H81: =HLOOKUP($C$4,'CC dollars FY22'!$B$6:$AR$111,MATCH($C81,'CC dollars FY22'!$B$6:$B$111,0),FALSE) -> 0 | I81: 0 | J81: 0 | K81: 0 | M81: =HLOOKUP($C$4,'rent dollars FY23'!$A$3:$AL$108,MATCH($C81,'rent dollars FY23'!$A$3:$A$108,0),FALSE) -> 0 | N81: =HLOOKUP($C$4,'Debt Dollars FY23'!$C$5:$AN$110,MATCH($C81,'Debt Dollars FY23'!$A$5:$A$110,0),FALSE) -> 0 | O81: =HLOOKUP($C$4,'CC dollars FY23'!$B$6:$AR$111,MATCH($C81,'CC dollars FY23'!$B$6:$B$111,0),FALSE) -> 0 | P81: 0 | Q81: 0 | R81: 0
A82: HIDE | C82: 357 - Department of Early Learning | D82: =HLOOKUP($C$4,'Building RSF'!$A$3:$AK$109,MATCH($C82,'Building RSF'!$A$3:$A$109,0),FALSE) -> 0 | F82: =HLOOKUP($C$4,'rent dollars FY22'!$A$3:$AL$108,MATCH($C82,'rent dollars FY22'!$A$3:$A$108,0),FALSE) -> 0 | G82: =HLOOKUP($C$4,'Debt Dollars FY22'!$C$5:$AN$110,MATCH($C82,'Debt Dollars FY22'!$A$5:$A$110,0),FALSE) -> 0 | H82: =HLOOKUP($C$4,'CC dollars FY22'!$B$6:$AR$111,MATCH($C82,'CC dollars FY22'!$B$6:$B$111,0),FALSE) -> 0 | I82: 0 | J82: 0 | K82: 0 | M82: =HLOOKUP($C$4,'rent dollars FY23'!$A$3:$AL$108,MATCH($C82,'rent dollars FY23'!$A$3:$A$108,0),FALSE) -> 0 | N82: =HLOOKUP($C$4,'Debt Dollars FY23'!$C$5:$AN$110,MATCH($C82,'Debt Dollars FY23'!$A$5:$A$110,0),FALSE) -> 0 | O82: =HLOOKUP($C$4,'CC dollars FY23'!$B$6:$AR$111,MATCH($C82,'CC dollars FY23'!$B$6:$B$111,0),FALSE) -> 0 | P82: 0 | Q82: 0 | R82: 0
A83: HIDE | C83: 359 - WA Charter School Commission | D83: =HLOOKUP($C$4,'Building RSF'!$A$3:$AK$109,MATCH($C83,'Building RSF'!$A$3:$A$109,0),FALSE) -> 0 | F83: =HLOOKUP($C$4,'rent dollars FY22'!$A$3:$AL$108,MATCH($C83,'rent dollars FY22'!$A$3:$A$108,0),FALSE) -> 0 | G83: =HLOOKUP($C$4,'Debt Dollars FY22'!$C$5:$AN$110,MATCH($C83,'Debt Dollars FY22'!$A$5:$A$110,0),FALSE) -> 0 | H83: =HLOOKUP($C$4,'CC dollars FY22'!$B$6:$AR$111,MATCH($C83,'CC dollars FY22'!$B$6:$B$111,0),FALSE) -> 0 | I83: 0 | J83: 0 | K83: 0 | M83: =HLOOKUP($C$4,'rent dollars FY23'!$A$3:$AL$108,MATCH($C83,'rent dollars FY23'!$A$3:$A$108,0),FALSE) -> 0 | N83: =HLOOKUP($C$4,'Debt Dollars FY23'!$C$5:$AN$110,MATCH($C83,'Debt Dollars FY23'!$A$5:$A$110,0),FALSE) -> 0 | O83: =HLOOKUP($C$4,'CC dollars FY23'!$B$6:$AR$111,MATCH($C83,'CC dollars FY23'!$B$6:$B$111,0),FALSE) -> 0 | P83: 0 | Q83: 0 | R83: 0
A84: HIDE | C84: 360 - University of Washington | D84: =HLOOKUP($C$4,'Building RSF'!$A$3:$AK$109,MATCH($C84,'Building RSF'!$A$3:$A$109,0),FALSE) -> 0 | F84: =HLOOKUP($C$4,'rent dollars FY22'!$A$3:$AL$108,MATCH($C84,'rent dollars FY22'!$A$3:$A$108,0),FALSE) -> 0 | G84: =HLOOKUP($C$4,'Debt Dollars FY22'!$C$5:$AN$110,MATCH($C84,'Debt Dollars FY22'!$A$5:$A$110,0),FALSE) -> 0 | H84: =HLOOKUP($C$4,'CC dollars FY22'!$B$6:$AR$111,MATCH($C84,'CC dollars FY22'!$B$6:$B$111,0),FALSE) -> 0 | I84: 0 | J84: 0 | K84: 0 | M84: =HLOOKUP($C$4,'rent dollars FY23'!$A$3:$AL$108,MATCH($C84,'rent dollars FY23'!$A$3:$A$108,0),FALSE) -> 0 | N84: =HLOOKUP($C$4,'Debt Dollars FY23'!$C$5:$AN$110,MATCH($C84,'Debt Dollars FY23'!$A$5:$A$110,0),FALSE) -> 0 | O84: =HLOOKUP($C$4,'CC dollars FY23'!$B$6:$AR$111,MATCH($C84,'CC dollars FY23'!$B$6:$B$111,0),FALSE) -> 0 | P84: 0 | Q84: 0 | R84: 0
A85: HIDE | C85: 365 - Washington State University | D85: =HLOOKUP($C$4,'Building RSF'!$A$3:$AK$109,MATCH($C85,'Building RSF'!$A$3:$A$109,0),FALSE) -> 0 | F85: =HLOOKUP($C$4,'rent dollars FY22'!$A$3:$AL$108,MATCH($C85,'rent dollars FY22'!$A$3:$A$108,0),FALSE) -> 0 | G85: =HLOOKUP($C$4,'Debt Dollars FY22'!$C$5:$AN$110,MATCH($C85,'Debt Dollars FY22'!$A$5:$A$110,0),FALSE) -> 0 | H85: =HLOOKUP($C$4,'CC dollars FY22'!$B$6:$AR$111,MATCH($C85,'CC dollars FY22'!$B$6:$B$111,0),FALSE) -> 0 | I85: 0 | J85: 0 | K85: 0 | M85: =HLOOKUP($C$4,'rent dollars FY23'!$A$3:$AL$108,MATCH($C85,'rent dollars FY23'!$A$3:$A$108,0),FALSE) -> 0 | N85: =HLOOKUP($C$4,'Debt Dollars FY23'!$C$5:$AN$110,MATCH($C85,'Debt Dollars FY23'!$A$5:$A$110,0),FALSE) -> 0 | O85: =HLOOKUP($C$4,'CC dollars FY23'!$B$6:$AR$111,MATCH($C85,'CC dollars FY23'!$B$6:$B$111,0),FALSE) -> 0 | P85: 0 | Q85: 0 | R85: 0
A86: HIDE | C86: 370 - Eastern Washington University | D86: =HLOOKUP($C$4,'Building RSF'!$A$3:$AK$109,MATCH($C86,'Building RSF'!$A$3:$A$109,0),FALSE) -> 0 | F86: =HLOOKUP($C$4,'rent dollars FY22'!$A$3:$AL$108,MATCH($C86,'rent dollars FY22'!$A$3:$A$108,0),FALSE) -> 0 | G86: =HLOOKUP($C$4,'Debt Dollars FY22'!$C$5:$AN$110,MATCH($C86,'Debt Dollars FY22'!$A$5:$A$110,0),FALSE) -> 0 | H86: =HLOOKUP($C$4,'CC dollars FY22'!$B$6:$AR$111,MATCH($C86,'CC dollars FY22'!$B$6:$B$111,0),FALSE) -> 0 | I86: 0 | J86: 0 | K86: 0 | M86: =HLOOKUP($C$4,'rent dollars FY23'!$A$3:$AL$108,MATCH($C86,'rent dollars FY23'!$A$3:$A$108,0),FALSE) -> 0 | N86: =HLOOKUP($C$4,'Debt Dollars FY23'!$C$5:$AN$110,MATCH($C86,'Debt Dollars FY23'!$A$5:$A$110,0),FALSE) -> 0 | O86: =HLOOKUP($C$4,'CC dollars FY23'!$B$6:$AR$111,MATCH($C86,'CC dollars FY23'!$B$6:$B$111,0),FALSE) -> 0 | P86: 0 | Q86: 0 | R86: 0
A87: HIDE | C87: 375 - Central Washington University | D87: =HLOOKUP($C$4,'Building RSF'!$A$3:$AK$109,MATCH($C87,'Building RSF'!$A$3:$A$109,0),FALSE) -> 0 | F87: =HLOOKUP($C$4,'rent dollars FY22'!$A$3:$AL$108,MATCH($C87,'rent dollars FY22'!$A$3:$A$108,0),FALSE) -> 0 | G87: =HLOOKUP($C$4,'Debt Dollars FY22'!$C$5:$AN$110,MATCH($C87,'Debt Dollars FY22'!$A$5:$A$110,0),FALSE) -> 0 | H87: =HLOOKUP($C$4,'CC dollars FY22'!$B$6:$AR$111,MATCH($C87,'CC dollars FY22'!$B$6:$B$111,0),FALSE) -> 0 | I87: 0 | J87: 0 | K87: 0 | M87: =HLOOKUP($C$4,'rent dollars FY23'!$A$3:$AL$108,MATCH($C87,'rent dollars FY23'!$A$3:$A$108,0),FALSE) -> 0 | N87: =HLOOKUP($C$4,'Debt Dollars FY23'!$C$5:$AN$110,MATCH($C87,'Debt Dollars FY23'!$A$5:$A$110,0),FALSE) -> 0 | O87: =HLOOKUP($C$4,'CC dollars FY23'!$B$6:$AR$111,MATCH($C87,'CC dollars FY23'!$B$6:$B$111,0),FALSE) -> 0 | P87: 0 | Q87: 0 | R87: 0
A88: HIDE | C88: 376 - The Evergreen State College | D88: =HLOOKUP($C$4,'Building RSF'!$A$3:$AK$109,MATCH($C88,'Building RSF'!$A$3:$A$109,0),FALSE) -> 0 | F88: =HLOOKUP($C$4,'rent dollars FY22'!$A$3:$AL$108,MATCH($C88,'rent dollars FY22'!$A$3:$A$108,0),FALSE) -> 0 | G88: =HLOOKUP($C$4,'Debt Dollars FY22'!$C$5:$AN$110,MATCH($C88,'Debt Dollars FY22'!$A$5:$A$110,0),FALSE) -> 0 | H88: =HLOOKUP($C$4,'CC dollars FY22'!$B$6:$AR$111,MATCH($C88,'CC dollars FY22'!$B$6:$B$111,0),FALSE) -> 0 | I88: 0 | J88: 0 | K88: 0 | M88: =HLOOKUP($C$4,'rent dollars FY23'!$A$3:$AL$108,MATCH($C88,'rent dollars FY23'!$A$3:$A$108,0),FALSE) -> 0 | N88: =HLOOKUP($C$4,'Debt Dollars FY23'!$C$5:$AN$110,MATCH($C88,'Debt Dollars FY23'!$A$5:$A$110,0),FALSE) -> 0 | O88: =HLOOKUP($C$4,'CC dollars FY23'!$B$6:$AR$111,MATCH($C88,'CC dollars FY23'!$B$6:$B$111,0),FALSE) -> 0 | P88: 0 | Q88: 0 | R88: 0
A89: HIDE | C89: 380 - Western Washington University | D89: =HLOOKUP($C$4,'Building RSF'!$A$3:$AK$109,MATCH($C89,'Building RSF'!$A$3:$A$109,0),FALSE) -> 0 | F89: =HLOOKUP($C$4,'rent dollars FY22'!$A$3:$AL$108,MATCH($C89,'rent dollars FY22'!$A$3:$A$108,0),FALSE) -> 0 | G89: =HLOOKUP($C$4,'Debt Dollars FY22'!$C$5:$AN$110,MATCH($C89,'Debt Dollars FY22'!$A$5:$A$110,0),FALSE) -> 0 | H89: =HLOOKUP($C$4,'CC dollars FY22'!$B$6:$AR$111,MATCH($C89,'CC dollars FY22'!$B$6:$B$111,0),FALSE) -> 0 | I89: 0 | J89: 0 | K89: 0 | M89: =HLOOKUP($C$4,'rent dollars FY23'!$A$3:$AL$108,MATCH($C89,'rent dollars FY23'!$A$3:$A$108,0),FALSE) -> 0 | N89: =HLOOKUP($C$4,'Debt Dollars FY23'!$C$5:$AN$110,MATCH($C89,'Debt Dollars FY23'!$A$5:$A$110,0),FALSE) -> 0 | O89: =HLOOKUP($C$4,'CC dollars FY23'!$B$6:$AR$111,MATCH($C89,'CC dollars FY23'!$B$6:$B$111,0),FALSE) -> 0 | P89: 0 | Q89: 0 | R89: 0
A90: HIDE | C90: 387 - Washington State Arts Commission | D90: =HLOOKUP($C$4,'Building RSF'!$A$3:$AK$109,MATCH($C90,'Building RSF'!$A$3:$A$109,0),FALSE) -> 0 | F90: =HLOOKUP($C$4,'rent dollars FY22'!$A$3:$AL$108,MATCH($C90,'rent dollars FY22'!$A$3:$A$108,0),FALSE) -> 0 | G90: =HLOOKUP($C$4,'Debt Dollars FY22'!$C$5:$AN$110,MATCH($C90,'Debt Dollars FY22'!$A$5:$A$110,0),FALSE) -> 0 | H90: =HLOOKUP($C$4,'CC dollars FY22'!$B$6:$AR$111,MATCH($C90,'CC dollars FY22'!$B$6:$B$111,0),FALSE) -> 0 | I90: 0 | J90: 0 | K90: 0 | M90: =HLOOKUP($C$4,'rent dollars FY23'!$A$3:$AL$108,MATCH($C90,'rent dollars FY23'!$A$3:$A$108,0),FALSE) -> 0 | N90: =HLOOKUP($C$4,'Debt Dollars FY23'!$C$5:$AN$110,MATCH($C90,'Debt Dollars FY23'!$A$5:$A$110,0),FALSE) -> 0 | O90: =HLOOKUP($C$4,'CC dollars FY23'!$B$6:$AR$111,MATCH($C90,'CC dollars FY23'!$B$6:$B$111,0),FALSE) -> 0 | P90: 0 | Q90: 0 | R90: 0
A91: HIDE | C91: 390 - Washington State Historical Society | D91: =HLOOKUP($C$4,'Building RSF'!$A$3:$AK$109,MATCH($C91,'Building RSF'!$A$3:$A$109,0),FALSE) -> 0 | F91: =HLOOKUP($C$4,'rent dollars FY22'!$A$3:$AL$108,MATCH($C91,'rent dollars FY22'!$A$3:$A$108,0),FALSE) -> 0 | G91: =HLOOKUP($C$4,'Debt Dollars FY22'!$C$5:$AN$110,MATCH($C91,'Debt Dollars FY22'!$A$5:$A$110,0),FALSE) -> 0 | H91: =HLOOKUP($C$4,'CC dollars FY22'!$B$6:$AR$111,MATCH($C91,'CC dollars FY22'!$B$6:$B$111,0),FALSE) -> 0 | I91: 0 | J91: 0 | K91: 0 | M91: =HLOOKUP($C$4,'rent dollars FY23'!$A$3:$AL$108,MATCH($C91,'rent dollars FY23'!$A$3:$A$108,0),FALSE) -> 0 | N91: =HLOOKUP($C$4,'Debt Dollars FY23'!$C$5:$AN$110,MATCH($C91,'Debt Dollars FY23'!$A$5:$A$110,0),FALSE) -> 0 | O91: =HLOOKUP($C$4,'CC dollars FY23'!$B$6:$AR$111,MATCH($C91,'CC dollars FY23'!$B$6:$B$111,0),FALSE) -> 0 | P91: 0 | Q91: 0 | R91: 0
A92: HIDE | C92: 395 - Eastern Washington State Historical Society | D92: =HLOOKUP($C$4,'Building RSF'!$A$3:$AK$109,MATCH($C92,'Building RSF'!$A$3:$A$109,0),FALSE) -> 0 | F92: =HLOOKUP($C$4,'rent dollars FY22'!$A$3:$AL$108,MATCH($C92,'rent dollars FY22'!$A$3:$A$108,0),FALSE) -> 0 | G92: =HLOOKUP($C$4,'Debt Dollars FY22'!$C$5:$AN$110,MATCH($C92,'Debt Dollars FY22'!$A$5:$A$110,0),FALSE) -> 0 | H92: =HLOOKUP($C$4,'CC dollars FY22'!$B$6:$AR$111,MATCH($C92,'CC dollars FY22'!$B$6:$B$111,0),FALSE) -> 0 | I92: 0 | J92: 0 | K92: 0 | M92: =HLOOKUP($C$4,'rent dollars FY23'!$A$3:$AL$108,MATCH($C92,'rent dollars FY23'!$A$3:$A$108,0),FALSE) -> 0 | N92: =HLOOKUP($C$4,'Debt Dollars FY23'!$C$5:$AN$110,MATCH($C92,'Debt Dollars FY23'!$A$5:$A$110,0),FALSE) -> 0 | O92: =HLOOKUP($C$4,'CC dollars FY23'!$B$6:$AR$111,MATCH($C92,'CC dollars FY23'!$B$6:$B$111,0),FALSE) -> 0 | P92: 0 | Q92: 0 | R92: 0
A93: HIDE | C93: 405 - Department of Transportation | D93: =HLOOKUP($C$4,'Building RSF'!$A$3:$AK$109,MATCH($C93,'Building RSF'!$A$3:$A$109,0),FALSE) -> 0 | F93: =HLOOKUP($C$4,'rent dollars FY22'!$A$3:$AL$108,MATCH($C93,'rent dollars FY22'!$A$3:$A$108,0),FALSE) -> 0 | G93: =HLOOKUP($C$4,'Debt Dollars FY22'!$C$5:$AN$110,MATCH($C93,'Debt Dollars FY22'!$A$5:$A$110,0),FALSE) -> 0 | H93: =HLOOKUP($C$4,'CC dollars FY22'!$B$6:$AR$111,MATCH($C93,'CC dollars FY22'!$B$6:$B$111,0),FALSE) -> 0 | I93: 0 | J93: 0 | K93: 0 | M93: =HLOOKUP($C$4,'rent dollars FY23'!$A$3:$AL$108,MATCH($C93,'rent dollars FY23'!$A$3:$A$108,0),FALSE) -> 0 | N93: =HLOOKUP($C$4,'Debt Dollars FY23'!$C$5:$AN$110,MATCH($C93,'Debt Dollars FY23'!$A$5:$A$110,0),FALSE) -> 0 | O93: =HLOOKUP($C$4,'CC dollars FY23'!$B$6:$AR$111,MATCH($C93,'CC dollars FY23'!$B$6:$B$111,0),FALSE) -> 0 | P93: 0 | Q93: 0 | R93: 0
A94: HIDE | C94: 406 - County Road Administration Board | D94: =HLOOKUP($C$4,'Building RSF'!$A$3:$AK$109,MATCH($C94,'Building RSF'!$A$3:$A$109,0),FALSE) -> 0 | F94: =HLOOKUP($C$4,'rent dollars FY22'!$A$3:$AL$108,MATCH($C94,'rent dollars FY22'!$A$3:$A$108,0),FALSE) -> 0 | G94: =HLOOKUP($C$4,'Debt Dollars FY22'!$C$5:$AN$110,MATCH($C94,'Debt Dollars FY22'!$A$5:$A$110,0),FALSE) -> 0 | H94: =HLOOKUP($C$4,'CC dollars FY22'!$B$6:$AR$111,MATCH($C94,'CC dollars FY22'!$B$6:$B$111,0),FALSE) -> 0 | I94: 0 | J94: 0 | K94: 0 | M94: =HLOOKUP($C$4,'rent dollars FY23'!$A$3:$AL$108,MATCH($C94,'rent dollars FY23'!$A$3:$A$108,0),FALSE) -> 0 | N94: =HLOOKUP($C$4,'Debt Dollars FY23'!$C$5:$AN$110,MATCH($C94,'Debt Dollars FY23'!$A$5:$A$110,0),FALSE) -> 0 | O94: =HLOOKUP($C$4,'CC dollars FY23'!$B$6:$AR$111,MATCH($C94,'CC dollars FY23'!$B$6:$B$111,0),FALSE) -> 0 | P94: 0 | Q94: 0 | R94: 0
A95: HIDE | C95: 407 - Transportation Improvement Board | D95: =HLOOKUP($C$4,'Building RSF'!$A$3:$AK$109,MATCH($C95,'Building RSF'!$A$3:$A$109,0),FALSE) -> 0 | F95: =HLOOKUP($C$4,'rent dollars FY22'!$A$3:$AL$108,MATCH($C95,'rent dollars FY22'!$A$3:$A$108,0),FALSE) -> 0 | G95: =HLOOKUP($C$4,'Debt Dollars FY22'!$C$5:$AN$110,MATCH($C95,'Debt Dollars FY22'!$A$5:$A$110,0),FALSE) -> 0 | H95: =HLOOKUP($C$4,'CC dollars FY22'!$B$6:$AR$111,MATCH($C95,'CC dollars FY22'!$B$6:$B$111,0),FALSE) -> 0 | I95: 0 | J95: 0 | K95: 0 | M95: =HLOOKUP($C$4,'rent dollars FY23'!$A$3:$AL$108,MATCH($C95,'rent dollars FY23'!$A$3:$A$108,0),FALSE) -> 0 | N95: =HLOOKUP($C$4,'Debt Dollars FY23'!$C$5:$AN$110,MATCH($C95,'Debt Dollars FY23'!$A$5:$A$110,0),FALSE) -> 0 | O95: =HLOOKUP($C$4,'CC dollars FY23'!$B$6:$AR$111,MATCH($C95,'CC dollars FY23'!$B$6:$B$111,0),FALSE) -> 0 | P95: 0 | Q95: 0 | R95: 0
A96: HIDE | C96: 410 - Transportation Commission | D96: =HLOOKUP($C$4,'Building RSF'!$A$3:$AK$109,MATCH($C96,'Building RSF'!$A$3:$A$109,0),FALSE) -> 0 | F96: =HLOOKUP($C$4,'rent dollars FY22'!$A$3:$AL$108,MATCH($C96,'rent dollars FY22'!$A$3:$A$108,0),FALSE) -> 0 | G96: =HLOOKUP($C$4,'Debt Dollars FY22'!$C$5:$AN$110,MATCH($C96,'Debt Dollars FY22'!$A$5:$A$110,0),FALSE) -> 0 | H96: =HLOOKUP($C$4,'CC dollars FY22'!$B$6:$AR$111,MATCH($C96,'CC dollars FY22'!$B$6:$B$111,0),FALSE) -> 0 | I96: 0 | J96: 0 | K96: 0 | M96: =HLOOKUP($C$4,'rent dollars FY23'!$A$3:$AL$108,MATCH($C96,'rent dollars FY23'!$A$3:$A$108,0),FALSE) -> 0 | N96: =HLOOKUP($C$4,'Debt Dollars FY23'!$C$5:$AN$110,MATCH($C96,'Debt Dollars FY23'!$A$5:$A$110,0),FALSE) -> 0 | O96: =HLOOKUP($C$4,'CC dollars FY23'!$B$6:$AR$111,MATCH($C96,'CC dollars FY23'!$B$6:$B$111,0),FALSE) -> 0 | P96: 0 | Q96: 0 | R96: 0
A97: HIDE | C97: 411 - Freight Mobility Strategic Investment Board | D97: =HLOOKUP($C$4,'Building RSF'!$A$3:$AK$109,MATCH($C97,'Building RSF'!$A$3:$A$109,0),FALSE) -> 0 | F97: =HLOOKUP($C$4,'rent dollars FY22'!$A$3:$AL$108,MATCH($C97,'rent dollars FY22'!$A$3:$A$108,0),FALSE) -> 0 | G97: =HLOOKUP($C$4,'Debt Dollars FY22'!$C$5:$AN$110,MATCH($C97,'Debt Dollars FY22'!$A$5:$A$110,0),FALSE) -> 0 | H97: =HLOOKUP($C$4,'CC dollars FY22'!$B$6:$AR$111,MATCH($C97,'CC dollars FY22'!$B$6:$B$111,0),FALSE) -> 0 | I97: 0 | J97: 0 | K97: 0 | M97: =HLOOKUP($C$4,'rent dollars FY23'!$A$3:$AL$108,MATCH($C97,'rent dollars FY23'!$A$3:$A$108,0),FALSE) -> 0 | N97: =HLOOKUP($C$4,'Debt Dollars FY23'!$C$5:$AN$110,MATCH($C97,'Debt Dollars FY23'!$A$5:$A$110,0),FALSE) -> 0 | O97: =HLOOKUP($C$4,'CC dollars FY23'!$B$6:$AR$111,MATCH($C97,'CC dollars FY23'!$B$6:$B$111,0),FALSE) -> 0 | P97: 0 | Q97: 0 | R97: 0
A98: HIDE | C98: 460 - Columbia River Gorge Commission | D98: =HLOOKUP($C$4,'Building RSF'!$A$3:$AK$109,MATCH($C98,'Building RSF'!$A$3:$A$109,0),FALSE) -> 0 | F98: =HLOOKUP($C$4,'rent dollars FY22'!$A$3:$AL$108,MATCH($C98,'rent dollars FY22'!$A$3:$A$108,0),FALSE) -> 0 | G98: =HLOOKUP($C$4,'Debt Dollars FY22'!$C$5:$AN$110,MATCH($C98,'Debt Dollars FY22'!$A$5:$A$110,0),FALSE) -> 0 | H98: =HLOOKUP($C$4,'CC dollars FY22'!$B$6:$AR$111,MATCH($C98,'CC dollars FY22'!$B$6:$B$111,0),FALSE) -> 0 | I98: 0 | J98: 0 | K98: 0 | M98: =HLOOKUP($C$4,'rent dollars FY23'!$A$3:$AL$108,MATCH($C98,'rent dollars FY23'!$A$3:$A$108,0),FALSE) -> 0 | N98: =HLOOKUP($C$4,'Debt Dollars FY23'!$C$5:$AN$110,MATCH($C98,'Debt Dollars FY23'!$A$5:$A$110,0),FALSE) -> 0 | O98: =HLOOKUP($C$4,'CC dollars FY23'!$B$6:$AR$111,MATCH($C98,'CC dollars FY23'!$B$6:$B$111,0),FALSE) -> 0 | P98: 0 | Q98: 0 | R98: 0
A99: HIDE | C99: 461 - Department of Ecology | D99: =HLOOKUP($C$4,'Building RSF'!$A$3:$AK$109,MATCH($C99,'Building RSF'!$A$3:$A$109,0),FALSE) -> 0 | F99: =HLOOKUP($C$4,'rent dollars FY22'!$A$3:$AL$108,MATCH($C99,'rent dollars FY22'!$A$3:$A$108,0),FALSE) -> 0 | G99: =HLOOKUP($C$4,'Debt Dollars FY22'!$C$5:$AN$110,MATCH($C99,'Debt Dollars FY22'!$A$5:$A$110,0),FALSE) -> 0 | H99: =HLOOKUP($C$4,'CC dollars FY22'!$B$6:$AR$111,MATCH($C99,'CC dollars FY22'!$B$6:$B$111,0),FALSE) -> 0 | I99: 0 | J99: 0 | K99: 0 | M99: =HLOOKUP($C$4,'rent dollars FY23'!$A$3:$AL$108,MATCH($C99,'rent dollars FY23'!$A$3:$A$108,0),FALSE) -> 0 | N99: =HLOOKUP($C$4,'Debt Dollars FY23'!$C$5:$AN$110,MATCH($C99,'Debt Dollars FY23'!$A$5:$A$110,0),FALSE) -> 0 | O99: =HLOOKUP($C$4,'CC dollars FY23'!$B$6:$AR$111,MATCH($C99,'CC dollars FY23'!$B$6:$B$111,0),FALSE) -> 0 | P99: 0 | Q99: 0 | R99: 0
A100: HIDE | C100: 462 - Pollution Liability Insurance Program | D100: =HLOOKUP($C$4,'Building RSF'!$A$3:$AK$109,MATCH($C100,'Building RSF'!$A$3:$A$109,0),FALSE) -> 0 | F100: =HLOOKUP($C$4,'rent dollars FY22'!$A$3:$AL$108,MATCH($C100,'rent dollars FY22'!$A$3:$A$108,0),FALSE) -> 0 | G100: =HLOOKUP($C$4,'Debt Dollars FY22'!$C$5:$AN$110,MATCH($C100,'Debt Dollars FY22'!$A$5:$A$110,0),FALSE) -> 0 | H100: =HLOOKUP($C$4,'CC dollars FY22'!$B$6:$AR$111,MATCH($C100,'CC dollars FY22'!$B$6:$B$111,0),FALSE) -> 0 | I100: 0 | J100: 0 | K100: 0 | M100: =HLOOKUP($C$4,'rent dollars FY23'!$A$3:$AL$108,MATCH($C100,'rent dollars FY23'!$A$3:$A$108,0),FALSE) -> 0 | N100: =HLOOKUP($C$4,'Debt Dollars FY23'!$C$5:$AN$110,MATCH($C100,'Debt Dollars FY23'!$A$5:$A$110,0),FALSE) -> 0 | O100: =HLOOKUP($C$4,'CC dollars FY23'!$B$6:$AR$111,MATCH($C100,'CC dollars FY23'!$B$6:$B$111,0),FALSE) -> 0 | P100: 0 | Q100: 0 | R100: 0
A101: HIDE | C101: 465 - State Parks and Recreation Commission | D101: =HLOOKUP($C$4,'Building RSF'!$A$3:$AK$109,MATCH($C101,'Building RSF'!$A$3:$A$109,0),FALSE) -> 0 | F101: =HLOOKUP($C$4,'rent dollars FY22'!$A$3:$AL$108,MATCH($C101,'rent dollars FY22'!$A$3:$A$108,0),FALSE) -> 0 | G101: =HLOOKUP($C$4,'Debt Dollars FY22'!$C$5:$AN$110,MATCH($C101,'Debt Dollars FY22'!$A$5:$A$110,0),FALSE) -> 0 | H101: =HLOOKUP($C$4,'CC dollars FY22'!$B$6:$AR$111,MATCH($C101,'CC dollars FY22'!$B$6:$B$111,0),FALSE) -> 0 | I101: 0 | J101: 0 | K101: 0 | M101: =HLOOKUP($C$4,'rent dollars FY23'!$A$3:$AL$108,MATCH($C101,'rent dollars FY23'!$A$3:$A$108,0),FALSE) -> 0 | N101: =HLOOKUP($C$4,'Debt Dollars FY23'!$C$5:$AN$110,MATCH($C101,'Debt Dollars FY23'!$A$5:$A$110,0),FALSE) -> 0 | O101: =HLOOKUP($C$4,'CC dollars FY23'!$B$6:$AR$111,MATCH($C101,'CC dollars FY23'!$B$6:$B$111,0),FALSE) -> 0 | P101: 0 | Q101: 0 | R101: 0
A102: HIDE | C102: 467 - Recreation and Conservation Funding Board | D102: =HLOOKUP($C$4,'Building RSF'!$A$3:$AK$109,MATCH($C102,'Building RSF'!$A$3:$A$109,0),FALSE) -> 0 | F102: =HLOOKUP($C$4,'rent dollars FY22'!$A$3:$AL$108,MATCH($C102,'rent dollars FY22'!$A$3:$A$108,0),FALSE) -> 0 | G102: =HLOOKUP($C$4,'Debt Dollars FY22'!$C$5:$AN$110,MATCH($C102,'Debt Dollars FY22'!$A$5:$A$110,0),FALSE) -> 0 | H102: =HLOOKUP($C$4,'CC dollars FY22'!$B$6:$AR$111,MATCH($C102,'CC dollars FY22'!$B$6:$B$111,0),FALSE) -> 0 | I102: 0 | J102: 0 | K102: 0 | M102: =HLOOKUP($C$4,'rent dollars FY23'!$A$3:$AL$108,MATCH($C102,'rent dollars FY23'!$A$3:$A$108,0),FALSE) -> 0 | N102: =HLOOKUP($C$4,'Debt Dollars FY23'!$C$5:$AN$110,MATCH($C102,'Debt Dollars FY23'!$A$5:$A$110,0),FALSE) -> 0 | O102: =HLOOKUP($C$4,'CC dollars FY23'!$B$6:$AR$111,MATCH($C102,'CC dollars FY23'!$B$6:$B$111,0),FALSE) -> 0 | P102: 0 | Q102: 0 | R102: 0
A103: HIDE | C103: 468 - Environmental and Land Use Hearings Office | D103: =HLOOKUP($C$4,'Building RSF'!$A$3:$AK$109,MATCH($C103,'Building RSF'!$A$3:$A$109,0),FALSE) -> 0 | F103: =HLOOKUP($C$4,'rent dollars FY22'!$A$3:$AL$108,MATCH($C103,'rent dollars FY22'!$A$3:$A$108,0),FALSE) -> 0 | G103: =HLOOKUP($C$4,'Debt Dollars FY22'!$C$5:$AN$110,MATCH($C103,'Debt Dollars FY22'!$A$5:$A$110,0),FALSE) -> 0 | H103: =HLOOKUP($C$4,'CC dollars FY22'!$B$6:$AR$111,MATCH($C103,'CC dollars FY22'!$B$6:$B$111,0),FALSE) -> 0 | I103: =SUM(F103:H103) -> 0 | J103: 0 | K103: =IFERROR(I103/D103,0) -> 0 | M103: =HLOOKUP($C$4,'rent dollars FY23'!$A$3:$AL$108,MATCH($C103,'rent dollars FY23'!$A$3:$A$108,0),FALSE) -> 0 | N103: =HLOOKUP($C$4,'Debt Dollars FY23'!$C$5:$AN$110,MATCH($C103,'Debt Dollars FY23'!$A$5:$A$110,0),FALSE) -> 0 | O103: =HLOOKUP($C$4,'CC dollars FY23'!$B$6:$AR$111,MATCH($C103,'CC dollars FY23'!$B$6:$B$111,0),FALSE) -> 0 | P103: =SUM(M103:O103) -> 0 | Q103: 0 | R103: =IFERROR(P103/D103,0) -> 0
A104: HIDE | C104: 471 - State Conservation Commission | D104: =HLOOKUP($C$4,'Building RSF'!$A$3:$AK$109,MATCH($C104,'Building RSF'!$A$3:$A$109,0),FALSE) -> 0 | F104: =HLOOKUP($C$4,'rent dollars FY22'!$A$3:$AL$108,MATCH($C104,'rent dollars FY22'!$A$3:$A$108,0),FALSE) -> 0 | G104: =HLOOKUP($C$4,'Debt Dollars FY22'!$C$5:$AN$110,MATCH($C104,'Debt Dollars FY22'!$A$5:$A$110,0),FALSE) -> 0 | H104: =HLOOKUP($C$4,'CC dollars FY22'!$B$6:$AR$111,MATCH($C104,'CC dollars FY22'!$B$6:$B$111,0),FALSE) -> 0 | I104: 0 | J104: 0 | K104: 0 | M104: =HLOOKUP($C$4,'rent dollars FY23'!$A$3:$AL$108,MATCH($C104,'rent dollars FY23'!$A$3:$A$108,0),FALSE) -> 0 | N104: =HLOOKUP($C$4,'Debt Dollars FY23'!$C$5:$AN$110,MATCH($C104,'Debt Dollars FY23'!$A$5:$A$110,0),FALSE) -> 0 | O104: =HLOOKUP($C$4,'CC dollars FY23'!$B$6:$AR$111,MATCH($C104,'CC dollars FY23'!$B$6:$B$111,0),FALSE) -> 0 | P104: 0 | Q104: 0 | R104: 0
A105: HIDE | C105: 477 - Department of Fish and Wildlife | D105: =HLOOKUP($C$4,'Building RSF'!$A$3:$AK$109,MATCH($C105,'Building RSF'!$A$3:$A$109,0),FALSE) -> 0 | F105: =HLOOKUP($C$4,'rent dollars FY22'!$A$3:$AL$108,MATCH($C105,'rent dollars FY22'!$A$3:$A$108,0),FALSE) -> 0 | G105: =HLOOKUP($C$4,'Debt Dollars FY22'!$C$5:$AN$110,MATCH($C105,'Debt Dollars FY22'!$A$5:$A$110,0),FALSE) -> 0 | H105: =HLOOKUP($C$4,'CC dollars FY22'!$B$6:$AR$111,MATCH($C105,'CC dollars FY22'!$B$6:$B$111,0),FALSE) -> 0 | I105: 0 | J105: 0 | K105: 0 | M105: =HLOOKUP($C$4,'rent dollars FY23'!$A$3:$AL$108,MATCH($C105,'rent dollars FY23'!$A$3:$A$108,0),FALSE) -> 0 | N105: =HLOOKUP($C$4,'Debt Dollars FY23'!$C$5:$AN$110,MATCH($C105,'Debt Dollars FY23'!$A$5:$A$110,0),FALSE) -> 0 | O105: =HLOOKUP($C$4,'CC dollars FY23'!$B$6:$AR$111,MATCH($C105,'CC dollars FY23'!$B$6:$B$111,0),FALSE) -> 0 | P105: 0 | Q105: 0 | R105: 0
A106: HIDE | C106: 478 - Puget Sound Partnership | D106: =HLOOKUP($C$4,'Building RSF'!$A$3:$AK$109,MATCH($C106,'Building RSF'!$A$3:$A$109,0),FALSE) -> 0 | F106: =HLOOKUP($C$4,'rent dollars FY22'!$A$3:$AL$108,MATCH($C106,'rent dollars FY22'!$A$3:$A$108,0),FALSE) -> 0 | G106: =HLOOKUP($C$4,'Debt Dollars FY22'!$C$5:$AN$110,MATCH($C106,'Debt Dollars FY22'!$A$5:$A$110,0),FALSE) -> 0 | H106: =HLOOKUP($C$4,'CC dollars FY22'!$B$6:$AR$111,MATCH($C106,'CC dollars FY22'!$B$6:$B$111,0),FALSE) -> 0 | I106: 0 | J106: 0 | K106: 0 | M106: =HLOOKUP($C$4,'rent dollars FY23'!$A$3:$AL$108,MATCH($C106,'rent dollars FY23'!$A$3:$A$108,0),FALSE) -> 0 | N106: =HLOOKUP($C$4,'Debt Dollars FY23'!$C$5:$AN$110,MATCH($C106,'Debt Dollars FY23'!$A$5:$A$110,0),FALSE) -> 0 | O106: =HLOOKUP($C$4,'CC dollars FY23'!$B$6:$AR$111,MATCH($C106,'CC dollars FY23'!$B$6:$B$111,0),FALSE) -> 0 | P106: 0 | Q106: 0 | R106: 0
A107: HIDE | C107: 490 - Department of Natural Resources | D107: =HLOOKUP($C$4,'Building RSF'!$A$3:$AK$109,MATCH($C107,'Building RSF'!$A$3:$A$109,0),FALSE) -> 0 | F107: =HLOOKUP($C$4,'rent dollars FY22'!$A$3:$AL$108,MATCH($C107,'rent dollars FY22'!$A$3:$A$108,0),FALSE) -> 0 | G107: =HLOOKUP($C$4,'Debt Dollars FY22'!$C$5:$AN$110,MATCH($C107,'Debt Dollars FY22'!$A$5:$A$110,0),FALSE) -> 0 | H107: =HLOOKUP($C$4,'CC dollars FY22'!$B$6:$AR$111,MATCH($C107,'CC dollars FY22'!$B$6:$B$111,0),FALSE) -> 0 | I107: 0 | J107: 0 | K107: 0 | M107: =HLOOKUP($C$4,'rent dollars FY23'!$A$3:$AL$108,MATCH($C107,'rent dollars FY23'!$A$3:$A$108,0),FALSE) -> 0 | N107: =HLOOKUP($C$4,'Debt Dollars FY23'!$C$5:$AN$110,MATCH($C107,'Debt Dollars FY23'!$A$5:$A$110,0),FALSE) -> 0 | O107: =HLOOKUP($C$4,'CC dollars FY23'!$B$6:$AR$111,MATCH($C107,'CC dollars FY23'!$B$6:$B$111,0),FALSE) -> 0 | P107: 0 | Q107: 0 | R107: 0
A108: HIDE | C108: 495 - Department of Agriculture | D108: =HLOOKUP($C$4,'Building RSF'!$A$3:$AK$109,MATCH($C108,'Building RSF'!$A$3:$A$109,0),FALSE) -> 0 | F108: =HLOOKUP($C$4,'rent dollars FY22'!$A$3:$AL$108,MATCH($C108,'rent dollars FY22'!$A$3:$A$108,0),FALSE) -> 0 | G108: =HLOOKUP($C$4,'Debt Dollars FY22'!$C$5:$AN$110,MATCH($C108,'Debt Dollars FY22'!$A$5:$A$110,0),FALSE) -> 0 | H108: =HLOOKUP($C$4,'CC dollars FY22'!$B$6:$AR$111,MATCH($C108,'CC dollars FY22'!$B$6:$B$111,0),FALSE) -> 0 | I108: 0 | J108: 0 | K108: 0 | M108: =HLOOKUP($C$4,'rent dollars FY23'!$A$3:$AL$108,MATCH($C108,'rent dollars FY23'!$A$3:$A$108,0),FALSE) -> 0 | N108: =HLOOKUP($C$4,'Debt Dollars FY23'!$C$5:$AN$110,MATCH($C108,'Debt Dollars FY23'!$A$5:$A$110,0),FALSE) -> 0 | O108: =HLOOKUP($C$4,'CC dollars FY23'!$B$6:$AR$111,MATCH($C108,'CC dollars FY23'!$B$6:$B$111,0),FALSE) -> 0 | P108: 0 | Q108: 0 | R108: 0
A109: HIDE | C109: 540 - Employment Security Department | D109: =HLOOKUP($C$4,'Building RSF'!$A$3:$AK$109,MATCH($C109,'Building RSF'!$A$3:$A$109,0),FALSE) -> 0 | F109: =HLOOKUP($C$4,'rent dollars FY22'!$A$3:$AL$108,MATCH($C109,'rent dollars FY22'!$A$3:$A$108,0),FALSE) -> 0 | G109: =HLOOKUP($C$4,'Debt Dollars FY22'!$C$5:$AN$110,MATCH($C109,'Debt Dollars FY22'!$A$5:$A$110,0),FALSE) -> 0 | H109: =HLOOKUP($C$4,'CC dollars FY22'!$B$6:$AR$111,MATCH($C109,'CC dollars FY22'!$B$6:$B$111,0),FALSE) -> 0 | I109: 0 | J109: 0 | K109: 0 | M109: =HLOOKUP($C$4,'rent dollars FY23'!$A$3:$AL$108,MATCH($C109,'rent dollars FY23'!$A$3:$A$108,0),FALSE) -> 0 | N109: =HLOOKUP($C$4,'Debt Dollars FY23'!$C$5:$AN$110,MATCH($C109,'Debt Dollars FY23'!$A$5:$A$110,0),FALSE) -> 0 | O109: =HLOOKUP($C$4,'CC dollars FY23'!$B$6:$AR$111,MATCH($C109,'CC dollars FY23'!$B$6:$B$111,0),FALSE) -> 0 | P109: 0 | Q109: 0 | R109: 0
A110: HIDE | C110: 699 - Community Colleges | D110: =HLOOKUP($C$4,'Building RSF'!$A$3:$AK$109,MATCH($C110,'Building RSF'!$A$3:$A$109,0),FALSE) -> 0 | F110: =HLOOKUP($C$4,'rent dollars FY22'!$A$3:$AL$108,MATCH($C110,'rent dollars FY22'!$A$3:$A$108,0),FALSE) -> 0 | G110: =HLOOKUP($C$4,'Debt Dollars FY22'!$C$5:$AN$110,MATCH($C110,'Debt Dollars FY22'!$A$5:$A$110,0),FALSE) -> 0 | H110: =HLOOKUP($C$4,'CC dollars FY22'!$B$6:$AR$111,MATCH($C110,'CC dollars FY22'!$B$6:$B$111,0),FALSE) -> 0 | I110: 0 | J110: 0 | K110: 0 | M110: =HLOOKUP($C$4,'rent dollars FY23'!$A$3:$AL$108,MATCH($C110,'rent dollars FY23'!$A$3:$A$108,0),FALSE) -> 0 | N110: =HLOOKUP($C$4,'Debt Dollars FY23'!$C$5:$AN$110,MATCH($C110,'Debt Dollars FY23'!$A$5:$A$110,0),FALSE) -> 0 | O110: =HLOOKUP($C$4,'CC dollars FY23'!$B$6:$AR$111,MATCH($C110,'CC dollars FY23'!$B$6:$B$111,0),FALSE) -> 0 | P110: 0 | Q110: 0 | R110: 0
A111: VIEW | C111: TOTAL | D111: =SUM(D7:D110) -> 20708 | E111: =SUM(E7:E110) -> 0 | F111: 97327.22814 | G111: 0 | H111: 3647.626375 | I111: 100974.8545 | J111: 8414.571209 | K111: =I111/D111 -> 4.876127801 | M111: =SUM(M7:M110) -> 101334.4512 | N111: =SUM(N7:N110) -> 0 | O111: =SUM(O7:O110) -> 3697.959785 | P111: =SUM(P7:P110) -> 105032.411 | Q111: =SUM(Q7:Q110) -> 8752.700918 | R111: =P111/D111 -> 5.072069298
A112: VIEW
A113: VIEW | C113: Notes:
A114: =IF(C4="Tacoma Rhodes","VIEW","HIDE") -> HIDE | C114: o Tacoma Rhodes: This building was recently sold to private ownership. DES will work with OFM to have this building removed from the CSM in the Supplemental 22 Budget.
A115: VIEW | C115: o Campus Contracts (CC) is invoiced in three parts:
A116: VIEW | C116: 1) CC Bldg pays for CC services within the buildings (see rent tab)
A117: VIEW | C117: 2) CC Parking pays for CC services within parking garages and lots (see Other Facility Related Costs tab)
A118: VIEW | C118: 3) CC PHF pays for CC services in public & historic spaces (see Other Facility Related Costs tab) Note* Public and Historic Facilities may not be eligible for Federal Funding or Reimbursement
A119: VIEW | C119: o Facilities and Services charges for the House (011), Sentate (012), LSS (037), LSC (038) and Statute Law (040) for traditionally "on-campus" buildings are funded by an appropriation to DES and will not be invoiced.
A120: VIEW
A121: VIEW
A122: VIEW | I122: Prepared by DES Budget, Finance Division. For question relating to CSM charges from DES, please contact DES Budget, desbudget@des.wa.gov
A123: VIEW
A124: VIEW
A125: VIEW
A126: VIEW
A127: VIEW
A128: VIEW
A129: VIEW
A130: VIEW
A131: VIEW
A132: VIEW
A133: VIEW
A134: VIEW
A135: VIEW
A136: VIEW
A137: VIEW
A138: VIEW
A139: VIEW
A140: VIEW
A141: VIEW
A142: VIEW
A143: VIEW
A144: VIEW
A145: VIEW

Sheet Other Facility Related Costs
A1: VIEW
A2: VIEW | C2: Other Facility related Costs in the Central Service Model | P2: Department of Enterprise Services
A3: VIEW | C3: Agency | P3: scroll right for FY23 è
A4: VIEW | C4: 011 - House of Representatives | G4: ç Select Agency Here
A5: VIEW | F5: Fiscal Year 22 | R5: Fiscal Year 23
A6: VIEW | C6: Building | D6: occupied RSF | E6: Thurston FTEs | G6: Parking Surcharge | H6: Capital Project Surcharge | I6: Campus Contracts CSM (Parking) | J6: Campus Contracts CSM (PHF) | K6: Public Historic Facilities | L6: Perry St. & Capitol Childcare | M6: Security on Campus | N6: TOTAL Annual Cost | O6: Monthly Charge | P6: Rate/(RSF or Thurston FTE) | R6: Parking Surcharge | S6: Capital Project Surcharge | T6: Campus Contracts CSM (Parking) | U6: Campus Contracts CSM (PHF) | V6: Public Historic Facilities | W6: Perry St. & Capitol Childcare | X6: Security on Campus | Y6: TOTAL RENT Annual Cost | Z6: Monthly Charge | AA6: Rate/(RSF or Thurston FTE)
A7: =IF(D7=0,"HIDE","VIEW") -> HIDE | C7: Cherberg | D7: =VLOOKUP($C$4,'Building RSF'!$A$3:$AK$109,MATCH($C7,'Building RSF'!$A$3:$AK$3,0),FALSE) -> 0 | G7: =VLOOKUP($C$4,'Park Dollars FY22'!$A$3:$AL$113,MATCH($C7,'Park Dollars FY22'!$A$4:$AL$4,0),FALSE) -> 0 | H7: =VLOOKUP($C$4,'CPS Dollars FY22'!$A$4:$AL$109,MATCH($C7,'Park Dollars FY22'!$A$4:$AL$4,0),FALSE) -> 0 | I7: =VLOOKUP($C$4,'CC park dollars FY22'!$B$5:$AR$112,MATCH($C7,'CC park dollars FY22'!$B$6:$AR$6,0),FALSE) -> 0 | M7: =VLOOKUP($C$4,'Security Dollars FY22'!$A$2:$AL$108,MATCH($C7,'Security Dollars FY22'!$A$3:$AL$3,0),FALSE) -> 0 | N7: =SUM(G7:M7) -> 0 | O7: =N7/12 -> 0 | P7: =IFERROR(N7/D7,0) -> 0 | R7: =VLOOKUP($C$4,'Park Dollars FY23'!$A$3:$AL$113,MATCH($C7,'Park Dollars FY23'!$A$4:$AL$4,0),FALSE) -> 0 | S7: =VLOOKUP($C$4,'CPS Dollars FY23'!$A$4:$AL$109,MATCH($C7,'Park Dollars FY23'!$A$4:$AL$4,0),FALSE) -> 0 | T7: =VLOOKUP($C$4,'CC park dollars FY23'!$B$5:$AR$112,MATCH($C7,'CC park dollars FY23'!$B$6:$AR$6,0),FALSE) -> 0 | X7: =VLOOKUP($C$4,'Security Dollars FY23'!$A$2:$AL$108,MATCH($C7,'Security Dollars FY23'!$A$3:$AL$3,0),FALSE) -> 0 | Y7: =SUM(R7:X7) -> 0 | Z7: =Y7/12 -> 0 | AA7: =IFERROR(Y7/D7,0) -> 0
A8: =IF(D8=0,"HIDE","VIEW") -> VIEW | C8: O'Brien | D8: =VLOOKUP($C$4,'Building RSF'!$A$3:$AK$109,MATCH($C8,'Building RSF'!$A$3:$AK$3,0),FALSE) -> 78594 | G8: =VLOOKUP($C$4,'Park Dollars FY22'!$A$3:$AL$113,MATCH($C8,'Park Dollars FY22'!$A$4:$AL$4,0),FALSE) -> 30189.10742 | H8: =VLOOKUP($C$4,'CPS Dollars FY22'!$A$4:$AL$109,MATCH($C8,'Park Dollars FY22'!$A$4:$AL$4,0),FALSE) -> 94055.1229 | I8: =VLOOKUP($C$4,'CC park dollars FY22'!$B$5:$AR$112,MATCH($C8,'CC park dollars FY22'!$B$6:$AR$6,0),FALSE) -> 4796.496639 | M8: =VLOOKUP($C$4,'Security Dollars FY22'!$A$2:$AL$108,MATCH($C8,'Security Dollars FY22'!$A$3:$AL$3,0),FALSE) -> 157645.6095 | N8: =SUM(G8:M8) -> 286686.3365 | O8: =N8/12 -> 23890.52804 | P8: =IFERROR(N8/D8,0) -> 3.647687311 | R8: =VLOOKUP($C$4,'Park Dollars FY23'!$A$3:$AL$113,MATCH($C8,'Park Dollars FY23'!$A$4:$AL$4,0),FALSE) -> 31563.54118 | S8: =VLOOKUP($C$4,'CPS Dollars FY23'!$A$4:$AL$109,MATCH($C8,'Park Dollars FY23'!$A$4:$AL$4,0),FALSE) -> 94077.42555 | T8: =VLOOKUP($C$4,'CC park dollars FY23'!$B$5:$AR$112,MATCH($C8,'CC park dollars FY23'!$B$6:$AR$6,0),FALSE) -> 4862.683251 | X8: =VLOOKUP($C$4,'Security Dollars FY23'!$A$2:$AL$108,MATCH($C8,'Security Dollars FY23'!$A$3:$AL$3,0),FALSE) -> 127541.9465 | Y8: 258045.5964 | Z8: =Y8/12 -> 21503.7997 | AA8: 3.283273487
A9: VIEW | C9: Legislative | D9: =VLOOKUP($C$4,'Building RSF'!$A$3:$AK$109,MATCH($C9,'Building RSF'!$A$3:$AK$3,0),FALSE) -> 45304 | G9: =VLOOKUP($C$4,'Park Dollars FY22'!$A$3:$AL$113,MATCH($C9,'Park Dollars FY22'!$A$4:$AL$4,0),FALSE) -> 17401.93046 | H9: =VLOOKUP($C$4,'CPS Dollars FY22'!$A$4:$AL$109,MATCH($C9,'Park Dollars FY22'!$A$4:$AL$4,0),FALSE) -> 129576.8781 | I9: =VLOOKUP($C$4,'CC park dollars FY22'!$B$5:$AR$112,MATCH($C9,'CC park dollars FY22'!$B$6:$AR$6,0),FALSE) -> 2764.848255 | M9: =VLOOKUP($C$4,'Security Dollars FY22'!$A$2:$AL$108,MATCH($C9,'Security Dollars FY22'!$A$3:$AL$3,0),FALSE) -> 188040.0624 | N9: 337783.7192 | O9: 28148.64326 | P9: 7.455935881 | R9: =VLOOKUP($C$4,'Park Dollars FY23'!$A$3:$AL$113,MATCH($C9,'Park Dollars FY23'!$A$4:$AL$4,0),FALSE) -> 18194.19637 | S9: =VLOOKUP($C$4,'CPS Dollars FY23'!$A$4:$AL$109,MATCH($C9,'Park Dollars FY23'!$A$4:$AL$4,0),FALSE) -> 129607.6038 | T9: =VLOOKUP($C$4,'CC park dollars FY23'!$B$5:$AR$112,MATCH($C9,'CC park dollars FY23'!$B$6:$AR$6,0),FALSE) -> 2803.000254 | X9: =VLOOKUP($C$4,'Security Dollars FY23'!$A$2:$AL$108,MATCH($C9,'Security Dollars FY23'!$A$3:$AL$3,0),FALSE) -> 152132.3406 | Y9: 302737.141 | Z9: 25228.09509 | AA9: 6.682349043
A10: HIDE | C10: Pritchard | D10: =VLOOKUP($C$4,'Building RSF'!$A$3:$AK$109,MATCH($C10,'Building RSF'!$A$3:$AK$3,0),FALSE) -> 0 | G10: =VLOOKUP($C$4,'Park Dollars FY22'!$A$3:$AL$113,MATCH($C10,'Park Dollars FY22'!$A$4:$AL$4,0),FALSE) -> 0 | H10: =VLOOKUP($C$4,'CPS Dollars FY22'!$A$4:$AL$109,MATCH($C10,'Park Dollars FY22'!$A$4:$AL$4,0),FALSE) -> 0 | I10: =VLOOKUP($C$4,'CC park dollars FY22'!$B$5:$AR$112,MATCH($C10,'CC park dollars FY22'!$B$6:$AR$6,0),FALSE) -> 0 | M10: =VLOOKUP($C$4,'Security Dollars FY22'!$A$2:$AL$108,MATCH($C10,'Security Dollars FY22'!$A$3:$AL$3,0),FALSE) -> 0 | N10: 0 | O10: 0 | P10: 0 | R10: =VLOOKUP($C$4,'Park Dollars FY23'!$A$3:$AL$113,MATCH($C10,'Park Dollars FY23'!$A$4:$AL$4,0),FALSE) -> 0 | S10: =VLOOKUP($C$4,'CPS Dollars FY23'!$A$4:$AL$109,MATCH($C10,'Park Dollars FY23'!$A$4:$AL$4,0),FALSE) -> 0 | T10: =VLOOKUP($C$4,'CC park dollars FY23'!$B$5:$AR$112,MATCH($C10,'CC park dollars FY23'!$B$6:$AR$6,0),FALSE) -> 0 | X10: =VLOOKUP($C$4,'Security Dollars FY23'!$A$2:$AL$108,MATCH($C10,'Security Dollars FY23'!$A$3:$AL$3,0),FALSE) -> 0 | Y10: 0 | Z10: 0 | AA10: 0
A11: HIDE | C11: HLB | D11: =VLOOKUP($C$4,'Building RSF'!$A$3:$AK$109,MATCH($C11,'Building RSF'!$A$3:$AK$3,0),FALSE) -> 0 | G11: =VLOOKUP($C$4,'Park Dollars FY22'!$A$3:$AL$113,MATCH($C11,'Park Dollars FY22'!$A$4:$AL$4,0),FALSE) -> 0 | H11: =VLOOKUP($C$4,'CPS Dollars FY22'!$A$4:$AL$109,MATCH($C11,'Park Dollars FY22'!$A$4:$AL$4,0),FALSE) -> 0 | I11: =VLOOKUP($C$4,'CC park dollars FY22'!$B$5:$AR$112,MATCH($C11,'CC park dollars FY22'!$B$6:$AR$6,0),FALSE) -> 0 | M11: =VLOOKUP($C$4,'Security Dollars FY22'!$A$2:$AL$108,MATCH($C11,'Security Dollars FY22'!$A$3:$AL$3,0),FALSE) -> 0 | N11: 0 | O11: 0 | P11: 0 | R11: =VLOOKUP($C$4,'Park Dollars FY23'!$A$3:$AL$113,MATCH($C11,'Park Dollars FY23'!$A$4:$AL$4,0),FALSE) -> 0 | S11: =VLOOKUP($C$4,'CPS Dollars FY23'!$A$4:$AL$109,MATCH($C11,'Park Dollars FY23'!$A$4:$AL$4,0),FALSE) -> 0 | T11: =VLOOKUP($C$4,'CC park dollars FY23'!$B$5:$AR$112,MATCH($C11,'CC park dollars FY23'!$B$6:$AR$6,0),FALSE) -> 0 | X11: =VLOOKUP($C$4,'Security Dollars FY23'!$A$2:$AL$108,MATCH($C11,'Security Dollars FY23'!$A$3:$AL$3,0),FALSE) -> 0 | Y11: 0 | Z11: 0 | AA11: 0
A12: HIDE | C12: OB2 | D12: =VLOOKUP($C$4,'Building RSF'!$A$3:$AK$109,MATCH($C12,'Building RSF'!$A$3:$AK$3,0),FALSE) -> 0 | G12: =VLOOKUP($C$4,'Park Dollars FY22'!$A$3:$AL$113,MATCH($C12,'Park Dollars FY22'!$A$4:$AL$4,0),FALSE) -> 0 | H12: =VLOOKUP($C$4,'CPS Dollars FY22'!$A$4:$AL$109,MATCH($C12,'Park Dollars FY22'!$A$4:$AL$4,0),FALSE) -> 0 | I12: =VLOOKUP($C$4,'CC park dollars FY22'!$B$5:$AR$112,MATCH($C12,'CC park dollars FY22'!$B$6:$AR$6,0),FALSE) -> 0 | M12: =VLOOKUP($C$4,'Security Dollars FY22'!$A$2:$AL$108,MATCH($C12,'Security Dollars FY22'!$A$3:$AL$3,0),FALSE) -> 0 | N12: 0 | O12: 0 | P12: 0 | R12: =VLOOKUP($C$4,'Park Dollars FY23'!$A$3:$AL$113,MATCH($C12,'Park Dollars FY23'!$A$4:$AL$4,0),FALSE) -> 0 | S12: =VLOOKUP($C$4,'CPS Dollars FY23'!$A$4:$AL$109,MATCH($C12,'Park Dollars FY23'!$A$4:$AL$4,0),FALSE) -> 0 | T12: =VLOOKUP($C$4,'CC park dollars FY23'!$B$5:$AR$112,MATCH($C12,'CC park dollars FY23'!$B$6:$AR$6,0),FALSE) -> 0 | X12: =VLOOKUP($C$4,'Security Dollars FY23'!$A$2:$AL$108,MATCH($C12,'Security Dollars FY23'!$A$3:$AL$3,0),FALSE) -> 0 | Y12: 0 | Z12: 0 | AA12: 0
A13: HIDE | C13: Archives | D13: =VLOOKUP($C$4,'Building RSF'!$A$3:$AK$109,MATCH($C13,'Building RSF'!$A$3:$AK$3,0),FALSE) -> 0 | G13: =VLOOKUP($C$4,'Park Dollars FY22'!$A$3:$AL$113,MATCH($C13,'Park Dollars FY22'!$A$4:$AL$4,0),FALSE) -> 0 | H13: =VLOOKUP($C$4,'CPS Dollars FY22'!$A$4:$AL$109,MATCH($C13,'Park Dollars FY22'!$A$4:$AL$4,0),FALSE) -> 0 | I13: =VLOOKUP($C$4,'CC park dollars FY22'!$B$5:$AR$112,MATCH($C13,'CC park dollars FY22'!$B$6:$AR$6,0),FALSE) -> 0 | M13: =VLOOKUP($C$4,'Security Dollars FY22'!$A$2:$AL$108,MATCH($C13,'Security Dollars FY22'!$A$3:$AL$3,0),FALSE) -> 0 | N13: 0 | O13: 0 | P13: 0 | R13: =VLOOKUP($C$4,'Park Dollars FY23'!$A$3:$AL$113,MATCH($C13,'Park Dollars FY23'!$A$4:$AL$4,0),FALSE) -> 0 | S13: =VLOOKUP($C$4,'CPS Dollars FY23'!$A$4:$AL$109,MATCH($C13,'Park Dollars FY23'!$A$4:$AL$4,0),FALSE) -> 0 | T13: =VLOOKUP($C$4,'CC park dollars FY23'!$B$5:$AR$112,MATCH($C13,'CC park dollars FY23'!$B$6:$AR$6,0),FALSE) -> 0 | X13: =VLOOKUP($C$4,'Security Dollars FY23'!$A$2:$AL$108,MATCH($C13,'Security Dollars FY23'!$A$3:$AL$3,0),FALSE) -> 0 | Y13: 0 | Z13: 0 | AA13: 0
A14: HIDE | C14: NRB | D14: =VLOOKUP($C$4,'Building RSF'!$A$3:$AK$109,MATCH($C14,'Building RSF'!$A$3:$AK$3,0),FALSE) -> 0 | G14: =VLOOKUP($C$4,'Park Dollars FY22'!$A$3:$AL$113,MATCH($C14,'Park Dollars FY22'!$A$4:$AL$4,0),FALSE) -> 0 | H14: =VLOOKUP($C$4,'CPS Dollars FY22'!$A$4:$AL$109,MATCH($C14,'Park Dollars FY22'!$A$4:$AL$4,0),FALSE) -> 0 | I14: =VLOOKUP($C$4,'CC park dollars FY22'!$B$5:$AR$112,MATCH($C14,'CC park dollars FY22'!$B$6:$AR$6,0),FALSE) -> 0 | M14: =VLOOKUP($C$4,'Security Dollars FY22'!$A$2:$AL$108,MATCH($C14,'Security Dollars FY22'!$A$3:$AL$3,0),FALSE) -> 0 | N14: 0 | O14: 0 | P14: 0 | R14: =VLOOKUP($C$4,'Park Dollars FY23'!$A$3:$AL$113,MATCH($C14,'Park Dollars FY23'!$A$4:$AL$4,0),FALSE) -> 0 | S14: =VLOOKUP($C$4,'CPS Dollars FY23'!$A$4:$AL$109,MATCH($C14,'Park Dollars FY23'!$A$4:$AL$4,0),FALSE) -> 0 | T14: =VLOOKUP($C$4,'CC park dollars FY23'!$B$5:$AR$112,MATCH($C14,'CC park dollars FY23'!$B$6:$AR$6,0),FALSE) -> 0 | X14: =VLOOKUP($C$4,'Security Dollars FY23'!$A$2:$AL$108,MATCH($C14,'Security Dollars FY23'!$A$3:$AL$3,0),FALSE) -> 0 | Y14: 0 | Z14: 0 | AA14: 0
A15: HIDE | C15: Emp Sec | D15: =VLOOKUP($C$4,'Building RSF'!$A$3:$AK$109,MATCH($C15,'Building RSF'!$A$3:$AK$3,0),FALSE) -> 0 | G15: =VLOOKUP($C$4,'Park Dollars FY22'!$A$3:$AL$113,MATCH($C15,'Park Dollars FY22'!$A$4:$AL$4,0),FALSE) -> 0 | H15: =VLOOKUP($C$4,'CPS Dollars FY22'!$A$4:$AL$109,MATCH($C15,'Park Dollars FY22'!$A$4:$AL$4,0),FALSE) -> 0 | I15: =VLOOKUP($C$4,'CC park dollars FY22'!$B$5:$AR$112,MATCH($C15,'CC park dollars FY22'!$B$6:$AR$6,0),FALSE) -> 0 | M15: =VLOOKUP($C$4,'Security Dollars FY22'!$A$2:$AL$108,MATCH($C15,'Security Dollars FY22'!$A$3:$AL$3,0),FALSE) -> 0 | N15: 0 | O15: 0 | P15: 0 | R15: =VLOOKUP($C$4,'Park Dollars FY23'!$A$3:$AL$113,MATCH($C15,'Park Dollars FY23'!$A$4:$AL$4,0),FALSE) -> 0 | S15: =VLOOKUP($C$4,'CPS Dollars FY23'!$A$4:$AL$109,MATCH($C15,'Park Dollars FY23'!$A$4:$AL$4,0),FALSE) -> 0 | T15: =VLOOKUP($C$4,'CC park dollars FY23'!$B$5:$AR$112,MATCH($C15,'CC park dollars FY23'!$B$6:$AR$6,0),FALSE) -> 0 | X15: =VLOOKUP($C$4,'Security Dollars FY23'!$A$2:$AL$108,MATCH($C15,'Security Dollars FY23'!$A$3:$AL$3,0),FALSE) -> 0 | Y15: 0 | Z15: 0 | AA15: 0
A16: HIDE | C16: Transportation | D16: =VLOOKUP($C$4,'Building RSF'!$A$3:$AK$109,MATCH($C16,'Building RSF'!$A$3:$AK$3,0),FALSE) -> 0 | G16: =VLOOKUP($C$4,'Park Dollars FY22'!$A$3:$AL$113,MATCH($C16,'Park Dollars FY22'!$A$4:$AL$4,0),FALSE) -> 0 | H16: =VLOOKUP($C$4,'CPS Dollars FY22'!$A$4:$AL$109,MATCH($C16,'Park Dollars FY22'!$A$4:$AL$4,0),FALSE) -> 0 | I16: =VLOOKUP($C$4,'CC park dollars FY22'!$B$5:$AR$112,MATCH($C16,'CC park dollars FY22'!$B$6:$AR$6,0),FALSE) -> 0 | M16: =VLOOKUP($C$4,'Security Dollars FY22'!$A$2:$AL$108,MATCH($C16,'Security Dollars FY22'!$A$3:$AL$3,0),FALSE) -> 0 | N16: 0 | O16: 0 | P16: 0 | R16: =VLOOKUP($C$4,'Park Dollars FY23'!$A$3:$AL$113,MATCH($C16,'Park Dollars FY23'!$A$4:$AL$4,0),FALSE) -> 0 | S16: =VLOOKUP($C$4,'CPS Dollars FY23'!$A$4:$AL$109,MATCH($C16,'Park Dollars FY23'!$A$4:$AL$4,0),FALSE) -> 0 | T16: =VLOOKUP($C$4,'CC park dollars FY23'!$B$5:$AR$112,MATCH($C16,'CC park dollars FY23'!$B$6:$AR$6,0),FALSE) -> 0 | X16: =VLOOKUP($C$4,'Security Dollars FY23'!$A$2:$AL$108,MATCH($C16,'Security Dollars FY23'!$A$3:$AL$3,0),FALSE) -> 0 | Y16: 0 | Z16: 0 | AA16: 0
A17: HIDE | C17: Insurance | D17: =VLOOKUP($C$4,'Building RSF'!$A$3:$AK$109,MATCH($C17,'Building RSF'!$A$3:$AK$3,0),FALSE) -> 0 | G17: =VLOOKUP($C$4,'Park Dollars FY22'!$A$3:$AL$113,MATCH($C17,'Park Dollars FY22'!$A$4:$AL$4,0),FALSE) -> 0 | H17: =VLOOKUP($C$4,'CPS Dollars FY22'!$A$4:$AL$109,MATCH($C17,'Park Dollars FY22'!$A$4:$AL$4,0),FALSE) -> 0 | I17: =VLOOKUP($C$4,'CC park dollars FY22'!$B$5:$AR$112,MATCH($C17,'CC park dollars FY22'!$B$6:$AR$6,0),FALSE) -> 0 | M17: =VLOOKUP($C$4,'Security Dollars FY22'!$A$2:$AL$108,MATCH($C17,'Security Dollars FY22'!$A$3:$AL$3,0),FALSE) -> 0 | N17: 0 | O17: 0 | P17: 0 | R17: =VLOOKUP($C$4,'Park Dollars FY23'!$A$3:$AL$113,MATCH($C17,'Park Dollars FY23'!$A$4:$AL$4,0),FALSE) -> 0 | S17: =VLOOKUP($C$4,'CPS Dollars FY23'!$A$4:$AL$109,MATCH($C17,'Park Dollars FY23'!$A$4:$AL$4,0),FALSE) -> 0 | T17: =VLOOKUP($C$4,'CC park dollars FY23'!$B$5:$AR$112,MATCH($C17,'CC park dollars FY23'!$B$6:$AR$6,0),FALSE) -> 0 | X17: =VLOOKUP($C$4,'Security Dollars FY23'!$A$2:$AL$108,MATCH($C17,'Security Dollars FY23'!$A$3:$AL$3,0),FALSE) -> 0 | Y17: 0 | Z17: 0 | AA17: 0
A18: HIDE | C18: Old Cap | D18: =VLOOKUP($C$4,'Building RSF'!$A$3:$AK$109,MATCH($C18,'Building RSF'!$A$3:$AK$3,0),FALSE) -> 0 | G18: =VLOOKUP($C$4,'Park Dollars FY22'!$A$3:$AL$113,MATCH($C18,'Park Dollars FY22'!$A$4:$AL$4,0),FALSE) -> 0 | H18: =VLOOKUP($C$4,'CPS Dollars FY22'!$A$4:$AL$109,MATCH($C18,'Park Dollars FY22'!$A$4:$AL$4,0),FALSE) -> 0 | I18: =VLOOKUP($C$4,'CC park dollars FY22'!$B$5:$AR$112,MATCH($C18,'CC park dollars FY22'!$B$6:$AR$6,0),FALSE) -> 0 | M18: =VLOOKUP($C$4,'Security Dollars FY22'!$A$2:$AL$108,MATCH($C18,'Security Dollars FY22'!$A$3:$AL$3,0),FALSE) -> 0 | N18: 0 | O18: 0 | P18: 0 | R18: =VLOOKUP($C$4,'Park Dollars FY23'!$A$3:$AL$113,MATCH($C18,'Park Dollars FY23'!$A$4:$AL$4,0),FALSE) -> 0 | S18: =VLOOKUP($C$4,'CPS Dollars FY23'!$A$4:$AL$109,MATCH($C18,'Park Dollars FY23'!$A$4:$AL$4,0),FALSE) -> 0 | T18: =VLOOKUP($C$4,'CC park dollars FY23'!$B$5:$AR$112,MATCH($C18,'CC park dollars FY23'!$B$6:$AR$6,0),FALSE) -> 0 | X18: =VLOOKUP($C$4,'Security Dollars FY23'!$A$2:$AL$108,MATCH($C18,'Security Dollars FY23'!$A$3:$AL$3,0),FALSE) -> 0 | Y18: 0 | Z18: 0 | AA18: 0
A19: HIDE | C19: TOJ | D19: =VLOOKUP($C$4,'Building RSF'!$A$3:$AK$109,MATCH($C19,'Building RSF'!$A$3:$AK$3,0),FALSE) -> 0 | G19: =VLOOKUP($C$4,'Park Dollars FY22'!$A$3:$AL$113,MATCH($C19,'Park Dollars FY22'!$A$4:$AL$4,0),FALSE) -> 0 | H19: =VLOOKUP($C$4,'CPS Dollars FY22'!$A$4:$AL$109,MATCH($C19,'Park Dollars FY22'!$A$4:$AL$4,0),FALSE) -> 0 | I19: =VLOOKUP($C$4,'CC park dollars FY22'!$B$5:$AR$112,MATCH($C19,'CC park dollars FY22'!$B$6:$AR$6,0),FALSE) -> 0 | M19: =VLOOKUP($C$4,'Security Dollars FY22'!$A$2:$AL$108,MATCH($C19,'Security Dollars FY22'!$A$3:$AL$3,0),FALSE) -> 0 | N19: 0 | O19: 0 | P19: 0 | R19: =VLOOKUP($C$4,'Park Dollars FY23'!$A$3:$AL$113,MATCH($C19,'Park Dollars FY23'!$A$4:$AL$4,0),FALSE) -> 0 | S19: =VLOOKUP($C$4,'CPS Dollars FY23'!$A$4:$AL$109,MATCH($C19,'Park Dollars FY23'!$A$4:$AL$4,0),FALSE) -> 0 | T19: =VLOOKUP($C$4,'CC park dollars FY23'!$B$5:$AR$112,MATCH($C19,'CC park dollars FY23'!$B$6:$AR$6,0),FALSE) -> 0 | X19: =VLOOKUP($C$4,'Security Dollars FY23'!$A$2:$AL$108,MATCH($C19,'Security Dollars FY23'!$A$3:$AL$3,0),FALSE) -> 0 | Y19: 0 | Z19: 0 | AA19: 0
A20: HIDE | C20: Newhouse | D20: =VLOOKUP($C$4,'Building RSF'!$A$3:$AK$109,MATCH($C20,'Building RSF'!$A$3:$AK$3,0),FALSE) -> 0 | G20: =VLOOKUP($C$4,'Park Dollars FY22'!$A$3:$AL$113,MATCH($C20,'Park Dollars FY22'!$A$4:$AL$4,0),FALSE) -> 0 | H20: =VLOOKUP($C$4,'CPS Dollars FY22'!$A$4:$AL$109,MATCH($C20,'Park Dollars FY22'!$A$4:$AL$4,0),FALSE) -> 0 | I20: =VLOOKUP($C$4,'CC park dollars FY22'!$B$5:$AR$112,MATCH($C20,'CC park dollars FY22'!$B$6:$AR$6,0),FALSE) -> 0 | M20: =VLOOKUP($C$4,'Security Dollars FY22'!$A$2:$AL$108,MATCH($C20,'Security Dollars FY22'!$A$3:$AL$3,0),FALSE) -> 0 | N20: 0 | O20: 0 | P20: 0 | R20: =VLOOKUP($C$4,'Park Dollars FY23'!$A$3:$AL$113,MATCH($C20,'Park Dollars FY23'!$A$4:$AL$4,0),FALSE) -> 0 | S20: =VLOOKUP($C$4,'CPS Dollars FY23'!$A$4:$AL$109,MATCH($C20,'Park Dollars FY23'!$A$4:$AL$4,0),FALSE) -> 0 | T20: =VLOOKUP($C$4,'CC park dollars FY23'!$B$5:$AR$112,MATCH($C20,'CC park dollars FY23'!$B$6:$AR$6,0),FALSE) -> 0 | X20: =VLOOKUP($C$4,'Security Dollars FY23'!$A$2:$AL$108,MATCH($C20,'Security Dollars FY23'!$A$3:$AL$3,0),FALSE) -> 0 | Y20: 0 | Z20: 0 | AA20: 0
A21: HIDE | C21: Modular Bldg | D21: =VLOOKUP($C$4,'Building RSF'!$A$3:$AK$109,MATCH($C21,'Building RSF'!$A$3:$AK$3,0),FALSE) -> 0 | G21: =VLOOKUP($C$4,'Park Dollars FY22'!$A$3:$AL$113,MATCH($C21,'Park Dollars FY22'!$A$4:$AL$4,0),FALSE) -> 0 | H21: =VLOOKUP($C$4,'CPS Dollars FY22'!$A$4:$AL$109,MATCH($C21,'Park Dollars FY22'!$A$4:$AL$4,0),FALSE) -> 0 | I21: =VLOOKUP($C$4,'CC park dollars FY22'!$B$5:$AR$112,MATCH($C21,'CC park dollars FY22'!$B$6:$AR$6,0),FALSE) -> 0 | M21: =VLOOKUP($C$4,'Security Dollars FY22'!$A$2:$AL$108,MATCH($C21,'Security Dollars FY22'!$A$3:$AL$3,0),FALSE) -> 0 | N21: 0 | O21: 0 | P21: 0 | R21: =VLOOKUP($C$4,'Park Dollars FY23'!$A$3:$AL$113,MATCH($C21,'Park Dollars FY23'!$A$4:$AL$4,0),FALSE) -> 0 | S21: =VLOOKUP($C$4,'CPS Dollars FY23'!$A$4:$AL$109,MATCH($C21,'Park Dollars FY23'!$A$4:$AL$4,0),FALSE) -> 0 | T21: =VLOOKUP($C$4,'CC park dollars FY23'!$B$5:$AR$112,MATCH($C21,'CC park dollars FY23'!$B$6:$AR$6,0),FALSE) -> 0 | X21: =VLOOKUP($C$4,'Security Dollars FY23'!$A$2:$AL$108,MATCH($C21,'Security Dollars FY23'!$A$3:$AL$3,0),FALSE) -> 0 | Y21: 0 | Z21: 0 | AA21: 0
A22: HIDE | C22: Isabella Bush | D22: =VLOOKUP($C$4,'Building RSF'!$A$3:$AK$109,MATCH($C22,'Building RSF'!$A$3:$AK$3,0),FALSE) -> 0 | G22: =VLOOKUP($C$4,'Park Dollars FY22'!$A$3:$AL$113,MATCH($C22,'Park Dollars FY22'!$A$4:$AL$4,0),FALSE) -> 0 | H22: =VLOOKUP($C$4,'CPS Dollars FY22'!$A$4:$AL$109,MATCH($C22,'Park Dollars FY22'!$A$4:$AL$4,0),FALSE) -> 0 | I22: =VLOOKUP($C$4,'CC park dollars FY22'!$B$5:$AR$112,MATCH($C22,'CC park dollars FY22'!$B$6:$AR$6,0),FALSE) -> 0 | M22: =VLOOKUP($C$4,'Security Dollars FY22'!$A$2:$AL$108,MATCH($C22,'Security Dollars FY22'!$A$3:$AL$3,0),FALSE) -> 0 | N22: 0 | O22: 0 | P22: 0 | R22: =VLOOKUP($C$4,'Park Dollars FY23'!$A$3:$AL$113,MATCH($C22,'Park Dollars FY23'!$A$4:$AL$4,0),FALSE) -> 0 | S22: =VLOOKUP($C$4,'CPS Dollars FY23'!$A$4:$AL$109,MATCH($C22,'Park Dollars FY23'!$A$4:$AL$4,0),FALSE) -> 0 | T22: =VLOOKUP($C$4,'CC park dollars FY23'!$B$5:$AR$112,MATCH($C22,'CC park dollars FY23'!$B$6:$AR$6,0),FALSE) -> 0 | X22: =VLOOKUP($C$4,'Security Dollars FY23'!$A$2:$AL$108,MATCH($C22,'Security Dollars FY23'!$A$3:$AL$3,0),FALSE) -> 0 | Y22: 0 | Z22: 0 | AA22: 0
A23: HIDE | C23: 1007 Washington | D23: =VLOOKUP($C$4,'Building RSF'!$A$3:$AK$109,MATCH($C23,'Building RSF'!$A$3:$AK$3,0),FALSE) -> 0 | G23: =VLOOKUP($C$4,'Park Dollars FY22'!$A$3:$AL$113,MATCH($C23,'Park Dollars FY22'!$A$4:$AL$4,0),FALSE) -> 0 | H23: =VLOOKUP($C$4,'CPS Dollars FY22'!$A$4:$AL$109,MATCH($C23,'Park Dollars FY22'!$A$4:$AL$4,0),FALSE) -> 0 | I23: =VLOOKUP($C$4,'CC park dollars FY22'!$B$5:$AR$112,MATCH($C23,'CC park dollars FY22'!$B$6:$AR$6,0),FALSE) -> 0 | M23: =VLOOKUP($C$4,'Security Dollars FY22'!$A$2:$AL$108,MATCH($C23,'Security Dollars FY22'!$A$3:$AL$3,0),FALSE) -> 0 | N23: 0 | O23: 0 | P23: 0 | R23: =VLOOKUP($C$4,'Park Dollars FY23'!$A$3:$AL$113,MATCH($C23,'Park Dollars FY23'!$A$4:$AL$4,0),FALSE) -> 0 | S23: =VLOOKUP($C$4,'CPS Dollars FY23'!$A$4:$AL$109,MATCH($C23,'Park Dollars FY23'!$A$4:$AL$4,0),FALSE) -> 0 | T23: =VLOOKUP($C$4,'CC park dollars FY23'!$B$5:$AR$112,MATCH($C23,'CC park dollars FY23'!$B$6:$AR$6,0),FALSE) -> 0 | X23: =VLOOKUP($C$4,'Security Dollars FY23'!$A$2:$AL$108,MATCH($C23,'Security Dollars FY23'!$A$3:$AL$3,0),FALSE) -> 0 | Y23: 0 | Z23: 0 | AA23: 0
A24: HIDE | C24: 120 E Union Avenue | D24: =VLOOKUP($C$4,'Building RSF'!$A$3:$AK$109,MATCH($C24,'Building RSF'!$A$3:$AK$3,0),FALSE) -> 0 | G24: =VLOOKUP($C$4,'Park Dollars FY22'!$A$3:$AL$113,MATCH($C24,'Park Dollars FY22'!$A$4:$AL$4,0),FALSE) -> 0 | H24: =VLOOKUP($C$4,'CPS Dollars FY22'!$A$4:$AL$109,MATCH($C24,'Park Dollars FY22'!$A$4:$AL$4,0),FALSE) -> 0 | I24: =VLOOKUP($C$4,'CC park dollars FY22'!$B$5:$AR$112,MATCH($C24,'CC park dollars FY22'!$B$6:$AR$6,0),FALSE) -> 0 | M24: =VLOOKUP($C$4,'Security Dollars FY22'!$A$2:$AL$108,MATCH($C24,'Security Dollars FY22'!$A$3:$AL$3,0),FALSE) -> 0 | N24: 0 | O24: 0 | P24: 0 | R24: =VLOOKUP($C$4,'Park Dollars FY23'!$A$3:$AL$113,MATCH($C24,'Park Dollars FY23'!$A$4:$AL$4,0),FALSE) -> 0 | S24: =VLOOKUP($C$4,'CPS Dollars FY23'!$A$4:$AL$109,MATCH($C24,'Park Dollars FY23'!$A$4:$AL$4,0),FALSE) -> 0 | T24: =VLOOKUP($C$4,'CC park dollars FY23'!$B$5:$AR$112,MATCH($C24,'CC park dollars FY23'!$B$6:$AR$6,0),FALSE) -> 0 | X24: =VLOOKUP($C$4,'Security Dollars FY23'!$A$2:$AL$108,MATCH($C24,'Security Dollars FY23'!$A$3:$AL$3,0),FALSE) -> 0 | Y24: 0 | Z24: 0 | AA24: 0
A25: HIDE | C25: Capital Court | D25: =VLOOKUP($C$4,'Building RSF'!$A$3:$AK$109,MATCH($C25,'Building RSF'!$A$3:$AK$3,0),FALSE) -> 0 | G25: =VLOOKUP($C$4,'Park Dollars FY22'!$A$3:$AL$113,MATCH($C25,'Park Dollars FY22'!$A$4:$AL$4,0),FALSE) -> 0 | H25: =VLOOKUP($C$4,'CPS Dollars FY22'!$A$4:$AL$109,MATCH($C25,'Park Dollars FY22'!$A$4:$AL$4,0),FALSE) -> 0 | I25: =VLOOKUP($C$4,'CC park dollars FY22'!$B$5:$AR$112,MATCH($C25,'CC park dollars FY22'!$B$6:$AR$6,0),FALSE) -> 0 | M25: =VLOOKUP($C$4,'Security Dollars FY22'!$A$2:$AL$108,MATCH($C25,'Security Dollars FY22'!$A$3:$AL$3,0),FALSE) -> 0 | N25: 0 | O25: 0 | P25: 0 | R25: =VLOOKUP($C$4,'Park Dollars FY23'!$A$3:$AL$113,MATCH($C25,'Park Dollars FY23'!$A$4:$AL$4,0),FALSE) -> 0 | S25: =VLOOKUP($C$4,'CPS Dollars FY23'!$A$4:$AL$109,MATCH($C25,'Park Dollars FY23'!$A$4:$AL$4,0),FALSE) -> 0 | T25: =VLOOKUP($C$4,'CC park dollars FY23'!$B$5:$AR$112,MATCH($C25,'CC park dollars FY23'!$B$6:$AR$6,0),FALSE) -> 0 | X25: =VLOOKUP($C$4,'Security Dollars FY23'!$A$2:$AL$108,MATCH($C25,'Security Dollars FY23'!$A$3:$AL$3,0),FALSE) -> 0 | Y25: 0 | Z25: 0 | AA25: 0
A26: HIDE | C26: James Dolliver Building | D26: =VLOOKUP($C$4,'Building RSF'!$A$3:$AK$109,MATCH($C26,'Building RSF'!$A$3:$AK$3,0),FALSE) -> 0 | G26: =VLOOKUP($C$4,'Park Dollars FY22'!$A$3:$AL$113,MATCH($C26,'Park Dollars FY22'!$A$4:$AL$4,0),FALSE) -> 0 | H26: =VLOOKUP($C$4,'CPS Dollars FY22'!$A$4:$AL$109,MATCH($C26,'Park Dollars FY22'!$A$4:$AL$4,0),FALSE) -> 0 | I26: =VLOOKUP($C$4,'CC park dollars FY22'!$B$5:$AR$112,MATCH($C26,'CC park dollars FY22'!$B$6:$AR$6,0),FALSE) -> 0 | M26: =VLOOKUP($C$4,'Security Dollars FY22'!$A$2:$AL$108,MATCH($C26,'Security Dollars FY22'!$A$3:$AL$3,0),FALSE) -> 0 | N26: 0 | O26: 0 | P26: 0 | R26: =VLOOKUP($C$4,'Park Dollars FY23'!$A$3:$AL$113,MATCH($C26,'Park Dollars FY23'!$A$4:$AL$4,0),FALSE) -> 0 | S26: =VLOOKUP($C$4,'CPS Dollars FY23'!$A$4:$AL$109,MATCH($C26,'Park Dollars FY23'!$A$4:$AL$4,0),FALSE) -> 0 | T26: =VLOOKUP($C$4,'CC park dollars FY23'!$B$5:$AR$112,MATCH($C26,'CC park dollars FY23'!$B$6:$AR$6,0),FALSE) -> 0 | X26: =VLOOKUP($C$4,'Security Dollars FY23'!$A$2:$AL$108,MATCH($C26,'Security Dollars FY23'!$A$3:$AL$3,0),FALSE) -> 0 | Y26: 0 | Z26: 0 | AA26: 0
A27: HIDE | C27: Undeveloped Properties | D27: =VLOOKUP($C$4,'Building RSF'!$A$3:$AK$109,MATCH($C27,'Building RSF'!$A$3:$AK$3,0),FALSE) -> 0 | G27: =VLOOKUP($C$4,'Park Dollars FY22'!$A$3:$AL$113,MATCH($C27,'Park Dollars FY22'!$A$4:$AL$4,0),FALSE) -> 0 | H27: =VLOOKUP($C$4,'CPS Dollars FY22'!$A$4:$AL$109,MATCH($C27,'Park Dollars FY22'!$A$4:$AL$4,0),FALSE) -> 0 | I27: =VLOOKUP($C$4,'CC park dollars FY22'!$B$5:$AR$112,MATCH($C27,'CC park dollars FY22'!$B$6:$AR$6,0),FALSE) -> 0 | M27: =VLOOKUP($C$4,'Security Dollars FY22'!$A$2:$AL$108,MATCH($C27,'Security Dollars FY22'!$A$3:$AL$3,0),FALSE) -> 0 | N27: 0 | O27: 0 | P27: 0 | R27: =VLOOKUP($C$4,'Park Dollars FY23'!$A$3:$AL$113,MATCH($C27,'Park Dollars FY23'!$A$4:$AL$4,0),FALSE) -> 0 | S27: =VLOOKUP($C$4,'CPS Dollars FY23'!$A$4:$AL$109,MATCH($C27,'Park Dollars FY23'!$A$4:$AL$4,0),FALSE) -> 0 | T27: =VLOOKUP($C$4,'CC park dollars FY23'!$B$5:$AR$112,MATCH($C27,'CC park dollars FY23'!$B$6:$AR$6,0),FALSE) -> 0 | X27: =VLOOKUP($C$4,'Security Dollars FY23'!$A$2:$AL$108,MATCH($C27,'Security Dollars FY23'!$A$3:$AL$3,0),FALSE) -> 0 | Y27: 0 | Z27: 0 | AA27: 0
A28: HIDE | C28: 1068 WA Street SE (ST Farm) | D28: =VLOOKUP($C$4,'Building RSF'!$A$3:$AK$109,MATCH($C28,'Building RSF'!$A$3:$AK$3,0),FALSE) -> 0 | G28: =VLOOKUP($C$4,'Park Dollars FY22'!$A$3:$AL$113,MATCH($C28,'Park Dollars FY22'!$A$4:$AL$4,0),FALSE) -> 0 | H28: =VLOOKUP($C$4,'CPS Dollars FY22'!$A$4:$AL$109,MATCH($C28,'Park Dollars FY22'!$A$4:$AL$4,0),FALSE) -> 0 | I28: =VLOOKUP($C$4,'CC park dollars FY22'!$B$5:$AR$112,MATCH($C28,'CC park dollars FY22'!$B$6:$AR$6,0),FALSE) -> 0 | M28: =VLOOKUP($C$4,'Security Dollars FY22'!$A$2:$AL$108,MATCH($C28,'Security Dollars FY22'!$A$3:$AL$3,0),FALSE) -> 0 | N28: 0 | O28: 0 | P28: 0 | R28: =VLOOKUP($C$4,'Park Dollars FY23'!$A$3:$AL$113,MATCH($C28,'Park Dollars FY23'!$A$4:$AL$4,0),FALSE) -> 0 | S28: =VLOOKUP($C$4,'CPS Dollars FY23'!$A$4:$AL$109,MATCH($C28,'Park Dollars FY23'!$A$4:$AL$4,0),FALSE) -> 0 | T28: =VLOOKUP($C$4,'CC park dollars FY23'!$B$5:$AR$112,MATCH($C28,'CC park dollars FY23'!$B$6:$AR$6,0),FALSE) -> 0 | X28: =VLOOKUP($C$4,'Security Dollars FY23'!$A$2:$AL$108,MATCH($C28,'Security Dollars FY23'!$A$3:$AL$3,0),FALSE) -> 0 | Y28: 0 | Z28: 0 | AA28: 0
A29: HIDE | C29: 232 Perry Street | D29: =VLOOKUP($C$4,'Building RSF'!$A$3:$AK$109,MATCH($C29,'Building RSF'!$A$3:$AK$3,0),FALSE) -> 0 | G29: =VLOOKUP($C$4,'Park Dollars FY22'!$A$3:$AL$113,MATCH($C29,'Park Dollars FY22'!$A$4:$AL$4,0),FALSE) -> 0 | H29: =VLOOKUP($C$4,'CPS Dollars FY22'!$A$4:$AL$109,MATCH($C29,'Park Dollars FY22'!$A$4:$AL$4,0),FALSE) -> 0 | I29: =VLOOKUP($C$4,'CC park dollars FY22'!$B$5:$AR$112,MATCH($C29,'CC park dollars FY22'!$B$6:$AR$6,0),FALSE) -> 0 | M29: =VLOOKUP($C$4,'Security Dollars FY22'!$A$2:$AL$108,MATCH($C29,'Security Dollars FY22'!$A$3:$AL$3,0),FALSE) -> 0 | N29: 0 | O29: 0 | P29: 0 | R29: =VLOOKUP($C$4,'Park Dollars FY23'!$A$3:$AL$113,MATCH($C29,'Park Dollars FY23'!$A$4:$AL$4,0),FALSE) -> 0 | S29: =VLOOKUP($C$4,'CPS Dollars FY23'!$A$4:$AL$109,MATCH($C29,'Park Dollars FY23'!$A$4:$AL$4,0),FALSE) -> 0 | T29: =VLOOKUP($C$4,'CC park dollars FY23'!$B$5:$AR$112,MATCH($C29,'CC park dollars FY23'!$B$6:$AR$6,0),FALSE) -> 0 | X29: =VLOOKUP($C$4,'Security Dollars FY23'!$A$2:$AL$108,MATCH($C29,'Security Dollars FY23'!$A$3:$AL$3,0),FALSE) -> 0 | Y29: 0 | Z29: 0 | AA29: 0
A30: HIDE | C30: 208 11th Avenue SE (Pro Arts) | D30: =VLOOKUP($C$4,'Building RSF'!$A$3:$AK$109,MATCH($C30,'Building RSF'!$A$3:$AK$3,0),FALSE) -> 0 | G30: =VLOOKUP($C$4,'Park Dollars FY22'!$A$3:$AL$113,MATCH($C30,'Park Dollars FY22'!$A$4:$AL$4,0),FALSE) -> 0 | H30: =VLOOKUP($C$4,'CPS Dollars FY22'!$A$4:$AL$109,MATCH($C30,'Park Dollars FY22'!$A$4:$AL$4,0),FALSE) -> 0 | I30: =VLOOKUP($C$4,'CC park dollars FY22'!$B$5:$AR$112,MATCH($C30,'CC park dollars FY22'!$B$6:$AR$6,0),FALSE) -> 0 | M30: =VLOOKUP($C$4,'Security Dollars FY22'!$A$2:$AL$108,MATCH($C30,'Security Dollars FY22'!$A$3:$AL$3,0),FALSE) -> 0 | N30: 0 | O30: 0 | P30: 0 | R30: =VLOOKUP($C$4,'Park Dollars FY23'!$A$3:$AL$113,MATCH($C30,'Park Dollars FY23'!$A$4:$AL$4,0),FALSE) -> 0 | S30: =VLOOKUP($C$4,'CPS Dollars FY23'!$A$4:$AL$109,MATCH($C30,'Park Dollars FY23'!$A$4:$AL$4,0),FALSE) -> 0 | T30: =VLOOKUP($C$4,'CC park dollars FY23'!$B$5:$AR$112,MATCH($C30,'CC park dollars FY23'!$B$6:$AR$6,0),FALSE) -> 0 | X30: =VLOOKUP($C$4,'Security Dollars FY23'!$A$2:$AL$108,MATCH($C30,'Security Dollars FY23'!$A$3:$AL$3,0),FALSE) -> 0 | Y30: 0 | Z30: 0 | AA30: 0
A31: HIDE | C31: Press Houses Ayer(White); Carlyon(Blue) | D31: =VLOOKUP($C$4,'Building RSF'!$A$3:$AK$109,MATCH($C31,'Building RSF'!$A$3:$AK$3,0),FALSE) -> 0 | G31: =VLOOKUP($C$4,'Park Dollars FY22'!$A$3:$AL$113,MATCH($C31,'Park Dollars FY22'!$A$4:$AL$4,0),FALSE) -> 0 | H31: =VLOOKUP($C$4,'CPS Dollars FY22'!$A$4:$AL$109,MATCH($C31,'Park Dollars FY22'!$A$4:$AL$4,0),FALSE) -> 0 | I31: =VLOOKUP($C$4,'CC park dollars FY22'!$B$5:$AR$112,MATCH($C31,'CC park dollars FY22'!$B$6:$AR$6,0),FALSE) -> 0 | M31: =VLOOKUP($C$4,'Security Dollars FY22'!$A$2:$AL$108,MATCH($C31,'Security Dollars FY22'!$A$3:$AL$3,0),FALSE) -> 0 | N31: 0 | O31: 0 | P31: 0 | R31: =VLOOKUP($C$4,'Park Dollars FY23'!$A$3:$AL$113,MATCH($C31,'Park Dollars FY23'!$A$4:$AL$4,0),FALSE) -> 0 | S31: =VLOOKUP($C$4,'CPS Dollars FY23'!$A$4:$AL$109,MATCH($C31,'Park Dollars FY23'!$A$4:$AL$4,0),FALSE) -> 0 | T31: =VLOOKUP($C$4,'CC park dollars FY23'!$B$5:$AR$112,MATCH($C31,'CC park dollars FY23'!$B$6:$AR$6,0),FALSE) -> 0 | X31: =VLOOKUP($C$4,'Security Dollars FY23'!$A$2:$AL$108,MATCH($C31,'Security Dollars FY23'!$A$3:$AL$3,0),FALSE) -> 0 | Y31: 0 | Z31: 0 | AA31: 0
A32: HIDE | C32: Visitor Center | D32: =VLOOKUP($C$4,'Building RSF'!$A$3:$AK$109,MATCH($C32,'Building RSF'!$A$3:$AK$3,0),FALSE) -> 0 | G32: =VLOOKUP($C$4,'Park Dollars FY22'!$A$3:$AL$113,MATCH($C32,'Park Dollars FY22'!$A$4:$AL$4,0),FALSE) -> 0 | H32: =VLOOKUP($C$4,'CPS Dollars FY22'!$A$4:$AL$109,MATCH($C32,'Park Dollars FY22'!$A$4:$AL$4,0),FALSE) -> 0 | I32: =VLOOKUP($C$4,'CC park dollars FY22'!$B$5:$AR$112,MATCH($C32,'CC park dollars FY22'!$B$6:$AR$6,0),FALSE) -> 0 | M32: =VLOOKUP($C$4,'Security Dollars FY22'!$A$2:$AL$108,MATCH($C32,'Security Dollars FY22'!$A$3:$AL$3,0),FALSE) -> 0 | N32: 0 | O32: 0 | P32: 0 | R32: =VLOOKUP($C$4,'Park Dollars FY23'!$A$3:$AL$113,MATCH($C32,'Park Dollars FY23'!$A$4:$AL$4,0),FALSE) -> 0 | S32: =VLOOKUP($C$4,'CPS Dollars FY23'!$A$4:$AL$109,MATCH($C32,'Park Dollars FY23'!$A$4:$AL$4,0),FALSE) -> 0 | T32: =VLOOKUP($C$4,'CC park dollars FY23'!$B$5:$AR$112,MATCH($C32,'CC park dollars FY23'!$B$6:$AR$6,0),FALSE) -> 0 | X32: =VLOOKUP($C$4,'Security Dollars FY23'!$A$2:$AL$108,MATCH($C32,'Security Dollars FY23'!$A$3:$AL$3,0),FALSE) -> 0 | Y32: 0 | Z32: 0 | AA32: 0
A33: HIDE | C33: Helen Sommers | D33: =VLOOKUP($C$4,'Building RSF'!$A$3:$AK$109,MATCH($C33,'Building RSF'!$A$3:$AK$3,0),FALSE) -> 0 | G33: =VLOOKUP($C$4,'Park Dollars FY22'!$A$3:$AL$113,MATCH($C33,'Park Dollars FY22'!$A$4:$AL$4,0),FALSE) -> 0 | H33: =VLOOKUP($C$4,'CPS Dollars FY22'!$A$4:$AL$109,MATCH($C33,'Park Dollars FY22'!$A$4:$AL$4,0),FALSE) -> 0 | I33: =VLOOKUP($C$4,'CC park dollars FY22'!$B$5:$AR$112,MATCH($C33,'CC park dollars FY22'!$B$6:$AR$6,0),FALSE) -> 0 | M33: =VLOOKUP($C$4,'Security Dollars FY22'!$A$2:$AL$108,MATCH($C33,'Security Dollars FY22'!$A$3:$AL$3,0),FALSE) -> 0 | N33: 0 | O33: 0 | P33: 0 | R33: =VLOOKUP($C$4,'Park Dollars FY23'!$A$3:$AL$113,MATCH($C33,'Park Dollars FY23'!$A$4:$AL$4,0),FALSE) -> 0 | S33: =VLOOKUP($C$4,'CPS Dollars FY23'!$A$4:$AL$109,MATCH($C33,'Park Dollars FY23'!$A$4:$AL$4,0),FALSE) -> 0 | T33: =VLOOKUP($C$4,'CC park dollars FY23'!$B$5:$AR$112,MATCH($C33,'CC park dollars FY23'!$B$6:$AR$6,0),FALSE) -> 0 | X33: =VLOOKUP($C$4,'Security Dollars FY23'!$A$2:$AL$108,MATCH($C33,'Security Dollars FY23'!$A$3:$AL$3,0),FALSE) -> 0 | Y33: 0 | Z33: 0 | AA33: 0
A34: HIDE | C34: Kelso Building | D34: =VLOOKUP($C$4,'Building RSF'!$A$3:$AK$109,MATCH($C34,'Building RSF'!$A$3:$AK$3,0),FALSE) -> 0 | G34: =VLOOKUP($C$4,'Park Dollars FY22'!$A$3:$AL$113,MATCH($C34,'Park Dollars FY22'!$A$4:$AL$4,0),FALSE) -> 0 | H34: =VLOOKUP($C$4,'CPS Dollars FY22'!$A$4:$AL$109,MATCH($C34,'Park Dollars FY22'!$A$4:$AL$4,0),FALSE) -> 0 | I34: =VLOOKUP($C$4,'CC park dollars FY22'!$B$5:$AR$112,MATCH($C34,'CC park dollars FY22'!$B$6:$AR$6,0),FALSE) -> 0 | M34: =VLOOKUP($C$4,'Security Dollars FY22'!$A$2:$AL$108,MATCH($C34,'Security Dollars FY22'!$A$3:$AL$3,0),FALSE) -> 0 | N34: 0 | O34: 0 | P34: 0 | R34: =VLOOKUP($C$4,'Park Dollars FY23'!$A$3:$AL$113,MATCH($C34,'Park Dollars FY23'!$A$4:$AL$4,0),FALSE) -> 0 | S34: =VLOOKUP($C$4,'CPS Dollars FY23'!$A$4:$AL$109,MATCH($C34,'Park Dollars FY23'!$A$4:$AL$4,0),FALSE) -> 0 | T34: =VLOOKUP($C$4,'CC park dollars FY23'!$B$5:$AR$112,MATCH($C34,'CC park dollars FY23'!$B$6:$AR$6,0),FALSE) -> 0 | X34: =VLOOKUP($C$4,'Security Dollars FY23'!$A$2:$AL$108,MATCH($C34,'Security Dollars FY23'!$A$3:$AL$3,0),FALSE) -> 0 | Y34: 0 | Z34: 0 | AA34: 0
A35: HIDE | C35: Yakima Building | D35: =VLOOKUP($C$4,'Building RSF'!$A$3:$AK$109,MATCH($C35,'Building RSF'!$A$3:$AK$3,0),FALSE) -> 0 | G35: =VLOOKUP($C$4,'Park Dollars FY22'!$A$3:$AL$113,MATCH($C35,'Park Dollars FY22'!$A$4:$AL$4,0),FALSE) -> 0 | H35: =VLOOKUP($C$4,'CPS Dollars FY22'!$A$4:$AL$109,MATCH($C35,'Park Dollars FY22'!$A$4:$AL$4,0),FALSE) -> 0 | I35: =VLOOKUP($C$4,'CC park dollars FY22'!$B$5:$AR$112,MATCH($C35,'CC park dollars FY22'!$B$6:$AR$6,0),FALSE) -> 0 | M35: =VLOOKUP($C$4,'Security Dollars FY22'!$A$2:$AL$108,MATCH($C35,'Security Dollars FY22'!$A$3:$AL$3,0),FALSE) -> 0 | N35: 0 | O35: 0 | P35: 0 | R35: =VLOOKUP($C$4,'Park Dollars FY23'!$A$3:$AL$113,MATCH($C35,'Park Dollars FY23'!$A$4:$AL$4,0),FALSE) -> 0 | S35: =VLOOKUP($C$4,'CPS Dollars FY23'!$A$4:$AL$109,MATCH($C35,'Park Dollars FY23'!$A$4:$AL$4,0),FALSE) -> 0 | T35: =VLOOKUP($C$4,'CC park dollars FY23'!$B$5:$AR$112,MATCH($C35,'CC park dollars FY23'!$B$6:$AR$6,0),FALSE) -> 0 | X35: =VLOOKUP($C$4,'Security Dollars FY23'!$A$2:$AL$108,MATCH($C35,'Security Dollars FY23'!$A$3:$AL$3,0),FALSE) -> 0 | Y35: 0 | Z35: 0 | AA35: 0
A36: HIDE | C36: Alaska Street | D36: =VLOOKUP($C$4,'Building RSF'!$A$3:$AK$109,MATCH($C36,'Building RSF'!$A$3:$AK$3,0),FALSE) -> 0 | G36: =VLOOKUP($C$4,'Park Dollars FY22'!$A$3:$AL$113,MATCH($C36,'Park Dollars FY22'!$A$4:$AL$4,0),FALSE) -> 0 | H36: =VLOOKUP($C$4,'CPS Dollars FY22'!$A$4:$AL$109,MATCH($C36,'Park Dollars FY22'!$A$4:$AL$4,0),FALSE) -> 0 | I36: =VLOOKUP($C$4,'CC park dollars FY22'!$B$5:$AR$112,MATCH($C36,'CC park dollars FY22'!$B$6:$AR$6,0),FALSE) -> 0 | M36: =VLOOKUP($C$4,'Security Dollars FY22'!$A$2:$AL$108,MATCH($C36,'Security Dollars FY22'!$A$3:$AL$3,0),FALSE) -> 0 | N36: 0 | O36: 0 | P36: 0 | R36: =VLOOKUP($C$4,'Park Dollars FY23'!$A$3:$AL$113,MATCH($C36,'Park Dollars FY23'!$A$4:$AL$4,0),FALSE) -> 0 | S36: =VLOOKUP($C$4,'CPS Dollars FY23'!$A$4:$AL$109,MATCH($C36,'Park Dollars FY23'!$A$4:$AL$4,0),FALSE) -> 0 | T36: =VLOOKUP($C$4,'CC park dollars FY23'!$B$5:$AR$112,MATCH($C36,'CC park dollars FY23'!$B$6:$AR$6,0),FALSE) -> 0 | X36: =VLOOKUP($C$4,'Security Dollars FY23'!$A$2:$AL$108,MATCH($C36,'Security Dollars FY23'!$A$3:$AL$3,0),FALSE) -> 0 | Y36: 0 | Z36: 0 | AA36: 0
A37: HIDE | C37: Tacoma Rhodes | D37: =VLOOKUP($C$4,'Building RSF'!$A$3:$AK$109,MATCH($C37,'Building RSF'!$A$3:$AK$3,0),FALSE) -> 0 | G37: =VLOOKUP($C$4,'Park Dollars FY22'!$A$3:$AL$113,MATCH($C37,'Park Dollars FY22'!$A$4:$AL$4,0),FALSE) -> 0 | H37: =VLOOKUP($C$4,'CPS Dollars FY22'!$A$4:$AL$109,MATCH($C37,'Park Dollars FY22'!$A$4:$AL$4,0),FALSE) -> 0 | I37: =VLOOKUP($C$4,'CC park dollars FY22'!$B$5:$AR$112,MATCH($C37,'CC park dollars FY22'!$B$6:$AR$6,0),FALSE) -> 0 | M37: =VLOOKUP($C$4,'Security Dollars FY22'!$A$2:$AL$108,MATCH($C37,'Security Dollars FY22'!$A$3:$AL$3,0),FALSE) -> 0 | N37: 0 | O37: 0 | P37: 0 | R37: =VLOOKUP($C$4,'Park Dollars FY23'!$A$3:$AL$113,MATCH($C37,'Park Dollars FY23'!$A$4:$AL$4,0),FALSE) -> 0 | S37: =VLOOKUP($C$4,'CPS Dollars FY23'!$A$4:$AL$109,MATCH($C37,'Park Dollars FY23'!$A$4:$AL$4,0),FALSE) -> 0 | T37: =VLOOKUP($C$4,'CC park dollars FY23'!$B$5:$AR$112,MATCH($C37,'CC park dollars FY23'!$B$6:$AR$6,0),FALSE) -> 0 | X37: =VLOOKUP($C$4,'Security Dollars FY23'!$A$2:$AL$108,MATCH($C37,'Security Dollars FY23'!$A$3:$AL$3,0),FALSE) -> 0 | Y37: 0 | Z37: 0 | AA37: 0
A38: VIEW | C38: PHF Thurston FTEs | E38: =VLOOKUP($C$4,'CC Allocations'!$B$7:$F$111,MATCH($C38,'CC Allocations'!$B$6:$G$6,0),FALSE) -> 339 | J38: =VLOOKUP($C$4,'CC dollars FY22'!$B$5:$AR$111,MATCH($C38,'CC dollars FY22'!$B$6:$AR$6,0),FALSE) -> 9146.612573 | K38: =VLOOKUP($C$4,'PHF Allocations'!$B$6:$H$111,6,FALSE) -> 52327.5298 | L38: =VLOOKUP($C$4,Childcare!$B$6:$H$111,6,FALSE) -> 6998.130404 | N38: =SUM(G38:M38) -> 68472.27277 | O38: =N38/12 -> 5706.022731 | P38: =IFERROR(N38/E38,0) -> 201.9831055 | U38: =VLOOKUP($C$4,'CC dollars FY23'!$B$5:$AR$111,MATCH($C38,'CC dollars FY23'!$B$6:$AR$6,0),FALSE) -> 9272.826212 | V38: =VLOOKUP($C$4,'PHF Allocations'!$B$6:$H$111,7,FALSE) -> 52908.50666 | W38: =VLOOKUP($C$4,Childcare!$B$6:$H$111,7,FALSE) -> 7024.538444 | Y38: 69205.87132 | Z38: =Y38/12 -> 5767.155943 | AA38: =IFERROR(Y38/E38,0) -> 204.147113
A39: VIEW
A40: VIEW | C40: TOTAL | D40: =SUM(D7:D38) -> 123898 | E40: =SUM(E7:E38) -> 339 | F40: =SUM(F7:F37) -> 0 | G40: 47591.03789 | H40: 223632.001 | I40: 7561.344894 | J40: =SUM(J7:J38) -> 9146.612573 | K40: 52327.5298 | L40: 6998.130404 | M40: 345685.6719 | N40: 692942.3284 | O40: 57745.19404 | R40: =SUM(R7:R38) -> 49757.73756 | S40: =SUM(S7:S38) -> 223685.0293 | T40: 7665.683505 | U40: 9272.826212 | V40: 52908.50666 | W40: 7024.538444 | X40: 279674.2871 | Y40: =SUM(Y7:Y38) -> 629988.6088 | Z40: =SUM(Z7:Z38) -> 52499.05073
A42: VIEW
A43: VIEW | C43: Notes:
A44: VIEW | C44: o Security on Campus is currently allocated to all buildings. DES will work with OFM to collapse the CSM allocations for this item to On-Campus or near-campus buildings in the Supplemental 22 budget.
A45: =IF(D37=0,"HIDE","VIEW") -> HIDE | C45: o Tacoma Rhodes: This building was recently sold to private ownership. DES will work with OFM to have this building removed from the CSM in the Supplemental 22 Budget.
A46: VIEW | C46: o Campus Contracts (CC) is invoiced in three parts:
A47: VIEW | C47: 1) CC Bldg pays for CC services within the buildings (see rent tab)
A48: VIEW | C48: 2) CC Parking pays for CC services within parking garages and lots (see Other Facility Related Costs tab)
A49: VIEW | C49: 3) CC PHF pays for CC services in public & historic spaces (see Other Facility Related Costs tab) Note* Public and Historic Facilities may not be eligible for Federal Funding or Reimbursement
A50: VIEW | C50: o Facilities and Services charges for the House (011), Sentate (012), LSS (037), LSC (038) and Statute Law (040) for traditionally "on-campus" buildings are funded by an appropriation to DES and will not be invoiced. This excludes Security on Campus and Childcare centers.
A51: VIEW | C51: o Public and Historic Facilities: Note* Public and Historic Facilities may not be eligible for Federal Funding or Reimbursement
A52: VIEW
A53: VIEW | M53: Prepared by DES Budget, Finance Division. For question relating to CSM charges from DES, please contact DES Budget, desbudget@des.wa.gov
A54: VIEW
A55: VIEW
A56: VIEW
A57: VIEW
A58: VIEW
A59: VIEW
A60: VIEW
A61: VIEW
A62: VIEW
A63: VIEW
A64: VIEW
A65: VIEW
A66: VIEW
A67: VIEW
A68: VIEW
A69: VIEW
A70: VIEW
A71: VIEW
A72: VIEW
A73: VIEW
A74: VIEW
A75: VIEW
A76: VIEW
A77: VIEW
A78: VIEW
A79: VIEW
A80: VIEW
A81: VIEW
A82: VIEW
A83: VIEW
A84: VIEW
A85: VIEW
A86: VIEW
A87: VIEW
A88: VIEW
A89: VIEW
A90: VIEW
A91: VIEW
A92: VIEW
A93: VIEW
A94: VIEW
A95: VIEW
A96: VIEW
A97: VIEW
A98: VIEW
A99: VIEW
A100: VIEW
A101: VIEW
A102: VIEW
A103: VIEW
A104: VIEW
A105: VIEW
A106: VIEW
A107: VIEW
A108: VIEW
A109: VIEW
A110: VIEW
A111: VIEW
A112: VIEW
A113: VIEW
A114: VIEW
A115: VIEW
A116: VIEW
A117: VIEW
A118: VIEW
A119: VIEW
A120: VIEW
A121: VIEW
A122: VIEW
A123: VIEW
A124: VIEW
A125: VIEW
A126: VIEW
A127: VIEW
A128: VIEW
A129: VIEW
A130: VIEW
A131: VIEW
A132: VIEW
A133: VIEW
A134: VIEW
A135: VIEW
A136: VIEW
A137: VIEW
A138: VIEW
A139: VIEW
A140: VIEW
A141: VIEW
A142: VIEW
A143: VIEW
A144: VIEW
A145: VIEW
A146: VIEW
A147: VIEW
A148: VIEW
A149: VIEW
A150: VIEW
A151: VIEW
A152: VIEW
A153: VIEW
A154: VIEW
A155: VIEW
A156: VIEW
A157: VIEW
A158: VIEW
A159: VIEW
A160: VIEW
A161: VIEW
A162: VIEW
A163: VIEW
A164: VIEW
A165: VIEW
A166: VIEW
A167: VIEW
A168: VIEW
A169: VIEW
A170: VIEW
A171: VIEW
A172: VIEW
A173: VIEW
A174: VIEW
A175: VIEW
A176: VIEW
A177: VIEW
A178: VIEW
A179: VIEW
A180: VIEW
A181: VIEW
A182: VIEW
A183: VIEW
A184: VIEW
A185: VIEW
A186: VIEW
A187: VIEW
A188: VIEW
A189: VIEW
A190: VIEW
A191: VIEW
A192: VIEW
A193: VIEW
A194: VIEW
A195: VIEW
A196: VIEW
A197: VIEW
A198: VIEW
A199: VIEW
A200: VIEW
A201: VIEW
... 91 more rows

Sheet Building RSF (hidden)
D2: F6121 | E2: F6122 | F2: F6123 | G2: F6124 | H2: F6125 | I2: F6126 | J2: F6127 | K2: F6129 | L2: F612A | M2: F612C | N2: F612E | O2: F612H | P2: F612J | Q2: F612K | R2: F6131 | S2: F6132 | T2: F6133 | U2: F6134 | V2: F6137 | W2: F613D | X2: F613E | Y2: F613F | Z2: F613G | AA2: F613H | AB2: F613i | AC2: F613K | AD2: F613L | AE2: F613M | AF2: F6141 | AG2: F6142 | AH2: F6143 | AI2: F6144 | AJ2: F614G | AK2: F6146
B3: Agency # | C3: Agency | D3: Cherberg | E3: O'Brien | F3: Legislative | G3: Pritchard | H3: HLB | I3: OB2 | J3: Archives | K3: NRB | L3: Emp Sec | M3: Transportation | N3: Insurance | O3: Old Cap | P3: TOJ | Q3: Newhouse | R3: Modular Bldg | S3: Isabella Bush | T3: 1007 Washington | U3: 120 E Union Avenue | V3: Conservatory | W3: Capital Court | X3: James Dolliver Building | Y3: Undeveloped Properties | Z3: 1068 WA Street SE (ST Farm) | AA3: 232 Perry Street | AB3: 208 11th Avenue SE (Pro Arts) | AC3: Press Houses Ayer(White); Carlyon(Blue) | AD3: Visitor Center | AE3: Helen Sommers | AF3: Kelso Building | AG3: Yakima Building | AH3: Alaska Street | AI3: Tacoma Rhodes | AJ3: Tacoma Rhodes Garage | AK3: North Cascades Gateway Center (NCGC)
A4: =CONCATENATE(B4," - ",C4) -> 011 - House of Representatives | B4: 011 | C4: House of Representatives | D4: 0 | E4: 78594 | F4: 45304 | G4: 0 | H4: 0 | I4: 0 | J4: 0 | K4: 0 | L4: 0 | M4: 0 | N4: 0 | O4: 0 | P4: 0 | Q4: 0 | R4: 0 | S4: 0 | T4: 0 | U4: 0 | V4: 0 | W4: 0 | X4: 0 | Y4: 0 | Z4: 0 | AA4: 0 | AB4: 0 | AC4: 0 | AD4: 0 | AE4: 0 | AF4: 0 | AG4: 0 | AH4: 0 | AI4: 0 | AJ4: 0 | AK4: 0
A5: =CONCATENATE(B5," - ",C5) -> 012 - Senate | B5: 012 | C5: Senate | D5: 77281 | E5: 0 | F5: 35304 | G5: 0 | H5: 0 | I5: 0 | J5: 0 | K5: 0 | L5: 0 | M5: 0 | N5: 0 | O5: 0 | P5: 0 | Q5: 22032 | R5: 0 | S5: 0 | T5: 0 | U5: 0 | V5: 0 | W5: 0 | X5: 0 | Y5: 0 | Z5: 0 | AA5: 0 | AB5: 0 | AC5: 0 | AD5: 0 | AE5: 0 | AF5: 0 | AG5: 0 | AH5: 0 | AI5: 0 | AJ5: 0 | AK5: 0
A6: 013 - Joint Transportation Committee | B6: 013 | C6: Joint Transportation Committee | D6: 0 | E6: 0 | F6: 0 | G6: 0 | H6: 0 | I6: 0 | J6: 0 | K6: 0 | L6: 0 | M6: 0 | N6: 0 | O6: 0 | P6: 0 | Q6: 0 | R6: 0 | S6: 0 | T6: 0 | U6: 0 | V6: 0 | W6: 0 | X6: 0 | Y6: 0 | Z6: 0 | AA6: 0 | AB6: 0 | AC6: 0 | AD6: 0 | AE6: 0 | AF6: 0 | AG6: 0 | AH6: 0 | AI6: 0 | AJ6: 0 | AK6: 0
A7: 014 - Joint Legislative Audit and Review Committee | B7: 014 | C7: Joint Legislative Audit and Review Committee | D7: 0 | E7: 0 | F7: 0 | G7: 0 | H7: 0 | I7: 0 | J7: 0 | K7: 0 | L7: 0 | M7: 0 | N7: 0 | O7: 0 | P7: 0 | Q7: 0 | R7: 0 | S7: 0 | T7: 0 | U7: 0 | V7: 0 | W7: 0 | X7: 0 | Y7: 0 | Z7: 0 | AA7: 0 | AB7: 0 | AC7: 0 | AD7: 0 | AE7: 8887 | AF7: 0 | AG7: 0 | AH7: 0 | AI7: 0 | AJ7: 0 | AK7: 0
A8: 020 - Legislative Evaluation and Accountability Program Committee | B8: 020 | C8: Legislative Evaluation and Accountability Program Committee | D8: 0 | E8: 0 | F8: 0 | G8: 0 | H8: 0 | I8: 0 | J8: 0 | K8: 0 | L8: 0 | M8: 0 | N8: 0 | O8: 0 | P8: 0 | Q8: 0 | R8: 0 | S8: 0 | T8: 0 | U8: 0 | V8: 0 | W8: 0 | X8: 0 | Y8: 0 | Z8: 0 | AA8: 0 | AB8: 0 | AC8: 0 | AD8: 0 | AE8: 4243 | AF8: 0 | AG8: 0 | AH8: 0 | AI8: 0 | AJ8: 0 | AK8: 0
A9: 035 - Office of the State Actuary | B9: 035 | C9: Office of the State Actuary | D9: 0 | E9: 0 | F9: 0 | G9: 0 | H9: 0 | I9: 0 | J9: 0 | K9: 0 | L9: 0 | M9: 0 | N9: 0 | O9: 0 | P9: 0 | Q9: 0 | R9: 0 | S9: 0 | T9: 0 | U9: 0 | V9: 0 | W9: 0 | X9: 0 | Y9: 0 | Z9: 0 | AA9: 0 | AB9: 0 | AC9: 0 | AD9: 0 | AE9: 0 | AF9: 0 | AG9: 0 | AH9: 0 | AI9: 0 | AJ9: 0 | AK9: 0
A10: 037 - Office of Legislative Support Services | B10: 037 | C10: Office of Legislative Support Services | D10: 0 | E10: 0 | F10: 4979 | G10: 3864 | H10: 0 | I10: 0 | J10: 0 | K10: 0 | L10: 0 | M10: 0 | N10: 0 | O10: 0 | P10: 0 | Q10: 0 | R10: 0 | S10: 0 | T10: 14308 | U10: 0 | V10: 0 | W10: 0 | X10: 0 | Y10: 0 | Z10: 0 | AA10: 0 | AB10: 0 | AC10: 0 | AD10: 0 | AE10: 0 | AF10: 0 | AG10: 0 | AH10: 0 | AI10: 0 | AJ10: 0 | AK10: 0
A11: 038 - Joint Legislative Systems Committee | B11: 038 | C11: Joint Legislative Systems Committee | D11: 0 | E11: 0 | F11: 1143 | G11: 7679 | H11: 0 | I11: 0 | J11: 0 | K11: 0 | L11: 0 | M11: 0 | N11: 0 | O11: 0 | P11: 0 | Q11: 0 | R11: 0 | S11: 0 | T11: 0 | U11: 0 | V11: 0 | W11: 0 | X11: 0 | Y11: 0 | Z11: 0 | AA11: 0 | AB11: 0 | AC11: 0 | AD11: 0 | AE11: 11969 | AF11: 0 | AG11: 0 | AH11: 0 | AI11: 0 | AJ11: 0 | AK11: 0
A12: 040 - Statute Law Committee (Code Revisor) | B12: 040 | C12: Statute Law Committee (Code Revisor) | D12: 0 | E12: 0 | F12: 0 | G12: 12347 | H12: 0 | I12: 0 | J12: 0 | K12: 0 | L12: 0 | M12: 0 | N12: 0 | O12: 0 | P12: 0 | Q12: 0 | R12: 0 | S12: 0 | T12: 0 | U12: 0 | V12: 0 | W12: 0 | X12: 0 | Y12: 0 | Z12: 0 | AA12: 0 | AB12: 0 | AC12: 0 | AD12: 0 | AE12: 0 | AF12: 0 | AG12: 0 | AH12: 0 | AI12: 0 | AJ12: 0 | AK12: 0
A13: 045 - Supreme Court | B13: 045 | C13: Supreme Court | D13: 0 | E13: 0 | F13: 0 | G13: 0 | H13: 0 | I13: 0 | J13: 0 | K13: 0 | L13: 0 | M13: 0 | N13: 0 | O13: 0 | P13: 33940 | Q13: 0 | R13: 0 | S13: 0 | T13: 0 | U13: 0 | V13: 0 | W13: 0 | X13: 0 | Y13: 0 | Z13: 0 | AA13: 0 | AB13: 0 | AC13: 0 | AD13: 0 | AE13: 0 | AF13: 0 | AG13: 0 | AH13: 0 | AI13: 0 | AJ13: 0 | AK13: 0
A14: 046 - Law Library | B14: 046 | C14: Law Library | D14: 0 | E14: 0 | F14: 0 | G14: 0 | H14: 0 | I14: 0 | J14: 0 | K14: 0 | L14: 0 | M14: 0 | N14: 0 | O14: 0 | P14: 15418 | Q14: 0 | R14: 0 | S14: 0 | T14: 0 | U14: 0 | V14: 0 | W14: 0 | X14: 0 | Y14: 0 | Z14: 0 | AA14: 0 | AB14: 0 | AC14: 0 | AD14: 0 | AE14: 0 | AF14: 0 | AG14: 0 | AH14: 0 | AI14: 0 | AJ14: 0 | AK14: 0
A15: 048 - Court of Appeals | B15: 048 | C15: Court of Appeals | D15: 0 | E15: 0 | F15: 0 | G15: 0 | H15: 0 | I15: 0 | J15: 0 | K15: 0 | L15: 0 | M15: 0 | N15: 0 | O15: 0 | P15: 0 | Q15: 0 | R15: 0 | S15: 0 | T15: 0 | U15: 0 | V15: 0 | W15: 0 | X15: 0 | Y15: 0 | Z15: 0 | AA15: 0 | AB15: 0 | AC15: 0 | AD15: 0 | AE15: 0 | AF15: 0 | AG15: 0 | AH15: 0 | AI15: 27692 | AJ15: 0 | AK15: 0
A16: 050 - Commission on Judicial Conduct | B16: 050 | C16: Commission on Judicial Conduct | D16: 0 | E16: 0 | F16: 0 | G16: 0 | H16: 0 | I16: 0 | J16: 0 | K16: 0 | L16: 0 | M16: 0 | N16: 0 | O16: 0 | P16: 0 | Q16: 0 | R16: 0 | S16: 0 | T16: 0 | U16: 0 | V16: 0 | W16: 5175 | X16: 0 | Y16: 0 | Z16: 0 | AA16: 0 | AB16: 0 | AC16: 0 | AD16: 0 | AE16: 0 | AF16: 0 | AG16: 0 | AH16: 0 | AI16: 0 | AJ16: 0 | AK16: 0
A17: 055 - Administrative Office of the Courts | B17: 055 | C17: Administrative Office of the Courts | D17: 0 | E17: 0 | F17: 0 | G17: 0 | H17: 0 | I17: 0 | J17: 0 | K17: 0 | L17: 0 | M17: 0 | N17: 0 | O17: 0 | P17: 4251 | Q17: 0 | R17: 0 | S17: 0 | T17: 0 | U17: 0 | V17: 0 | W17: 0 | X17: 0 | Y17: 0 | Z17: 0 | AA17: 0 | AB17: 0 | AC17: 0 | AD17: 0 | AE17: 0 | AF17: 0 | AG17: 0 | AH17: 0 | AI17: 0 | AJ17: 0 | AK17: 0
A18: 056 - Office of Public Defense | B18: 056 | C18: Office of Public Defense | D18: 0 | E18: 0 | F18: 0 | G18: 0 | H18: 0 | I18: 0 | J18: 0 | K18: 0 | L18: 0 | M18: 0 | N18: 0 | O18: 0 | P18: 0 | Q18: 0 | R18: 0 | S18: 0 | T18: 0 | U18: 0 | V18: 0 | W18: 0 | X18: 0 | Y18: 0 | Z18: 0 | AA18: 0 | AB18: 0 | AC18: 0 | AD18: 0 | AE18: 0 | AF18: 0 | AG18: 0 | AH18: 0 | AI18: 0 | AJ18: 0 | AK18: 0
A19: 057 - Office of Civil Legal Aid | B19: 057 | C19: Office of Civil Legal Aid | D19: 0 | E19: 0 | F19: 0 | G19: 0 | H19: 0 | I19: 0 | J19: 0 | K19: 0 | L19: 0 | M19: 0 | N19: 0 | O19: 0 | P19: 0 | Q19: 0 | R19: 0 | S19: 0 | T19: 0 | U19: 0 | V19: 0 | W19: 0 | X19: 0 | Y19: 0 | Z19: 0 | AA19: 0 | AB19: 0 | AC19: 0 | AD19: 0 | AE19: 0 | AF19: 0 | AG19: 0 | AH19: 0 | AI19: 0 | AJ19: 0 | AK19: 0
A20: 075 - Office of the Governor | B20: 075 | C20: Office of the Governor | D20: 0 | E20: 0 | F20: 17257 | G20: 0 | H20: 0 | I20: 0 | J20: 0 | K20: 0 | L20: 0 | M20: 0 | N20: 0 | O20: 0 | P20: 0 | Q20: 0 | R20: 0 | S20: 0 | T20: 0 | U20: 0 | V20: 0 | W20: 0 | X20: 0 | Y20: 0 | Z20: 0 | AA20: 0 | AB20: 0 | AC20: 0 | AD20: 0 | AE20: 0 | AF20: 0 | AG20: 0 | AH20: 0 | AI20: 0 | AJ20: 0 | AK20: 0
A21: 080 - Office of Lieutenant Governor | B21: 080 | C21: Office of Lieutenant Governor | D21: 0 | E21: 0 | F21: 8874 | G21: 0 | H21: 0 | I21: 0 | J21: 0 | K21: 0 | L21: 0 | M21: 0 | N21: 0 | O21: 0 | P21: 0 | Q21: 0 | R21: 0 | S21: 0 | T21: 0 | U21: 0 | V21: 0 | W21: 0 | X21: 0 | Y21: 0 | Z21: 0 | AA21: 0 | AB21: 0 | AC21: 0 | AD21: 0 | AE21: 0 | AF21: 0 | AG21: 0 | AH21: 0 | AI21: 0 | AJ21: 0 | AK21: 0
A22: 082 - Public Disclosure Commission | B22: 082 | C22: Public Disclosure Commission | D22: 0 | E22: 0 | F22: 0 | G22: 0 | H22: 0 | I22: 0 | J22: 0 | K22: 0 | L22: 0 | M22: 0 | N22: 0 | O22: 0 | P22: 0 | Q22: 0 | R22: 0 | S22: 0 | T22: 0 | U22: 0 | V22: 0 | W22: 0 | X22: 0 | Y22: 0 | Z22: 0 | AA22: 0 | AB22: 0 | AC22: 0 | AD22: 0 | AE22: 0 | AF22: 0 | AG22: 0 | AH22: 0 | AI22: 0 | AJ22: 0 | AK22: 0
A23: 085 - Office of the Secretary of State | B23: 085 | C23: Office of the Secretary of State | D23: 0 | E23: 0 | F23: 10650 | G23: 0 | H23: 0 | I23: 0 | J23: 47900 | K23: 0 | L23: 0 | M23: 0 | N23: 0 | O23: 0 | P23: 0 | Q23: 0 | R23: 6382 | S23: 47200 | T23: 0 | U23: 0 | V23: 0 | W23: 0 | X23: 17000 | Y23: 0 | Z23: 0 | AA23: 0 | AB23: 0 | AC23: 0 | AD23: 0 | AE23: 0 | AF23: 0 | AG23: 0 | AH23: 0 | AI23: 0 | AJ23: 0 | AK23: 0
A24: 086 - Governor's Office of Indian Affairs | B24: 086 | C24: Governor's Office of Indian Affairs | D24: 0 | E24: 0 | F24: 0 | G24: 0 | H24: 0 | I24: 0 | J24: 0 | K24: 0 | L24: 0 | M24: 0 | N24: 0 | O24: 0 | P24: 0 | Q24: 0 | R24: 0 | S24: 0 | T24: 0 | U24: 0 | V24: 0 | W24: 1312 | X24: 0 | Y24: 0 | Z24: 0 | AA24: 0 | AB24: 0 | AC24: 0 | AD24: 0 | AE24: 0 | AF24: 0 | AG24: 0 | AH24: 0 | AI24: 0 | AJ24: 0 | AK24: 0
A25: 087 - Commission on Asian Pacific American Affairs | B25: 087 | C25: Commission on Asian Pacific American Affairs | D25: 0 | E25: 0 | F25: 0 | G25: 0 | H25: 0 | I25: 0 | J25: 0 | K25: 0 | L25: 0 | M25: 0 | N25: 0 | O25: 0 | P25: 0 | Q25: 0 | R25: 0 | S25: 0 | T25: 0 | U25: 0 | V25: 0 | W25: 863 | X25: 0 | Y25: 0 | Z25: 0 | AA25: 0 | AB25: 0 | AC25: 0 | AD25: 0 | AE25: 0 | AF25: 0 | AG25: 0 | AH25: 0 | AI25: 0 | AJ25: 0 | AK25: 0
A26: 090 - Office of State Treasurer | B26: 090 | C26: Office of State Treasurer | D26: 0 | E26: 0 | F26: 10715 | G26: 0 | H26: 0 | I26: 0 | J26: 0 | K26: 0 | L26: 0 | M26: 0 | N26: 0 | O26: 0 | P26: 0 | Q26: 0 | R26: 0 | S26: 0 | T26: 0 | U26: 0 | V26: 0 | W26: 0 | X26: 0 | Y26: 0 | Z26: 0 | AA26: 0 | AB26: 0 | AC26: 0 | AD26: 0 | AE26: 12915 | AF26: 0 | AG26: 0 | AH26: 0 | AI26: 0 | AJ26: 0 | AK26: 0
A27: 095 - Office of State Auditor | B27: 095 | C27: Office of State Auditor | D27: 0 | E27: 0 | F27: 0 | G27: 0 | H27: 0 | I27: 0 | J27: 0 | K27: 0 | L27: 0 | M27: 0 | N27: 6412 | O27: 0 | P27: 0 | Q27: 0 | R27: 0 | S27: 0 | T27: 0 | U27: 0 | V27: 0 | W27: 0 | X27: 0 | Y27: 0 | Z27: 0 | AA27: 0 | AB27: 0 | AC27: 0 | AD27: 0 | AE27: 0 | AF27: 0 | AG27: 0 | AH27: 0 | AI27: 4422 | AJ27: 0 | AK27: 0
A28: 099 - Citizens' Commission on Salaries for Elected Officials | B28: 099 | C28: Citizens' Commission on Salaries for Elected Officials | D28: 0 | E28: 0 | F28: 0 | G28: 0 | H28: 0 | I28: 0 | J28: 0 | K28: 0 | L28: 0 | M28: 0 | N28: 0 | O28: 0 | P28: 0 | Q28: 0 | R28: 0 | S28: 0 | T28: 0 | U28: 0 | V28: 0 | W28: 666 | X28: 0 | Y28: 0 | Z28: 0 | AA28: 0 | AB28: 0 | AC28: 0 | AD28: 0 | AE28: 0 | AF28: 0 | AG28: 0 | AH28: 0 | AI28: 0 | AJ28: 0 | AK28: 0
A29: 100 - Office of Attorney General | B29: 100 | C29: Office of Attorney General | D29: 0 | E29: 0 | F29: 0 | G29: 0 | H29: 72639 | I29: 0 | J29: 0 | K29: 0 | L29: 0 | M29: 0 | N29: 0 | O29: 0 | P29: 0 | Q29: 0 | R29: 0 | S29: 0 | T29: 0 | U29: 0 | V29: 0 | W29: 0 | X29: 0 | Y29: 0 | Z29: 0 | AA29: 0 | AB29: 0 | AC29: 0 | AD29: 0 | AE29: 0 | AF29: 0 | AG29: 0 | AH29: 0 | AI29: 0 | AJ29: 0 | AK29: 0
A30: 101 - Caseload Forecast Council | B30: 101 | C30: Caseload Forecast Council | D30: 0 | E30: 0 | F30: 0 | G30: 0 | H30: 0 | I30: 0 | J30: 0 | K30: 0 | L30: 0 | M30: 0 | N30: 0 | O30: 0 | P30: 0 | Q30: 0 | R30: 0 | S30: 0 | T30: 0 | U30: 0 | V30: 0 | W30: 5158 | X30: 0 | Y30: 0 | Z30: 0 | AA30: 0 | AB30: 0 | AC30: 0 | AD30: 0 | AE30: 0 | AF30: 0 | AG30: 0 | AH30: 0 | AI30: 0 | AJ30: 0 | AK30: 0
A31: 102 - Department of Financial Institutions | B31: 102 | C31: Department of Financial Institutions | D31: 0 | E31: 0 | F31: 0 | G31: 0 | H31: 0 | I31: 0 | J31: 0 | K31: 0 | L31: 0 | M31: 0 | N31: 0 | O31: 0 | P31: 0 | Q31: 0 | R31: 0 | S31: 0 | T31: 0 | U31: 0 | V31: 0 | W31: 0 | X31: 0 | Y31: 0 | Z31: 0 | AA31: 0 | AB31: 0 | AC31: 0 | AD31: 0 | AE31: 0 | AF31: 0 | AG31: 0 | AH31: 0 | AI31: 0 | AJ31: 0 | AK31: 0
A32: 103 - Department of Commerce | B32: 103 | C32: Department of Commerce | D32: 0 | E32: 0 | F32: 0 | G32: 0 | H32: 0 | I32: 0 | J32: 0 | K32: 0 | L32: 0 | M32: 0 | N32: 0 | O32: 0 | P32: 0 | Q32: 0 | R32: 0 | S32: 0 | T32: 0 | U32: 0 | V32: 0 | W32: 0 | X32: 0 | Y32: 0 | Z32: 0 | AA32: 0 | AB32: 0 | AC32: 0 | AD32: 0 | AE32: 0 | AF32: 0 | AG32: 0 | AH32: 0 | AI32: 0 | AJ32: 0 | AK32: 0
A33: 104 - Economic and Revenue Forecast Council | B33: 104 | C33: Economic and Revenue Forecast Council | D33: 0 | E33: 0 | F33: 0 | G33: 0 | H33: 0 | I33: 0 | J33: 0 | K33: 0 | L33: 0 | M33: 0 | N33: 0 | O33: 0 | P33: 0 | Q33: 0 | R33: 0 | S33: 0 | T33: 0 | U33: 0 | V33: 0 | W33: 0 | X33: 0 | Y33: 0 | Z33: 0 | AA33: 0 | AB33: 0 | AC33: 0 | AD33: 0 | AE33: 0 | AF33: 0 | AG33: 0 | AH33: 0 | AI33: 0 | AJ33: 0 | AK33: 0
A34: 105 - Office of Financial Management | B34: 105 | C34: Office of Financial Management | D34: 0 | E34: 0 | F34: 0 | G34: 0 | H34: 0 | I34: 0 | J34: 0 | K34: 0 | L34: 0 | M34: 0 | N34: 41707 | O34: 0 | P34: 0 | Q34: 0 | R34: 0 | S34: 0 | T34: 0 | U34: 0 | V34: 0 | W34: 699 | X34: 0 | Y34: 0 | Z34: 0 | AA34: 0 | AB34: 0 | AC34: 0 | AD34: 0 | AE34: 24879 | AF34: 0 | AG34: 0 | AH34: 0 | AI34: 0 | AJ34: 0 | AK34: 0
A35: 107 - Washington State Health Care Authority | B35: 107 | C35: Washington State Health Care Authority | D35: 0 | E35: 0 | F35: 0 | G35: 0 | H35: 0 | I35: 0 | J35: 0 | K35: 0 | L35: 0 | M35: 0 | N35: 0 | O35: 0 | P35: 0 | Q35: 0 | R35: 0 | S35: 0 | T35: 0 | U35: 0 | V35: 0 | W35: 0 | X35: 0 | Y35: 0 | Z35: 0 | AA35: 0 | AB35: 0 | AC35: 0 | AD35: 0 | AE35: 0 | AF35: 0 | AG35: 0 | AH35: 0 | AI35: 0 | AJ35: 0 | AK35: 0
A36: 110 - Office of Administrative Hearings | B36: 110 | C36: Office of Administrative Hearings | D36: 0 | E36: 0 | F36: 0 | G36: 0 | H36: 0 | I36: 0 | J36: 0 | K36: 0 | L36: 0 | M36: 0 | N36: 0 | O36: 0 | P36: 0 | Q36: 0 | R36: 0 | S36: 0 | T36: 0 | U36: 0 | V36: 0 | W36: 0 | X36: 0 | Y36: 0 | Z36: 0 | AA36: 0 | AB36: 0 | AC36: 0 | AD36: 0 | AE36: 0 | AF36: 0 | AG36: 0 | AH36: 0 | AI36: 11256 | AJ36: 0 | AK36: 0
A37: 116 - State Lottery | B37: 116 | C37: State Lottery | D37: 0 | E37: 0 | F37: 0 | G37: 0 | H37: 0 | I37: 0 | J37: 0 | K37: 0 | L37: 0 | M37: 0 | N37: 0 | O37: 0 | P37: 0 | Q37: 0 | R37: 0 | S37: 0 | T37: 0 | U37: 0 | V37: 0 | W37: 0 | X37: 0 | Y37: 0 | Z37: 0 | AA37: 0 | AB37: 0 | AC37: 0 | AD37: 0 | AE37: 0 | AF37: 0 | AG37: 0 | AH37: 0 | AI37: 0 | AJ37: 0 | AK37: 0
A38: 117 - Washington State Gambling Commission | B38: 117 | C38: Washington State Gambling Commission | D38: 0 | E38: 0 | F38: 0 | G38: 0 | H38: 0 | I38: 0 | J38: 0 | K38: 0 | L38: 0 | M38: 0 | N38: 0 | O38: 0 | P38: 0 | Q38: 0 | R38: 0 | S38: 0 | T38: 0 | U38: 0 | V38: 0 | W38: 0 | X38: 0 | Y38: 0 | Z38: 0 | AA38: 0 | AB38: 0 | AC38: 0 | AD38: 0 | AE38: 0 | AF38: 0 | AG38: 0 | AH38: 0 | AI38: 0 | AJ38: 0 | AK38: 0
A39: 118 - Commission on Hispanic Affairs | B39: 118 | C39: Commission on Hispanic Affairs | D39: 0 | E39: 0 | F39: 0 | G39: 0 | H39: 0 | I39: 0 | J39: 0 | K39: 0 | L39: 0 | M39: 0 | N39: 0 | O39: 0 | P39: 0 | Q39: 0 | R39: 0 | S39: 0 | T39: 0 | U39: 0 | V39: 0 | W39: 863 | X39: 0 | Y39: 0 | Z39: 0 | AA39: 0 | AB39: 0 | AC39: 0 | AD39: 0 | AE39: 0 | AF39: 0 | AG39: 0 | AH39: 0 | AI39: 0 | AJ39: 0 | AK39: 0
A40: 119 - Commission on African-American Affairs | B40: 119 | C40: Commission on African-American Affairs | D40: 0 | E40: 0 | F40: 0 | G40: 0 | H40: 0 | I40: 0 | J40: 0 | K40: 0 | L40: 0 | M40: 0 | N40: 0 | O40: 0 | P40: 0 | Q40: 0 | R40: 0 | S40: 0 | T40: 0 | U40: 0 | V40: 0 | W40: 863 | X40: 0 | Y40: 0 | Z40: 0 | AA40: 0 | AB40: 0 | AC40: 0 | AD40: 0 | AE40: 0 | AF40: 0 | AG40: 0 | AH40: 0 | AI40: 0 | AJ40: 0 | AK40: 0
A41: 120 - Human Rights Commission | B41: 120 | C41: Human Rights Commission | D41: 0 | E41: 0 | F41: 0 | G41: 0 | H41: 0 | I41: 0 | J41: 0 | K41: 0 | L41: 0 | M41: 0 | N41: 0 | O41: 0 | P41: 0 | Q41: 0 | R41: 0 | S41: 0 | T41: 0 | U41: 0 | V41: 0 | W41: 0 | X41: 0 | Y41: 0 | Z41: 0 | AA41: 0 | AB41: 0 | AC41: 0 | AD41: 0 | AE41: 0 | AF41: 0 | AG41: 0 | AH41: 0 | AI41: 0 | AJ41: 0 | AK41: 0
A42: 124 - Department of Retirement Systems | B42: 124 | C42: Department of Retirement Systems | D42: 0 | E42: 0 | F42: 0 | G42: 0 | H42: 0 | I42: 0 | J42: 0 | K42: 0 | L42: 0 | M42: 0 | N42: 0 | O42: 0 | P42: 0 | Q42: 0 | R42: 0 | S42: 0 | T42: 0 | U42: 0 | V42: 0 | W42: 0 | X42: 0 | Y42: 0 | Z42: 0 | AA42: 0 | AB42: 0 | AC42: 0 | AD42: 0 | AE42: 0 | AF42: 0 | AG42: 0 | AH42: 0 | AI42: 0 | AJ42: 0 | AK42: 0
A43: 126 - State Investment Board | B43: 126 | C43: State Investment Board | D43: 0 | E43: 0 | F43: 0 | G43: 0 | H43: 0 | I43: 0 | J43: 0 | K43: 0 | L43: 0 | M43: 0 | N43: 0 | O43: 0 | P43: 0 | Q43: 0 | R43: 0 | S43: 0 | T43: 0 | U43: 0 | V43: 0 | W43: 0 | X43: 0 | Y43: 0 | Z43: 0 | AA43: 0 | AB43: 0 | AC43: 0 | AD43: 0 | AE43: 0 | AF43: 0 | AG43: 0 | AH43: 0 | AI43: 0 | AJ43: 0 | AK43: 0
A44: 140 - Department of Revenue | B44: 140 | C44: Department of Revenue | D44: 0 | E44: 0 | F44: 0 | G44: 0 | H44: 0 | I44: 0 | J44: 0 | K44: 0 | L44: 0 | M44: 0 | N44: 0 | O44: 0 | P44: 0 | Q44: 0 | R44: 0 | S44: 0 | T44: 0 | U44: 0 | V44: 0 | W44: 0 | X44: 0 | Y44: 0 | Z44: 0 | AA44: 0 | AB44: 0 | AC44: 0 | AD44: 0 | AE44: 0 | AF44: 0 | AG44: 0 | AH44: 0 | AI44: 0 | AJ44: 0 | AK44: 0
A45: 142 - Board of Tax Appeals | B45: 142 | C45: Board of Tax Appeals | D45: 0 | E45: 0 | F45: 0 | G45: 0 | H45: 0 | I45: 0 | J45: 0 | K45: 0 | L45: 0 | M45: 0 | N45: 0 | O45: 0 | P45: 0 | Q45: 0 | R45: 0 | S45: 0 | T45: 0 | U45: 0 | V45: 0 | W45: 4670 | X45: 0 | Y45: 0 | Z45: 0 | AA45: 0 | AB45: 0 | AC45: 0 | AD45: 0 | AE45: 0 | AF45: 0 | AG45: 0 | AH45: 0 | AI45: 0 | AJ45: 0 | AK45: 0
A46: 147 - Office of Minority and Women's Business Enterprises | B46: 147 | C46: Office of Minority and Women's Business Enterprises | D46: 0 | E46: 0 | F46: 0 | G46: 0 | H46: 0 | I46: 0 | J46: 0 | K46: 0 | L46: 0 | M46: 0 | N46: 0 | O46: 0 | P46: 0 | Q46: 0 | R46: 0 | S46: 0 | T46: 0 | U46: 0 | V46: 0 | W46: 4819 | X46: 0 | Y46: 0 | Z46: 0 | AA46: 0 | AB46: 0 | AC46: 0 | AD46: 0 | AE46: 0 | AF46: 0 | AG46: 0 | AH46: 0 | AI46: 0 | AJ46: 0 | AK46: 0
A47: 160 - Office of Insurance Commissioner | B47: 160 | C47: Office of Insurance Commissioner | D47: 0 | E47: 0 | F47: 0 | G47: 0 | H47: 0 | I47: 0 | J47: 0 | K47: 0 | L47: 0 | M47: 0 | N47: 6989 | O47: 0 | P47: 0 | Q47: 0 | R47: 0 | S47: 0 | T47: 0 | U47: 0 | V47: 0 | W47: 0 | X47: 0 | Y47: 0 | Z47: 0 | AA47: 0 | AB47: 0 | AC47: 0 | AD47: 0 | AE47: 0 | AF47: 0 | AG47: 0 | AH47: 0 | AI47: 0 | AJ47: 0 | AK47: 0
A48: 163 - Consolidated Technology Services | B48: 163 | C48: Consolidated Technology Services | D48: 0 | E48: 0 | F48: 0 | G48: 0 | H48: 0 | I48: 292 | J48: 0 | K48: 0 | L48: 0 | M48: 0 | N48: 0 | O48: 0 | P48: 0 | Q48: 0 | R48: 0 | S48: 0 | T48: 0 | U48: 0 | V48: 0 | W48: 0 | X48: 0 | Y48: 0 | Z48: 0 | AA48: 0 | AB48: 0 | AC48: 0 | AD48: 0 | AE48: 0 | AF48: 0 | AG48: 0 | AH48: 0 | AI48: 0 | AJ48: 0 | AK48: 0
A49: 165 - Board of Accountancy | B49: 165 | C49: Board of Accountancy | D49: 0 | E49: 0 | F49: 0 | G49: 0 | H49: 0 | I49: 0 | J49: 0 | K49: 0 | L49: 0 | M49: 0 | N49: 0 | O49: 0 | P49: 0 | Q49: 0 | R49: 0 | S49: 0 | T49: 0 | U49: 0 | V49: 0 | W49: 0 | X49: 0 | Y49: 0 | Z49: 0 | AA49: 0 | AB49: 0 | AC49: 0 | AD49: 0 | AE49: 0 | AF49: 0 | AG49: 0 | AH49: 0 | AI49: 0 | AJ49: 0 | AK49: 0
A50: 166 - Brd Prof Eng Land Surveyors | B50: 166 | C50: Brd Prof Eng Land Surveyors | D50: 0 | E50: 0 | F50: 0 | G50: 0 | H50: 0 | I50: 0 | J50: 0 | K50: 0 | L50: 0 | M50: 0 | N50: 0 | O50: 0 | P50: 0 | Q50: 0 | R50: 0 | S50: 0 | T50: 0 | U50: 0 | V50: 0 | W50: 0 | X50: 0 | Y50: 0 | Z50: 0 | AA50: 0 | AB50: 0 | AC50: 0 | AD50: 0 | AE50: 0 | AF50: 0 | AG50: 0 | AH50: 0 | AI50: 0 | AJ50: 0 | AK50: 0
A51: 167 - Forensic Investigations Council | B51: 167 | C51: Forensic Investigations Council | D51: 0 | E51: 0 | F51: 0 | G51: 0 | H51: 0 | I51: 0 | J51: 0 | K51: 0 | L51: 0 | M51: 0 | N51: 0 | O51: 0 | P51: 0 | Q51: 0 | R51: 0 | S51: 0 | T51: 0 | U51: 0 | V51: 0 | W51: 0 | X51: 0 | Y51: 0 | Z51: 0 | AA51: 0 | AB51: 0 | AC51: 0 | AD51: 0 | AE51: 0 | AF51: 0 | AG51: 0 | AH51: 0 | AI51: 0 | AJ51: 0 | AK51: 0
A52: 179 - Department of Enterprise Services | B52: 179 | C52: Department of Enterprise Services | D52: 0 | E52: 0 | F52: 6917 | G52: 0 | H52: 0 | I52: 20286 | J52: 0 | K52: 0 | L52: 0 | M52: 0 | N52: 0 | O52: 0 | P52: 0 | Q52: 0 | R52: 89004 | S52: 0 | T52: 0 | U52: 0 | V52: 0 | W52: 5378 | X52: 0 | Y52: 0 | Z52: 0 | AA52: 0 | AB52: 0 | AC52: 0 | AD52: 0 | AE52: 300 | AF52: 0 | AG52: 0 | AH52: 0 | AI52: 0 | AJ52: 0 | AK52: 0
A53: 185 - Horse Racing Commission | B53: 185 | C53: Horse Racing Commission | D53: 0 | E53: 0 | F53: 0 | G53: 0 | H53: 0 | I53: 0 | J53: 0 | K53: 0 | L53: 0 | M53: 0 | N53: 0 | O53: 0 | P53: 0 | Q53: 0 | R53: 0 | S53: 0 | T53: 0 | U53: 0 | V53: 0 | W53: 0 | X53: 0 | Y53: 0 | Z53: 0 | AA53: 0 | AB53: 0 | AC53: 0 | AD53: 0 | AE53: 0 | AF53: 0 | AG53: 0 | AH53: 0 | AI53: 0 | AJ53: 0 | AK53: 0
A54: 190 - Board of Industrial Insurance Appeals | B54: 190 | C54: Board of Industrial Insurance Appeals | D54: 0 | E54: 0 | F54: 0 | G54: 0 | H54: 0 | I54: 0 | J54: 0 | K54: 0 | L54: 0 | M54: 0 | N54: 0 | O54: 0 | P54: 0 | Q54: 0 | R54: 0 | S54: 0 | T54: 0 | U54: 0 | V54: 0 | W54: 0 | X54: 0 | Y54: 0 | Z54: 0 | AA54: 0 | AB54: 0 | AC54: 0 | AD54: 0 | AE54: 0 | AF54: 0 | AG54: 0 | AH54: 0 | AI54: 0 | AJ54: 0 | AK54: 0
A55: 195 - Liquor Control Board | B55: 195 | C55: Liquor Control Board | D55: 0 | E55: 0 | F55: 0 | G55: 0 | H55: 0 | I55: 0 | J55: 0 | K55: 0 | L55: 0 | M55: 0 | N55: 0 | O55: 0 | P55: 0 | Q55: 0 | R55: 0 | S55: 0 | T55: 0 | U55: 0 | V55: 0 | W55: 0 | X55: 0 | Y55: 0 | Z55: 0 | AA55: 0 | AB55: 0 | AC55: 0 | AD55: 0 | AE55: 0 | AF55: 0 | AG55: 0 | AH55: 0 | AI55: 0 | AJ55: 0 | AK55: 0
A56: 205 - Board of Pilotage Commissioners | B56: 205 | C56: Board of Pilotage Commissioners | D56: 0 | E56: 0 | F56: 0 | G56: 0 | H56: 0 | I56: 0 | J56: 0 | K56: 0 | L56: 0 | M56: 0 | N56: 0 | O56: 0 | P56: 0 | Q56: 0 | R56: 0 | S56: 0 | T56: 0 | U56: 0 | V56: 0 | W56: 0 | X56: 0 | Y56: 0 | Z56: 0 | AA56: 0 | AB56: 0 | AC56: 0 | AD56: 0 | AE56: 0 | AF56: 0 | AG56: 0 | AH56: 0 | AI56: 0 | AJ56: 0 | AK56: 0
A57: 215 - Utilities and Transportation Commission | B57: 215 | C57: Utilities and Transportation Commission | D57: 0 | E57: 0 | F57: 0 | G57: 0 | H57: 0 | I57: 0 | J57: 0 | K57: 0 | L57: 0 | M57: 0 | N57: 0 | O57: 0 | P57: 0 | Q57: 0 | R57: 0 | S57: 0 | T57: 0 | U57: 0 | V57: 0 | W57: 0 | X57: 0 | Y57: 0 | Z57: 0 | AA57: 0 | AB57: 0 | AC57: 0 | AD57: 0 | AE57: 0 | AF57: 0 | AG57: 0 | AH57: 0 | AI57: 0 | AJ57: 0 | AK57: 0
A58: 220 - Board for Volunteer Firefighters and Reserve Officers | B58: 220 | C58: Board for Volunteer Firefighters and Reserve Officers | D58: 0 | E58: 0 | F58: 0 | G58: 0 | H58: 0 | I58: 0 | J58: 0 | K58: 0 | L58: 0 | M58: 0 | N58: 0 | O58: 0 | P58: 0 | Q58: 0 | R58: 0 | S58: 0 | T58: 0 | U58: 0 | V58: 0 | W58: 0 | X58: 0 | Y58: 0 | Z58: 0 | AA58: 0 | AB58: 0 | AC58: 0 | AD58: 0 | AE58: 0 | AF58: 0 | AG58: 0 | AH58: 0 | AI58: 0 | AJ58: 0 | AK58: 0
A59: 225 - Washington State Patrol | B59: 225 | C59: Washington State Patrol | D59: 0 | E59: 0 | F59: 520 | G59: 0 | H59: 0 | I59: 0 | J59: 0 | K59: 0 | L59: 0 | M59: 0 | N59: 0 | O59: 0 | P59: 0 | Q59: 0 | R59: 0 | S59: 0 | T59: 0 | U59: 0 | V59: 0 | W59: 0 | X59: 0 | Y59: 0 | Z59: 0 | AA59: 0 | AB59: 0 | AC59: 0 | AD59: 0 | AE59: 137399 | AF59: 0 | AG59: 0 | AH59: 0 | AI59: 0 | AJ59: 0 | AK59: 0
A60: 227 - Criminal Justice Training Commission | B60: 227 | C60: Criminal Justice Training Commission | D60: 0 | E60: 0 | F60: 0 | G60: 0 | H60: 0 | I60: 0 | J60: 0 | K60: 0 | L60: 0 | M60: 0 | N60: 0 | O60: 0 | P60: 0 | Q60: 0 | R60: 0 | S60: 0 | T60: 0 | U60: 0 | V60: 0 | W60: 0 | X60: 0 | Y60: 0 | Z60: 0 | AA60: 0 | AB60: 0 | AC60: 0 | AD60: 0 | AE60: 0 | AF60: 0 | AG60: 0 | AH60: 0 | AI60: 0 | AJ60: 0 | AK60: 0
A61: 228 - Traffic Safety Commission | B61: 228 | C61: Traffic Safety Commission | D61: 0 | E61: 0 | F61: 0 | G61: 0 | H61: 0 | I61: 0 | J61: 0 | K61: 0 | L61: 0 | M61: 0 | N61: 0 | O61: 0 | P61: 0 | Q61: 0 | R61: 0 | S61: 0 | T61: 0 | U61: 0 | V61: 0 | W61: 0 | X61: 0 | Y61: 0 | Z61: 0 | AA61: 0 | AB61: 0 | AC61: 0 | AD61: 0 | AE61: 0 | AF61: 0 | AG61: 0 | AH61: 0 | AI61: 0 | AJ61: 0 | AK61: 0
A62: 235 - Department of Labor and Industries | B62: 235 | C62: Department of Labor and Industries | D62: 0 | E62: 0 | F62: 0 | G62: 0 | H62: 0 | I62: 0 | J62: 0 | K62: 0 | L62: 0 | M62: 0 | N62: 0 | O62: 0 | P62: 0 | Q62: 0 | R62: 0 | S62: 0 | T62: 0 | U62: 0 | V62: 0 | W62: 0 | X62: 0 | Y62: 0 | Z62: 0 | AA62: 0 | AB62: 0 | AC62: 0 | AD62: 0 | AE62: 0 | AF62: 10323 | AG62: 0 | AH62: 0 | AI62: 29188 | AJ62: 0 | AK62: 0
A63: 240 - Department of Licensing | B63: 240 | C63: Department of Licensing | D63: 0 | E63: 0 | F63: 0 | G63: 0 | H63: 104161 | I63: 0 | J63: 0 | K63: 0 | L63: 0 | M63: 0 | N63: 0 | O63: 0 | P63: 0 | Q63: 0 | R63: 0 | S63: 0 | T63: 0 | U63: 0 | V63: 0 | W63: 0 | X63: 0 | Y63: 0 | Z63: 0 | AA63: 0 | AB63: 0 | AC63: 0 | AD63: 0 | AE63: 0 | AF63: 0 | AG63: 0 | AH63: 0 | AI63: 0 | AJ63: 0 | AK63: 0
A64: 245 - Military Department | B64: 245 | C64: Military Department | D64: 0 | E64: 0 | F64: 0 | G64: 0 | H64: 0 | I64: 0 | J64: 0 | K64: 0 | L64: 0 | M64: 0 | N64: 0 | O64: 0 | P64: 0 | Q64: 0 | R64: 0 | S64: 0 | T64: 0 | U64: 0 | V64: 0 | W64: 0 | X64: 0 | Y64: 0 | Z64: 0 | AA64: 0 | AB64: 0 | AC64: 0 | AD64: 0 | AE64: 0 | AF64: 0 | AG64: 0 | AH64: 0 | AI64: 0 | AJ64: 0 | AK64: 0
A65: 275 - Public Employment Relations Commission | B65: 275 | C65: Public Employment Relations Commission | D65: 0 | E65: 0 | F65: 0 | G65: 0 | H65: 0 | I65: 0 | J65: 0 | K65: 0 | L65: 0 | M65: 0 | N65: 0 | O65: 0 | P65: 0 | Q65: 0 | R65: 0 | S65: 0 | T65: 0 | U65: 0 | V65: 0 | W65: 0 | X65: 0 | Y65: 0 | Z65: 0 | AA65: 0 | AB65: 0 | AC65: 0 | AD65: 0 | AE65: 0 | AF65: 0 | AG65: 0 | AH65: 0 | AI65: 0 | AJ65: 0 | AK65: 0
A66: 300 - Department of Social and Health Services | B66: 300 | C66: Department of Social and Health Services | D66: 0 | E66: 0 | F66: 0 | G66: 0 | H66: 0 | I66: 161291 | J66: 0 | K66: 0 | L66: 0 | M66: 0 | N66: 0 | O66: 0 | P66: 0 | Q66: 0 | R66: 0 | S66: 0 | T66: 0 | U66: 0 | V66: 0 | W66: 0 | X66: 0 | Y66: 0 | Z66: 0 | AA66: 0 | AB66: 0 | AC66: 0 | AD66: 0 | AE66: 0 | AF66: 29001 | AG66: 69517 | AH66: 0 | AI66: 0 | AJ66: 0 | AK66: 0
A67: 303 - Department of Health | B67: 303 | C67: Department of Health | D67: 0 | E67: 0 | F67: 0 | G67: 0 | H67: 0 | I67: 0 | J67: 0 | K67: 0 | L67: 0 | M67: 0 | N67: 0 | O67: 0 | P67: 0 | Q67: 0 | R67: 0 | S67: 0 | T67: 0 | U67: 0 | V67: 0 | W67: 0 | X67: 0 | Y67: 0 | Z67: 0 | AA67: 0 | AB67: 0 | AC67: 0 | AD67: 0 | AE67: 0 | AF67: 0 | AG67: 0 | AH67: 0 | AI67: 0 | AJ67: 0 | AK67: 0
A68: 305 - Department of Veterans Affairs | B68: 305 | C68: Department of Veterans Affairs | D68: 0 | E68: 0 | F68: 0 | G68: 0 | H68: 0 | I68: 0 | J68: 0 | K68: 0 | L68: 0 | M68: 0 | N68: 0 | O68: 0 | P68: 0 | Q68: 0 | R68: 0 | S68: 0 | T68: 0 | U68: 0 | V68: 0 | W68: 0 | X68: 0 | Y68: 0 | Z68: 0 | AA68: 0 | AB68: 0 | AC68: 0 | AD68: 0 | AE68: 0 | AF68: 0 | AG68: 0 | AH68: 0 | AI68: 0 | AJ68: 0 | AK68: 0
A69: =CONCATENATE(B69," - ",C69) -> 307 - DCYF | B69: 307 | C69: DCYF | D69: 0 | E69: 0 | F69: 0 | G69: 0 | H69: 0 | I69: 66042 | J69: 0 | K69: 0 | L69: 0 | M69: 0 | N69: 0 | O69: 0 | P69: 0 | Q69: 0 | R69: 0 | S69: 0 | T69: 0 | U69: 0 | V69: 0 | W69: 0 | X69: 0 | Y69: 0 | Z69: 0 | AA69: 0 | AB69: 0 | AC69: 0 | AD69: 0 | AE69: 0 | AF69: 21257 | AG69: 29483 | AH69: 0 | AI69: 0 | AJ69: 0 | AK69: 0
A70: 310 - Department of Corrections | B70: 310 | C70: Department of Corrections | D70: 0 | E70: 0 | F70: 0 | G70: 0 | H70: 0 | I70: 0 | J70: 0 | K70: 0 | L70: 0 | M70: 0 | N70: 0 | O70: 0 | P70: 0 | Q70: 0 | R70: 0 | S70: 0 | T70: 0 | U70: 0 | V70: 0 | W70: 0 | X70: 0 | Y70: 0 | Z70: 0 | AA70: 0 | AB70: 0 | AC70: 0 | AD70: 0 | AE70: 0 | AF70: 0 | AG70: 0 | AH70: 0 | AI70: 0 | AJ70: 0 | AK70: 0
A71: 315 - Department of Services for the Blind | B71: 315 | C71: Department of Services for the Blind | D71: 0 | E71: 0 | F71: 591 | G71: 0 | H71: 868 | I71: 2570 | J71: 0 | K71: 3010 | L71: 0 | M71: 1434 | N71: 0 | O71: 0 | P71: 0 | Q71: 0 | R71: 0 | S71: 0 | T71: 0 | U71: 0 | V71: 0 | W71: 0 | X71: 0 | Y71: 0 | Z71: 0 | AA71: 0 | AB71: 0 | AC71: 0 | AD71: 0 | AE71: 0 | AF71: 0 | AG71: 0 | AH71: 20708 | AI71: 2775 | AJ71: 0 | AK71: 0
A72: 340 - Student Achievement Council | B72: 340 | C72: Student Achievement Council | D72: 0 | E72: 0 | F72: 0 | G72: 0 | H72: 0 | I72: 0 | J72: 0 | K72: 0 | L72: 0 | M72: 0 | N72: 0 | O72: 0 | P72: 0 | Q72: 0 | R72: 0 | S72: 0 | T72: 0 | U72: 0 | V72: 0 | W72: 0 | X72: 0 | Y72: 0 | Z72: 0 | AA72: 0 | AB72: 0 | AC72: 0 | AD72: 0 | AE72: 0 | AF72: 0 | AG72: 0 | AH72: 0 | AI72: 0 | AJ72: 0 | AK72: 0
A73: 341 - Law Enforcement Officers' & Fire Fighters' Plan 2 Retirement Board | B73: 341 | C73: Law Enforcement Officers' & Fire Fighters' Plan 2 Retirement Board | D73: 0 | E73: 0 | F73: 0 | G73: 0 | H73: 0 | I73: 0 | J73: 0 | K73: 0 | L73: 0 | M73: 0 | N73: 0 | O73: 0 | P73: 0 | Q73: 0 | R73: 0 | S73: 0 | T73: 0 | U73: 0 | V73: 0 | W73: 0 | X73: 0 | Y73: 0 | Z73: 0 | AA73: 0 | AB73: 0 | AC73: 0 | AD73: 0 | AE73: 0 | AF73: 0 | AG73: 0 | AH73: 0 | AI73: 0 | AJ73: 0 | AK73: 0
A74: 350 - Superintendent of Public Instruction | B74: 350 | C74: Superintendent of Public Instruction | D74: 0 | E74: 0 | F74: 0 | G74: 0 | H74: 0 | I74: 0 | J74: 0 | K74: 0 | L74: 0 | M74: 0 | N74: 0 | O74: 97800 | P74: 0 | Q74: 0 | R74: 0 | S74: 0 | T74: 0 | U74: 0 | V74: 0 | W74: 0 | X74: 0 | Y74: 0 | Z74: 1539 | AA74: 0 | AB74: 0 | AC74: 0 | AD74: 0 | AE74: 0 | AF74: 0 | AG74: 0 | AH74: 0 | AI74: 0 | AJ74: 0 | AK74: 0
A75: 351 - State School For The Blind | B75: 351 | C75: State School For The Blind | D75: 0 | E75: 0 | F75: 0 | G75: 0 | H75: 0 | I75: 0 | J75: 0 | K75: 0 | L75: 0 | M75: 0 | N75: 0 | O75: 0 | P75: 0 | Q75: 0 | R75: 0 | S75: 0 | T75: 0 | U75: 0 | V75: 0 | W75: 0 | X75: 0 | Y75: 0 | Z75: 0 | AA75: 0 | AB75: 0 | AC75: 0 | AD75: 0 | AE75: 0 | AF75: 0 | AG75: 0 | AH75: 0 | AI75: 0 | AJ75: 0 | AK75: 0
A76: 353 - State Center for Childhood Deafness and Hearing Loss | B76: 353 | C76: State Center for Childhood Deafness and Hearing Loss | D76: 0 | E76: 0 | F76: 0 | G76: 0 | H76: 0 | I76: 0 | J76: 0 | K76: 0 | L76: 0 | M76: 0 | N76: 0 | O76: 0 | P76: 0 | Q76: 0 | R76: 0 | S76: 0 | T76: 0 | U76: 0 | V76: 0 | W76: 0 | X76: 0 | Y76: 0 | Z76: 0 | AA76: 0 | AB76: 0 | AC76: 0 | AD76: 0 | AE76: 0 | AF76: 0 | AG76: 0 | AH76: 0 | AI76: 0 | AJ76: 0 | AK76: 0
A77: 354 - Workforce Training and Education Coordinating Board | B77: 354 | C77: Workforce Training and Education Coordinating Board | D77: 0 | E77: 0 | F77: 0 | G77: 0 | H77: 0 | I77: 0 | J77: 0 | K77: 0 | L77: 0 | M77: 0 | N77: 0 | O77: 0 | P77: 0 | Q77: 0 | R77: 0 | S77: 0 | T77: 0 | U77: 0 | V77: 0 | W77: 0 | X77: 0 | Y77: 0 | Z77: 0 | AA77: 0 | AB77: 0 | AC77: 0 | AD77: 0 | AE77: 0 | AF77: 0 | AG77: 0 | AH77: 0 | AI77: 0 | AJ77: 0 | AK77: 0
A78: 355 - Department of Archaeology and Historic Preservation | B78: 355 | C78: Department of Archaeology and Historic Preservation | D78: 0 | E78: 0 | F78: 0 | G78: 0 | H78: 0 | I78: 0 | J78: 0 | K78: 0 | L78: 0 | M78: 0 | N78: 0 | O78: 0 | P78: 0 | Q78: 0 | R78: 0 | S78: 0 | T78: 0 | U78: 0 | V78: 0 | W78: 9336 | X78: 0 | Y78: 0 | Z78: 0 | AA78: 0 | AB78: 0 | AC78: 0 | AD78: 0 | AE78: 0 | AF78: 0 | AG78: 0 | AH78: 0 | AI78: 0 | AJ78: 0 | AK78: 0
A79: 357 - Department of Early Learning | B79: 357 | C79: Department of Early Learning | D79: 0 | E79: 0 | F79: 0 | G79: 0 | H79: 0 | I79: 0 | J79: 0 | K79: 0 | L79: 0 | M79: 0 | N79: 0 | O79: 0 | P79: 0 | Q79: 0 | R79: 0 | S79: 0 | T79: 0 | U79: 0 | V79: 0 | W79: 0 | X79: 0 | Y79: 0 | Z79: 0 | AA79: 0 | AB79: 0 | AC79: 0 | AD79: 0 | AE79: 0 | AF79: 0 | AG79: 0 | AH79: 0 | AI79: 0 | AJ79: 0 | AK79: 0
A80: 359 - WA Charter School Commission | B80: 359 | C80: WA Charter School Commission | D80: 0 | E80: 0 | F80: 0 | G80: 0 | H80: 0 | I80: 0 | J80: 0 | K80: 0 | L80: 0 | M80: 0 | N80: 0 | O80: 0 | P80: 0 | Q80: 0 | R80: 0 | S80: 0 | T80: 0 | U80: 0 | V80: 0 | W80: 0 | X80: 0 | Y80: 0 | Z80: 0 | AA80: 0 | AB80: 0 | AC80: 0 | AD80: 0 | AE80: 0 | AF80: 0 | AG80: 0 | AH80: 0 | AI80: 0 | AJ80: 0 | AK80: 0
A81: 360 - University of Washington | B81: 360 | C81: University of Washington | D81: 0 | E81: 0 | F81: 0 | G81: 0 | H81: 0 | I81: 0 | J81: 0 | K81: 0 | L81: 0 | M81: 0 | N81: 0 | O81: 0 | P81: 0 | Q81: 0 | R81: 0 | S81: 0 | T81: 0 | U81: 0 | V81: 0 | W81: 0 | X81: 0 | Y81: 0 | Z81: 0 | AA81: 0 | AB81: 0 | AC81: 0 | AD81: 0 | AE81: 0 | AF81: 0 | AG81: 0 | AH81: 0 | AI81: 0 | AJ81: 0 | AK81: 0
A82: 365 - Washington State University | B82: 365 | C82: Washington State University | D82: 0 | E82: 0 | F82: 0 | G82: 0 | H82: 0 | I82: 0 | J82: 0 | K82: 0 | L82: 0 | M82: 0 | N82: 0 | O82: 0 | P82: 0 | Q82: 0 | R82: 0 | S82: 0 | T82: 0 | U82: 0 | V82: 0 | W82: 0 | X82: 0 | Y82: 0 | Z82: 0 | AA82: 0 | AB82: 0 | AC82: 0 | AD82: 0 | AE82: 0 | AF82: 0 | AG82: 0 | AH82: 0 | AI82: 0 | AJ82: 0 | AK82: 0
A83: 370 - Eastern Washington University | B83: 370 | C83: Eastern Washington University | D83: 0 | E83: 0 | F83: 0 | G83: 0 | H83: 0 | I83: 0 | J83: 0 | K83: 0 | L83: 0 | M83: 0 | N83: 0 | O83: 0 | P83: 0 | Q83: 0 | R83: 0 | S83: 0 | T83: 0 | U83: 0 | V83: 0 | W83: 0 | X83: 0 | Y83: 0 | Z83: 0 | AA83: 0 | AB83: 0 | AC83: 0 | AD83: 0 | AE83: 0 | AF83: 0 | AG83: 0 | AH83: 0 | AI83: 0 | AJ83: 0 | AK83: 0
A84: 375 - Central Washington University | B84: 375 | C84: Central Washington University | D84: 0 | E84: 0 | F84: 0 | G84: 0 | H84: 0 | I84: 0 | J84: 0 | K84: 0 | L84: 0 | M84: 0 | N84: 0 | O84: 0 | P84: 0 | Q84: 0 | R84: 0 | S84: 0 | T84: 0 | U84: 0 | V84: 0 | W84: 0 | X84: 0 | Y84: 0 | Z84: 0 | AA84: 0 | AB84: 0 | AC84: 0 | AD84: 0 | AE84: 0 | AF84: 0 | AG84: 0 | AH84: 0 | AI84: 0 | AJ84: 0 | AK84: 0
A85: 376 - The Evergreen State College | B85: 376 | C85: The Evergreen State College | D85: 0 | E85: 0 | F85: 0 | G85: 0 | H85: 0 | I85: 0 | J85: 0 | K85: 0 | L85: 0 | M85: 0 | N85: 0 | O85: 0 | P85: 0 | Q85: 0 | R85: 0 | S85: 0 | T85: 0 | U85: 0 | V85: 0 | W85: 0 | X85: 0 | Y85: 0 | Z85: 0 | AA85: 0 | AB85: 0 | AC85: 0 | AD85: 0 | AE85: 0 | AF85: 0 | AG85: 0 | AH85: 0 | AI85: 0 | AJ85: 0 | AK85: 0
A86: 380 - Western Washington University | B86: 380 | C86: Western Washington University | D86: 0 | E86: 0 | F86: 0 | G86: 0 | H86: 0 | I86: 0 | J86: 0 | K86: 0 | L86: 0 | M86: 0 | N86: 0 | O86: 0 | P86: 0 | Q86: 0 | R86: 0 | S86: 0 | T86: 0 | U86: 0 | V86: 0 | W86: 0 | X86: 0 | Y86: 0 | Z86: 0 | AA86: 0 | AB86: 0 | AC86: 0 | AD86: 0 | AE86: 0 | AF86: 0 | AG86: 0 | AH86: 0 | AI86: 0 | AJ86: 0 | AK86: 0
A87: 387 - Washington State Arts Commission | B87: 387 | C87: Washington State Arts Commission | D87: 0 | E87: 0 | F87: 0 | G87: 0 | H87: 0 | I87: 0 | J87: 0 | K87: 0 | L87: 0 | M87: 0 | N87: 0 | O87: 0 | P87: 0 | Q87: 0 | R87: 0 | S87: 0 | T87: 0 | U87: 0 | V87: 0 | W87: 0 | X87: 0 | Y87: 0 | Z87: 0 | AA87: 0 | AB87: 0 | AC87: 0 | AD87: 0 | AE87: 0 | AF87: 0 | AG87: 0 | AH87: 0 | AI87: 0 | AJ87: 0 | AK87: 0
A88: 390 - Washington State Historical Society | B88: 390 | C88: Washington State Historical Society | D88: 0 | E88: 0 | F88: 0 | G88: 0 | H88: 0 | I88: 0 | J88: 0 | K88: 0 | L88: 0 | M88: 0 | N88: 0 | O88: 0 | P88: 0 | Q88: 0 | R88: 0 | S88: 0 | T88: 0 | U88: 0 | V88: 0 | W88: 0 | X88: 0 | Y88: 0 | Z88: 0 | AA88: 0 | AB88: 0 | AC88: 0 | AD88: 0 | AE88: 0 | AF88: 0 | AG88: 0 | AH88: 0 | AI88: 0 | AJ88: 0 | AK88: 0
A89: 395 - Eastern Washington State Historical Society | B89: 395 | C89: Eastern Washington State Historical Society | D89: 0 | E89: 0 | F89: 0 | G89: 0 | H89: 0 | I89: 0 | J89: 0 | K89: 0 | L89: 0 | M89: 0 | N89: 0 | O89: 0 | P89: 0 | Q89: 0 | R89: 0 | S89: 0 | T89: 0 | U89: 0 | V89: 0 | W89: 0 | X89: 0 | Y89: 0 | Z89: 0 | AA89: 0 | AB89: 0 | AC89: 0 | AD89: 0 | AE89: 0 | AF89: 0 | AG89: 0 | AH89: 0 | AI89: 0 | AJ89: 0 | AK89: 0
A90: 405 - Department of Transportation | B90: 405 | C90: Department of Transportation | D90: 0 | E90: 0 | F90: 0 | G90: 0 | H90: 0 | I90: 0 | J90: 0 | K90: 0 | L90: 0 | M90: 182993 | N90: 0 | O90: 0 | P90: 0 | Q90: 0 | R90: 0 | S90: 0 | T90: 0 | U90: 0 | V90: 0 | W90: 0 | X90: 0 | Y90: 0 | Z90: 0 | AA90: 0 | AB90: 0 | AC90: 0 | AD90: 0 | AE90: 0 | AF90: 0 | AG90: 0 | AH90: 0 | AI90: 0 | AJ90: 0 | AK90: 0
A91: 406 - County Road Administration Board | B91: 406 | C91: County Road Administration Board | D91: 0 | E91: 0 | F91: 0 | G91: 0 | H91: 0 | I91: 0 | J91: 0 | K91: 0 | L91: 0 | M91: 0 | N91: 0 | O91: 0 | P91: 0 | Q91: 0 | R91: 0 | S91: 0 | T91: 0 | U91: 0 | V91: 0 | W91: 0 | X91: 0 | Y91: 0 | Z91: 0 | AA91: 0 | AB91: 0 | AC91: 0 | AD91: 0 | AE91: 0 | AF91: 0 | AG91: 0 | AH91: 0 | AI91: 0 | AJ91: 0 | AK91: 0
A92: 407 - Transportation Improvement Board | B92: 407 | C92: Transportation Improvement Board | D92: 0 | E92: 0 | F92: 0 | G92: 0 | H92: 0 | I92: 0 | J92: 0 | K92: 0 | L92: 0 | M92: 0 | N92: 0 | O92: 0 | P92: 0 | Q92: 0 | R92: 0 | S92: 0 | T92: 0 | U92: 0 | V92: 0 | W92: 0 | X92: 0 | Y92: 0 | Z92: 0 | AA92: 0 | AB92: 0 | AC92: 0 | AD92: 0 | AE92: 0 | AF92: 0 | AG92: 0 | AH92: 0 | AI92: 0 | AJ92: 0 | AK92: 0
A93: 410 - Transportation Commission | B93: 410 | C93: Transportation Commission | D93: 0 | E93: 0 | F93: 0 | G93: 0 | H93: 0 | I93: 0 | J93: 0 | K93: 0 | L93: 0 | M93: 0 | N93: 0 | O93: 0 | P93: 0 | Q93: 0 | R93: 0 | S93: 0 | T93: 0 | U93: 0 | V93: 0 | W93: 0 | X93: 0 | Y93: 0 | Z93: 0 | AA93: 0 | AB93: 0 | AC93: 0 | AD93: 0 | AE93: 0 | AF93: 0 | AG93: 0 | AH93: 0 | AI93: 0 | AJ93: 0 | AK93: 0
A94: 411 - Freight Mobility Strategic Investment Board | B94: 411 | C94: Freight Mobility Strategic Investment Board | D94: 0 | E94: 0 | F94: 0 | G94: 0 | H94: 0 | I94: 0 | J94: 0 | K94: 0 | L94: 0 | M94: 0 | N94: 0 | O94: 0 | P94: 0 | Q94: 0 | R94: 0 | S94: 0 | T94: 0 | U94: 0 | V94: 0 | W94: 0 | X94: 0 | Y94: 0 | Z94: 0 | AA94: 0 | AB94: 0 | AC94: 0 | AD94: 0 | AE94: 0 | AF94: 0 | AG94: 0 | AH94: 0 | AI94: 0 | AJ94: 0 | AK94: 0
A95: 460 - Columbia River Gorge Commission | B95: 460 | C95: Columbia River Gorge Commission | D95: 0 | E95: 0 | F95: 0 | G95: 0 | H95: 0 | I95: 0 | J95: 0 | K95: 0 | L95: 0 | M95: 0 | N95: 0 | O95: 0 | P95: 0 | Q95: 0 | R95: 0 | S95: 0 | T95: 0 | U95: 0 | V95: 0 | W95: 0 | X95: 0 | Y95: 0 | Z95: 0 | AA95: 0 | AB95: 0 | AC95: 0 | AD95: 0 | AE95: 0 | AF95: 0 | AG95: 0 | AH95: 0 | AI95: 0 | AJ95: 0 | AK95: 0
A96: 461 - Department of Ecology | B96: 461 | C96: Department of Ecology | D96: 0 | E96: 0 | F96: 0 | G96: 0 | H96: 0 | I96: 0 | J96: 0 | K96: 0 | L96: 0 | M96: 0 | N96: 0 | O96: 0 | P96: 0 | Q96: 0 | R96: 0 | S96: 0 | T96: 0 | U96: 0 | V96: 0 | W96: 0 | X96: 0 | Y96: 0 | Z96: 0 | AA96: 0 | AB96: 0 | AC96: 0 | AD96: 0 | AE96: 0 | AF96: 0 | AG96: 0 | AH96: 0 | AI96: 0 | AJ96: 0 | AK96: 0
A97: 462 - Pollution Liability Insurance Program | B97: 462 | C97: Pollution Liability Insurance Program | D97: 0 | E97: 0 | F97: 0 | G97: 0 | H97: 0 | I97: 0 | J97: 0 | K97: 0 | L97: 0 | M97: 0 | N97: 0 | O97: 0 | P97: 0 | Q97: 0 | R97: 0 | S97: 0 | T97: 0 | U97: 0 | V97: 0 | W97: 0 | X97: 0 | Y97: 0 | Z97: 0 | AA97: 0 | AB97: 0 | AC97: 0 | AD97: 0 | AE97: 0 | AF97: 0 | AG97: 0 | AH97: 0 | AI97: 0 | AJ97: 0 | AK97: 0
A98: 465 - State Parks and Recreation Commission | B98: 465 | C98: State Parks and Recreation Commission | D98: 0 | E98: 0 | F98: 0 | G98: 0 | H98: 0 | I98: 0 | J98: 0 | K98: 0 | L98: 0 | M98: 0 | N98: 0 | O98: 0 | P98: 0 | Q98: 0 | R98: 0 | S98: 0 | T98: 0 | U98: 0 | V98: 0 | W98: 0 | X98: 0 | Y98: 0 | Z98: 0 | AA98: 0 | AB98: 0 | AC98: 0 | AD98: 0 | AE98: 0 | AF98: 0 | AG98: 0 | AH98: 0 | AI98: 0 | AJ98: 0 | AK98: 0
A99: 467 - Recreation and Conservation Funding Board | B99: 467 | C99: Recreation and Conservation Funding Board | D99: 0 | E99: 0 | F99: 0 | G99: 0 | H99: 0 | I99: 0 | J99: 0 | K99: 11770 | L99: 0 | M99: 0 | N99: 0 | O99: 0 | P99: 0 | Q99: 0 | R99: 0 | S99: 0 | T99: 0 | U99: 0 | V99: 0 | W99: 0 | X99: 0 | Y99: 0 | Z99: 0 | AA99: 0 | AB99: 0 | AC99: 0 | AD99: 0 | AE99: 0 | AF99: 0 | AG99: 0 | AH99: 0 | AI99: 0 | AJ99: 0 | AK99: 0
A100: 468 - Environmental and Land Use Hearings Office | B100: 468 | C100: Environmental and Land Use Hearings Office | D100: 0 | E100: 0 | F100: 0 | G100: 0 | H100: 0 | I100: 0 | J100: 0 | K100: 0 | L100: 0 | M100: 0 | N100: 0 | O100: 0 | P100: 0 | Q100: 0 | R100: 0 | S100: 0 | T100: 0 | U100: 0 | V100: 0 | W100: 0 | X100: 0 | Y100: 0 | Z100: 0 | AA100: 0 | AB100: 0 | AC100: 0 | AD100: 0 | AE100: 0 | AF100: 0 | AG100: 0 | AH100: 0 | AI100: 0 | AJ100: 0 | AK100: 0
A101: 471 - State Conservation Commission | B101: 471 | C101: State Conservation Commission | D101: 0 | E101: 0 | F101: 0 | G101: 0 | H101: 0 | I101: 0 | J101: 0 | K101: 0 | L101: 0 | M101: 0 | N101: 0 | O101: 0 | P101: 0 | Q101: 0 | R101: 0 | S101: 0 | T101: 0 | U101: 0 | V101: 0 | W101: 0 | X101: 0 | Y101: 0 | Z101: 0 | AA101: 0 | AB101: 0 | AC101: 0 | AD101: 0 | AE101: 0 | AF101: 0 | AG101: 0 | AH101: 0 | AI101: 0 | AJ101: 0 | AK101: 0
A102: 477 - Department of Fish and Wildlife | B102: 477 | C102: Department of Fish and Wildlife | D102: 0 | E102: 0 | F102: 0 | G102: 0 | H102: 0 | I102: 0 | J102: 0 | K102: 140169 | L102: 0 | M102: 0 | N102: 0 | O102: 0 | P102: 0 | Q102: 0 | R102: 0 | S102: 0 | T102: 0 | U102: 0 | V102: 0 | W102: 0 | X102: 0 | Y102: 0 | Z102: 0 | AA102: 0 | AB102: 0 | AC102: 0 | AD102: 0 | AE102: 0 | AF102: 0 | AG102: 0 | AH102: 0 | AI102: 0 | AJ102: 0 | AK102: 0
A103: 478 - Puget Sound Partnership | B103: 478 | C103: Puget Sound Partnership | D103: 0 | E103: 0 | F103: 0 | G103: 0 | H103: 0 | I103: 0 | J103: 0 | K103: 0 | L103: 0 | M103: 0 | N103: 0 | O103: 0 | P103: 0 | Q103: 0 | R103: 0 | S103: 0 | T103: 0 | U103: 0 | V103: 0 | W103: 1382 | X103: 0 | Y103: 0 | Z103: 0 | AA103: 0 | AB103: 0 | AC103: 0 | AD103: 0 | AE103: 0 | AF103: 0 | AG103: 0 | AH103: 0 | AI103: 0 | AJ103: 0 | AK103: 0
A104: 490 - Department of Natural Resources | B104: 490 | C104: Department of Natural Resources | D104: 0 | E104: 0 | F104: 0 | G104: 0 | H104: 0 | I104: 0 | J104: 0 | K104: 151800 | L104: 0 | M104: 0 | N104: 0 | O104: 0 | P104: 0 | Q104: 0 | R104: 0 | S104: 0 | T104: 0 | U104: 0 | V104: 0 | W104: 0 | X104: 0 | Y104: 0 | Z104: 0 | AA104: 0 | AB104: 0 | AC104: 0 | AD104: 0 | AE104: 0 | AF104: 0 | AG104: 0 | AH104: 0 | AI104: 0 | AJ104: 0 | AK104: 0
A105: 495 - Department of Agriculture | B105: 495 | C105: Department of Agriculture | D105: 0 | E105: 0 | F105: 0 | G105: 0 | H105: 0 | I105: 0 | J105: 0 | K105: 47947 | L105: 0 | M105: 0 | N105: 0 | O105: 0 | P105: 0 | Q105: 0 | R105: 0 | S105: 0 | T105: 0 | U105: 0 | V105: 0 | W105: 0 | X105: 0 | Y105: 0 | Z105: 0 | AA105: 0 | AB105: 0 | AC105: 0 | AD105: 0 | AE105: 0 | AF105: 0 | AG105: 0 | AH105: 0 | AI105: 0 | AJ105: 0 | AK105: 0
A106: 540 - Employment Security Department | B106: 540 | C106: Employment Security Department | D106: 0 | E106: 0 | F106: 0 | G106: 0 | H106: 0 | I106: 0 | J106: 0 | K106: 0 | L106: 92619 | M106: 0 | N106: 0 | O106: 0 | P106: 0 | Q106: 0 | R106: 0 | S106: 0 | T106: 0 | U106: 0 | V106: 0 | W106: 0 | X106: 0 | Y106: 0 | Z106: 0 | AA106: 0 | AB106: 0 | AC106: 0 | AD106: 0 | AE106: 0 | AF106: 0 | AG106: 0 | AH106: 0 | AI106: 0 | AJ106: 0 | AK106: 0
A107: 699 - Community Colleges | B107: 699 | C107: Community Colleges | D107: 0 | E107: 0 | F107: 0 | G107: 0 | H107: 0 | I107: 0 | J107: 0 | K107: 0 | L107: 0 | M107: 0 | N107: 0 | O107: 0 | P107: 0 | Q107: 0 | R107: 0 | S107: 0 | T107: 0 | U107: 0 | V107: 0 | W107: 0 | X107: 0 | Y107: 0 | Z107: 0 | AA107: 0 | AB107: 0 | AC107: 0 | AD107: 0 | AE107: 0 | AF107: 0 | AG107: 0 | AH107: 0 | AI107: 0 | AJ107: 0 | AK107: 0
A108: XXX - Private | B108: XXX | C108: Private | D108: 0 | E108: 0 | F108: 0 | G108: 0 | H108: 0 | I108: 0 | J108: 0 | K108: 0 | L108: 0 | M108: 0 | N108: 0 | O108: 0 | P108: 0 | Q108: 0 | R108: 0 | S108: 0 | T108: 0 | U108: 10125 | V108: 0 | W108: 157 | X108: 0 | Y108: 0 | Z108: 0 | AA108: 7138 | AB108: 885 | AC108: 2492 | AD108: 0 | AE108: 0 | AF108: 0 | AG108: 0 | AH108: 0 | AI108: 63022 | AJ108: 17600 | AK108: 0
A109: TOTAL - All Agencies | C109: Building Total | D109: =SUM(D4:D107) -> 77281 | E109: =SUM(E4:E107) -> 78594 | F109: 142254 | G109: 23890 | H109: 177668 | I109: 250481 | J109: 47900 | K109: 354696 | L109: 92619 | M109: 184427 | N109: 55108 | O109: 97800 | P109: 53609 | Q109: 22032 | R109: 95386 | S109: 47200 | T109: 14308 | U109: 0 | V109: 0 | W109: 41184 | X109: 17000 | Y109: 0 | Z109: 1539 | AA109: 0 | AB109: 0 | AC109: 0 | AD109: 0 | AE109: 200592 | AF109: 60581 | AG109: 99000 | AH109: 20708 | AI109: 75333 | AJ109: 0 | AK109: =SUM(AK4:AK108) -> 0
A110: 0 - vacant space | B110: 0 | C110: vacant space | D110: =SUMIFS('[2]Master 8.5.20'!$R:$R,'[2]Master 8.5.20'!$C:$C,"Vacant",'[2]Master 8.5.20'!$A:$A,D$2) ->  | E110: =SUMIFS('[2]Master 8.5.20'!$R:$R,'[2]Master 8.5.20'!$C:$C,"Vacant",'[2]Master 8.5.20'!$A:$A,E$2) ->  | F110: =SUMIFS('[2]Master 8.5.20'!$R:$R,'[2]Master 8.5.20'!$C:$C,"Vacant",'[2]Master 8.5.20'!$A:$A,F$2) ->  | G110: =SUMIFS('[2]Master 8.5.20'!$R:$R,'[2]Master 8.5.20'!$C:$C,"Vacant",'[2]Master 8.5.20'!$A:$A,G$2) ->  | H110: =SUMIFS('[2]Master 8.5.20'!$R:$R,'[2]Master 8.5.20'!$C:$C,"Vacant",'[2]Master 8.5.20'!$A:$A,H$2) ->  | I110: =SUMIFS('[2]Master 8.5.20'!$R:$R,'[2]Master 8.5.20'!$C:$C,"Vacant",'[2]Master 8.5.20'!$A:$A,I$2) ->  | J110: =SUMIFS('[2]Master 8.5.20'!$R:$R,'[2]Master 8.5.20'!$C:$C,"Vacant",'[2]Master 8.5.20'!$A:$A,J$2) ->  | K110: =SUMIFS('[2]Master 8.5.20'!$R:$R,'[2]Master 8.5.20'!$C:$C,"Vacant",'[2]Master 8.5.20'!$A:$A,K$2) ->  | L110: =SUMIFS('[2]Master 8.5.20'!$R:$R,'[2]Master 8.5.20'!$C:$C,"Vacant",'[2]Master 8.5.20'!$A:$A,L$2) ->  | M110: =SUMIFS('[2]Master 8.5.20'!$R:$R,'[2]Master 8.5.20'!$C:$C,"Vacant",'[2]Master 8.5.20'!$A:$A,M$2) ->  | N110: =SUMIFS('[2]Master 8.5.20'!$R:$R,'[2]Master 8.5.20'!$C:$C,"Vacant",'[2]Master 8.5.20'!$A:$A,N$2) ->  | O110: =SUMIFS('[2]Master 8.5.20'!$R:$R,'[2]Master 8.5.20'!$C:$C,"Vacant",'[2]Master 8.5.20'!$A:$A,O$2) ->  | P110: =SUMIFS('[2]Master 8.5.20'!$R:$R,'[2]Master 8.5.20'!$C:$C,"Vacant",'[2]Master 8.5.20'!$A:$A,P$2) ->  | Q110: =SUMIFS('[2]Master 8.5.20'!$R:$R,'[2]Master 8.5.20'!$C:$C,"Vacant",'[2]Master 8.5.20'!$A:$A,Q$2) ->  | R110: =SUMIFS('[2]Master 8.5.20'!$R:$R,'[2]Master 8.5.20'!$C:$C,"Vacant",'[2]Master 8.5.20'!$A:$A,R$2) ->  | S110: =SUMIFS('[2]Master 8.5.20'!$R:$R,'[2]Master 8.5.20'!$C:$C,"Vacant",'[2]Master 8.5.20'!$A:$A,S$2) ->  | T110: =SUMIFS('[2]Master 8.5.20'!$R:$R,'[2]Master 8.5.20'!$C:$C,"Vacant",'[2]Master 8.5.20'!$A:$A,T$2) ->  | U110: =SUMIFS('[2]Master 8.5.20'!$R:$R,'[2]Master 8.5.20'!$C:$C,"Vacant",'[2]Master 8.5.20'!$A:$A,U$2) ->  | V110: =SUMIFS('[2]Master 8.5.20'!$R:$R,'[2]Master 8.5.20'!$C:$C,"Vacant",'[2]Master 8.5.20'!$A:$A,V$2) ->  | W110: =SUMIFS('[2]Master 8.5.20'!$R:$R,'[2]Master 8.5.20'!$C:$C,"Vacant",'[2]Master 8.5.20'!$A:$A,W$2) ->  | X110: =SUMIFS('[2]Master 8.5.20'!$R:$R,'[2]Master 8.5.20'!$C:$C,"Vacant",'[2]Master 8.5.20'!$A:$A,X$2) ->  | Y110: =SUMIFS('[2]Master 8.5.20'!$R:$R,'[2]Master 8.5.20'!$C:$C,"Vacant",'[2]Master 8.5.20'!$A:$A,Y$2) ->  | Z110: =SUMIFS('[2]Master 8.5.20'!$R:$R,'[2]Master 8.5.20'!$C:$C,"Vacant",'[2]Master 8.5.20'!$A:$A,Z$2) ->  | AA110: =SUMIFS('[2]Master 8.5.20'!$R:$R,'[2]Master 8.5.20'!$C:$C,"Vacant",'[2]Master 8.5.20'!$A:$A,AA$2) ->  | AB110: =SUMIFS('[2]Master 8.5.20'!$R:$R,'[2]Master 8.5.20'!$C:$C,"Vacant",'[2]Master 8.5.20'!$A:$A,AB$2) ->  | AC110: =SUMIFS('[2]Master 8.5.20'!$R:$R,'[2]Master 8.5.20'!$C:$C,"Vacant",'[2]Master 8.5.20'!$A:$A,AC$2) ->  | AD110: =SUMIFS('[2]Master 8.5.20'!$R:$R,'[2]Master 8.5.20'!$C:$C,"Vacant",'[2]Master 8.5.20'!$A:$A,AD$2) ->  | AE110: =SUMIFS('[2]Master 8.5.20'!$R:$R,'[2]Master 8.5.20'!$C:$C,"Vacant",'[2]Master 8.5.20'!$A:$A,AE$2) ->  | AF110: =SUMIFS('[2]Master 8.5.20'!$R:$R,'[2]Master 8.5.20'!$C:$C,"Vacant",'[2]Master 8.5.20'!$A:$A,AF$2) ->  | AG110: =SUMIFS('[2]Master 8.5.20'!$R:$R,'[2]Master 8.5.20'!$C:$C,"Vacant",'[2]Master 8.5.20'!$A:$A,AG$2) ->  | AH110: =SUMIFS('[2]Master 8.5.20'!$R:$R,'[2]Master 8.5.20'!$C:$C,"Vacant",'[2]Master 8.5.20'!$A:$A,AH$2) ->  | AI110: =SUMIFS('[2]Master 8.5.20'!$R:$R,'[2]Master 8.5.20'!$C:$C,"Vacant",'[2]Master 8.5.20'!$A:$A,AI$2) ->  | AJ110: =SUMIFS('[2]Master 8.5.20'!$R:$R,'[2]Master 8.5.20'!$C:$C,"Vacant",'[2]Master 8.5.20'!$A:$A,AJ$2) ->  | AK110: =SUMIFS('[2]Master 8.5.20'!$R:$R,'[2]Master 8.5.20'!$C:$C,"Vacant",'[2]Master 8.5.20'!$A:$A,AK$2) -> 

Sheet rent dollars FY22 (hidden)
B1: BI TOTAL | C1: 26401000
D2: Total | E2: F6121 | F2: F6122 | G2: F6123 | H2: F6124 | I2: F6125 | J2: F6126 | K2: F6127 | L2: F6129 | M2: F612A | N2: F612C | O2: F612E | P2: F612H | Q2: F612J | R2: F612K | S2: F6131 | T2: F6132 | U2: F6133 | V2: F6134 | W2: F6137 | X2: F613D | Y2: F613E | Z2: F613F | AA2: F613G | AB2: F613H | AC2: F613i | AD2: F613K | AE2: F613L | AF2: F613M | AG2: F6141 | AH2: F6142 | AI2: F6143 | AJ2: F6144 | AK2: F614G | AL2: F6146
B3: Agency # | C3: Agency | E3: Cherberg | F3: O'Brien | G3: Legislative | H3: Pritchard | I3: HLB | J3: OB2 | K3: Archives | L3: NRB | M3: Emp Sec | N3: Transportation | O3: Insurance | P3: Old Cap | Q3: TOJ | R3: Newhouse | S3: Modular Bldg | T3: Isabella Bush | U3: 1007 Washington | V3: 120 E Union Avenue | W3: Conservatory | X3: Capital Court | Y3: James Dolliver Building | Z3: Undeveloped Properties | AA3: 1068 WA Street SE (ST Farm) | AB3: 232 Perry Street | AC3: 208 11th Avenue SE (Pro Arts) | AD3: Press Houses Ayer(White); Carlyon(Blue) | AE3: Visitor Center | AF3: Helen Sommers | AG3: Kelso Building | AH3: Yakima Building | AI3: Alaska Street | AJ3: Tacoma Rhodes | AK3: Tacoma Rhodes Garage | AL3: North Cascades Gateway Center (NCGC)
A4: =CONCATENATE(B4," - ",C4) -> 011 - House of Representatives | B4: 011 | C4: House of Representatives | D4: ='rent allocations'!D4*$C$1 -> 1539549.16 | E4: ='rent allocations'!E4*$C$1 -> 0 | F4: ='rent allocations'!F4*$C$1 -> 702092.0609 | G4: ='rent allocations'!G4*$C$1 -> 837457.0996 | H4: ='rent allocations'!H4*$C$1 -> 0 | I4: ='rent allocations'!I4*$C$1 -> 0 | J4: ='rent allocations'!J4*$C$1 -> 0 | K4: ='rent allocations'!K4*$C$1 -> 0 | L4: ='rent allocations'!L4*$C$1 -> 0 | M4: ='rent allocations'!M4*$C$1 -> 0 | N4: ='rent allocations'!N4*$C$1 -> 0 | O4: ='rent allocations'!O4*$C$1 -> 0 | P4: ='rent allocations'!P4*$C$1 -> 0 | Q4: ='rent allocations'!Q4*$C$1 -> 0 | R4: ='rent allocations'!R4*$C$1 -> 0 | S4: ='rent allocations'!S4*$C$1 -> 0 | T4: ='rent allocations'!T4*$C$1 -> 0 | U4: ='rent allocations'!U4*$C$1 -> 0 | V4: ='rent allocations'!V4*$C$1 -> 0 | W4: ='rent allocations'!W4*$C$1 -> 0 | X4: ='rent allocations'!X4*$C$1 -> 0 | Y4: ='rent allocations'!Y4*$C$1 -> 0 | Z4: ='rent allocations'!Z4*$C$1 -> 0 | AA4: ='rent allocations'!AA4*$C$1 -> 0 | AB4: ='rent allocations'!AB4*$C$1 -> 0 | AC4: ='rent allocations'!AC4*$C$1 -> 0 | AD4: ='rent allocations'!AD4*$C$1 -> 0 | AE4: ='rent allocations'!AE4*$C$1 -> 0 | AF4: ='rent allocations'!AF4*$C$1 -> 0 | AG4: ='rent allocations'!AG4*$C$1 -> 0 | AH4: ='rent allocations'!AH4*$C$1 -> 0 | AI4: ='rent allocations'!AI4*$C$1 -> 0 | AJ4: ='rent allocations'!AJ4*$C$1 -> 0 | AK4: ='rent allocations'!AK4*$C$1 -> 0 | AL4: ='rent allocations'!AL4*$C$1 -> 0
A5: =CONCATENATE(B5," - ",C5) -> 012 - Senate | B5: 012 | C5: Senate | D5: ='rent allocations'!D5*$C$1 -> 2154300.957 | E5: ='rent allocations'!E5*$C$1 -> 1095163.034 | F5: ='rent allocations'!F5*$C$1 -> 0 | G5: ='rent allocations'!G5*$C$1 -> 652604.3052 | H5: ='rent allocations'!H5*$C$1 -> 0 | I5: ='rent allocations'!I5*$C$1 -> 0 | J5: ='rent allocations'!J5*$C$1 -> 0 | K5: ='rent allocations'!K5*$C$1 -> 0 | L5: ='rent allocations'!L5*$C$1 -> 0 | M5: ='rent allocations'!M5*$C$1 -> 0 | N5: ='rent allocations'!N5*$C$1 -> 0 | O5: ='rent allocations'!O5*$C$1 -> 0 | P5: ='rent allocations'!P5*$C$1 -> 0 | Q5: ='rent allocations'!Q5*$C$1 -> 0 | R5: ='rent allocations'!R5*$C$1 -> 406533.6173 | S5: ='rent allocations'!S5*$C$1 -> 0 | T5: ='rent allocations'!T5*$C$1 -> 0 | U5: ='rent allocations'!U5*$C$1 -> 0 | V5: ='rent allocations'!V5*$C$1 -> 0 | W5: ='rent allocations'!W5*$C$1 -> 0 | X5: ='rent allocations'!X5*$C$1 -> 0 | Y5: ='rent allocations'!Y5*$C$1 -> 0 | Z5: ='rent allocations'!Z5*$C$1 -> 0 | AA5: ='rent allocations'!AA5*$C$1 -> 0 | AB5: ='rent allocations'!AB5*$C$1 -> 0 | AC5: ='rent allocations'!AC5*$C$1 -> 0 | AD5: ='rent allocations'!AD5*$C$1 -> 0 | AE5: ='rent allocations'!AE5*$C$1 -> 0 | AF5: ='rent allocations'!AF5*$C$1 -> 0 | AG5: ='rent allocations'!AG5*$C$1 -> 0 | AH5: ='rent allocations'!AH5*$C$1 -> 0 | AI5: ='rent allocations'!AI5*$C$1 -> 0 | AJ5: ='rent allocations'!AJ5*$C$1 -> 0 | AK5: ='rent allocations'!AK5*$C$1 -> 0 | AL5: ='rent allocations'!AL5*$C$1 -> 0
A6: 013 - Joint Transportation Committee | B6: 013 | C6: Joint Transportation Committee | D6: ='rent allocations'!D6*$C$1 -> 0 | E6: ='rent allocations'!E6*$C$1 -> 0 | F6: ='rent allocations'!F6*$C$1 -> 0 | G6: ='rent allocations'!G6*$C$1 -> 0 | H6: ='rent allocations'!H6*$C$1 -> 0 | I6: ='rent allocations'!I6*$C$1 -> 0 | J6: ='rent allocations'!J6*$C$1 -> 0 | K6: ='rent allocations'!K6*$C$1 -> 0 | L6: ='rent allocations'!L6*$C$1 -> 0 | M6: ='rent allocations'!M6*$C$1 -> 0 | N6: ='rent allocations'!N6*$C$1 -> 0 | O6: ='rent allocations'!O6*$C$1 -> 0 | P6: ='rent allocations'!P6*$C$1 -> 0 | Q6: ='rent allocations'!Q6*$C$1 -> 0 | R6: ='rent allocations'!R6*$C$1 -> 0 | S6: ='rent allocations'!S6*$C$1 -> 0 | T6: ='rent allocations'!T6*$C$1 -> 0 | U6: ='rent allocations'!U6*$C$1 -> 0 | V6: ='rent allocations'!V6*$C$1 -> 0 | W6: ='rent allocations'!W6*$C$1 -> 0 | X6: ='rent allocations'!X6*$C$1 -> 0 | Y6: ='rent allocations'!Y6*$C$1 -> 0 | Z6: ='rent allocations'!Z6*$C$1 -> 0 | AA6: ='rent allocations'!AA6*$C$1 -> 0 | AB6: ='rent allocations'!AB6*$C$1 -> 0 | AC6: ='rent allocations'!AC6*$C$1 -> 0 | AD6: ='rent allocations'!AD6*$C$1 -> 0 | AE6: ='rent allocations'!AE6*$C$1 -> 0 | AF6: ='rent allocations'!AF6*$C$1 -> 0 | AG6: ='rent allocations'!AG6*$C$1 -> 0 | AH6: ='rent allocations'!AH6*$C$1 -> 0 | AI6: ='rent allocations'!AI6*$C$1 -> 0 | AJ6: ='rent allocations'!AJ6*$C$1 -> 0 | AK6: ='rent allocations'!AK6*$C$1 -> 0 | AL6: ='rent allocations'!AL6*$C$1 -> 0
A7: 014 - Joint Legislative Audit and Review Committee | B7: 014 | C7: Joint Legislative Audit and Review Committee | D7: ='rent allocations'!D7*$C$1 -> 72569.64184 | E7: ='rent allocations'!E7*$C$1 -> 0 | F7: ='rent allocations'!F7*$C$1 -> 0 | G7: ='rent allocations'!G7*$C$1 -> 0 | H7: ='rent allocations'!H7*$C$1 -> 0 | I7: ='rent allocations'!I7*$C$1 -> 0 | J7: ='rent allocations'!J7*$C$1 -> 0 | K7: ='rent allocations'!K7*$C$1 -> 0 | L7: ='rent allocations'!L7*$C$1 -> 0 | M7: ='rent allocations'!M7*$C$1 -> 0 | N7: ='rent allocations'!N7*$C$1 -> 0 | O7: ='rent allocations'!O7*$C$1 -> 0 | P7: ='rent allocations'!P7*$C$1 -> 0 | Q7: ='rent allocations'!Q7*$C$1 -> 0 | R7: ='rent allocations'!R7*$C$1 -> 0 | S7: ='rent allocations'!S7*$C$1 -> 0 | T7: ='rent allocations'!T7*$C$1 -> 0 | U7: ='rent allocations'!U7*$C$1 -> 0 | V7: ='rent allocations'!V7*$C$1 -> 0 | W7: ='rent allocations'!W7*$C$1 -> 0 | X7: ='rent allocations'!X7*$C$1 -> 0 | Y7: ='rent allocations'!Y7*$C$1 -> 0 | Z7: ='rent allocations'!Z7*$C$1 -> 0 | AA7: ='rent allocations'!AA7*$C$1 -> 0 | AB7: ='rent allocations'!AB7*$C$1 -> 0 | AC7: ='rent allocations'!AC7*$C$1 -> 0 | AD7: ='rent allocations'!AD7*$C$1 -> 0 | AE7: ='rent allocations'!AE7*$C$1 -> 0 | AF7: ='rent allocations'!AF7*$C$1 -> 72569.64184 | AG7: ='rent allocations'!AG7*$C$1 -> 0 | AH7: ='rent allocations'!AH7*$C$1 -> 0 | AI7: ='rent allocations'!AI7*$C$1 -> 0 | AJ7: ='rent allocations'!AJ7*$C$1 -> 0 | AK7: ='rent allocations'!AK7*$C$1 -> 0 | AL7: ='rent allocations'!AL7*$C$1 -> 0
A8: 020 - Legislative Evaluation and Accountability Program Committee | B8: 020 | C8: Legislative Evaluation and Accountability Program Committee | D8: ='rent allocations'!D8*$C$1 -> 34647.57402 | E8: ='rent allocations'!E8*$C$1 -> 0 | F8: ='rent allocations'!F8*$C$1 -> 0 | G8: ='rent allocations'!G8*$C$1 -> 0 | H8: ='rent allocations'!H8*$C$1 -> 0 | I8: ='rent allocations'!I8*$C$1 -> 0 | J8: ='rent allocations'!J8*$C$1 -> 0 | K8: ='rent allocations'!K8*$C$1 -> 0 | L8: ='rent allocations'!L8*$C$1 -> 0 | M8: ='rent allocations'!M8*$C$1 -> 0 | N8: ='rent allocations'!N8*$C$1 -> 0 | O8: ='rent allocations'!O8*$C$1 -> 0 | P8: ='rent allocations'!P8*$C$1 -> 0 | Q8: ='rent allocations'!Q8*$C$1 -> 0 | R8: ='rent allocations'!R8*$C$1 -> 0 | S8: ='rent allocations'!S8*$C$1 -> 0 | T8: ='rent allocations'!T8*$C$1 -> 0 | U8: ='rent allocations'!U8*$C$1 -> 0 | V8: ='rent allocations'!V8*$C$1 -> 0 | W8: ='rent allocations'!W8*$C$1 -> 0 | X8: ='rent allocations'!X8*$C$1 -> 0 | Y8: ='rent allocations'!Y8*$C$1 -> 0 | Z8: ='rent allocations'!Z8*$C$1 -> 0 | AA8: ='rent allocations'!AA8*$C$1 -> 0 | AB8: ='rent allocations'!AB8*$C$1 -> 0 | AC8: ='rent allocations'!AC8*$C$1 -> 0 | AD8: ='rent allocations'!AD8*$C$1 -> 0 | AE8: ='rent allocations'!AE8*$C$1 -> 0 | AF8: ='rent allocations'!AF8*$C$1 -> 34647.57402 | AG8: ='rent allocations'!AG8*$C$1 -> 0 | AH8: ='rent allocations'!AH8*$C$1 -> 0 | AI8: ='rent allocations'!AI8*$C$1 -> 0 | AJ8: ='rent allocations'!AJ8*$C$1 -> 0 | AK8: ='rent allocations'!AK8*$C$1 -> 0 | AL8: ='rent allocations'!AL8*$C$1 -> 0
A9: 035 - Office of the State Actuary | B9: 035 | C9: Office of the State Actuary | D9: ='rent allocations'!D9*$C$1 -> 0 | E9: ='rent allocations'!E9*$C$1 -> 0 | F9: ='rent allocations'!F9*$C$1 -> 0 | G9: ='rent allocations'!G9*$C$1 -> 0 | H9: ='rent allocations'!H9*$C$1 -> 0 | I9: ='rent allocations'!I9*$C$1 -> 0 | J9: ='rent allocations'!J9*$C$1 -> 0 | K9: ='rent allocations'!K9*$C$1 -> 0 | L9: ='rent allocations'!L9*$C$1 -> 0 | M9: ='rent allocations'!M9*$C$1 -> 0 | N9: ='rent allocations'!N9*$C$1 -> 0 | O9: ='rent allocations'!O9*$C$1 -> 0 | P9: ='rent allocations'!P9*$C$1 -> 0 | Q9: ='rent allocations'!Q9*$C$1 -> 0 | R9: ='rent allocations'!R9*$C$1 -> 0 | S9: ='rent allocations'!S9*$C$1 -> 0 | T9: ='rent allocations'!T9*$C$1 -> 0 | U9: ='rent allocations'!U9*$C$1 -> 0 | V9: ='rent allocations'!V9*$C$1 -> 0 | W9: ='rent allocations'!W9*$C$1 -> 0 | X9: ='rent allocations'!X9*$C$1 -> 0 | Y9: ='rent allocations'!Y9*$C$1 -> 0 | Z9: ='rent allocations'!Z9*$C$1 -> 0 | AA9: ='rent allocations'!AA9*$C$1 -> 0 | AB9: ='rent allocations'!AB9*$C$1 -> 0 | AC9: ='rent allocations'!AC9*$C$1 -> 0 | AD9: ='rent allocations'!AD9*$C$1 -> 0 | AE9: ='rent allocations'!AE9*$C$1 -> 0 | AF9: ='rent allocations'!AF9*$C$1 -> 0 | AG9: ='rent allocations'!AG9*$C$1 -> 0 | AH9: ='rent allocations'!AH9*$C$1 -> 0 | AI9: ='rent allocations'!AI9*$C$1 -> 0 | AJ9: ='rent allocations'!AJ9*$C$1 -> 0 | AK9: ='rent allocations'!AK9*$C$1 -> 0 | AL9: ='rent allocations'!AL9*$C$1 -> 0
A10: 037 - Office of Legislative Support Services | B10: 037 | C10: Office of Legislative Support Services | D10: ='rent allocations'!D10*$C$1 -> 258671.6466 | E10: ='rent allocations'!E10*$C$1 -> 0 | F10: ='rent allocations'!F10*$C$1 -> 0 | G10: ='rent allocations'!G10*$C$1 -> 92038.20631 | H10: ='rent allocations'!H10*$C$1 -> 92839.18174 | I10: ='rent allocations'!I10*$C$1 -> 0 | J10: ='rent allocations'!J10*$C$1 -> 0 | K10: ='rent allocations'!K10*$C$1 -> 0 | L10: ='rent allocations'!L10*$C$1 -> 0 | M10: ='rent allocations'!M10*$C$1 -> 0 | N10: ='rent allocations'!N10*$C$1 -> 0 | O10: ='rent allocations'!O10*$C$1 -> 0 | P10: ='rent allocations'!P10*$C$1 -> 0 | Q10: ='rent allocations'!Q10*$C$1 -> 0 | R10: ='rent allocations'!R10*$C$1 -> 0 | S10: ='rent allocations'!S10*$C$1 -> 0 | T10: ='rent allocations'!T10*$C$1 -> 0 | U10: ='rent allocations'!U10*$C$1 -> 73794.2585 | V10: ='rent allocations'!V10*$C$1 -> 0 | W10: ='rent allocations'!W10*$C$1 -> 0 | X10: ='rent allocations'!X10*$C$1 -> 0 | Y10: ='rent allocations'!Y10*$C$1 -> 0 | Z10: ='rent allocations'!Z10*$C$1 -> 0 | AA10: ='rent allocations'!AA10*$C$1 -> 0 | AB10: ='rent allocations'!AB10*$C$1 -> 0 | AC10: ='rent allocations'!AC10*$C$1 -> 0 | AD10: ='rent allocations'!AD10*$C$1 -> 0 | AE10: ='rent allocations'!AE10*$C$1 -> 0 | AF10: ='rent allocations'!AF10*$C$1 -> 0 | AG10: ='rent allocations'!AG10*$C$1 -> 0 | AH10: ='rent allocations'!AH10*$C$1 -> 0 | AI10: ='rent allocations'!AI10*$C$1 -> 0 | AJ10: ='rent allocations'!AJ10*$C$1 -> 0 | AK10: ='rent allocations'!AK10*$C$1 -> 0 | AL10: ='rent allocations'!AL10*$C$1 -> 0
A11: 038 - Joint Legislative Systems Committee | B11: 038 | C11: Joint Legislative Systems Committee | D11: ='rent allocations'!D11*$C$1 -> 303366.4283 | E11: ='rent allocations'!E11*$C$1 -> 0 | F11: ='rent allocations'!F11*$C$1 -> 0 | G11: ='rent allocations'!G11*$C$1 -> 21128.6744 | H11: ='rent allocations'!H11*$C$1 -> 184501.055 | I11: ='rent allocations'!I11*$C$1 -> 0 | J11: ='rent allocations'!J11*$C$1 -> 0 | K11: ='rent allocations'!K11*$C$1 -> 0 | L11: ='rent allocations'!L11*$C$1 -> 0 | M11: ='rent allocations'!M11*$C$1 -> 0 | N11: ='rent allocations'!N11*$C$1 -> 0 | O11: ='rent allocations'!O11*$C$1 -> 0 | P11: ='rent allocations'!P11*$C$1 -> 0 | Q11: ='rent allocations'!Q11*$C$1 -> 0 | R11: ='rent allocations'!R11*$C$1 -> 0 | S11: ='rent allocations'!S11*$C$1 -> 0 | T11: ='rent allocations'!T11*$C$1 -> 0 | U11: ='rent allocations'!U11*$C$1 -> 0 | V11: ='rent allocations'!V11*$C$1 -> 0 | W11: ='rent allocations'!W11*$C$1 -> 0 | X11: ='rent allocations'!X11*$C$1 -> 0 | Y11: ='rent allocations'!Y11*$C$1 -> 0 | Z11: ='rent allocations'!Z11*$C$1 -> 0 | AA11: ='rent allocations'!AA11*$C$1 -> 0 | AB11: ='rent allocations'!AB11*$C$1 -> 0 | AC11: ='rent allocations'!AC11*$C$1 -> 0 | AD11: ='rent allocations'!AD11*$C$1 -> 0 | AE11: ='rent allocations'!AE11*$C$1 -> 0 | AF11: ='rent allocations'!AF11*$C$1 -> 97736.69891 | AG11: ='rent allocations'!AG11*$C$1 -> 0 | AH11: ='rent allocations'!AH11*$C$1 -> 0 | AI11: ='rent allocations'!AI11*$C$1 -> 0 | AJ11: ='rent allocations'!AJ11*$C$1 -> 0 | AK11: ='rent allocations'!AK11*$C$1 -> 0 | AL11: ='rent allocations'!AL11*$C$1 -> 0
A12: 040 - Statute Law Committee (Code Revisor) | B12: 040 | C12: Statute Law Committee (Code Revisor) | D12: ='rent allocations'!D12*$C$1 -> 296657.7062 | E12: ='rent allocations'!E12*$C$1 -> 0 | F12: ='rent allocations'!F12*$C$1 -> 0 | G12: ='rent allocations'!G12*$C$1 -> 0 | H12: ='rent allocations'!H12*$C$1 -> 296657.7062 | I12: ='rent allocations'!I12*$C$1 -> 0 | J12: ='rent allocations'!J12*$C$1 -> 0 | K12: ='rent allocations'!K12*$C$1 -> 0 | L12: ='rent allocations'!L12*$C$1 -> 0 | M12: ='rent allocations'!M12*$C$1 -> 0 | N12: ='rent allocations'!N12*$C$1 -> 0 | O12: ='rent allocations'!O12*$C$1 -> 0 | P12: ='rent allocations'!P12*$C$1 -> 0 | Q12: ='rent allocations'!Q12*$C$1 -> 0 | R12: ='rent allocations'!R12*$C$1 -> 0 | S12: ='rent allocations'!S12*$C$1 -> 0 | T12: ='rent allocations'!T12*$C$1 -> 0 | U12: ='rent allocations'!U12*$C$1 -> 0 | V12: ='rent allocations'!V12*$C$1 -> 0 | W12: ='rent allocations'!W12*$C$1 -> 0 | X12: ='rent allocations'!X12*$C$1 -> 0 | Y12: ='rent allocations'!Y12*$C$1 -> 0 | Z12: ='rent allocations'!Z12*$C$1 -> 0 | AA12: ='rent allocations'!AA12*$C$1 -> 0 | AB12: ='rent allocations'!AB12*$C$1 -> 0 | AC12: ='rent allocations'!AC12*$C$1 -> 0 | AD12: ='rent allocations'!AD12*$C$1 -> 0 | AE12: ='rent allocations'!AE12*$C$1 -> 0 | AF12: ='rent allocations'!AF12*$C$1 -> 0 | AG12: ='rent allocations'!AG12*$C$1 -> 0 | AH12: ='rent allocations'!AH12*$C$1 -> 0 | AI12: ='rent allocations'!AI12*$C$1 -> 0 | AJ12: ='rent allocations'!AJ12*$C$1 -> 0 | AK12: ='rent allocations'!AK12*$C$1 -> 0 | AL12: ='rent allocations'!AL12*$C$1 -> 0
A13: 045 - Supreme Court | B13: 045 | C13: Supreme Court | D13: ='rent allocations'!D13*$C$1 -> 490117.1642 | E13: ='rent allocations'!E13*$C$1 -> 0 | F13: ='rent allocations'!F13*$C$1 -> 0 | G13: ='rent allocations'!G13*$C$1 -> 0 | H13: ='rent allocations'!H13*$C$1 -> 0 | I13: ='rent allocations'!I13*$C$1 -> 0 | J13: ='rent allocations'!J13*$C$1 -> 0 | K13: ='rent allocations'!K13*$C$1 -> 0 | L13: ='rent allocations'!L13*$C$1 -> 0 | M13: ='rent allocations'!M13*$C$1 -> 0 | N13: ='rent allocations'!N13*$C$1 -> 0 | O13: ='rent allocations'!O13*$C$1 -> 0 | P13: ='rent allocations'!P13*$C$1 -> 0 | Q13: ='rent allocations'!Q13*$C$1 -> 490117.1642 | R13: ='rent allocations'!R13*$C$1 -> 0 | S13: ='rent allocations'!S13*$C$1 -> 0 | T13: ='rent allocations'!T13*$C$1 -> 0 | U13: ='rent allocations'!U13*$C$1 -> 0 | V13: ='rent allocations'!V13*$C$1 -> 0 | W13: ='rent allocations'!W13*$C$1 -> 0 | X13: ='rent allocations'!X13*$C$1 -> 0 | Y13: ='rent allocations'!Y13*$C$1 -> 0 | Z13: ='rent allocations'!Z13*$C$1 -> 0 | AA13: ='rent allocations'!AA13*$C$1 -> 0 | AB13: ='rent allocations'!AB13*$C$1 -> 0 | AC13: ='rent allocations'!AC13*$C$1 -> 0 | AD13: ='rent allocations'!AD13*$C$1 -> 0 | AE13: ='rent allocations'!AE13*$C$1 -> 0 | AF13: ='rent allocations'!AF13*$C$1 -> 0 | AG13: ='rent allocations'!AG13*$C$1 -> 0 | AH13: ='rent allocations'!AH13*$C$1 -> 0 | AI13: ='rent allocations'!AI13*$C$1 -> 0 | AJ13: ='rent allocations'!AJ13*$C$1 -> 0 | AK13: ='rent allocations'!AK13*$C$1 -> 0 | AL13: ='rent allocations'!AL13*$C$1 -> 0
A14: 046 - Law Library | B14: 046 | C14: Law Library | D14: ='rent allocations'!D14*$C$1 -> 222646.6246 | E14: ='rent allocations'!E14*$C$1 -> 0 | F14: ='rent allocations'!F14*$C$1 -> 0 | G14: ='rent allocations'!G14*$C$1 -> 0 | H14: ='rent allocations'!H14*$C$1 -> 0 | I14: ='rent allocations'!I14*$C$1 -> 0 | J14: ='rent allocations'!J14*$C$1 -> 0 | K14: ='rent allocations'!K14*$C$1 -> 0 | L14: ='rent allocations'!L14*$C$1 -> 0 | M14: ='rent allocations'!M14*$C$1 -> 0 | N14: ='rent allocations'!N14*$C$1 -> 0 | O14: ='rent allocations'!O14*$C$1 -> 0 | P14: ='rent allocations'!P14*$C$1 -> 0 | Q14: ='rent allocations'!Q14*$C$1 -> 222646.6246 | R14: ='rent allocations'!R14*$C$1 -> 0 | S14: ='rent allocations'!S14*$C$1 -> 0 | T14: ='rent allocations'!T14*$C$1 -> 0 | U14: ='rent allocations'!U14*$C$1 -> 0 | V14: ='rent allocations'!V14*$C$1 -> 0 | W14: ='rent allocations'!W14*$C$1 -> 0 | X14: ='rent allocations'!X14*$C$1 -> 0 | Y14: ='rent allocations'!Y14*$C$1 -> 0 | Z14: ='rent allocations'!Z14*$C$1 -> 0 | AA14: ='rent allocations'!AA14*$C$1 -> 0 | AB14: ='rent allocations'!AB14*$C$1 -> 0 | AC14: ='rent allocations'!AC14*$C$1 -> 0 | AD14: ='rent allocations'!AD14*$C$1 -> 0 | AE14: ='rent allocations'!AE14*$C$1 -> 0 | AF14: ='rent allocations'!AF14*$C$1 -> 0 | AG14: ='rent allocations'!AG14*$C$1 -> 0 | AH14: ='rent allocations'!AH14*$C$1 -> 0 | AI14: ='rent allocations'!AI14*$C$1 -> 0 | AJ14: ='rent allocations'!AJ14*$C$1 -> 0 | AK14: ='rent allocations'!AK14*$C$1 -> 0 | AL14: ='rent allocations'!AL14*$C$1 -> 0
A15: 048 - Court of Appeals | B15: 048 | C15: Court of Appeals | D15: ='rent allocations'!D15*$C$1 -> 515365.779 | E15: ='rent allocations'!E15*$C$1 -> 0 | F15: ='rent allocations'!F15*$C$1 -> 0 | G15: ='rent allocations'!G15*$C$1 -> 0 | H15: ='rent allocations'!H15*$C$1 -> 0 | I15: ='rent allocations'!I15*$C$1 -> 0 | J15: ='rent allocations'!J15*$C$1 -> 0 | K15: ='rent allocations'!K15*$C$1 -> 0 | L15: ='rent allocations'!L15*$C$1 -> 0 | M15: ='rent allocations'!M15*$C$1 -> 0 | N15: ='rent allocations'!N15*$C$1 -> 0 | O15: ='rent allocations'!O15*$C$1 -> 0 | P15: ='rent allocations'!P15*$C$1 -> 0 | Q15: ='rent allocations'!Q15*$C$1 -> 0 | R15: ='rent allocations'!R15*$C$1 -> 0 | S15: ='rent allocations'!S15*$C$1 -> 0 | T15: ='rent allocations'!T15*$C$1 -> 0 | U15: ='rent allocations'!U15*$C$1 -> 0 | V15: ='rent allocations'!V15*$C$1 -> 0 | W15: ='rent allocations'!W15*$C$1 -> 0 | X15: ='rent allocations'!X15*$C$1 -> 0 | Y15: ='rent allocations'!Y15*$C$1 -> 0 | Z15: ='rent allocations'!Z15*$C$1 -> 0 | AA15: ='rent allocations'!AA15*$C$1 -> 0 | AB15: ='rent allocations'!AB15*$C$1 -> 0 | AC15: ='rent allocations'!AC15*$C$1 -> 0 | AD15: ='rent allocations'!AD15*$C$1 -> 0 | AE15: ='rent allocations'!AE15*$C$1 -> 0 | AF15: ='rent allocations'!AF15*$C$1 -> 0 | AG15: ='rent allocations'!AG15*$C$1 -> 0 | AH15: ='rent allocations'!AH15*$C$1 -> 0 | AI15: ='rent allocations'!AI15*$C$1 -> 0 | AJ15: ='rent allocations'!AJ15*$C$1 -> 515365.779 | AK15: ='rent allocations'!AK15*$C$1 -> 0 | AL15: ='rent allocations'!AL15*$C$1 -> 0
A16: 050 - Commission on Judicial Conduct | B16: 050 | C16: Commission on Judicial Conduct | D16: ='rent allocations'!D16*$C$1 -> 114073.0723 | E16: ='rent allocations'!E16*$C$1 -> 0 | F16: ='rent allocations'!F16*$C$1 -> 0 | G16: ='rent allocations'!G16*$C$1 -> 0 | H16: ='rent allocations'!H16*$C$1 -> 0 | I16: ='rent allocations'!I16*$C$1 -> 0 | J16: ='rent allocations'!J16*$C$1 -> 0 | K16: ='rent allocations'!K16*$C$1 -> 0 | L16: ='rent allocations'!L16*$C$1 -> 0 | M16: ='rent allocations'!M16*$C$1 -> 0 | N16: ='rent allocations'!N16*$C$1 -> 0 | O16: ='rent allocations'!O16*$C$1 -> 0 | P16: ='rent allocations'!P16*$C$1 -> 0 | Q16: ='rent allocations'!Q16*$C$1 -> 0 | R16: ='rent allocations'!R16*$C$1 -> 0 | S16: ='rent allocations'!S16*$C$1 -> 0 | T16: ='rent allocations'!T16*$C$1 -> 0 | U16: ='rent allocations'!U16*$C$1 -> 0 | V16: ='rent allocations'!V16*$C$1 -> 0 | W16: ='rent allocations'!W16*$C$1 -> 0 | X16: ='rent allocations'!X16*$C$1 -> 114073.0723 | Y16: ='rent allocations'!Y16*$C$1 -> 0 | Z16: ='rent allocations'!Z16*$C$1 -> 0 | AA16: ='rent allocations'!AA16*$C$1 -> 0 | AB16: ='rent allocations'!AB16*$C$1 -> 0 | AC16: ='rent allocations'!AC16*$C$1 -> 0 | AD16: ='rent allocations'!AD16*$C$1 -> 0 | AE16: ='rent allocations'!AE16*$C$1 -> 0 | AF16: ='rent allocations'!AF16*$C$1 -> 0 | AG16: ='rent allocations'!AG16*$C$1 -> 0 | AH16: ='rent allocations'!AH16*$C$1 -> 0 | AI16: ='rent allocations'!AI16*$C$1 -> 0 | AJ16: ='rent allocations'!AJ16*$C$1 -> 0 | AK16: ='rent allocations'!AK16*$C$1 -> 0 | AL16: ='rent allocations'!AL16*$C$1 -> 0
A17: 055 - Administrative Office of the Courts | B17: 055 | C17: Administrative Office of the Courts | D17: ='rent allocations'!D17*$C$1 -> 61387.39143 | E17: ='rent allocations'!E17*$C$1 -> 0 | F17: ='rent allocations'!F17*$C$1 -> 0 | G17: ='rent allocations'!G17*$C$1 -> 0 | H17: ='rent allocations'!H17*$C$1 -> 0 | I17: ='rent allocations'!I17*$C$1 -> 0 | J17: ='rent allocations'!J17*$C$1 -> 0 | K17: ='rent allocations'!K17*$C$1 -> 0 | L17: ='rent allocations'!L17*$C$1 -> 0 | M17: ='rent allocations'!M17*$C$1 -> 0 | N17: ='rent allocations'!N17*$C$1 -> 0 | O17: ='rent allocations'!O17*$C$1 -> 0 | P17: ='rent allocations'!P17*$C$1 -> 0 | Q17: ='rent allocations'!Q17*$C$1 -> 61387.39143 | R17: ='rent allocations'!R17*$C$1 -> 0 | S17: ='rent allocations'!S17*$C$1 -> 0 | T17: ='rent allocations'!T17*$C$1 -> 0 | U17: ='rent allocations'!U17*$C$1 -> 0 | V17: ='rent allocations'!V17*$C$1 -> 0 | W17: ='rent allocations'!W17*$C$1 -> 0 | X17: ='rent allocations'!X17*$C$1 -> 0 | Y17: ='rent allocations'!Y17*$C$1 -> 0 | Z17: ='rent allocations'!Z17*$C$1 -> 0 | AA17: ='rent allocations'!AA17*$C$1 -> 0 | AB17: ='rent allocations'!AB17*$C$1 -> 0 | AC17: ='rent allocations'!AC17*$C$1 -> 0 | AD17: ='rent allocations'!AD17*$C$1 -> 0 | AE17: ='rent allocations'!AE17*$C$1 -> 0 | AF17: ='rent allocations'!AF17*$C$1 -> 0 | AG17: ='rent allocations'!AG17*$C$1 -> 0 | AH17: ='rent allocations'!AH17*$C$1 -> 0 | AI17: ='rent allocations'!AI17*$C$1 -> 0 | AJ17: ='rent allocations'!AJ17*$C$1 -> 0 | AK17: ='rent allocations'!AK17*$C$1 -> 0 | AL17: ='rent allocations'!AL17*$C$1 -> 0
A18: 056 - Office of Public Defense | B18: 056 | C18: Office of Public Defense | D18: ='rent allocations'!D18*$C$1 -> 0 | E18: ='rent allocations'!E18*$C$1 -> 0 | F18: ='rent allocations'!F18*$C$1 -> 0 | G18: ='rent allocations'!G18*$C$1 -> 0 | H18: ='rent allocations'!H18*$C$1 -> 0 | I18: ='rent allocations'!I18*$C$1 -> 0 | J18: ='rent allocations'!J18*$C$1 -> 0 | K18: ='rent allocations'!K18*$C$1 -> 0 | L18: ='rent allocations'!L18*$C$1 -> 0 | M18: ='rent allocations'!M18*$C$1 -> 0 | N18: ='rent allocations'!N18*$C$1 -> 0 | O18: ='rent allocations'!O18*$C$1 -> 0 | P18: ='rent allocations'!P18*$C$1 -> 0 | Q18: ='rent allocations'!Q18*$C$1 -> 0 | R18: ='rent allocations'!R18*$C$1 -> 0 | S18: ='rent allocations'!S18*$C$1 -> 0 | T18: ='rent allocations'!T18*$C$1 -> 0 | U18: ='rent allocations'!U18*$C$1 -> 0 | V18: ='rent allocations'!V18*$C$1 -> 0 | W18: ='rent allocations'!W18*$C$1 -> 0 | X18: ='rent allocations'!X18*$C$1 -> 0 | Y18: ='rent allocations'!Y18*$C$1 -> 0 | Z18: ='rent allocations'!Z18*$C$1 -> 0 | AA18: ='rent allocations'!AA18*$C$1 -> 0 | AB18: ='rent allocations'!AB18*$C$1 -> 0 | AC18: ='rent allocations'!AC18*$C$1 -> 0 | AD18: ='rent allocations'!AD18*$C$1 -> 0 | AE18: ='rent allocations'!AE18*$C$1 -> 0 | AF18: ='rent allocations'!AF18*$C$1 -> 0 | AG18: ='rent allocations'!AG18*$C$1 -> 0 | AH18: ='rent allocations'!AH18*$C$1 -> 0 | AI18: ='rent allocations'!AI18*$C$1 -> 0 | AJ18: ='rent allocations'!AJ18*$C$1 -> 0 | AK18: ='rent allocations'!AK18*$C$1 -> 0 | AL18: ='rent allocations'!AL18*$C$1 -> 0
A19: 057 - Office of Civil Legal Aid | B19: 057 | C19: Office of Civil Legal Aid | D19: ='rent allocations'!D19*$C$1 -> 0 | E19: ='rent allocations'!E19*$C$1 -> 0 | F19: ='rent allocations'!F19*$C$1 -> 0 | G19: ='rent allocations'!G19*$C$1 -> 0 | H19: ='rent allocations'!H19*$C$1 -> 0 | I19: ='rent allocations'!I19*$C$1 -> 0 | J19: ='rent allocations'!J19*$C$1 -> 0 | K19: ='rent allocations'!K19*$C$1 -> 0 | L19: ='rent allocations'!L19*$C$1 -> 0 | M19: ='rent allocations'!M19*$C$1 -> 0 | N19: ='rent allocations'!N19*$C$1 -> 0 | O19: ='rent allocations'!O19*$C$1 -> 0 | P19: ='rent allocations'!P19*$C$1 -> 0 | Q19: ='rent allocations'!Q19*$C$1 -> 0 | R19: ='rent allocations'!R19*$C$1 -> 0 | S19: ='rent allocations'!S19*$C$1 -> 0 | T19: ='rent allocations'!T19*$C$1 -> 0 | U19: ='rent allocations'!U19*$C$1 -> 0 | V19: ='rent allocations'!V19*$C$1 -> 0 | W19: ='rent allocations'!W19*$C$1 -> 0 | X19: ='rent allocations'!X19*$C$1 -> 0 | Y19: ='rent allocations'!Y19*$C$1 -> 0 | Z19: ='rent allocations'!Z19*$C$1 -> 0 | AA19: ='rent allocations'!AA19*$C$1 -> 0 | AB19: ='rent allocations'!AB19*$C$1 -> 0 | AC19: ='rent allocations'!AC19*$C$1 -> 0 | AD19: ='rent allocations'!AD19*$C$1 -> 0 | AE19: ='rent allocations'!AE19*$C$1 -> 0 | AF19: ='rent allocations'!AF19*$C$1 -> 0 | AG19: ='rent allocations'!AG19*$C$1 -> 0 | AH19: ='rent allocations'!AH19*$C$1 -> 0 | AI19: ='rent allocations'!AI19*$C$1 -> 0 | AJ19: ='rent allocations'!AJ19*$C$1 -> 0 | AK19: ='rent allocations'!AK19*$C$1 -> 0 | AL19: ='rent allocations'!AL19*$C$1 -> 0
A20: 075 - Office of the Governor | B20: 075 | C20: Office of the Governor | D20: ='rent allocations'!D20*$C$1 -> 319000.4672 | E20: ='rent allocations'!E20*$C$1 -> 0 | F20: ='rent allocations'!F20*$C$1 -> 0 | G20: ='rent allocations'!G20*$C$1 -> 319000.4672 | H20: ='rent allocations'!H20*$C$1 -> 0 | I20: ='rent allocations'!I20*$C$1 -> 0 | J20: ='rent allocations'!J20*$C$1 -> 0 | K20: ='rent allocations'!K20*$C$1 -> 0 | L20: ='rent allocations'!L20*$C$1 -> 0 | M20: ='rent allocations'!M20*$C$1 -> 0 | N20: ='rent allocations'!N20*$C$1 -> 0 | O20: ='rent allocations'!O20*$C$1 -> 0 | P20: ='rent allocations'!P20*$C$1 -> 0 | Q20: ='rent allocations'!Q20*$C$1 -> 0 | R20: ='rent allocations'!R20*$C$1 -> 0 | S20: ='rent allocations'!S20*$C$1 -> 0 | T20: ='rent allocations'!T20*$C$1 -> 0 | U20: ='rent allocations'!U20*$C$1 -> 0 | V20: ='rent allocations'!V20*$C$1 -> 0 | W20: ='rent allocations'!W20*$C$1 -> 0 | X20: ='rent allocations'!X20*$C$1 -> 0 | Y20: ='rent allocations'!Y20*$C$1 -> 0 | Z20: ='rent allocations'!Z20*$C$1 -> 0 | AA20: ='rent allocations'!AA20*$C$1 -> 0 | AB20: ='rent allocations'!AB20*$C$1 -> 0 | AC20: ='rent allocations'!AC20*$C$1 -> 0 | AD20: ='rent allocations'!AD20*$C$1 -> 0 | AE20: ='rent allocations'!AE20*$C$1 -> 0 | AF20: ='rent allocations'!AF20*$C$1 -> 0 | AG20: ='rent allocations'!AG20*$C$1 -> 0 | AH20: ='rent allocations'!AH20*$C$1 -> 0 | AI20: ='rent allocations'!AI20*$C$1 -> 0 | AJ20: ='rent allocations'!AJ20*$C$1 -> 0 | AK20: ='rent allocations'!AK20*$C$1 -> 0 | AL20: ='rent allocations'!AL20*$C$1 -> 0
A21: 080 - Office of Lieutenant Governor | B21: 080 | C21: Office of Lieutenant Governor | D21: ='rent allocations'!D21*$C$1 -> 164038.3697 | E21: ='rent allocations'!E21*$C$1 -> 0 | F21: ='rent allocations'!F21*$C$1 -> 0 | G21: ='rent allocations'!G21*$C$1 -> 164038.3697 | H21: ='rent allocations'!H21*$C$1 -> 0 | I21: ='rent allocations'!I21*$C$1 -> 0 | J21: ='rent allocations'!J21*$C$1 -> 0 | K21: ='rent allocations'!K21*$C$1 -> 0 | L21: ='rent allocations'!L21*$C$1 -> 0 | M21: ='rent allocations'!M21*$C$1 -> 0 | N21: ='rent allocations'!N21*$C$1 -> 0 | O21: ='rent allocations'!O21*$C$1 -> 0 | P21: ='rent allocations'!P21*$C$1 -> 0 | Q21: ='rent allocations'!Q21*$C$1 -> 0 | R21: ='rent allocations'!R21*$C$1 -> 0 | S21: ='rent allocations'!S21*$C$1 -> 0 | T21: ='rent allocations'!T21*$C$1 -> 0 | U21: ='rent allocations'!U21*$C$1 -> 0 | V21: ='rent allocations'!V21*$C$1 -> 0 | W21: ='rent allocations'!W21*$C$1 -> 0 | X21: ='rent allocations'!X21*$C$1 -> 0 | Y21: ='rent allocations'!Y21*$C$1 -> 0 | Z21: ='rent allocations'!Z21*$C$1 -> 0 | AA21: ='rent allocations'!AA21*$C$1 -> 0 | AB21: ='rent allocations'!AB21*$C$1 -> 0 | AC21: ='rent allocations'!AC21*$C$1 -> 0 | AD21: ='rent allocations'!AD21*$C$1 -> 0 | AE21: ='rent allocations'!AE21*$C$1 -> 0 | AF21: ='rent allocations'!AF21*$C$1 -> 0 | AG21: ='rent allocations'!AG21*$C$1 -> 0 | AH21: ='rent allocations'!AH21*$C$1 -> 0 | AI21: ='rent allocations'!AI21*$C$1 -> 0 | AJ21: ='rent allocations'!AJ21*$C$1 -> 0 | AK21: ='rent allocations'!AK21*$C$1 -> 0 | AL21: ='rent allocations'!AL21*$C$1 -> 0
A22: 082 - Public Disclosure Commission | B22: 082 | C22: Public Disclosure Commission | D22: ='rent allocations'!D22*$C$1 -> 0 | E22: ='rent allocations'!E22*$C$1 -> 0 | F22: ='rent allocations'!F22*$C$1 -> 0 | G22: ='rent allocations'!G22*$C$1 -> 0 | H22: ='rent allocations'!H22*$C$1 -> 0 | I22: ='rent allocations'!I22*$C$1 -> 0 | J22: ='rent allocations'!J22*$C$1 -> 0 | K22: ='rent allocations'!K22*$C$1 -> 0 | L22: ='rent allocations'!L22*$C$1 -> 0 | M22: ='rent allocations'!M22*$C$1 -> 0 | N22: ='rent allocations'!N22*$C$1 -> 0 | O22: ='rent allocations'!O22*$C$1 -> 0 | P22: ='rent allocations'!P22*$C$1 -> 0 | Q22: ='rent allocations'!Q22*$C$1 -> 0 | R22: ='rent allocations'!R22*$C$1 -> 0 | S22: ='rent allocations'!S22*$C$1 -> 0 | T22: ='rent allocations'!T22*$C$1 -> 0 | U22: ='rent allocations'!U22*$C$1 -> 0 | V22: ='rent allocations'!V22*$C$1 -> 0 | W22: ='rent allocations'!W22*$C$1 -> 0 | X22: ='rent allocations'!X22*$C$1 -> 0 | Y22: ='rent allocations'!Y22*$C$1 -> 0 | Z22: ='rent allocations'!Z22*$C$1 -> 0 | AA22: ='rent allocations'!AA22*$C$1 -> 0 | AB22: ='rent allocations'!AB22*$C$1 -> 0 | AC22: ='rent allocations'!AC22*$C$1 -> 0 | AD22: ='rent allocations'!AD22*$C$1 -> 0 | AE22: ='rent allocations'!AE22*$C$1 -> 0 | AF22: ='rent allocations'!AF22*$C$1 -> 0 | AG22: ='rent allocations'!AG22*$C$1 -> 0 | AH22: ='rent allocations'!AH22*$C$1 -> 0 | AI22: ='rent allocations'!AI22*$C$1 -> 0 | AJ22: ='rent allocations'!AJ22*$C$1 -> 0 | AK22: ='rent allocations'!AK22*$C$1 -> 0 | AL22: ='rent allocations'!AL22*$C$1 -> 0
A23: 085 - Office of the Secretary of State | B23: 085 | C23: Office of the Secretary of State | D23: ='rent allocations'!D23*$C$1 -> 1085044.673 | E23: ='rent allocations'!E23*$C$1 -> 0 | F23: ='rent allocations'!F23*$C$1 -> 0 | G23: ='rent allocations'!G23*$C$1 -> 196868.226 | H23: ='rent allocations'!H23*$C$1 -> 0 | I23: ='rent allocations'!I23*$C$1 -> 0 | J23: ='rent allocations'!J23*$C$1 -> 0 | K23: ='rent allocations'!K23*$C$1 -> 447251.0442 | L23: ='rent allocations'!L23*$C$1 -> 0 | M23: ='rent allocations'!M23*$C$1 -> 0 | N23: ='rent allocations'!N23*$C$1 -> 0 | O23: ='rent allocations'!O23*$C$1 -> 0 | P23: ='rent allocations'!P23*$C$1 -> 0 | Q23: ='rent allocations'!Q23*$C$1 -> 0 | R23: ='rent allocations'!R23*$C$1 -> 0 | S23: ='rent allocations'!S23*$C$1 -> 34591.99829 | T23: ='rent allocations'!T23*$C$1 -> 112443.5356 | U23: ='rent allocations'!U23*$C$1 -> 0 | V23: ='rent allocations'!V23*$C$1 -> 0 | W23: ='rent allocations'!W23*$C$1 -> 0 | X23: ='rent allocations'!X23*$C$1 -> 0 | Y23: ='rent allocations'!Y23*$C$1 -> 293889.8691 | Z23: ='rent allocations'!Z23*$C$1 -> 0 | AA23: ='rent allocations'!AA23*$C$1 -> 0 | AB23: ='rent allocations'!AB23*$C$1 -> 0 | AC23: ='rent allocations'!AC23*$C$1 -> 0 | AD23: ='rent allocations'!AD23*$C$1 -> 0 | AE23: ='rent allocations'!AE23*$C$1 -> 0 | AF23: ='rent allocations'!AF23*$C$1 -> 0 | AG23: ='rent allocations'!AG23*$C$1 -> 0 | AH23: ='rent allocations'!AH23*$C$1 -> 0 | AI23: ='rent allocations'!AI23*$C$1 -> 0 | AJ23: ='rent allocations'!AJ23*$C$1 -> 0 | AK23: ='rent allocations'!AK23*$C$1 -> 0 | AL23: ='rent allocations'!AL23*$C$1 -> 0
A24: 086 - Governor's Office of Indian Affairs | B24: 086 | C24: Governor's Office of Indian Affairs | D24: ='rent allocations'!D24*$C$1 -> 28920.55476 | E24: ='rent allocations'!E24*$C$1 -> 0 | F24: ='rent allocations'!F24*$C$1 -> 0 | G24: ='rent allocations'!G24*$C$1 -> 0 | H24: ='rent allocations'!H24*$C$1 -> 0 | I24: ='rent allocations'!I24*$C$1 -> 0 | J24: ='rent allocations'!J24*$C$1 -> 0 | K24: ='rent allocations'!K24*$C$1 -> 0 | L24: ='rent allocations'!L24*$C$1 -> 0 | M24: ='rent allocations'!M24*$C$1 -> 0 | N24: ='rent allocations'!N24*$C$1 -> 0 | O24: ='rent allocations'!O24*$C$1 -> 0 | P24: ='rent allocations'!P24*$C$1 -> 0 | Q24: ='rent allocations'!Q24*$C$1 -> 0 | R24: ='rent allocations'!R24*$C$1 -> 0 | S24: ='rent allocations'!S24*$C$1 -> 0 | T24: ='rent allocations'!T24*$C$1 -> 0 | U24: ='rent allocations'!U24*$C$1 -> 0 | V24: ='rent allocations'!V24*$C$1 -> 0 | W24: ='rent allocations'!W24*$C$1 -> 0 | X24: ='rent allocations'!X24*$C$1 -> 28920.55476 | Y24: ='rent allocations'!Y24*$C$1 -> 0 | Z24: ='rent allocations'!Z24*$C$1 -> 0 | AA24: ='rent allocations'!AA24*$C$1 -> 0 | AB24: ='rent allocations'!AB24*$C$1 -> 0 | AC24: ='rent allocations'!AC24*$C$1 -> 0 | AD24: ='rent allocations'!AD24*$C$1 -> 0 | AE24: ='rent allocations'!AE24*$C$1 -> 0 | AF24: ='rent allocations'!AF24*$C$1 -> 0 | AG24: ='rent allocations'!AG24*$C$1 -> 0 | AH24: ='rent allocations'!AH24*$C$1 -> 0 | AI24: ='rent allocations'!AI24*$C$1 -> 0 | AJ24: ='rent allocations'!AJ24*$C$1 -> 0 | AK24: ='rent allocations'!AK24*$C$1 -> 0 | AL24: ='rent allocations'!AL24*$C$1 -> 0
A25: 087 - Commission on Asian Pacific American Affairs | B25: 087 | C25: Commission on Asian Pacific American Affairs | D25: ='rent allocations'!D25*$C$1 -> 19023.20027 | E25: ='rent allocations'!E25*$C$1 -> 0 | F25: ='rent allocations'!F25*$C$1 -> 0 | G25: ='rent allocations'!G25*$C$1 -> 0 | H25: ='rent allocations'!H25*$C$1 -> 0 | I25: ='rent allocations'!I25*$C$1 -> 0 | J25: ='rent allocations'!J25*$C$1 -> 0 | K25: ='rent allocations'!K25*$C$1 -> 0 | L25: ='rent allocations'!L25*$C$1 -> 0 | M25: ='rent allocations'!M25*$C$1 -> 0 | N25: ='rent allocations'!N25*$C$1 -> 0 | O25: ='rent allocations'!O25*$C$1 -> 0 | P25: ='rent allocations'!P25*$C$1 -> 0 | Q25: ='rent allocations'!Q25*$C$1 -> 0 | R25: ='rent allocations'!R25*$C$1 -> 0 | S25: ='rent allocations'!S25*$C$1 -> 0 | T25: ='rent allocations'!T25*$C$1 -> 0 | U25: ='rent allocations'!U25*$C$1 -> 0 | V25: ='rent allocations'!V25*$C$1 -> 0 | W25: ='rent allocations'!W25*$C$1 -> 0 | X25: ='rent allocations'!X25*$C$1 -> 19023.20027 | Y25: ='rent allocations'!Y25*$C$1 -> 0 | Z25: ='rent allocations'!Z25*$C$1 -> 0 | AA25: ='rent allocations'!AA25*$C$1 -> 0 | AB25: ='rent allocations'!AB25*$C$1 -> 0 | AC25: ='rent allocations'!AC25*$C$1 -> 0 | AD25: ='rent allocations'!AD25*$C$1 -> 0 | AE25: ='rent allocations'!AE25*$C$1 -> 0 | AF25: ='rent allocations'!AF25*$C$1 -> 0 | AG25: ='rent allocations'!AG25*$C$1 -> 0 | AH25: ='rent allocations'!AH25*$C$1 -> 0 | AI25: ='rent allocations'!AI25*$C$1 -> 0 | AJ25: ='rent allocations'!AJ25*$C$1 -> 0 | AK25: ='rent allocations'!AK25*$C$1 -> 0 | AL25: ='rent allocations'!AL25*$C$1 -> 0
A26: 090 - Office of State Treasurer | B26: 090 | C26: Office of State Treasurer | D26: ='rent allocations'!D26*$C$1 -> 303531.3337 | E26: ='rent allocations'!E26*$C$1 -> 0 | F26: ='rent allocations'!F26*$C$1 -> 0 | G26: ='rent allocations'!G26*$C$1 -> 198069.7692 | H26: ='rent allocations'!H26*$C$1 -> 0 | I26: ='rent allocations'!I26*$C$1 -> 0 | J26: ='rent allocations'!J26*$C$1 -> 0 | K26: ='rent allocations'!K26*$C$1 -> 0 | L26: ='rent allocations'!L26*$C$1 -> 0 | M26: ='rent allocations'!M26*$C$1 -> 0 | N26: ='rent allocations'!N26*$C$1 -> 0 | O26: ='rent allocations'!O26*$C$1 -> 0 | P26: ='rent allocations'!P26*$C$1 -> 0 | Q26: ='rent allocations'!Q26*$C$1 -> 0 | R26: ='rent allocations'!R26*$C$1 -> 0 | S26: ='rent allocations'!S26*$C$1 -> 0 | T26: ='rent allocations'!T26*$C$1 -> 0 | U26: ='rent allocations'!U26*$C$1 -> 0 | V26: ='rent allocations'!V26*$C$1 -> 0 | W26: ='rent allocations'!W26*$C$1 -> 0 | X26: ='rent allocations'!X26*$C$1 -> 0 | Y26: ='rent allocations'!Y26*$C$1 -> 0 | Z26: ='rent allocations'!Z26*$C$1 -> 0 | AA26: ='rent allocations'!AA26*$C$1 -> 0 | AB26: ='rent allocations'!AB26*$C$1 -> 0 | AC26: ='rent allocations'!AC26*$C$1 -> 0 | AD26: ='rent allocations'!AD26*$C$1 -> 0 | AE26: ='rent allocations'!AE26*$C$1 -> 0 | AF26: ='rent allocations'!AF26*$C$1 -> 105461.5646 | AG26: ='rent allocations'!AG26*$C$1 -> 0 | AH26: ='rent allocations'!AH26*$C$1 -> 0 | AI26: ='rent allocations'!AI26*$C$1 -> 0 | AJ26: ='rent allocations'!AJ26*$C$1 -> 0 | AK26: ='rent allocations'!AK26*$C$1 -> 0 | AL26: ='rent allocations'!AL26*$C$1 -> 0
A27: 095 - Office of State Auditor | B27: 095 | C27: Office of State Auditor | D27: ='rent allocations'!D27*$C$1 -> 171163.2882 | E27: ='rent allocations'!E27*$C$1 -> 0 | F27: ='rent allocations'!F27*$C$1 -> 0 | G27: ='rent allocations'!G27*$C$1 -> 0 | H27: ='rent allocations'!H27*$C$1 -> 0 | I27: ='rent allocations'!I27*$C$1 -> 0 | J27: ='rent allocations'!J27*$C$1 -> 0 | K27: ='rent allocations'!K27*$C$1 -> 0 | L27: ='rent allocations'!L27*$C$1 -> 0 | M27: ='rent allocations'!M27*$C$1 -> 0 | N27: ='rent allocations'!N27*$C$1 -> 0 | O27: ='rent allocations'!O27*$C$1 -> 88867.04834 | P27: ='rent allocations'!P27*$C$1 -> 0 | Q27: ='rent allocations'!Q27*$C$1 -> 0 | R27: ='rent allocations'!R27*$C$1 -> 0 | S27: ='rent allocations'!S27*$C$1 -> 0 | T27: ='rent allocations'!T27*$C$1 -> 0 | U27: ='rent allocations'!U27*$C$1 -> 0 | V27: ='rent allocations'!V27*$C$1 -> 0 | W27: ='rent allocations'!W27*$C$1 -> 0 | X27: ='rent allocations'!X27*$C$1 -> 0 | Y27: ='rent allocations'!Y27*$C$1 -> 0 | Z27: ='rent allocations'!Z27*$C$1 -> 0 | AA27: ='rent allocations'!AA27*$C$1 -> 0 | AB27: ='rent allocations'!AB27*$C$1 -> 0 | AC27: ='rent allocations'!AC27*$C$1 -> 0 | AD27: ='rent allocations'!AD27*$C$1 -> 0 | AE27: ='rent allocations'!AE27*$C$1 -> 0 | AF27: ='rent allocations'!AF27*$C$1 -> 0 | AG27: ='rent allocations'!AG27*$C$1 -> 0 | AH27: ='rent allocations'!AH27*$C$1 -> 0 | AI27: ='rent allocations'!AI27*$C$1 -> 0 | AJ27: ='rent allocations'!AJ27*$C$1 -> 82296.23989 | AK27: ='rent allocations'!AK27*$C$1 -> 0 | AL27: ='rent allocations'!AL27*$C$1 -> 0
A28: 099 - Citizens' Commission on Salaries for Elected Officials | B28: 099 | C28: Citizens' Commission on Salaries for Elected Officials | D28: ='rent allocations'!D28*$C$1 -> 14680.70844 | E28: ='rent allocations'!E28*$C$1 -> 0 | F28: ='rent allocations'!F28*$C$1 -> 0 | G28: ='rent allocations'!G28*$C$1 -> 0 | H28: ='rent allocations'!H28*$C$1 -> 0 | I28: ='rent allocations'!I28*$C$1 -> 0 | J28: ='rent allocations'!J28*$C$1 -> 0 | K28: ='rent allocations'!K28*$C$1 -> 0 | L28: ='rent allocations'!L28*$C$1 -> 0 | M28: ='rent allocations'!M28*$C$1 -> 0 | N28: ='rent allocations'!N28*$C$1 -> 0 | O28: ='rent allocations'!O28*$C$1 -> 0 | P28: ='rent allocations'!P28*$C$1 -> 0 | Q28: ='rent allocations'!Q28*$C$1 -> 0 | R28: ='rent allocations'!R28*$C$1 -> 0 | S28: ='rent allocations'!S28*$C$1 -> 0 | T28: ='rent allocations'!T28*$C$1 -> 0 | U28: ='rent allocations'!U28*$C$1 -> 0 | V28: ='rent allocations'!V28*$C$1 -> 0 | W28: ='rent allocations'!W28*$C$1 -> 0 | X28: ='rent allocations'!X28*$C$1 -> 14680.70844 | Y28: ='rent allocations'!Y28*$C$1 -> 0 | Z28: ='rent allocations'!Z28*$C$1 -> 0 | AA28: ='rent allocations'!AA28*$C$1 -> 0 | AB28: ='rent allocations'!AB28*$C$1 -> 0 | AC28: ='rent allocations'!AC28*$C$1 -> 0 | AD28: ='rent allocations'!AD28*$C$1 -> 0 | AE28: ='rent allocations'!AE28*$C$1 -> 0 | AF28: ='rent allocations'!AF28*$C$1 -> 0 | AG28: ='rent allocations'!AG28*$C$1 -> 0 | AH28: ='rent allocations'!AH28*$C$1 -> 0 | AI28: ='rent allocations'!AI28*$C$1 -> 0 | AJ28: ='rent allocations'!AJ28*$C$1 -> 0 | AK28: ='rent allocations'!AK28*$C$1 -> 0 | AL28: ='rent allocations'!AL28*$C$1 -> 0
A29: 100 - Office of Attorney General | B29: 100 | C29: Office of Attorney General | D29: ='rent allocations'!D29*$C$1 -> 772412.6401 | E29: ='rent allocations'!E29*$C$1 -> 0 | F29: ='rent allocations'!F29*$C$1 -> 0 | G29: ='rent allocations'!G29*$C$1 -> 0 | H29: ='rent allocations'!H29*$C$1 -> 0 | I29: ='rent allocations'!I29*$C$1 -> 772412.6401 | J29: ='rent allocations'!J29*$C$1 -> 0 | K29: ='rent allocations'!K29*$C$1 -> 0 | L29: ='rent allocations'!L29*$C$1 -> 0 | M29: ='rent allocations'!M29*$C$1 -> 0 | N29: ='rent allocations'!N29*$C$1 -> 0 | O29: ='rent allocations'!O29*$C$1 -> 0 | P29: ='rent allocations'!P29*$C$1 -> 0 | Q29: ='rent allocations'!Q29*$C$1 -> 0 | R29: ='rent allocations'!R29*$C$1 -> 0 | S29: ='rent allocations'!S29*$C$1 -> 0 | T29: ='rent allocations'!T29*$C$1 -> 0 | U29: ='rent allocations'!U29*$C$1 -> 0 | V29: ='rent allocations'!V29*$C$1 -> 0 | W29: ='rent allocations'!W29*$C$1 -> 0 | X29: ='rent allocations'!X29*$C$1 -> 0 | Y29: ='rent allocations'!Y29*$C$1 -> 0 | Z29: ='rent allocations'!Z29*$C$1 -> 0 | AA29: ='rent allocations'!AA29*$C$1 -> 0 | AB29: ='rent allocations'!AB29*$C$1 -> 0 | AC29: ='rent allocations'!AC29*$C$1 -> 0 | AD29: ='rent allocations'!AD29*$C$1 -> 0 | AE29: ='rent allocations'!AE29*$C$1 -> 0 | AF29: ='rent allocations'!AF29*$C$1 -> 0 | AG29: ='rent allocations'!AG29*$C$1 -> 0 | AH29: ='rent allocations'!AH29*$C$1 -> 0 | AI29: ='rent allocations'!AI29*$C$1 -> 0 | AJ29: ='rent allocations'!AJ29*$C$1 -> 0 | AK29: ='rent allocations'!AK29*$C$1 -> 0 | AL29: ='rent allocations'!AL29*$C$1 -> 0
A30: 101 - Caseload Forecast Council | B30: 101 | C30: Caseload Forecast Council | D30: ='rent allocations'!D30*$C$1 -> 113698.3395 | E30: ='rent allocations'!E30*$C$1 -> 0 | F30: ='rent allocations'!F30*$C$1 -> 0 | G30: ='rent allocations'!G30*$C$1 -> 0 | H30: ='rent allocations'!H30*$C$1 -> 0 | I30: ='rent allocations'!I30*$C$1 -> 0 | J30: ='rent allocations'!J30*$C$1 -> 0 | K30: ='rent allocations'!K30*$C$1 -> 0 | L30: ='rent allocations'!L30*$C$1 -> 0 | M30: ='rent allocations'!M30*$C$1 -> 0 | N30: ='rent allocations'!N30*$C$1 -> 0 | O30: ='rent allocations'!O30*$C$1 -> 0 | P30: ='rent allocations'!P30*$C$1 -> 0 | Q30: ='rent allocations'!Q30*$C$1 -> 0 | R30: ='rent allocations'!R30*$C$1 -> 0 | S30: ='rent allocations'!S30*$C$1 -> 0 | T30: ='rent allocations'!T30*$C$1 -> 0 | U30: ='rent allocations'!U30*$C$1 -> 0 | V30: ='rent allocations'!V30*$C$1 -> 0 | W30: ='rent allocations'!W30*$C$1 -> 0 | X30: ='rent allocations'!X30*$C$1 -> 113698.3395 | Y30: ='rent allocations'!Y30*$C$1 -> 0 | Z30: ='rent allocations'!Z30*$C$1 -> 0 | AA30: ='rent allocations'!AA30*$C$1 -> 0 | AB30: ='rent allocations'!AB30*$C$1 -> 0 | AC30: ='rent allocations'!AC30*$C$1 -> 0 | AD30: ='rent allocations'!AD30*$C$1 -> 0 | AE30: ='rent allocations'!AE30*$C$1 -> 0 | AF30: ='rent allocations'!AF30*$C$1 -> 0 | AG30: ='rent allocations'!AG30*$C$1 -> 0 | AH30: ='rent allocations'!AH30*$C$1 -> 0 | AI30: ='rent allocations'!AI30*$C$1 -> 0 | AJ30: ='rent allocations'!AJ30*$C$1 -> 0 | AK30: ='rent allocations'!AK30*$C$1 -> 0 | AL30: ='rent allocations'!AL30*$C$1 -> 0
A31: 102 - Department of Financial Institutions | B31: 102 | C31: Department of Financial Institutions | D31: ='rent allocations'!D31*$C$1 -> 0 | E31: ='rent allocations'!E31*$C$1 -> 0 | F31: ='rent allocations'!F31*$C$1 -> 0 | G31: ='rent allocations'!G31*$C$1 -> 0 | H31: ='rent allocations'!H31*$C$1 -> 0 | I31: ='rent allocations'!I31*$C$1 -> 0 | J31: ='rent allocations'!J31*$C$1 -> 0 | K31: ='rent allocations'!K31*$C$1 -> 0 | L31: ='rent allocations'!L31*$C$1 -> 0 | M31: ='rent allocations'!M31*$C$1 -> 0 | N31: ='rent allocations'!N31*$C$1 -> 0 | O31: ='rent allocations'!O31*$C$1 -> 0 | P31: ='rent allocations'!P31*$C$1 -> 0 | Q31: ='rent allocations'!Q31*$C$1 -> 0 | R31: ='rent allocations'!R31*$C$1 -> 0 | S31: ='rent allocations'!S31*$C$1 -> 0 | T31: ='rent allocations'!T31*$C$1 -> 0 | U31: ='rent allocations'!U31*$C$1 -> 0 | V31: ='rent allocations'!V31*$C$1 -> 0 | W31: ='rent allocations'!W31*$C$1 -> 0 | X31: ='rent allocations'!X31*$C$1 -> 0 | Y31: ='rent allocations'!Y31*$C$1 -> 0 | Z31: ='rent allocations'!Z31*$C$1 -> 0 | AA31: ='rent allocations'!AA31*$C$1 -> 0 | AB31: ='rent allocations'!AB31*$C$1 -> 0 | AC31: ='rent allocations'!AC31*$C$1 -> 0 | AD31: ='rent allocations'!AD31*$C$1 -> 0 | AE31: ='rent allocations'!AE31*$C$1 -> 0 | AF31: ='rent allocations'!AF31*$C$1 -> 0 | AG31: ='rent allocations'!AG31*$C$1 -> 0 | AH31: ='rent allocations'!AH31*$C$1 -> 0 | AI31: ='rent allocations'!AI31*$C$1 -> 0 | AJ31: ='rent allocations'!AJ31*$C$1 -> 0 | AK31: ='rent allocations'!AK31*$C$1 -> 0 | AL31: ='rent allocations'!AL31*$C$1 -> 0
A32: 103 - Department of Commerce | B32: 103 | C32: Department of Commerce | D32: ='rent allocations'!D32*$C$1 -> 0 | E32: ='rent allocations'!E32*$C$1 -> 0 | F32: ='rent allocations'!F32*$C$1 -> 0 | G32: ='rent allocations'!G32*$C$1 -> 0 | H32: ='rent allocations'!H32*$C$1 -> 0 | I32: ='rent allocations'!I32*$C$1 -> 0 | J32: ='rent allocations'!J32*$C$1 -> 0 | K32: ='rent allocations'!K32*$C$1 -> 0 | L32: ='rent allocations'!L32*$C$1 -> 0 | M32: ='rent allocations'!M32*$C$1 -> 0 | N32: ='rent allocations'!N32*$C$1 -> 0 | O32: ='rent allocations'!O32*$C$1 -> 0 | P32: ='rent allocations'!P32*$C$1 -> 0 | Q32: ='rent allocations'!Q32*$C$1 -> 0 | R32: ='rent allocations'!R32*$C$1 -> 0 | S32: ='rent allocations'!S32*$C$1 -> 0 | T32: ='rent allocations'!T32*$C$1 -> 0 | U32: ='rent allocations'!U32*$C$1 -> 0 | V32: ='rent allocations'!V32*$C$1 -> 0 | W32: ='rent allocations'!W32*$C$1 -> 0 | X32: ='rent allocations'!X32*$C$1 -> 0 | Y32: ='rent allocations'!Y32*$C$1 -> 0 | Z32: ='rent allocations'!Z32*$C$1 -> 0 | AA32: ='rent allocations'!AA32*$C$1 -> 0 | AB32: ='rent allocations'!AB32*$C$1 -> 0 | AC32: ='rent allocations'!AC32*$C$1 -> 0 | AD32: ='rent allocations'!AD32*$C$1 -> 0 | AE32: ='rent allocations'!AE32*$C$1 -> 0 | AF32: ='rent allocations'!AF32*$C$1 -> 0 | AG32: ='rent allocations'!AG32*$C$1 -> 0 | AH32: ='rent allocations'!AH32*$C$1 -> 0 | AI32: ='rent allocations'!AI32*$C$1 -> 0 | AJ32: ='rent allocations'!AJ32*$C$1 -> 0 | AK32: ='rent allocations'!AK32*$C$1 -> 0 | AL32: ='rent allocations'!AL32*$C$1 -> 0
A33: 104 - Economic and Revenue Forecast Council | B33: 104 | C33: Economic and Revenue Forecast Council | D33: ='rent allocations'!D33*$C$1 -> 0 | E33: ='rent allocations'!E33*$C$1 -> 0 | F33: ='rent allocations'!F33*$C$1 -> 0 | G33: ='rent allocations'!G33*$C$1 -> 0 | H33: ='rent allocations'!H33*$C$1 -> 0 | I33: ='rent allocations'!I33*$C$1 -> 0 | J33: ='rent allocations'!J33*$C$1 -> 0 | K33: ='rent allocations'!K33*$C$1 -> 0 | L33: ='rent allocations'!L33*$C$1 -> 0 | M33: ='rent allocations'!M33*$C$1 -> 0 | N33: ='rent allocations'!N33*$C$1 -> 0 | O33: ='rent allocations'!O33*$C$1 -> 0 | P33: ='rent allocations'!P33*$C$1 -> 0 | Q33: ='rent allocations'!Q33*$C$1 -> 0 | R33: ='rent allocations'!R33*$C$1 -> 0 | S33: ='rent allocations'!S33*$C$1 -> 0 | T33: ='rent allocations'!T33*$C$1 -> 0 | U33: ='rent allocations'!U33*$C$1 -> 0 | V33: ='rent allocations'!V33*$C$1 -> 0 | W33: ='rent allocations'!W33*$C$1 -> 0 | X33: ='rent allocations'!X33*$C$1 -> 0 | Y33: ='rent allocations'!Y33*$C$1 -> 0 | Z33: ='rent allocations'!Z33*$C$1 -> 0 | AA33: ='rent allocations'!AA33*$C$1 -> 0 | AB33: ='rent allocations'!AB33*$C$1 -> 0 | AC33: ='rent allocations'!AC33*$C$1 -> 0 | AD33: ='rent allocations'!AD33*$C$1 -> 0 | AE33: ='rent allocations'!AE33*$C$1 -> 0 | AF33: ='rent allocations'!AF33*$C$1 -> 0 | AG33: ='rent allocations'!AG33*$C$1 -> 0 | AH33: ='rent allocations'!AH33*$C$1 -> 0 | AI33: ='rent allocations'!AI33*$C$1 -> 0 | AJ33: ='rent allocations'!AJ33*$C$1 -> 0 | AK33: ='rent allocations'!AK33*$C$1 -> 0 | AL33: ='rent allocations'!AL33*$C$1 -> 0
A34: 105 - Office of Financial Management | B34: 105 | C34: Office of Financial Management | D34: ='rent allocations'!D34*$C$1 -> 796603.3047 | E34: ='rent allocations'!E34*$C$1 -> 0 | F34: ='rent allocations'!F34*$C$1 -> 0 | G34: ='rent allocations'!G34*$C$1 -> 0 | H34: ='rent allocations'!H34*$C$1 -> 0 | I34: ='rent allocations'!I34*$C$1 -> 0 | J34: ='rent allocations'!J34*$C$1 -> 0 | K34: ='rent allocations'!K34*$C$1 -> 0 | L34: ='rent allocations'!L34*$C$1 -> 0 | M34: ='rent allocations'!M34*$C$1 -> 0 | N34: ='rent allocations'!N34*$C$1 -> 0 | O34: ='rent allocations'!O34*$C$1 -> 578037.7394 | P34: ='rent allocations'!P34*$C$1 -> 0 | Q34: ='rent allocations'!Q34*$C$1 -> 0 | R34: ='rent allocations'!R34*$C$1 -> 0 | S34: ='rent allocations'!S34*$C$1 -> 0 | T34: ='rent allocations'!T34*$C$1 -> 0 | U34: ='rent allocations'!U34*$C$1 -> 0 | V34: ='rent allocations'!V34*$C$1 -> 0 | W34: ='rent allocations'!W34*$C$1 -> 0 | X34: ='rent allocations'!X34*$C$1 -> 15408.13093 | Y34: ='rent allocations'!Y34*$C$1 -> 0 | Z34: ='rent allocations'!Z34*$C$1 -> 0 | AA34: ='rent allocations'!AA34*$C$1 -> 0 | AB34: ='rent allocations'!AB34*$C$1 -> 0 | AC34: ='rent allocations'!AC34*$C$1 -> 0 | AD34: ='rent allocations'!AD34*$C$1 -> 0 | AE34: ='rent allocations'!AE34*$C$1 -> 0 | AF34: ='rent allocations'!AF34*$C$1 -> 203157.4344 | AG34: ='rent allocations'!AG34*$C$1 -> 0 | AH34: ='rent allocations'!AH34*$C$1 -> 0 | AI34: ='rent allocations'!AI34*$C$1 -> 0 | AJ34: ='rent allocations'!AJ34*$C$1 -> 0 | AK34: ='rent allocations'!AK34*$C$1 -> 0 | AL34: ='rent allocations'!AL34*$C$1 -> 0
A35: 107 - Washington State Health Care Authority | B35: 107 | C35: Washington State Health Care Authority | D35: ='rent allocations'!D35*$C$1 -> 0 | E35: ='rent allocations'!E35*$C$1 -> 0 | F35: ='rent allocations'!F35*$C$1 -> 0 | G35: ='rent allocations'!G35*$C$1 -> 0 | H35: ='rent allocations'!H35*$C$1 -> 0 | I35: ='rent allocations'!I35*$C$1 -> 0 | J35: ='rent allocations'!J35*$C$1 -> 0 | K35: ='rent allocations'!K35*$C$1 -> 0 | L35: ='rent allocations'!L35*$C$1 -> 0 | M35: ='rent allocations'!M35*$C$1 -> 0 | N35: ='rent allocations'!N35*$C$1 -> 0 | O35: ='rent allocations'!O35*$C$1 -> 0 | P35: ='rent allocations'!P35*$C$1 -> 0 | Q35: ='rent allocations'!Q35*$C$1 -> 0 | R35: ='rent allocations'!R35*$C$1 -> 0 | S35: ='rent allocations'!S35*$C$1 -> 0 | T35: ='rent allocations'!T35*$C$1 -> 0 | U35: ='rent allocations'!U35*$C$1 -> 0 | V35: ='rent allocations'!V35*$C$1 -> 0 | W35: ='rent allocations'!W35*$C$1 -> 0 | X35: ='rent allocations'!X35*$C$1 -> 0 | Y35: ='rent allocations'!Y35*$C$1 -> 0 | Z35: ='rent allocations'!Z35*$C$1 -> 0 | AA35: ='rent allocations'!AA35*$C$1 -> 0 | AB35: ='rent allocations'!AB35*$C$1 -> 0 | AC35: ='rent allocations'!AC35*$C$1 -> 0 | AD35: ='rent allocations'!AD35*$C$1 -> 0 | AE35: ='rent allocations'!AE35*$C$1 -> 0 | AF35: ='rent allocations'!AF35*$C$1 -> 0 | AG35: ='rent allocations'!AG35*$C$1 -> 0 | AH35: ='rent allocations'!AH35*$C$1 -> 0 | AI35: ='rent allocations'!AI35*$C$1 -> 0 | AJ35: ='rent allocations'!AJ35*$C$1 -> 0 | AK35: ='rent allocations'!AK35*$C$1 -> 0 | AL35: ='rent allocations'!AL35*$C$1 -> 0
A36: 110 - Office of Administrative Hearings | B36: 110 | C36: Office of Administrative Hearings | D36: ='rent allocations'!D36*$C$1 -> 209481.3379 | E36: ='rent allocations'!E36*$C$1 -> 0 | F36: ='rent allocations'!F36*$C$1 -> 0 | G36: ='rent allocations'!G36*$C$1 -> 0 | H36: ='rent allocations'!H36*$C$1 -> 0 | I36: ='rent allocations'!I36*$C$1 -> 0 | J36: ='rent allocations'!J36*$C$1 -> 0 | K36: ='rent allocations'!K36*$C$1 -> 0 | L36: ='rent allocations'!L36*$C$1 -> 0 | M36: ='rent allocations'!M36*$C$1 -> 0 | N36: ='rent allocations'!N36*$C$1 -> 0 | O36: ='rent allocations'!O36*$C$1 -> 0 | P36: ='rent allocations'!P36*$C$1 -> 0 | Q36: ='rent allocations'!Q36*$C$1 -> 0 | R36: ='rent allocations'!R36*$C$1 -> 0 | S36: ='rent allocations'!S36*$C$1 -> 0 | T36: ='rent allocations'!T36*$C$1 -> 0 | U36: ='rent allocations'!U36*$C$1 -> 0 | V36: ='rent allocations'!V36*$C$1 -> 0 | W36: ='rent allocations'!W36*$C$1 -> 0 | X36: ='rent allocations'!X36*$C$1 -> 0 | Y36: ='rent allocations'!Y36*$C$1 -> 0 | Z36: ='rent allocations'!Z36*$C$1 -> 0 | AA36: ='rent allocations'!AA36*$C$1 -> 0 | AB36: ='rent allocations'!AB36*$C$1 -> 0 | AC36: ='rent allocations'!AC36*$C$1 -> 0 | AD36: ='rent allocations'!AD36*$C$1 -> 0 | AE36: ='rent allocations'!AE36*$C$1 -> 0 | AF36: ='rent allocations'!AF36*$C$1 -> 0 | AG36: ='rent allocations'!AG36*$C$1 -> 0 | AH36: ='rent allocations'!AH36*$C$1 -> 0 | AI36: ='rent allocations'!AI36*$C$1 -> 0 | AJ36: ='rent allocations'!AJ36*$C$1 -> 209481.3379 | AK36: ='rent allocations'!AK36*$C$1 -> 0 | AL36: ='rent allocations'!AL36*$C$1 -> 0
A37: 116 - State Lottery | B37: 116 | C37: State Lottery | D37: ='rent allocations'!D37*$C$1 -> 0 | E37: ='rent allocations'!E37*$C$1 -> 0 | F37: ='rent allocations'!F37*$C$1 -> 0 | G37: ='rent allocations'!G37*$C$1 -> 0 | H37: ='rent allocations'!H37*$C$1 -> 0 | I37: ='rent allocations'!I37*$C$1 -> 0 | J37: ='rent allocations'!J37*$C$1 -> 0 | K37: ='rent allocations'!K37*$C$1 -> 0 | L37: ='rent allocations'!L37*$C$1 -> 0 | M37: ='rent allocations'!M37*$C$1 -> 0 | N37: ='rent allocations'!N37*$C$1 -> 0 | O37: ='rent allocations'!O37*$C$1 -> 0 | P37: ='rent allocations'!P37*$C$1 -> 0 | Q37: ='rent allocations'!Q37*$C$1 -> 0 | R37: ='rent allocations'!R37*$C$1 -> 0 | S37: ='rent allocations'!S37*$C$1 -> 0 | T37: ='rent allocations'!T37*$C$1 -> 0 | U37: ='rent allocations'!U37*$C$1 -> 0 | V37: ='rent allocations'!V37*$C$1 -> 0 | W37: ='rent allocations'!W37*$C$1 -> 0 | X37: ='rent allocations'!X37*$C$1 -> 0 | Y37: ='rent allocations'!Y37*$C$1 -> 0 | Z37: ='rent allocations'!Z37*$C$1 -> 0 | AA37: ='rent allocations'!AA37*$C$1 -> 0 | AB37: ='rent allocations'!AB37*$C$1 -> 0 | AC37: ='rent allocations'!AC37*$C$1 -> 0 | AD37: ='rent allocations'!AD37*$C$1 -> 0 | AE37: ='rent allocations'!AE37*$C$1 -> 0 | AF37: ='rent allocations'!AF37*$C$1 -> 0 | AG37: ='rent allocations'!AG37*$C$1 -> 0 | AH37: ='rent allocations'!AH37*$C$1 -> 0 | AI37: ='rent allocations'!AI37*$C$1 -> 0 | AJ37: ='rent allocations'!AJ37*$C$1 -> 0 | AK37: ='rent allocations'!AK37*$C$1 -> 0 | AL37: ='rent allocations'!AL37*$C$1 -> 0
A38: 117 - Washington State Gambling Commission | B38: 117 | C38: Washington State Gambling Commission | D38: ='rent allocations'!D38*$C$1 -> 0 | E38: ='rent allocations'!E38*$C$1 -> 0 | F38: ='rent allocations'!F38*$C$1 -> 0 | G38: ='rent allocations'!G38*$C$1 -> 0 | H38: ='rent allocations'!H38*$C$1 -> 0 | I38: ='rent allocations'!I38*$C$1 -> 0 | J38: ='rent allocations'!J38*$C$1 -> 0 | K38: ='rent allocations'!K38*$C$1 -> 0 | L38: ='rent allocations'!L38*$C$1 -> 0 | M38: ='rent allocations'!M38*$C$1 -> 0 | N38: ='rent allocations'!N38*$C$1 -> 0 | O38: ='rent allocations'!O38*$C$1 -> 0 | P38: ='rent allocations'!P38*$C$1 -> 0 | Q38: ='rent allocations'!Q38*$C$1 -> 0 | R38: ='rent allocations'!R38*$C$1 -> 0 | S38: ='rent allocations'!S38*$C$1 -> 0 | T38: ='rent allocations'!T38*$C$1 -> 0 | U38: ='rent allocations'!U38*$C$1 -> 0 | V38: ='rent allocations'!V38*$C$1 -> 0 | W38: ='rent allocations'!W38*$C$1 -> 0 | X38: ='rent allocations'!X38*$C$1 -> 0 | Y38: ='rent allocations'!Y38*$C$1 -> 0 | Z38: ='rent allocations'!Z38*$C$1 -> 0 | AA38: ='rent allocations'!AA38*$C$1 -> 0 | AB38: ='rent allocations'!AB38*$C$1 -> 0 | AC38: ='rent allocations'!AC38*$C$1 -> 0 | AD38: ='rent allocations'!AD38*$C$1 -> 0 | AE38: ='rent allocations'!AE38*$C$1 -> 0 | AF38: ='rent allocations'!AF38*$C$1 -> 0 | AG38: ='rent allocations'!AG38*$C$1 -> 0 | AH38: ='rent allocations'!AH38*$C$1 -> 0 | AI38: ='rent allocations'!AI38*$C$1 -> 0 | AJ38: ='rent allocations'!AJ38*$C$1 -> 0 | AK38: ='rent allocations'!AK38*$C$1 -> 0 | AL38: ='rent allocations'!AL38*$C$1 -> 0
A39: 118 - Commission on Hispanic Affairs | B39: 118 | C39: Commission on Hispanic Affairs | D39: ='rent allocations'!D39*$C$1 -> 19023.20027 | E39: ='rent allocations'!E39*$C$1 -> 0 | F39: ='rent allocations'!F39*$C$1 -> 0 | G39: ='rent allocations'!G39*$C$1 -> 0 | H39: ='rent allocations'!H39*$C$1 -> 0 | I39: ='rent allocations'!I39*$C$1 -> 0 | J39: ='rent allocations'!J39*$C$1 -> 0 | K39: ='rent allocations'!K39*$C$1 -> 0 | L39: ='rent allocations'!L39*$C$1 -> 0 | M39: ='rent allocations'!M39*$C$1 -> 0 | N39: ='rent allocations'!N39*$C$1 -> 0 | O39: ='rent allocations'!O39*$C$1 -> 0 | P39: ='rent allocations'!P39*$C$1 -> 0 | Q39: ='rent allocations'!Q39*$C$1 -> 0 | R39: ='rent allocations'!R39*$C$1 -> 0 | S39: ='rent allocations'!S39*$C$1 -> 0 | T39: ='rent allocations'!T39*$C$1 -> 0 | U39: ='rent allocations'!U39*$C$1 -> 0 | V39: ='rent allocations'!V39*$C$1 -> 0 | W39: ='rent allocations'!W39*$C$1 -> 0 | X39: ='rent allocations'!X39*$C$1 -> 19023.20027 | Y39: ='rent allocations'!Y39*$C$1 -> 0 | Z39: ='rent allocations'!Z39*$C$1 -> 0 | AA39: ='rent allocations'!AA39*$C$1 -> 0 | AB39: ='rent allocations'!AB39*$C$1 -> 0 | AC39: ='rent allocations'!AC39*$C$1 -> 0 | AD39: ='rent allocations'!AD39*$C$1 -> 0 | AE39: ='rent allocations'!AE39*$C$1 -> 0 | AF39: ='rent allocations'!AF39*$C$1 -> 0 | AG39: ='rent allocations'!AG39*$C$1 -> 0 | AH39: ='rent allocations'!AH39*$C$1 -> 0 | AI39: ='rent allocations'!AI39*$C$1 -> 0 | AJ39: ='rent allocations'!AJ39*$C$1 -> 0 | AK39: ='rent allocations'!AK39*$C$1 -> 0 | AL39: ='rent allocations'!AL39*$C$1 -> 0
A40: 119 - Commission on African-American Affairs | B40: 119 | C40: Commission on African-American Affairs | D40: ='rent allocations'!D40*$C$1 -> 19023.20027 | E40: ='rent allocations'!E40*$C$1 -> 0 | F40: ='rent allocations'!F40*$C$1 -> 0 | G40: ='rent allocations'!G40*$C$1 -> 0 | H40: ='rent allocations'!H40*$C$1 -> 0 | I40: ='rent allocations'!I40*$C$1 -> 0 | J40: ='rent allocations'!J40*$C$1 -> 0 | K40: ='rent allocations'!K40*$C$1 -> 0 | L40: ='rent allocations'!L40*$C$1 -> 0 | M40: ='rent allocations'!M40*$C$1 -> 0 | N40: ='rent allocations'!N40*$C$1 -> 0 | O40: ='rent allocations'!O40*$C$1 -> 0 | P40: ='rent allocations'!P40*$C$1 -> 0 | Q40: ='rent allocations'!Q40*$C$1 -> 0 | R40: ='rent allocations'!R40*$C$1 -> 0 | S40: ='rent allocations'!S40*$C$1 -> 0 | T40: ='rent allocations'!T40*$C$1 -> 0 | U40: ='rent allocations'!U40*$C$1 -> 0 | V40: ='rent allocations'!V40*$C$1 -> 0 | W40: ='rent allocations'!W40*$C$1 -> 0 | X40: ='rent allocations'!X40*$C$1 -> 19023.20027 | Y40: ='rent allocations'!Y40*$C$1 -> 0 | Z40: ='rent allocations'!Z40*$C$1 -> 0 | AA40: ='rent allocations'!AA40*$C$1 -> 0 | AB40: ='rent allocations'!AB40*$C$1 -> 0 | AC40: ='rent allocations'!AC40*$C$1 -> 0 | AD40: ='rent allocations'!AD40*$C$1 -> 0 | AE40: ='rent allocations'!AE40*$C$1 -> 0 | AF40: ='rent allocations'!AF40*$C$1 -> 0 | AG40: ='rent allocations'!AG40*$C$1 -> 0 | AH40: ='rent allocations'!AH40*$C$1 -> 0 | AI40: ='rent allocations'!AI40*$C$1 -> 0 | AJ40: ='rent allocations'!AJ40*$C$1 -> 0 | AK40: ='rent allocations'!AK40*$C$1 -> 0 | AL40: ='rent allocations'!AL40*$C$1 -> 0
A41: 120 - Human Rights Commission | B41: 120 | C41: Human Rights Commission | D41: ='rent allocations'!D41*$C$1 -> 0 | E41: ='rent allocations'!E41*$C$1 -> 0 | F41: ='rent allocations'!F41*$C$1 -> 0 | G41: ='rent allocations'!G41*$C$1 -> 0 | H41: ='rent allocations'!H41*$C$1 -> 0 | I41: ='rent allocations'!I41*$C$1 -> 0 | J41: ='rent allocations'!J41*$C$1 -> 0 | K41: ='rent allocations'!K41*$C$1 -> 0 | L41: ='rent allocations'!L41*$C$1 -> 0 | M41: ='rent allocations'!M41*$C$1 -> 0 | N41: ='rent allocations'!N41*$C$1 -> 0 | O41: ='rent allocations'!O41*$C$1 -> 0 | P41: ='rent allocations'!P41*$C$1 -> 0 | Q41: ='rent allocations'!Q41*$C$1 -> 0 | R41: ='rent allocations'!R41*$C$1 -> 0 | S41: ='rent allocations'!S41*$C$1 -> 0 | T41: ='rent allocations'!T41*$C$1 -> 0 | U41: ='rent allocations'!U41*$C$1 -> 0 | V41: ='rent allocations'!V41*$C$1 -> 0 | W41: ='rent allocations'!W41*$C$1 -> 0 | X41: ='rent allocations'!X41*$C$1 -> 0 | Y41: ='rent allocations'!Y41*$C$1 -> 0 | Z41: ='rent allocations'!Z41*$C$1 -> 0 | AA41: ='rent allocations'!AA41*$C$1 -> 0 | AB41: ='rent allocations'!AB41*$C$1 -> 0 | AC41: ='rent allocations'!AC41*$C$1 -> 0 | AD41: ='rent allocations'!AD41*$C$1 -> 0 | AE41: ='rent allocations'!AE41*$C$1 -> 0 | AF41: ='rent allocations'!AF41*$C$1 -> 0 | AG41: ='rent allocations'!AG41*$C$1 -> 0 | AH41: ='rent allocations'!AH41*$C$1 -> 0 | AI41: ='rent allocations'!AI41*$C$1 -> 0 | AJ41: ='rent allocations'!AJ41*$C$1 -> 0 | AK41: ='rent allocations'!AK41*$C$1 -> 0 | AL41: ='rent allocations'!AL41*$C$1 -> 0
A42: 124 - Department of Retirement Systems | B42: 124 | C42: Department of Retirement Systems | D42: ='rent allocations'!D42*$C$1 -> 0 | E42: ='rent allocations'!E42*$C$1 -> 0 | F42: ='rent allocations'!F42*$C$1 -> 0 | G42: ='rent allocations'!G42*$C$1 -> 0 | H42: ='rent allocations'!H42*$C$1 -> 0 | I42: ='rent allocations'!I42*$C$1 -> 0 | J42: ='rent allocations'!J42*$C$1 -> 0 | K42: ='rent allocations'!K42*$C$1 -> 0 | L42: ='rent allocations'!L42*$C$1 -> 0 | M42: ='rent allocations'!M42*$C$1 -> 0 | N42: ='rent allocations'!N42*$C$1 -> 0 | O42: ='rent allocations'!O42*$C$1 -> 0 | P42: ='rent allocations'!P42*$C$1 -> 0 | Q42: ='rent allocations'!Q42*$C$1 -> 0 | R42: ='rent allocations'!R42*$C$1 -> 0 | S42: ='rent allocations'!S42*$C$1 -> 0 | T42: ='rent allocations'!T42*$C$1 -> 0 | U42: ='rent allocations'!U42*$C$1 -> 0 | V42: ='rent allocations'!V42*$C$1 -> 0 | W42: ='rent allocations'!W42*$C$1 -> 0 | X42: ='rent allocations'!X42*$C$1 -> 0 | Y42: ='rent allocations'!Y42*$C$1 -> 0 | Z42: ='rent allocations'!Z42*$C$1 -> 0 | AA42: ='rent allocations'!AA42*$C$1 -> 0 | AB42: ='rent allocations'!AB42*$C$1 -> 0 | AC42: ='rent allocations'!AC42*$C$1 -> 0 | AD42: ='rent allocations'!AD42*$C$1 -> 0 | AE42: ='rent allocations'!AE42*$C$1 -> 0 | AF42: ='rent allocations'!AF42*$C$1 -> 0 | AG42: ='rent allocations'!AG42*$C$1 -> 0 | AH42: ='rent allocations'!AH42*$C$1 -> 0 | AI42: ='rent allocations'!AI42*$C$1 -> 0 | AJ42: ='rent allocations'!AJ42*$C$1 -> 0 | AK42: ='rent allocations'!AK42*$C$1 -> 0 | AL42: ='rent allocations'!AL42*$C$1 -> 0
A43: 126 - State Investment Board | B43: 126 | C43: State Investment Board | D43: ='rent allocations'!D43*$C$1 -> 0 | E43: ='rent allocations'!E43*$C$1 -> 0 | F43: ='rent allocations'!F43*$C$1 -> 0 | G43: ='rent allocations'!G43*$C$1 -> 0 | H43: ='rent allocations'!H43*$C$1 -> 0 | I43: ='rent allocations'!I43*$C$1 -> 0 | J43: ='rent allocations'!J43*$C$1 -> 0 | K43: ='rent allocations'!K43*$C$1 -> 0 | L43: ='rent allocations'!L43*$C$1 -> 0 | M43: ='rent allocations'!M43*$C$1 -> 0 | N43: ='rent allocations'!N43*$C$1 -> 0 | O43: ='rent allocations'!O43*$C$1 -> 0 | P43: ='rent allocations'!P43*$C$1 -> 0 | Q43: ='rent allocations'!Q43*$C$1 -> 0 | R43: ='rent allocations'!R43*$C$1 -> 0 | S43: ='rent allocations'!S43*$C$1 -> 0 | T43: ='rent allocations'!T43*$C$1 -> 0 | U43: ='rent allocations'!U43*$C$1 -> 0 | V43: ='rent allocations'!V43*$C$1 -> 0 | W43: ='rent allocations'!W43*$C$1 -> 0 | X43: ='rent allocations'!X43*$C$1 -> 0 | Y43: ='rent allocations'!Y43*$C$1 -> 0 | Z43: ='rent allocations'!Z43*$C$1 -> 0 | AA43: ='rent allocations'!AA43*$C$1 -> 0 | AB43: ='rent allocations'!AB43*$C$1 -> 0 | AC43: ='rent allocations'!AC43*$C$1 -> 0 | AD43: ='rent allocations'!AD43*$C$1 -> 0 | AE43: ='rent allocations'!AE43*$C$1 -> 0 | AF43: ='rent allocations'!AF43*$C$1 -> 0 | AG43: ='rent allocations'!AG43*$C$1 -> 0 | AH43: ='rent allocations'!AH43*$C$1 -> 0 | AI43: ='rent allocations'!AI43*$C$1 -> 0 | AJ43: ='rent allocations'!AJ43*$C$1 -> 0 | AK43: ='rent allocations'!AK43*$C$1 -> 0 | AL43: ='rent allocations'!AL43*$C$1 -> 0
A44: 140 - Department of Revenue | B44: 140 | C44: Department of Revenue | D44: ='rent allocations'!D44*$C$1 -> 0 | E44: ='rent allocations'!E44*$C$1 -> 0 | F44: ='rent allocations'!F44*$C$1 -> 0 | G44: ='rent allocations'!G44*$C$1 -> 0 | H44: ='rent allocations'!H44*$C$1 -> 0 | I44: ='rent allocations'!I44*$C$1 -> 0 | J44: ='rent allocations'!J44*$C$1 -> 0 | K44: ='rent allocations'!K44*$C$1 -> 0 | L44: ='rent allocations'!L44*$C$1 -> 0 | M44: ='rent allocations'!M44*$C$1 -> 0 | N44: ='rent allocations'!N44*$C$1 -> 0 | O44: ='rent allocations'!O44*$C$1 -> 0 | P44: ='rent allocations'!P44*$C$1 -> 0 | Q44: ='rent allocations'!Q44*$C$1 -> 0 | R44: ='rent allocations'!R44*$C$1 -> 0 | S44: ='rent allocations'!S44*$C$1 -> 0 | T44: ='rent allocations'!T44*$C$1 -> 0 | U44: ='rent allocations'!U44*$C$1 -> 0 | V44: ='rent allocations'!V44*$C$1 -> 0 | W44: ='rent allocations'!W44*$C$1 -> 0 | X44: ='rent allocations'!X44*$C$1 -> 0 | Y44: ='rent allocations'!Y44*$C$1 -> 0 | Z44: ='rent allocations'!Z44*$C$1 -> 0 | AA44: ='rent allocations'!AA44*$C$1 -> 0 | AB44: ='rent allocations'!AB44*$C$1 -> 0 | AC44: ='rent allocations'!AC44*$C$1 -> 0 | AD44: ='rent allocations'!AD44*$C$1 -> 0 | AE44: ='rent allocations'!AE44*$C$1 -> 0 | AF44: ='rent allocations'!AF44*$C$1 -> 0 | AG44: ='rent allocations'!AG44*$C$1 -> 0 | AH44: ='rent allocations'!AH44*$C$1 -> 0 | AI44: ='rent allocations'!AI44*$C$1 -> 0 | AJ44: ='rent allocations'!AJ44*$C$1 -> 0 | AK44: ='rent allocations'!AK44*$C$1 -> 0 | AL44: ='rent allocations'!AL44*$C$1 -> 0
A45: 142 - Board of Tax Appeals | B45: 142 | C45: Board of Tax Appeals | D45: ='rent allocations'!D45*$C$1 -> 102941.3039 | E45: ='rent allocations'!E45*$C$1 -> 0 | F45: ='rent allocations'!F45*$C$1 -> 0 | G45: ='rent allocations'!G45*$C$1 -> 0 | H45: ='rent allocations'!H45*$C$1 -> 0 | I45: ='rent allocations'!I45*$C$1 -> 0 | J45: ='rent allocations'!J45*$C$1 -> 0 | K45: ='rent allocations'!K45*$C$1 -> 0 | L45: ='rent allocations'!L45*$C$1 -> 0 | M45: ='rent allocations'!M45*$C$1 -> 0 | N45: ='rent allocations'!N45*$C$1 -> 0 | O45: ='rent allocations'!O45*$C$1 -> 0 | P45: ='rent allocations'!P45*$C$1 -> 0 | Q45: ='rent allocations'!Q45*$C$1 -> 0 | R45: ='rent allocations'!R45*$C$1 -> 0 | S45: ='rent allocations'!S45*$C$1 -> 0 | T45: ='rent allocations'!T45*$C$1 -> 0 | U45: ='rent allocations'!U45*$C$1 -> 0 | V45: ='rent allocations'!V45*$C$1 -> 0 | W45: ='rent allocations'!W45*$C$1 -> 0 | X45: ='rent allocations'!X45*$C$1 -> 102941.3039 | Y45: ='rent allocations'!Y45*$C$1 -> 0 | Z45: ='rent allocations'!Z45*$C$1 -> 0 | AA45: ='rent allocations'!AA45*$C$1 -> 0 | AB45: ='rent allocations'!AB45*$C$1 -> 0 | AC45: ='rent allocations'!AC45*$C$1 -> 0 | AD45: ='rent allocations'!AD45*$C$1 -> 0 | AE45: ='rent allocations'!AE45*$C$1 -> 0 | AF45: ='rent allocations'!AF45*$C$1 -> 0 | AG45: ='rent allocations'!AG45*$C$1 -> 0 | AH45: ='rent allocations'!AH45*$C$1 -> 0 | AI45: ='rent allocations'!AI45*$C$1 -> 0 | AJ45: ='rent allocations'!AJ45*$C$1 -> 0 | AK45: ='rent allocations'!AK45*$C$1 -> 0 | AL45: ='rent allocations'!AL45*$C$1 -> 0
